Workbook

Sheet Introduction

Sheet License

Sheet Inputs
A2: MINOR REPAIR
A3: RELIABILITY (Unscheduled Minor Repair) | G3: Scheduled Minor Repair (Max Time)
B4: Average time between UNSCHEDULED Minor Repairs | C4: alpha (Gamma "shape" parameter) | D4: Standard Deviation of time between UNSCHEDULED Minor Repairs | E4: theta (Gamma "scale" parameter) | G4: 1050
B5: 920 | C5: =MR_mean^2 / MR_SD^2 -> 69.95041322 | D5: 110 | E5: =MR_mean/MR_shape -> 13.15217391 | I5: day | J5: 1
I6: week | J6: 7
I7: month | J7: =365.25/12 -> 30.4375
A8: OVERHAUL | I8: quarter | J8: =3*J7 -> 91.3125
A9: RELIABILITY (Unscheduled Overhaul) | G9: Scheduled Overhaul (Max Time) | I9: year | J9: 365.25
B10: Average time between UNSCHEDULED Overhauls | C10: alpha (Gamma "shape" parameter) | D10: Standard Deviation of UNSCHEDULED Overhaul intervals | E10: theta (Gamma "scale" parameter) | G10: 3500
B11: 2900 | C11: =OH_mean^2 / OH_SD^2 -> 93.44444444 | D11: 300 | E11: =OH_mean/OH_shape -> 31.03448276 | I11: Maint Type | J11: OH
G12: Overhaul Build Policy | I12: Sch/Uns | J12: (Multiple Items)
G13: 510
A14: AGE ACCUMULATION RATE | I14: Average of TBM | J14: StdDev of TBM
B15: Mean Rate | C15: alpha (Gamma "shape" parameter) | D15: Std-Dev | E15: theta (Gamma "scale" parameter) | I15: 477.1213798 | J15: 312.2674449
B16: 21 | C16: =AgingRate_mean^2 / AgingRate_SD^2 -> 17.64 | D16: 5 | E16: =AgingRate_mean/AgingRate_shape -> 1.19047619
I17: Average Minor Repair Interval | J17: Std-Dev Minor Repair Interval
A18: Start Date | C18: 2024-11-30
A19: Period Length | C19: 1 | D19: month | E19: =C19 * VLOOKUP(D19,I5:J9,2,0) -> 30.4375 | F19: days | I19: =AVERAGE(Maintenance!L:L) -> 824.0969799 | J19: =_xlfn.STDEV.P(Maintenance!L:L) -> 231.1579306
A20: Num Periods | C20: 180
A21: End Date | C21: =Start_Date + NumModelPeriods*DaysPerPeriod -> 2039-11-30T18:00:00
A23: Num fleet-wide items | C23: 510 | D23: =IF( MAX(Maintenance!A:A) <=NumItems, "ERROR: Not enough rows on Maintenance sheet", "" ) -> 
A24: Introduction Period(s) | C24: 24

Sheet Maint_Summary
A3: Count of Maint Type | B3: Column Labels
B4: MR | D4: MR Total | E4: OH | H4: OH Total | I4: Grand Total
A5: Row Labels | B5: Sch | C5: Uns | E5: Sch | F5: Uns | G5: Uns-BP
A6: 2026 | C6: 1 | D6: 1 | I6: 1
A7: Qtr4 | C7: 1 | D7: 1 | I7: 1
A8: 2027 | B8: 1 | C8: 17 | D8: 18 | I8: 18
A9: Qtr1 | C9: 1 | D9: 1 | I9: 1
A10: Qtr2 | C10: 2 | D10: 2 | I10: 2
A11: Qtr3 | C11: 4 | D11: 4 | I11: 4
A12: Qtr4 | B12: 1 | C12: 10 | D12: 11 | I12: 11
A13: 2028 | B13: 9 | C13: 104 | D13: 113 | I13: 113
A14: Qtr1 | C14: 12 | D14: 12 | I14: 12
A15: Qtr2 | B15: 1 | C15: 29 | D15: 30 | I15: 30
A16: Qtr3 | B16: 4 | C16: 25 | D16: 29 | I16: 29
A17: Qtr4 | B17: 4 | C17: 38 | D17: 42 | I17: 42
A18: 2029 | B18: 12 | C18: 158 | D18: 170 | I18: 170
A19: Qtr1 | B19: 2 | C19: 42 | D19: 44 | I19: 44
A20: Qtr2 | B20: 4 | C20: 47 | D20: 51 | I20: 51
A21: Qtr3 | B21: 5 | C21: 30 | D21: 35 | I21: 35
A22: Qtr4 | B22: 1 | C22: 39 | D22: 40 | I22: 40
A23: 2030 | B23: 23 | C23: 124 | D23: 147 | I23: 147
A24: Qtr1 | B24: 4 | C24: 36 | D24: 40 | I24: 40
A25: Qtr2 | B25: 7 | C25: 34 | D25: 41 | I25: 41
A26: Qtr3 | B26: 4 | C26: 30 | D26: 34 | I26: 34
A27: Qtr4 | B27: 8 | C27: 24 | D27: 32 | I27: 32
A28: 2031 | B28: 21 | C28: 91 | D28: 112 | I28: 112
A29: Qtr1 | B29: 6 | C29: 29 | D29: 35 | I29: 35
A30: Qtr2 | B30: 2 | C30: 8 | D30: 10 | I30: 10
A31: Qtr3 | B31: 5 | C31: 29 | D31: 34 | I31: 34
A32: Qtr4 | B32: 8 | C32: 25 | D32: 33 | I32: 33
A33: 2032 | B33: 19 | C33: 119 | D33: 138 | F33: 1 | H33: 1 | I33: 139
A34: Qtr1 | B34: 1 | C34: 32 | D34: 33 | I34: 33
A35: Qtr2 | B35: 6 | C35: 32 | D35: 38 | I35: 38
A36: Qtr3 | B36: 4 | C36: 29 | D36: 33 | F36: 1 | H36: 1 | I36: 34
A37: Qtr4 | B37: 8 | C37: 26 | D37: 34 | I37: 34
A38: 2033 | B38: 12 | C38: 130 | D38: 142 | F38: 1 | H38: 1 | I38: 143
A39: Qtr1 | B39: 3 | C39: 41 | D39: 44 | I39: 44
A40: Qtr2 | B40: 4 | C40: 28 | D40: 32 | I40: 32
A41: Qtr3 | B41: 3 | C41: 29 | D41: 32 | F41: 1 | H41: 1 | I41: 33
A42: Qtr4 | B42: 2 | C42: 32 | D42: 34 | I42: 34
A43: 2034 | B43: 19 | C43: 111 | D43: 130 | F43: 21 | H43: 21 | I43: 151
A44: Qtr1 | B44: 5 | C44: 29 | D44: 34 | F44: 3 | H44: 3 | I44: 37
A45: Qtr2 | B45: 3 | C45: 32 | D45: 35 | F45: 3 | H45: 3 | I45: 38
A46: Qtr3 | B46: 4 | C46: 21 | D46: 25 | F46: 10 | H46: 10 | I46: 35
A47: Qtr4 | B47: 7 | C47: 29 | D47: 36 | F47: 5 | H47: 5 | I47: 41
A48: 2035 | B48: 11 | C48: 84 | D48: 95 | F48: 46 | G48: 4 | H48: 50 | I48: 145
A49: Qtr1 | B49: 3 | C49: 27 | D49: 30 | F49: 10 | G49: 1 | H49: 11 | I49: 41
A50: Qtr2 | B50: 1 | C50: 19 | D50: 20 | F50: 7 | H50: 7 | I50: 27
A51: Qtr3 | B51: 6 | C51: 22 | D51: 28 | F51: 17 | G51: 2 | H51: 19 | I51: 47
A52: Qtr4 | B52: 1 | C52: 16 | D52: 17 | F52: 12 | G52: 1 | H52: 13 | I52: 30
A53: 2036 | B53: 8 | C53: 109 | D53: 117 | F53: 68 | G53: 16 | H53: 84 | I53: 201
A54: Qtr1 | B54: 1 | C54: 33 | D54: 34 | F54: 16 | G54: 3 | H54: 19 | I54: 53
A55: Qtr2 | B55: 1 | C55: 26 | D55: 27 | F55: 17 | G55: 3 | H55: 20 | I55: 47
A56: Qtr3 | B56: 4 | C56: 23 | D56: 27 | F56: 18 | G56: 5 | H56: 23 | I56: 50
A57: Qtr4 | B57: 2 | C57: 27 | D57: 29 | F57: 17 | G57: 5 | H57: 22 | I57: 51
A58: 2037 | B58: 7 | C58: 90 | D58: 97 | F58: 66 | G58: 34 | H58: 100 | I58: 197
A59: Qtr1 | B59: 3 | C59: 26 | D59: 29 | F59: 19 | G59: 5 | H59: 24 | I59: 53
A60: Qtr2 | B60: 2 | C60: 24 | D60: 26 | F60: 16 | G60: 9 | H60: 25 | I60: 51
A61: Qtr3 | B61: 1 | C61: 20 | D61: 21 | F61: 14 | G61: 9 | H61: 23 | I61: 44
A62: Qtr4 | B62: 1 | C62: 20 | D62: 21 | F62: 17 | G62: 11 | H62: 28 | I62: 49
A63: 2038 | B63: 6 | C63: 77 | D63: 83 | E63: 1 | F63: 62 | G63: 37 | H63: 100 | I63: 183
A64: Qtr1 | B64: 5 | C64: 14 | D64: 19 | F64: 18 | G64: 9 | H64: 27 | I64: 46
A65: Qtr2 | C65: 16 | D65: 16 | F65: 12 | G65: 9 | H65: 21 | I65: 37
A66: Qtr3 | B66: 1 | C66: 24 | D66: 25 | F66: 14 | G66: 10 | H66: 24 | I66: 49
A67: Qtr4 | C67: 23 | D67: 23 | E67: 1 | F67: 18 | G67: 9 | H67: 28 | I67: 51
A68: 2039 | B68: 10 | C68: 64 | D68: 74 | E68: 3 | F68: 27 | G68: 33 | H68: 63 | I68: 137
A69: Qtr1 | C69: 18 | D69: 18 | E69: 1 | F69: 9 | G69: 6 | H69: 16 | I69: 34
A70: Qtr2 | B70: 5 | C70: 21 | D70: 26 | F70: 10 | G70: 8 | H70: 18 | I70: 44
A71: Qtr3 | B71: 5 | C71: 13 | D71: 18 | E71: 2 | F71: 5 | G71: 13 | H71: 20 | I71: 38
A72: Qtr4 | C72: 12 | D72: 12 | F72: 3 | G72: 6 | H72: 9 | I72: 21
A73: Grand Total | B73: 158 | C73: 1279 | D73: 1437 | E73: 4 | F73: 292 | G73: 124 | H73: 420 | I73: 1857

Sheet Maintenance
A1: Item SN | B1: Event Num | C1: Event Date | D1: Maint Type | E1: Sch/Uns | F1: Unscheduled MR interval | G1: Minor Repair Hours | H1: Unscheduled OH interval | I1: Overhaul Hours | J1: TSN | K1: TSO | L1: TBM | M1: Avg Period Aging Rate
A2: 1 | B2: 0 | C2: =IF(0 = B2, Inputs!C$18 + (A2-1)*(Inputs!E$19*Inputs!C$24)/(Inputs!C$23), C1 + (_xlfn.GAMMA.INV( RAND()*0.982 + 0.0052, Inputs!C$16, ((J2-J1)/(Inputs!B$16-Inputs!D$16)) * Inputs!E$16) / (Inputs!B$16+Inputs!D$16))*Inputs!E$19) -> 2024-11-30 | D2: =IF(0 = B2, "", IF(AND(G2<I2, K2<(Inputs!G$10-Inputs!G$13)), "MR", "OH")) ->  | E2: =IF(0=B2,"start",IF(C2>Inputs!$C$21,"past",IF(AND(D2="MR",F2>=Inputs!$G$4),"Sch",IF(D2="OH",IF(H2>=Inputs!$G$10,"Sch", IF(K2>=Inputs!$G$10-Inputs!$G$13,"Uns-BP","Uns")),"Uns")))) -> start | F2: =IF(0 = B2, 0, _xlfn.GAMMA.INV(RAND(), Inputs!C$5, Inputs!E$5)) -> 0 | G2: =IF(0 = B2, 0, $J1 + MIN(Inputs!G$4, F2)) -> 0 | H2: =IF(0 = B2, 0, IF(OR(B2=1,D1="OH"), _xlfn.GAMMA.INV(RAND(), Inputs!C$11, Inputs!E$11),H1)) -> 0 | I2: =IF(0 = B2, 0, IF(OR(B2=1,D1="OH"), $J1 + MIN(Inputs!G$10, H2), I1)) -> 0 | J2: =IF(0 = B2, 0, MIN(G2,I2)) -> 0 | K2: =IF( B2 = 0, 0, J2 - J1 + IF(D1="OH", 0, K1)) -> 0 | L2: =IF(0 = J2, "", J2-J1) ->  | M2: =IF(L2="","",L2/(C2-C1)) ->  | O2: =AVERAGE(M:M) -> 20.93300321 | P2: Mean age accumulation rate
A3: =IF(B3=0, A2+1, A2 ) -> 1 | B3: =IF(OR(C2 >= Inputs!C$21, A2 > Inputs!C$23), 0, B2+1) -> 1 | C3: =IF(0 = B3, Inputs!C$18 + (A3-1)*(Inputs!E$19*Inputs!C$24)/(Inputs!C$23), C2 + (_xlfn.GAMMA.INV( RAND()*0.982 + 0.0052, Inputs!C$16, ((J3-J2)/(Inputs!B$16-Inputs!D$16)) * Inputs!E$16) / (Inputs!B$16+Inputs!D$16))*Inputs!E$19) -> 2027-11-10T03:02:14.177 | D3: =IF(0 = B3, "", IF(AND(G3<I3, K3<(Inputs!G$10-Inputs!G$13)), "MR", "OH")) -> MR | E3: =IF(0=B3,"start",IF(C3>Inputs!$C$21,"past",IF(AND(D3="MR",F3>=Inputs!$G$4),"Sch",IF(D3="OH",IF(H3>=Inputs!$G$10,"Sch", IF(K3>=Inputs!$G$10-Inputs!$G$13,"Uns-BP","Uns")),"Uns")))) -> Uns | F3: =IF(0 = B3, 0, _xlfn.GAMMA.INV(RAND(), Inputs!C$5, Inputs!E$5)) -> 965.8667722 | G3: =IF(0 = B3, 0, $J2 + MIN(Inputs!G$4, F3)) -> 965.8667722 | H3: =IF(0 = B3, 0, IF(OR(B3=1,D2="OH"), _xlfn.GAMMA.INV(RAND(), Inputs!C$11, Inputs!E$11),H2)) -> 2881.977012 | I3: =IF(0 = B3, 0, IF(OR(B3=1,D2="OH"), $J2 + MIN(Inputs!G$10, H3), I2)) -> 2881.977012 | J3: =IF(0 = B3, 0, MIN(G3,I3)) -> 965.8667722 | K3: =IF( B3 = 0, 0, J3 - J2 + IF(D2="OH", 0, K2)) -> 965.8667722 | L3: =IF(0 = J3, "", J3-J2) -> 965.8667722 | M3: =IF(L3="","",(L3/(C3-C2))*Inputs!E$19) -> 27.34428779 | O3: =_xlfn.STDEV.S(M:M) -> 4.978634085 | P3: Std-dev age accumulation rate
A4: 1 | B4: =IF(OR(C3 >= Inputs!C$21, A3 > Inputs!C$23), 0, B3+1) -> 2 | C4: =IF(0 = B4, Inputs!C$18 + (A4-1)*(Inputs!E$19*Inputs!C$24)/(Inputs!C$23), C3 + (_xlfn.GAMMA.INV( RAND()*0.982 + 0.0052, Inputs!C$16, ((J4-J3)/(Inputs!B$16-Inputs!D$16)) * Inputs!E$16) / (Inputs!B$16+Inputs!D$16))*Inputs!E$19) -> 2030-08-16T13:17:41.593 | D4: =IF(0 = B4, "", IF(AND(G4<I4, K4<(Inputs!G$10-Inputs!G$13)), "MR", "OH")) -> MR | E4: =IF(0=B4,"start",IF(C4>Inputs!$C$21,"past",IF(AND(D4="MR",F4>=Inputs!$G$4),"Sch",IF(D4="OH",IF(H4>=Inputs!$G$10,"Sch", IF(K4>=Inputs!$G$10-Inputs!$G$13,"Uns-BP","Uns")),"Uns")))) -> Uns | F4: =IF(0 = B4, 0, _xlfn.GAMMA.INV(RAND(), Inputs!C$5, Inputs!E$5)) -> 864.3806791 | G4: =IF(0 = B4, 0, $J3 + MIN(Inputs!G$4, F4)) -> 1830.247451 | H4: =IF(0 = B4, 0, IF(OR(B4=1,D3="OH"), _xlfn.GAMMA.INV(RAND(), Inputs!C$11, Inputs!E$11),H3)) -> 2881.977012 | I4: =IF(0 = B4, 0, IF(OR(B4=1,D3="OH"), $J3 + MIN(Inputs!G$10, H4), I3)) -> 2881.977012 | J4: 1830.247451 | K4: 1830.247451 | L4: 864.3806791 | M4: =IF(L4="","",(L4/(C4-C3))*Inputs!E$19) -> 26.03807745 | O4: =SUMIF(F:F,"<>0") / COUNTIF(F:F, ">0") -> 920.0752643 | P4: Mean unscheduled MR
A5: 1 | B5: =IF(OR(C4 >= Inputs!C$21, A4 > Inputs!C$23), 0, B4+1) -> 3 | C5: =IF(0 = B5, Inputs!C$18 + (A5-1)*(Inputs!E$19*Inputs!C$24)/(Inputs!C$23), C4 + (_xlfn.GAMMA.INV( RAND()*0.982 + 0.0052, Inputs!C$16, ((J5-J4)/(Inputs!B$16-Inputs!D$16)) * Inputs!E$16) / (Inputs!B$16+Inputs!D$16))*Inputs!E$19) -> 2035-07-12T05:58:37.478 | D5: =IF(0 = B5, "", IF(AND(G5<I5, K5<(Inputs!G$10-Inputs!G$13)), "MR", "OH")) -> MR | E5: =IF(0=B5,"start",IF(C5>Inputs!$C$21,"past",IF(AND(D5="MR",F5>=Inputs!$G$4),"Sch",IF(D5="OH",IF(H5>=Inputs!$G$10,"Sch", IF(K5>=Inputs!$G$10-Inputs!$G$13,"Uns-BP","Uns")),"Uns")))) -> Sch | F5: =IF(0 = B5, 0, _xlfn.GAMMA.INV(RAND(), Inputs!C$5, Inputs!E$5)) -> 1069.591202 | G5: =IF(0 = B5, 0, $J4 + MIN(Inputs!G$4, F5)) -> 2880.247451 | H5: =IF(0 = B5, 0, IF(OR(B5=1,D4="OH"), _xlfn.GAMMA.INV(RAND(), Inputs!C$11, Inputs!E$11),H4)) -> 2881.977012 | I5: =IF(0 = B5, 0, IF(OR(B5=1,D4="OH"), $J4 + MIN(Inputs!G$10, H5), I4)) -> 2881.977012 | J5: 2880.247451 | K5: 2880.247451 | L5: 1050 | M5: =IF(L5="","",(L5/(C5-C4))*Inputs!E$19) -> 17.84746893
A6: 1 | B6: =IF(OR(C5 >= Inputs!C$21, A5 > Inputs!C$23), 0, B5+1) -> 4 | C6: =IF(0 = B6, Inputs!C$18 + (A6-1)*(Inputs!E$19*Inputs!C$24)/(Inputs!C$23), C5 + (_xlfn.GAMMA.INV( RAND()*0.982 + 0.0052, Inputs!C$16, ((J6-J5)/(Inputs!B$16-Inputs!D$16)) * Inputs!E$16) / (Inputs!B$16+Inputs!D$16))*Inputs!E$19) -> 2035-07-15T00:17:21.043 | D6: =IF(0 = B6, "", IF(AND(G6<I6, K6<(Inputs!G$10-Inputs!G$13)), "MR", "OH")) -> OH | E6: =IF(0=B6,"start",IF(C6>Inputs!$C$21,"past",IF(AND(D6="MR",F6>=Inputs!$G$4),"Sch",IF(D6="OH",IF(H6>=Inputs!$G$10,"Sch", IF(K6>=Inputs!$G$10-Inputs!$G$13,"Uns-BP","Uns")),"Uns")))) -> Uns | F6: =IF(0 = B6, 0, _xlfn.GAMMA.INV(RAND(), Inputs!C$5, Inputs!E$5)) -> 912.4971865 | G6: =IF(0 = B6, 0, $J5 + MIN(Inputs!G$4, F6)) -> 3792.744638 | H6: =IF(0 = B6, 0, IF(OR(B6=1,D5="OH"), _xlfn.GAMMA.INV(RAND(), Inputs!C$11, Inputs!E$11),H5)) -> 2881.977012 | I6: =IF(0 = B6, 0, IF(OR(B6=1,D5="OH"), $J5 + MIN(Inputs!G$10, H6), I5)) -> 2881.977012 | J6: 2881.977012 | K6: 2881.977012 | L6: 1.729560432 | M6: =IF(L6="","",(L6/(C6-C5))*Inputs!E$19) -> 19.05299131 | O6: Maint Type | P6: MR
A7: 1 | B7: =IF(OR(C6 >= Inputs!C$21, A6 > Inputs!C$23), 0, B6+1) -> 5 | C7: =IF(0 = B7, Inputs!C$18 + (A7-1)*(Inputs!E$19*Inputs!C$24)/(Inputs!C$23), C6 + (_xlfn.GAMMA.INV( RAND()*0.982 + 0.0052, Inputs!C$16, ((J7-J6)/(Inputs!B$16-Inputs!D$16)) * Inputs!E$16) / (Inputs!B$16+Inputs!D$16))*Inputs!E$19) -> 2040-04-09T08:58:16.407 | D7: =IF(0 = B7, "", IF(AND(G7<I7, K7<(Inputs!G$10-Inputs!G$13)), "MR", "OH")) -> MR | E7: =IF(0=B7,"start",IF(C7>Inputs!$C$21,"past",IF(AND(D7="MR",F7>=Inputs!$G$4),"Sch",IF(D7="OH",IF(H7>=Inputs!$G$10,"Sch", IF(K7>=Inputs!$G$10-Inputs!$G$13,"Uns-BP","Uns")),"Uns")))) -> past | F7: =IF(0 = B7, 0, _xlfn.GAMMA.INV(RAND(), Inputs!C$5, Inputs!E$5)) -> 857.8484489 | G7: =IF(0 = B7, 0, $J6 + MIN(Inputs!G$4, F7)) -> 3739.825461 | H7: =IF(0 = B7, 0, IF(OR(B7=1,D6="OH"), _xlfn.GAMMA.INV(RAND(), Inputs!C$11, Inputs!E$11),H6)) -> 2962.124825 | I7: =IF(0 = B7, 0, IF(OR(B7=1,D6="OH"), $J6 + MIN(Inputs!G$10, H7), I6)) -> 5844.101837 | J7: 3739.825461 | K7: 857.8484489 | L7: 857.8484489 | M7: =IF(L7="","",(L7/(C7-C6))*Inputs!E$19) -> 15.08977076 | O7: Sch/Uns | P7: Uns
A8: 2 | B8: =IF(OR(C7 >= Inputs!C$21, A7 > Inputs!C$23), 0, B7+1) -> 0 | C8: =IF(0 = B8, Inputs!C$18 + (A8-1)*(Inputs!E$19*Inputs!C$24)/(Inputs!C$23), C7 + (_xlfn.GAMMA.INV( RAND()*0.982 + 0.0052, Inputs!C$16, ((J8-J7)/(Inputs!B$16-Inputs!D$16)) * Inputs!E$16) / (Inputs!B$16+Inputs!D$16))*Inputs!E$19) -> 2024-12-01T10:22:35.294 | D8: =IF(0 = B8, "", IF(AND(G8<I8, K8<(Inputs!G$10-Inputs!G$13)), "MR", "OH")) ->  | E8: =IF(0=B8,"start",IF(C8>Inputs!$C$21,"past",IF(AND(D8="MR",F8>=Inputs!$G$4),"Sch",IF(D8="OH",IF(H8>=Inputs!$G$10,"Sch", IF(K8>=Inputs!$G$10-Inputs!$G$13,"Uns-BP","Uns")),"Uns")))) -> start | F8: =IF(0 = B8, 0, _xlfn.GAMMA.INV(RAND(), Inputs!C$5, Inputs!E$5)) -> 0 | G8: =IF(0 = B8, 0, $J7 + MIN(Inputs!G$4, F8)) -> 0 | H8: =IF(0 = B8, 0, IF(OR(B8=1,D7="OH"), _xlfn.GAMMA.INV(RAND(), Inputs!C$11, Inputs!E$11),H7)) -> 0 | I8: =IF(0 = B8, 0, IF(OR(B8=1,D7="OH"), $J7 + MIN(Inputs!G$10, H8), I7)) -> 0 | J8: 0 | K8: 0 | M8: =IF(L8="","",(L8/(C8-C7))*Inputs!E$19) -> 
A9: 2 | B9: =IF(OR(C8 >= Inputs!C$21, A8 > Inputs!C$23), 0, B8+1) -> 1 | C9: =IF(0 = B9, Inputs!C$18 + (A9-1)*(Inputs!E$19*Inputs!C$24)/(Inputs!C$23), C8 + (_xlfn.GAMMA.INV( RAND()*0.982 + 0.0052, Inputs!C$16, ((J9-J8)/(Inputs!B$16-Inputs!D$16)) * Inputs!E$16) / (Inputs!B$16+Inputs!D$16))*Inputs!E$19) -> 2028-11-10T02:49:34.005 | D9: =IF(0 = B9, "", IF(AND(G9<I9, K9<(Inputs!G$10-Inputs!G$13)), "MR", "OH")) -> MR | E9: =IF(0=B9,"start",IF(C9>Inputs!$C$21,"past",IF(AND(D9="MR",F9>=Inputs!$G$4),"Sch",IF(D9="OH",IF(H9>=Inputs!$G$10,"Sch", IF(K9>=Inputs!$G$10-Inputs!$G$13,"Uns-BP","Uns")),"Uns")))) -> Uns | F9: =IF(0 = B9, 0, _xlfn.GAMMA.INV(RAND(), Inputs!C$5, Inputs!E$5)) -> 939.3824573 | G9: =IF(0 = B9, 0, $J8 + MIN(Inputs!G$4, F9)) -> 939.3824573 | H9: =IF(0 = B9, 0, IF(OR(B9=1,D8="OH"), _xlfn.GAMMA.INV(RAND(), Inputs!C$11, Inputs!E$11),H8)) -> 2920.864957 | I9: =IF(0 = B9, 0, IF(OR(B9=1,D8="OH"), $J8 + MIN(Inputs!G$10, H9), I8)) -> 2920.864957 | J9: 939.3824573 | K9: 939.3824573 | L9: 939.3824573 | M9: =IF(L9="","",(L9/(C9-C8))*Inputs!E$19) -> 19.8602094 | O9: Average of TBM | P9: StdDev of TBM
A10: 2 | B10: =IF(OR(C9 >= Inputs!C$21, A9 > Inputs!C$23), 0, B9+1) -> 2 | C10: =IF(0 = B10, Inputs!C$18 + (A10-1)*(Inputs!E$19*Inputs!C$24)/(Inputs!C$23), C9 + (_xlfn.GAMMA.INV( RAND()*0.982 + 0.0052, Inputs!C$16, ((J10-J9)/(Inputs!B$16-Inputs!D$16)) * Inputs!E$16) / (Inputs!B$16+Inputs!D$16))*Inputs!E$19) -> 2031-06-10T20:32:00.012 | D10: =IF(0 = B10, "", IF(AND(G10<I10, K10<(Inputs!G$10-Inputs!G$13)), "MR", "OH")) -> MR | E10: =IF(0=B10,"start",IF(C10>Inputs!$C$21,"past",IF(AND(D10="MR",F10>=Inputs!$G$4),"Sch",IF(D10="OH",IF(H10>=Inputs!$G$10,"Sch", IF(K10>=Inputs!$G$10-Inputs!$G$13,"Uns-BP","Uns")),"Uns")))) -> Uns | F10: =IF(0 = B10, 0, _xlfn.GAMMA.INV(RAND(), Inputs!C$5, Inputs!E$5)) -> 986.8274709 | G10: =IF(0 = B10, 0, $J9 + MIN(Inputs!G$4, F10)) -> 1926.209928 | H10: =IF(0 = B10, 0, IF(OR(B10=1,D9="OH"), _xlfn.GAMMA.INV(RAND(), Inputs!C$11, Inputs!E$11),H9)) -> 2920.864957 | I10: =IF(0 = B10, 0, IF(OR(B10=1,D9="OH"), $J9 + MIN(Inputs!G$10, H10), I9)) -> 2920.864957 | J10: 1926.209928 | K10: 1926.209928 | L10: 986.8274709 | M10: =IF(L10="","",(L10/(C10-C9))*Inputs!E$19) -> 31.86099159 | O10: 891.1596255 | P10: 87.59227418
A11: 2 | B11: =IF(OR(C10 >= Inputs!C$21, A10 > Inputs!C$23), 0, B10+1) -> 3 | C11: =IF(0 = B11, Inputs!C$18 + (A11-1)*(Inputs!E$19*Inputs!C$24)/(Inputs!C$23), C10 + (_xlfn.GAMMA.INV( RAND()*0.982 + 0.0052, Inputs!C$16, ((J11-J10)/(Inputs!B$16-Inputs!D$16)) * Inputs!E$16) / (Inputs!B$16+Inputs!D$16))*Inputs!E$19) -> 2034-04-24T19:44:42.652 | D11: =IF(0 = B11, "", IF(AND(G11<I11, K11<(Inputs!G$10-Inputs!G$13)), "MR", "OH")) -> MR | E11: =IF(0=B11,"start",IF(C11>Inputs!$C$21,"past",IF(AND(D11="MR",F11>=Inputs!$G$4),"Sch",IF(D11="OH",IF(H11>=Inputs!$G$10,"Sch", IF(K11>=Inputs!$G$10-Inputs!$G$13,"Uns-BP","Uns")),"Uns")))) -> Uns | F11: =IF(0 = B11, 0, _xlfn.GAMMA.INV(RAND(), Inputs!C$5, Inputs!E$5)) -> 895.6213494 | G11: =IF(0 = B11, 0, $J10 + MIN(Inputs!G$4, F11)) -> 2821.831278 | H11: =IF(0 = B11, 0, IF(OR(B11=1,D10="OH"), _xlfn.GAMMA.INV(RAND(), Inputs!C$11, Inputs!E$11),H10)) -> 2920.864957 | I11: =IF(0 = B11, 0, IF(OR(B11=1,D10="OH"), $J10 + MIN(Inputs!G$10, H11), I10)) -> 2920.864957 | J11: 2821.831278 | K11: 2821.831278 | L11: 895.6213494 | M11: =IF(L11="","",(L11/(C11-C10))*Inputs!E$19) -> 25.98792017
A12: 2 | B12: =IF(OR(C11 >= Inputs!C$21, A11 > Inputs!C$23), 0, B11+1) -> 4 | C12: =IF(0 = B12, Inputs!C$18 + (A12-1)*(Inputs!E$19*Inputs!C$24)/(Inputs!C$23), C11 + (_xlfn.GAMMA.INV( RAND()*0.982 + 0.0052, Inputs!C$16, ((J12-J11)/(Inputs!B$16-Inputs!D$16)) * Inputs!E$16) / (Inputs!B$16+Inputs!D$16))*Inputs!E$19) -> 2034-08-24T06:31:41.379 | D12: =IF(0 = B12, "", IF(AND(G12<I12, K12<(Inputs!G$10-Inputs!G$13)), "MR", "OH")) -> OH | E12: =IF(0=B12,"start",IF(C12>Inputs!$C$21,"past",IF(AND(D12="MR",F12>=Inputs!$G$4),"Sch",IF(D12="OH",IF(H12>=Inputs!$G$10,"Sch", IF(K12>=Inputs!$G$10-Inputs!$G$13,"Uns-BP","Uns")),"Uns")))) -> Uns | F12: =IF(0 = B12, 0, _xlfn.GAMMA.INV(RAND(), Inputs!C$5, Inputs!E$5)) -> 901.3972485 | G12: =IF(0 = B12, 0, $J11 + MIN(Inputs!G$4, F12)) -> 3723.228526 | H12: =IF(0 = B12, 0, IF(OR(B12=1,D11="OH"), _xlfn.GAMMA.INV(RAND(), Inputs!C$11, Inputs!E$11),H11)) -> 2920.864957 | I12: =IF(0 = B12, 0, IF(OR(B12=1,D11="OH"), $J11 + MIN(Inputs!G$10, H12), I11)) -> 2920.864957 | J12: 2920.864957 | K12: 2920.864957 | L12: 99.03367896 | M12: =IF(L12="","",(L12/(C12-C11))*Inputs!E$19) -> 24.81972174
A13: 2 | B13: =IF(OR(C12 >= Inputs!C$21, A12 > Inputs!C$23), 0, B12+1) -> 5 | C13: =IF(0 = B13, Inputs!C$18 + (A13-1)*(Inputs!E$19*Inputs!C$24)/(Inputs!C$23), C12 + (_xlfn.GAMMA.INV( RAND()*0.982 + 0.0052, Inputs!C$16, ((J13-J12)/(Inputs!B$16-Inputs!D$16)) * Inputs!E$16) / (Inputs!B$16+Inputs!D$16))*Inputs!E$19) -> 2037-12-27T07:46:55.768 | D13: =IF(0 = B13, "", IF(AND(G13<I13, K13<(Inputs!G$10-Inputs!G$13)), "MR", "OH")) -> MR | E13: =IF(0=B13,"start",IF(C13>Inputs!$C$21,"past",IF(AND(D13="MR",F13>=Inputs!$G$4),"Sch",IF(D13="OH",IF(H13>=Inputs!$G$10,"Sch", IF(K13>=Inputs!$G$10-Inputs!$G$13,"Uns-BP","Uns")),"Uns")))) -> Uns | F13: =IF(0 = B13, 0, _xlfn.GAMMA.INV(RAND(), Inputs!C$5, Inputs!E$5)) -> 767.5976406 | G13: =IF(0 = B13, 0, $J12 + MIN(Inputs!G$4, F13)) -> 3688.462597 | H13: =IF(0 = B13, 0, IF(OR(B13=1,D12="OH"), _xlfn.GAMMA.INV(RAND(), Inputs!C$11, Inputs!E$11),H12)) -> 2770.879962 | I13: =IF(0 = B13, 0, IF(OR(B13=1,D12="OH"), $J12 + MIN(Inputs!G$10, H13), I12)) -> 5691.744919 | J13: 3688.462597 | K13: 767.5976406 | L13: 767.5976406 | M13: =IF(L13="","",(L13/(C13-C12))*Inputs!E$19) -> 19.13411419
A14: 2 | B14: =IF(OR(C13 >= Inputs!C$21, A13 > Inputs!C$23), 0, B13+1) -> 6 | C14: =IF(0 = B14, Inputs!C$18 + (A14-1)*(Inputs!E$19*Inputs!C$24)/(Inputs!C$23), C13 + (_xlfn.GAMMA.INV( RAND()*0.982 + 0.0052, Inputs!C$16, ((J14-J13)/(Inputs!B$16-Inputs!D$16)) * Inputs!E$16) / (Inputs!B$16+Inputs!D$16))*Inputs!E$19) -> 2042-09-19T06:22:40.137 | D14: =IF(0 = B14, "", IF(AND(G14<I14, K14<(Inputs!G$10-Inputs!G$13)), "MR", "OH")) -> MR | E14: =IF(0=B14,"start",IF(C14>Inputs!$C$21,"past",IF(AND(D14="MR",F14>=Inputs!$G$4),"Sch",IF(D14="OH",IF(H14>=Inputs!$G$10,"Sch", IF(K14>=Inputs!$G$10-Inputs!$G$13,"Uns-BP","Uns")),"Uns")))) -> past | F14: =IF(0 = B14, 0, _xlfn.GAMMA.INV(RAND(), Inputs!C$5, Inputs!E$5)) -> 809.2327746 | G14: =IF(0 = B14, 0, $J13 + MIN(Inputs!G$4, F14)) -> 4497.695372 | H14: =IF(0 = B14, 0, IF(OR(B14=1,D13="OH"), _xlfn.GAMMA.INV(RAND(), Inputs!C$11, Inputs!E$11),H13)) -> 2770.879962 | I14: =IF(0 = B14, 0, IF(OR(B14=1,D13="OH"), $J13 + MIN(Inputs!G$10, H14), I13)) -> 5691.744919 | J14: 4497.695372 | K14: 1576.830415 | L14: 809.2327746 | M14: =IF(L14="","",(L14/(C14-C13))*Inputs!E$19) -> 14.2628009
A15: 3 | B15: =IF(OR(C14 >= Inputs!C$21, A14 > Inputs!C$23), 0, B14+1) -> 0 | C15: =IF(0 = B15, Inputs!C$18 + (A15-1)*(Inputs!E$19*Inputs!C$24)/(Inputs!C$23), C14 + (_xlfn.GAMMA.INV( RAND()*0.982 + 0.0052, Inputs!C$16, ((J15-J14)/(Inputs!B$16-Inputs!D$16)) * Inputs!E$16) / (Inputs!B$16+Inputs!D$16))*Inputs!E$19) -> 2024-12-02T20:45:10.588 | D15: =IF(0 = B15, "", IF(AND(G15<I15, K15<(Inputs!G$10-Inputs!G$13)), "MR", "OH")) ->  | E15: =IF(0=B15,"start",IF(C15>Inputs!$C$21,"past",IF(AND(D15="MR",F15>=Inputs!$G$4),"Sch",IF(D15="OH",IF(H15>=Inputs!$G$10,"Sch", IF(K15>=Inputs!$G$10-Inputs!$G$13,"Uns-BP","Uns")),"Uns")))) -> start | F15: =IF(0 = B15, 0, _xlfn.GAMMA.INV(RAND(), Inputs!C$5, Inputs!E$5)) -> 0 | G15: =IF(0 = B15, 0, $J14 + MIN(Inputs!G$4, F15)) -> 0 | H15: =IF(0 = B15, 0, IF(OR(B15=1,D14="OH"), _xlfn.GAMMA.INV(RAND(), Inputs!C$11, Inputs!E$11),H14)) -> 0 | I15: =IF(0 = B15, 0, IF(OR(B15=1,D14="OH"), $J14 + MIN(Inputs!G$10, H15), I14)) -> 0 | J15: 0 | K15: 0 | M15: =IF(L15="","",(L15/(C15-C14))*Inputs!E$19) -> 
A16: 3 | B16: =IF(OR(C15 >= Inputs!C$21, A15 > Inputs!C$23), 0, B15+1) -> 1 | C16: =IF(0 = B16, Inputs!C$18 + (A16-1)*(Inputs!E$19*Inputs!C$24)/(Inputs!C$23), C15 + (_xlfn.GAMMA.INV( RAND()*0.982 + 0.0052, Inputs!C$16, ((J16-J15)/(Inputs!B$16-Inputs!D$16)) * Inputs!E$16) / (Inputs!B$16+Inputs!D$16))*Inputs!E$19) -> 2028-08-29T23:47:57.883 | D16: =IF(0 = B16, "", IF(AND(G16<I16, K16<(Inputs!G$10-Inputs!G$13)), "MR", "OH")) -> MR | E16: =IF(0=B16,"start",IF(C16>Inputs!$C$21,"past",IF(AND(D16="MR",F16>=Inputs!$G$4),"Sch",IF(D16="OH",IF(H16>=Inputs!$G$10,"Sch", IF(K16>=Inputs!$G$10-Inputs!$G$13,"Uns-BP","Uns")),"Uns")))) -> Uns | F16: =IF(0 = B16, 0, _xlfn.GAMMA.INV(RAND(), Inputs!C$5, Inputs!E$5)) -> 853.7936537 | G16: =IF(0 = B16, 0, $J15 + MIN(Inputs!G$4, F16)) -> 853.7936537 | H16: =IF(0 = B16, 0, IF(OR(B16=1,D15="OH"), _xlfn.GAMMA.INV(RAND(), Inputs!C$11, Inputs!E$11),H15)) -> 3109.177125 | I16: =IF(0 = B16, 0, IF(OR(B16=1,D15="OH"), $J15 + MIN(Inputs!G$10, H16), I15)) -> 3109.177125 | J16: 853.7936537 | K16: 853.7936537 | L16: 853.7936537 | M16: =IF(L16="","",(L16/(C16-C15))*Inputs!E$19) -> 19.02264251
A17: 3 | B17: =IF(OR(C16 >= Inputs!C$21, A16 > Inputs!C$23), 0, B16+1) -> 2 | C17: =IF(0 = B17, Inputs!C$18 + (A17-1)*(Inputs!E$19*Inputs!C$24)/(Inputs!C$23), C16 + (_xlfn.GAMMA.INV( RAND()*0.982 + 0.0052, Inputs!C$16, ((J17-J16)/(Inputs!B$16-Inputs!D$16)) * Inputs!E$16) / (Inputs!B$16+Inputs!D$16))*Inputs!E$19) -> 2033-12-12T09:47:34.401 | D17: =IF(0 = B17, "", IF(AND(G17<I17, K17<(Inputs!G$10-Inputs!G$13)), "MR", "OH")) -> MR | E17: =IF(0=B17,"start",IF(C17>Inputs!$C$21,"past",IF(AND(D17="MR",F17>=Inputs!$G$4),"Sch",IF(D17="OH",IF(H17>=Inputs!$G$10,"Sch", IF(K17>=Inputs!$G$10-Inputs!$G$13,"Uns-BP","Uns")),"Uns")))) -> Uns | F17: =IF(0 = B17, 0, _xlfn.GAMMA.INV(RAND(), Inputs!C$5, Inputs!E$5)) -> 948.6079036 | G17: =IF(0 = B17, 0, $J16 + MIN(Inputs!G$4, F17)) -> 1802.401557 | H17: =IF(0 = B17, 0, IF(OR(B17=1,D16="OH"), _xlfn.GAMMA.INV(RAND(), Inputs!C$11, Inputs!E$11),H16)) -> 3109.177125 | I17: =IF(0 = B17, 0, IF(OR(B17=1,D16="OH"), $J16 + MIN(Inputs!G$10, H17), I16)) -> 3109.177125 | J17: 1802.401557 | K17: 1802.401557 | L17: 948.6079036 | M17: =IF(L17="","",(L17/(C17-C16))*Inputs!E$19) -> 14.9570078
A18: 3 | B18: =IF(OR(C17 >= Inputs!C$21, A17 > Inputs!C$23), 0, B17+1) -> 3 | C18: =IF(0 = B18, Inputs!C$18 + (A18-1)*(Inputs!E$19*Inputs!C$24)/(Inputs!C$23), C17 + (_xlfn.GAMMA.INV( RAND()*0.982 + 0.0052, Inputs!C$16, ((J18-J17)/(Inputs!B$16-Inputs!D$16)) * Inputs!E$16) / (Inputs!B$16+Inputs!D$16))*Inputs!E$19) -> 2038-02-11T11:51:50.783 | D18: =IF(0 = B18, "", IF(AND(G18<I18, K18<(Inputs!G$10-Inputs!G$13)), "MR", "OH")) -> MR | E18: =IF(0=B18,"start",IF(C18>Inputs!$C$21,"past",IF(AND(D18="MR",F18>=Inputs!$G$4),"Sch",IF(D18="OH",IF(H18>=Inputs!$G$10,"Sch", IF(K18>=Inputs!$G$10-Inputs!$G$13,"Uns-BP","Uns")),"Uns")))) -> Sch | F18: =IF(0 = B18, 0, _xlfn.GAMMA.INV(RAND(), Inputs!C$5, Inputs!E$5)) -> 1095.955665 | G18: =IF(0 = B18, 0, $J17 + MIN(Inputs!G$4, F18)) -> 2852.401557 | H18: =IF(0 = B18, 0, IF(OR(B18=1,D17="OH"), _xlfn.GAMMA.INV(RAND(), Inputs!C$11, Inputs!E$11),H17)) -> 3109.177125 | I18: =IF(0 = B18, 0, IF(OR(B18=1,D17="OH"), $J17 + MIN(Inputs!G$10, H18), I17)) -> 3109.177125 | J18: 2852.401557 | K18: 2852.401557 | L18: 1050 | M18: =IF(L18="","",(L18/(C18-C17))*Inputs!E$19) -> 20.99708472
A19: 3 | B19: =IF(OR(C18 >= Inputs!C$21, A18 > Inputs!C$23), 0, B18+1) -> 4 | C19: =IF(0 = B19, Inputs!C$18 + (A19-1)*(Inputs!E$19*Inputs!C$24)/(Inputs!C$23), C18 + (_xlfn.GAMMA.INV( RAND()*0.982 + 0.0052, Inputs!C$16, ((J19-J18)/(Inputs!B$16-Inputs!D$16)) * Inputs!E$16) / (Inputs!B$16+Inputs!D$16))*Inputs!E$19) -> 2038-12-25T10:32:33.005 | D19: =IF(0 = B19, "", IF(AND(G19<I19, K19<(Inputs!G$10-Inputs!G$13)), "MR", "OH")) -> OH | E19: =IF(0=B19,"start",IF(C19>Inputs!$C$21,"past",IF(AND(D19="MR",F19>=Inputs!$G$4),"Sch",IF(D19="OH",IF(H19>=Inputs!$G$10,"Sch", IF(K19>=Inputs!$G$10-Inputs!$G$13,"Uns-BP","Uns")),"Uns")))) -> Uns-BP | F19: =IF(0 = B19, 0, _xlfn.GAMMA.INV(RAND(), Inputs!C$5, Inputs!E$5)) -> 762.7933479 | G19: =IF(0 = B19, 0, $J18 + MIN(Inputs!G$4, F19)) -> 3615.194905 | H19: =IF(0 = B19, 0, IF(OR(B19=1,D18="OH"), _xlfn.GAMMA.INV(RAND(), Inputs!C$11, Inputs!E$11),H18)) -> 3109.177125 | I19: =IF(0 = B19, 0, IF(OR(B19=1,D18="OH"), $J18 + MIN(Inputs!G$10, H19), I18)) -> 3109.177125 | J19: 3109.177125 | K19: 3109.177125 | L19: 256.7755682 | M19: =IF(L19="","",(L19/(C19-C18))*Inputs!E$19) -> 24.65919325
A20: 3 | B20: =IF(OR(C19 >= Inputs!C$21, A19 > Inputs!C$23), 0, B19+1) -> 5 | C20: =IF(0 = B20, Inputs!C$18 + (A20-1)*(Inputs!E$19*Inputs!C$24)/(Inputs!C$23), C19 + (_xlfn.GAMMA.INV( RAND()*0.982 + 0.0052, Inputs!C$16, ((J20-J19)/(Inputs!B$16-Inputs!D$16)) * Inputs!E$16) / (Inputs!B$16+Inputs!D$16))*Inputs!E$19) -> 2043-05-14T12:07:45.455 | D20: =IF(0 = B20, "", IF(AND(G20<I20, K20<(Inputs!G$10-Inputs!G$13)), "MR", "OH")) -> MR | E20: =IF(0=B20,"start",IF(C20>Inputs!$C$21,"past",IF(AND(D20="MR",F20>=Inputs!$G$4),"Sch",IF(D20="OH",IF(H20>=Inputs!$G$10,"Sch", IF(K20>=Inputs!$G$10-Inputs!$G$13,"Uns-BP","Uns")),"Uns")))) -> past | F20: =IF(0 = B20, 0, _xlfn.GAMMA.INV(RAND(), Inputs!C$5, Inputs!E$5)) -> 947.3471949 | G20: =IF(0 = B20, 0, $J19 + MIN(Inputs!G$4, F20)) -> 4056.52432 | H20: =IF(0 = B20, 0, IF(OR(B20=1,D19="OH"), _xlfn.GAMMA.INV(RAND(), Inputs!C$11, Inputs!E$11),H19)) -> 2927.757251 | I20: =IF(0 = B20, 0, IF(OR(B20=1,D19="OH"), $J19 + MIN(Inputs!G$10, H20), I19)) -> 6036.934376 | J20: 4056.52432 | K20: 947.3471949 | L20: 947.3471949 | M20: =IF(L20="","",(L20/(C20-C19))*Inputs!E$19) -> 18.00979981
A21: 4 | B21: =IF(OR(C20 >= Inputs!C$21, A20 > Inputs!C$23), 0, B20+1) -> 0 | C21: =IF(0 = B21, Inputs!C$18 + (A21-1)*(Inputs!E$19*Inputs!C$24)/(Inputs!C$23), C20 + (_xlfn.GAMMA.INV( RAND()*0.982 + 0.0052, Inputs!C$16, ((J21-J20)/(Inputs!B$16-Inputs!D$16)) * Inputs!E$16) / (Inputs!B$16+Inputs!D$16))*Inputs!E$19) -> 2024-12-04T07:07:45.882 | D21: =IF(0 = B21, "", IF(AND(G21<I21, K21<(Inputs!G$10-Inputs!G$13)), "MR", "OH")) ->  | E21: =IF(0=B21,"start",IF(C21>Inputs!$C$21,"past",IF(AND(D21="MR",F21>=Inputs!$G$4),"Sch",IF(D21="OH",IF(H21>=Inputs!$G$10,"Sch", IF(K21>=Inputs!$G$10-Inputs!$G$13,"Uns-BP","Uns")),"Uns")))) -> start | F21: =IF(0 = B21, 0, _xlfn.GAMMA.INV(RAND(), Inputs!C$5, Inputs!E$5)) -> 0 | G21: =IF(0 = B21, 0, $J20 + MIN(Inputs!G$4, F21)) -> 0 | H21: =IF(0 = B21, 0, IF(OR(B21=1,D20="OH"), _xlfn.GAMMA.INV(RAND(), Inputs!C$11, Inputs!E$11),H20)) -> 0 | I21: =IF(0 = B21, 0, IF(OR(B21=1,D20="OH"), $J20 + MIN(Inputs!G$10, H21), I20)) -> 0 | J21: 0 | K21: 0 | M21: =IF(L21="","",(L21/(C21-C20))*Inputs!E$19) -> 
A22: 4 | B22: =IF(OR(C21 >= Inputs!C$21, A21 > Inputs!C$23), 0, B21+1) -> 1 | C22: =IF(0 = B22, Inputs!C$18 + (A22-1)*(Inputs!E$19*Inputs!C$24)/(Inputs!C$23), C21 + (_xlfn.GAMMA.INV( RAND()*0.982 + 0.0052, Inputs!C$16, ((J22-J21)/(Inputs!B$16-Inputs!D$16)) * Inputs!E$16) / (Inputs!B$16+Inputs!D$16))*Inputs!E$19) -> 2029-04-22T08:43:37.889 | D22: =IF(0 = B22, "", IF(AND(G22<I22, K22<(Inputs!G$10-Inputs!G$13)), "MR", "OH")) -> MR | E22: =IF(0=B22,"start",IF(C22>Inputs!$C$21,"past",IF(AND(D22="MR",F22>=Inputs!$G$4),"Sch",IF(D22="OH",IF(H22>=Inputs!$G$10,"Sch", IF(K22>=Inputs!$G$10-Inputs!$G$13,"Uns-BP","Uns")),"Uns")))) -> Sch | F22: =IF(0 = B22, 0, _xlfn.GAMMA.INV(RAND(), Inputs!C$5, Inputs!E$5)) -> 1051.889018 | G22: =IF(0 = B22, 0, $J21 + MIN(Inputs!G$4, F22)) -> 1050 | H22: =IF(0 = B22, 0, IF(OR(B22=1,D21="OH"), _xlfn.GAMMA.INV(RAND(), Inputs!C$11, Inputs!E$11),H21)) -> 2449.700591 | I22: =IF(0 = B22, 0, IF(OR(B22=1,D21="OH"), $J21 + MIN(Inputs!G$10, H22), I21)) -> 2449.700591 | J22: 1050 | K22: 1050 | L22: 1050 | M22: =IF(L22="","",(L22/(C22-C21))*Inputs!E$19) -> 19.97377829
A23: 4 | B23: =IF(OR(C22 >= Inputs!C$21, A22 > Inputs!C$23), 0, B22+1) -> 2 | C23: =IF(0 = B23, Inputs!C$18 + (A23-1)*(Inputs!E$19*Inputs!C$24)/(Inputs!C$23), C22 + (_xlfn.GAMMA.INV( RAND()*0.982 + 0.0052, Inputs!C$16, ((J23-J22)/(Inputs!B$16-Inputs!D$16)) * Inputs!E$16) / (Inputs!B$16+Inputs!D$16))*Inputs!E$19) -> 2033-03-27T03:29:58.516 | D23: =IF(0 = B23, "", IF(AND(G23<I23, K23<(Inputs!G$10-Inputs!G$13)), "MR", "OH")) -> MR | E23: =IF(0=B23,"start",IF(C23>Inputs!$C$21,"past",IF(AND(D23="MR",F23>=Inputs!$G$4),"Sch",IF(D23="OH",IF(H23>=Inputs!$G$10,"Sch", IF(K23>=Inputs!$G$10-Inputs!$G$13,"Uns-BP","Uns")),"Uns")))) -> Uns | F23: =IF(0 = B23, 0, _xlfn.GAMMA.INV(RAND(), Inputs!C$5, Inputs!E$5)) -> 937.792777 | G23: =IF(0 = B23, 0, $J22 + MIN(Inputs!G$4, F23)) -> 1987.792777 | H23: =IF(0 = B23, 0, IF(OR(B23=1,D22="OH"), _xlfn.GAMMA.INV(RAND(), Inputs!C$11, Inputs!E$11),H22)) -> 2449.700591 | I23: =IF(0 = B23, 0, IF(OR(B23=1,D22="OH"), $J22 + MIN(Inputs!G$10, H23), I22)) -> 2449.700591 | J23: 1987.792777 | K23: 1987.792777 | L23: 937.792777 | M23: =IF(L23="","",(L23/(C23-C22))*Inputs!E$19) -> 19.89435608
A24: 4 | B24: =IF(OR(C23 >= Inputs!C$21, A23 > Inputs!C$23), 0, B23+1) -> 3 | C24: =IF(0 = B24, Inputs!C$18 + (A24-1)*(Inputs!E$19*Inputs!C$24)/(Inputs!C$23), C23 + (_xlfn.GAMMA.INV( RAND()*0.982 + 0.0052, Inputs!C$16, ((J24-J23)/(Inputs!B$16-Inputs!D$16)) * Inputs!E$16) / (Inputs!B$16+Inputs!D$16))*Inputs!E$19) -> 2035-06-29T01:14:51.248 | D24: =IF(0 = B24, "", IF(AND(G24<I24, K24<(Inputs!G$10-Inputs!G$13)), "MR", "OH")) -> OH | E24: =IF(0=B24,"start",IF(C24>Inputs!$C$21,"past",IF(AND(D24="MR",F24>=Inputs!$G$4),"Sch",IF(D24="OH",IF(H24>=Inputs!$G$10,"Sch", IF(K24>=Inputs!$G$10-Inputs!$G$13,"Uns-BP","Uns")),"Uns")))) -> Uns | F24: =IF(0 = B24, 0, _xlfn.GAMMA.INV(RAND(), Inputs!C$5, Inputs!E$5)) -> 837.2433902 | G24: =IF(0 = B24, 0, $J23 + MIN(Inputs!G$4, F24)) -> 2825.036167 | H24: =IF(0 = B24, 0, IF(OR(B24=1,D23="OH"), _xlfn.GAMMA.INV(RAND(), Inputs!C$11, Inputs!E$11),H23)) -> 2449.700591 | I24: =IF(0 = B24, 0, IF(OR(B24=1,D23="OH"), $J23 + MIN(Inputs!G$10, H24), I23)) -> 2449.700591 | J24: 2449.700591 | K24: 2449.700591 | L24: 461.9078139 | M24: =IF(L24="","",(L24/(C24-C23))*Inputs!E$19) -> 17.06422365
A25: 4 | B25: =IF(OR(C24 >= Inputs!C$21, A24 > Inputs!C$23), 0, B24+1) -> 4 | C25: =IF(0 = B25, Inputs!C$18 + (A25-1)*(Inputs!E$19*Inputs!C$24)/(Inputs!C$23), C24 + (_xlfn.GAMMA.INV( RAND()*0.982 + 0.0052, Inputs!C$16, ((J25-J24)/(Inputs!B$16-Inputs!D$16)) * Inputs!E$16) / (Inputs!B$16+Inputs!D$16))*Inputs!E$19) -> 2040-07-26T19:53:38.806 | D25: =IF(0 = B25, "", IF(AND(G25<I25, K25<(Inputs!G$10-Inputs!G$13)), "MR", "OH")) -> MR | E25: =IF(0=B25,"start",IF(C25>Inputs!$C$21,"past",IF(AND(D25="MR",F25>=Inputs!$G$4),"Sch",IF(D25="OH",IF(H25>=Inputs!$G$10,"Sch", IF(K25>=Inputs!$G$10-Inputs!$G$13,"Uns-BP","Uns")),"Uns")))) -> past | F25: =IF(0 = B25, 0, _xlfn.GAMMA.INV(RAND(), Inputs!C$5, Inputs!E$5)) -> 925.9226287 | G25: =IF(0 = B25, 0, $J24 + MIN(Inputs!G$4, F25)) -> 3375.62322 | H25: =IF(0 = B25, 0, IF(OR(B25=1,D24="OH"), _xlfn.GAMMA.INV(RAND(), Inputs!C$11, Inputs!E$11),H24)) -> 2888.698884 | I25: =IF(0 = B25, 0, IF(OR(B25=1,D24="OH"), $J24 + MIN(Inputs!G$10, H25), I24)) -> 5338.399475 | J25: 3375.62322 | K25: 925.9226287 | L25: 925.9226287 | M25: =IF(L25="","",(L25/(C25-C24))*Inputs!E$19) -> 15.19469507
A26: 5 | B26: =IF(OR(C25 >= Inputs!C$21, A25 > Inputs!C$23), 0, B25+1) -> 0 | C26: =IF(0 = B26, Inputs!C$18 + (A26-1)*(Inputs!E$19*Inputs!C$24)/(Inputs!C$23), C25 + (_xlfn.GAMMA.INV( RAND()*0.982 + 0.0052, Inputs!C$16, ((J26-J25)/(Inputs!B$16-Inputs!D$16)) * Inputs!E$16) / (Inputs!B$16+Inputs!D$16))*Inputs!E$19) -> 2024-12-05T17:30:21.176 | D26: =IF(0 = B26, "", IF(AND(G26<I26, K26<(Inputs!G$10-Inputs!G$13)), "MR", "OH")) ->  | E26: =IF(0=B26,"start",IF(C26>Inputs!$C$21,"past",IF(AND(D26="MR",F26>=Inputs!$G$4),"Sch",IF(D26="OH",IF(H26>=Inputs!$G$10,"Sch", IF(K26>=Inputs!$G$10-Inputs!$G$13,"Uns-BP","Uns")),"Uns")))) -> start | F26: =IF(0 = B26, 0, _xlfn.GAMMA.INV(RAND(), Inputs!C$5, Inputs!E$5)) -> 0 | G26: =IF(0 = B26, 0, $J25 + MIN(Inputs!G$4, F26)) -> 0 | H26: =IF(0 = B26, 0, IF(OR(B26=1,D25="OH"), _xlfn.GAMMA.INV(RAND(), Inputs!C$11, Inputs!E$11),H25)) -> 0 | I26: =IF(0 = B26, 0, IF(OR(B26=1,D25="OH"), $J25 + MIN(Inputs!G$10, H26), I25)) -> 0 | J26: 0 | K26: 0 | M26: =IF(L26="","",(L26/(C26-C25))*Inputs!E$19) -> 
A27: 5 | B27: =IF(OR(C26 >= Inputs!C$21, A26 > Inputs!C$23), 0, B26+1) -> 1 | C27: =IF(0 = B27, Inputs!C$18 + (A27-1)*(Inputs!E$19*Inputs!C$24)/(Inputs!C$23), C26 + (_xlfn.GAMMA.INV( RAND()*0.982 + 0.0052, Inputs!C$16, ((J27-J26)/(Inputs!B$16-Inputs!D$16)) * Inputs!E$16) / (Inputs!B$16+Inputs!D$16))*Inputs!E$19) -> 2028-09-02T21:16:28.806 | D27: =IF(0 = B27, "", IF(AND(G27<I27, K27<(Inputs!G$10-Inputs!G$13)), "MR", "OH")) -> MR | E27: =IF(0=B27,"start",IF(C27>Inputs!$C$21,"past",IF(AND(D27="MR",F27>=Inputs!$G$4),"Sch",IF(D27="OH",IF(H27>=Inputs!$G$10,"Sch", IF(K27>=Inputs!$G$10-Inputs!$G$13,"Uns-BP","Uns")),"Uns")))) -> Sch | F27: =IF(0 = B27, 0, _xlfn.GAMMA.INV(RAND(), Inputs!C$5, Inputs!E$5)) -> 1258.140972 | G27: =IF(0 = B27, 0, $J26 + MIN(Inputs!G$4, F27)) -> 1050 | H27: =IF(0 = B27, 0, IF(OR(B27=1,D26="OH"), _xlfn.GAMMA.INV(RAND(), Inputs!C$11, Inputs!E$11),H26)) -> 2274.681 | I27: =IF(0 = B27, 0, IF(OR(B27=1,D26="OH"), $J26 + MIN(Inputs!G$10, H27), I26)) -> 2274.681 | J27: 1050 | K27: 1050 | L27: 1050 | M27: =IF(L27="","",(L27/(C27-C26))*Inputs!E$19) -> 23.37652094
A28: 5 | B28: =IF(OR(C27 >= Inputs!C$21, A27 > Inputs!C$23), 0, B27+1) -> 2 | C28: =IF(0 = B28, Inputs!C$18 + (A28-1)*(Inputs!E$19*Inputs!C$24)/(Inputs!C$23), C27 + (_xlfn.GAMMA.INV( RAND()*0.982 + 0.0052, Inputs!C$16, ((J28-J27)/(Inputs!B$16-Inputs!D$16)) * Inputs!E$16) / (Inputs!B$16+Inputs!D$16))*Inputs!E$19) -> 2031-10-08T18:02:07.161 | D28: =IF(0 = B28, "", IF(AND(G28<I28, K28<(Inputs!G$10-Inputs!G$13)), "MR", "OH")) -> MR | E28: =IF(0=B28,"start",IF(C28>Inputs!$C$21,"past",IF(AND(D28="MR",F28>=Inputs!$G$4),"Sch",IF(D28="OH",IF(H28>=Inputs!$G$10,"Sch", IF(K28>=Inputs!$G$10-Inputs!$G$13,"Uns-BP","Uns")),"Uns")))) -> Sch | F28: =IF(0 = B28, 0, _xlfn.GAMMA.INV(RAND(), Inputs!C$5, Inputs!E$5)) -> 1121.806856 | G28: =IF(0 = B28, 0, $J27 + MIN(Inputs!G$4, F28)) -> 2100 | H28: =IF(0 = B28, 0, IF(OR(B28=1,D27="OH"), _xlfn.GAMMA.INV(RAND(), Inputs!C$11, Inputs!E$11),H27)) -> 2274.681 | I28: =IF(0 = B28, 0, IF(OR(B28=1,D27="OH"), $J27 + MIN(Inputs!G$10, H28), I27)) -> 2274.681 | J28: 2100 | K28: 2100 | L28: 1050 | M28: =IF(L28="","",(L28/(C28-C27))*Inputs!E$19) -> 28.26099864
A29: 5 | B29: =IF(OR(C28 >= Inputs!C$21, A28 > Inputs!C$23), 0, B28+1) -> 3 | C29: =IF(0 = B29, Inputs!C$18 + (A29-1)*(Inputs!E$19*Inputs!C$24)/(Inputs!C$23), C28 + (_xlfn.GAMMA.INV( RAND()*0.982 + 0.0052, Inputs!C$16, ((J29-J28)/(Inputs!B$16-Inputs!D$16)) * Inputs!E$16) / (Inputs!B$16+Inputs!D$16))*Inputs!E$19) -> 2032-07-13T04:56:50.598 | D29: =IF(0 = B29, "", IF(AND(G29<I29, K29<(Inputs!G$10-Inputs!G$13)), "MR", "OH")) -> OH | E29: =IF(0=B29,"start",IF(C29>Inputs!$C$21,"past",IF(AND(D29="MR",F29>=Inputs!$G$4),"Sch",IF(D29="OH",IF(H29>=Inputs!$G$10,"Sch", IF(K29>=Inputs!$G$10-Inputs!$G$13,"Uns-BP","Uns")),"Uns")))) -> Uns | F29: =IF(0 = B29, 0, _xlfn.GAMMA.INV(RAND(), Inputs!C$5, Inputs!E$5)) -> 957.6735424 | G29: =IF(0 = B29, 0, $J28 + MIN(Inputs!G$4, F29)) -> 3057.673542 | H29: =IF(0 = B29, 0, IF(OR(B29=1,D28="OH"), _xlfn.GAMMA.INV(RAND(), Inputs!C$11, Inputs!E$11),H28)) -> 2274.681 | I29: =IF(0 = B29, 0, IF(OR(B29=1,D28="OH"), $J28 + MIN(Inputs!G$10, H29), I28)) -> 2274.681 | J29: 2274.681 | K29: 2274.681 | L29: 174.6810004 | M29: =IF(L29="","",(L29/(C29-C28))*Inputs!E$19) -> 19.09414182
A30: 5 | B30: =IF(OR(C29 >= Inputs!C$21, A29 > Inputs!C$23), 0, B29+1) -> 4 | C30: =IF(0 = B30, Inputs!C$18 + (A30-1)*(Inputs!E$19*Inputs!C$24)/(Inputs!C$23), C29 + (_xlfn.GAMMA.INV( RAND()*0.982 + 0.0052, Inputs!C$16, ((J30-J29)/(Inputs!B$16-Inputs!D$16)) * Inputs!E$16) / (Inputs!B$16+Inputs!D$16))*Inputs!E$19) -> 2037-07-03T03:54:13.350 | D30: =IF(0 = B30, "", IF(AND(G30<I30, K30<(Inputs!G$10-Inputs!G$13)), "MR", "OH")) -> MR | E30: =IF(0=B30,"start",IF(C30>Inputs!$C$21,"past",IF(AND(D30="MR",F30>=Inputs!$G$4),"Sch",IF(D30="OH",IF(H30>=Inputs!$G$10,"Sch", IF(K30>=Inputs!$G$10-Inputs!$G$13,"Uns-BP","Uns")),"Uns")))) -> Uns | F30: =IF(0 = B30, 0, _xlfn.GAMMA.INV(RAND(), Inputs!C$5, Inputs!E$5)) -> 927.9442923 | G30: =IF(0 = B30, 0, $J29 + MIN(Inputs!G$4, F30)) -> 3202.625293 | H30: =IF(0 = B30, 0, IF(OR(B30=1,D29="OH"), _xlfn.GAMMA.INV(RAND(), Inputs!C$11, Inputs!E$11),H29)) -> 3017.071722 | I30: =IF(0 = B30, 0, IF(OR(B30=1,D29="OH"), $J29 + MIN(Inputs!G$10, H30), I29)) -> 5291.752722 | J30: 3202.625293 | K30: 927.9442923 | L30: 927.9442923 | M30: =IF(L30="","",(L30/(C30-C29))*Inputs!E$19) -> 15.5534035
A31: 5 | B31: =IF(OR(C30 >= Inputs!C$21, A30 > Inputs!C$23), 0, B30+1) -> 5 | C31: =IF(0 = B31, Inputs!C$18 + (A31-1)*(Inputs!E$19*Inputs!C$24)/(Inputs!C$23), C30 + (_xlfn.GAMMA.INV( RAND()*0.982 + 0.0052, Inputs!C$16, ((J31-J30)/(Inputs!B$16-Inputs!D$16)) * Inputs!E$16) / (Inputs!B$16+Inputs!D$16))*Inputs!E$19) -> 2041-08-04T17:28:25.452 | D31: =IF(0 = B31, "", IF(AND(G31<I31, K31<(Inputs!G$10-Inputs!G$13)), "MR", "OH")) -> MR | E31: =IF(0=B31,"start",IF(C31>Inputs!$C$21,"past",IF(AND(D31="MR",F31>=Inputs!$G$4),"Sch",IF(D31="OH",IF(H31>=Inputs!$G$10,"Sch", IF(K31>=Inputs!$G$10-Inputs!$G$13,"Uns-BP","Uns")),"Uns")))) -> past | F31: =IF(0 = B31, 0, _xlfn.GAMMA.INV(RAND(), Inputs!C$5, Inputs!E$5)) -> 852.7697229 | G31: =IF(0 = B31, 0, $J30 + MIN(Inputs!G$4, F31)) -> 4055.395016 | H31: =IF(0 = B31, 0, IF(OR(B31=1,D30="OH"), _xlfn.GAMMA.INV(RAND(), Inputs!C$11, Inputs!E$11),H30)) -> 3017.071722 | I31: =IF(0 = B31, 0, IF(OR(B31=1,D30="OH"), $J30 + MIN(Inputs!G$10, H31), I30)) -> 5291.752722 | J31: 4055.395016 | K31: 1780.714015 | L31: 852.7697229 | M31: =IF(L31="","",(L31/(C31-C30))*Inputs!E$19) -> 17.37866861
A32: 6 | B32: =IF(OR(C31 >= Inputs!C$21, A31 > Inputs!C$23), 0, B31+1) -> 0 | C32: =IF(0 = B32, Inputs!C$18 + (A32-1)*(Inputs!E$19*Inputs!C$24)/(Inputs!C$23), C31 + (_xlfn.GAMMA.INV( RAND()*0.982 + 0.0052, Inputs!C$16, ((J32-J31)/(Inputs!B$16-Inputs!D$16)) * Inputs!E$16) / (Inputs!B$16+Inputs!D$16))*Inputs!E$19) -> 2024-12-07T03:52:56.471 | D32: =IF(0 = B32, "", IF(AND(G32<I32, K32<(Inputs!G$10-Inputs!G$13)), "MR", "OH")) ->  | E32: =IF(0=B32,"start",IF(C32>Inputs!$C$21,"past",IF(AND(D32="MR",F32>=Inputs!$G$4),"Sch",IF(D32="OH",IF(H32>=Inputs!$G$10,"Sch", IF(K32>=Inputs!$G$10-Inputs!$G$13,"Uns-BP","Uns")),"Uns")))) -> start | F32: =IF(0 = B32, 0, _xlfn.GAMMA.INV(RAND(), Inputs!C$5, Inputs!E$5)) -> 0 | G32: =IF(0 = B32, 0, $J31 + MIN(Inputs!G$4, F32)) -> 0 | H32: =IF(0 = B32, 0, IF(OR(B32=1,D31="OH"), _xlfn.GAMMA.INV(RAND(), Inputs!C$11, Inputs!E$11),H31)) -> 0 | I32: =IF(0 = B32, 0, IF(OR(B32=1,D31="OH"), $J31 + MIN(Inputs!G$10, H32), I31)) -> 0 | J32: 0 | K32: 0 | M32: =IF(L32="","",(L32/(C32-C31))*Inputs!E$19) -> 
A33: 6 | B33: =IF(OR(C32 >= Inputs!C$21, A32 > Inputs!C$23), 0, B32+1) -> 1 | C33: =IF(0 = B33, Inputs!C$18 + (A33-1)*(Inputs!E$19*Inputs!C$24)/(Inputs!C$23), C32 + (_xlfn.GAMMA.INV( RAND()*0.982 + 0.0052, Inputs!C$16, ((J33-J32)/(Inputs!B$16-Inputs!D$16)) * Inputs!E$16) / (Inputs!B$16+Inputs!D$16))*Inputs!E$19) -> 2030-05-21T22:04:53.103 | D33: =IF(0 = B33, "", IF(AND(G33<I33, K33<(Inputs!G$10-Inputs!G$13)), "MR", "OH")) -> MR | E33: =IF(0=B33,"start",IF(C33>Inputs!$C$21,"past",IF(AND(D33="MR",F33>=Inputs!$G$4),"Sch",IF(D33="OH",IF(H33>=Inputs!$G$10,"Sch", IF(K33>=Inputs!$G$10-Inputs!$G$13,"Uns-BP","Uns")),"Uns")))) -> Uns | F33: =IF(0 = B33, 0, _xlfn.GAMMA.INV(RAND(), Inputs!C$5, Inputs!E$5)) -> 943.716707 | G33: =IF(0 = B33, 0, $J32 + MIN(Inputs!G$4, F33)) -> 943.716707 | H33: =IF(0 = B33, 0, IF(OR(B33=1,D32="OH"), _xlfn.GAMMA.INV(RAND(), Inputs!C$11, Inputs!E$11),H32)) -> 3086.608339 | I33: =IF(0 = B33, 0, IF(OR(B33=1,D32="OH"), $J32 + MIN(Inputs!G$10, H33), I32)) -> 3086.608339 | J33: 943.716707 | K33: 943.716707 | L33: 943.716707 | M33: =IF(L33="","",(L33/(C33-C32))*Inputs!E$19) -> 14.421618
A34: 6 | B34: =IF(OR(C33 >= Inputs!C$21, A33 > Inputs!C$23), 0, B33+1) -> 2 | C34: =IF(0 = B34, Inputs!C$18 + (A34-1)*(Inputs!E$19*Inputs!C$24)/(Inputs!C$23), C33 + (_xlfn.GAMMA.INV( RAND()*0.982 + 0.0052, Inputs!C$16, ((J34-J33)/(Inputs!B$16-Inputs!D$16)) * Inputs!E$16) / (Inputs!B$16+Inputs!D$16))*Inputs!E$19) -> 2035-01-10T04:46:26.581 | D34: =IF(0 = B34, "", IF(AND(G34<I34, K34<(Inputs!G$10-Inputs!G$13)), "MR", "OH")) -> MR | E34: =IF(0=B34,"start",IF(C34>Inputs!$C$21,"past",IF(AND(D34="MR",F34>=Inputs!$G$4),"Sch",IF(D34="OH",IF(H34>=Inputs!$G$10,"Sch", IF(K34>=Inputs!$G$10-Inputs!$G$13,"Uns-BP","Uns")),"Uns")))) -> Uns | F34: =IF(0 = B34, 0, _xlfn.GAMMA.INV(RAND(), Inputs!C$5, Inputs!E$5)) -> 915.8009338 | G34: =IF(0 = B34, 0, $J33 + MIN(Inputs!G$4, F34)) -> 1859.517641 | H34: =IF(0 = B34, 0, IF(OR(B34=1,D33="OH"), _xlfn.GAMMA.INV(RAND(), Inputs!C$11, Inputs!E$11),H33)) -> 3086.608339 | I34: =IF(0 = B34, 0, IF(OR(B34=1,D33="OH"), $J33 + MIN(Inputs!G$10, H34), I33)) -> 3086.608339 | J34: 1859.517641 | K34: 1859.517641 | L34: 915.8009338 | M34: =IF(L34="","",(L34/(C34-C33))*Inputs!E$19) -> 16.45224501
A35: 6 | B35: =IF(OR(C34 >= Inputs!C$21, A34 > Inputs!C$23), 0, B34+1) -> 3 | C35: =IF(0 = B35, Inputs!C$18 + (A35-1)*(Inputs!E$19*Inputs!C$24)/(Inputs!C$23), C34 + (_xlfn.GAMMA.INV( RAND()*0.982 + 0.0052, Inputs!C$16, ((J35-J34)/(Inputs!B$16-Inputs!D$16)) * Inputs!E$16) / (Inputs!B$16+Inputs!D$16))*Inputs!E$19) -> 2038-07-03T13:01:40.460 | D35: =IF(0 = B35, "", IF(AND(G35<I35, K35<(Inputs!G$10-Inputs!G$13)), "MR", "OH")) -> MR | E35: =IF(0=B35,"start",IF(C35>Inputs!$C$21,"past",IF(AND(D35="MR",F35>=Inputs!$G$4),"Sch",IF(D35="OH",IF(H35>=Inputs!$G$10,"Sch", IF(K35>=Inputs!$G$10-Inputs!$G$13,"Uns-BP","Uns")),"Uns")))) -> Uns | F35: =IF(0 = B35, 0, _xlfn.GAMMA.INV(RAND(), Inputs!C$5, Inputs!E$5)) -> 869.4057759 | G35: =IF(0 = B35, 0, $J34 + MIN(Inputs!G$4, F35)) -> 2728.923417 | H35: =IF(0 = B35, 0, IF(OR(B35=1,D34="OH"), _xlfn.GAMMA.INV(RAND(), Inputs!C$11, Inputs!E$11),H34)) -> 3086.608339 | I35: =IF(0 = B35, 0, IF(OR(B35=1,D34="OH"), $J34 + MIN(Inputs!G$10, H35), I34)) -> 3086.608339 | J35: 2728.923417 | K35: 2728.923417 | L35: 869.4057759 | M35: =IF(L35="","",(L35/(C35-C34))*Inputs!E$19) -> 20.83100338
A36: 6 | B36: =IF(OR(C35 >= Inputs!C$21, A35 > Inputs!C$23), 0, B35+1) -> 4 | C36: =IF(0 = B36, Inputs!C$18 + (A36-1)*(Inputs!E$19*Inputs!C$24)/(Inputs!C$23), C35 + (_xlfn.GAMMA.INV( RAND()*0.982 + 0.0052, Inputs!C$16, ((J36-J35)/(Inputs!B$16-Inputs!D$16)) * Inputs!E$16) / (Inputs!B$16+Inputs!D$16))*Inputs!E$19) -> 2040-02-12T09:48:54.338 | D36: =IF(0 = B36, "", IF(AND(G36<I36, K36<(Inputs!G$10-Inputs!G$13)), "MR", "OH")) -> OH | E36: =IF(0=B36,"start",IF(C36>Inputs!$C$21,"past",IF(AND(D36="MR",F36>=Inputs!$G$4),"Sch",IF(D36="OH",IF(H36>=Inputs!$G$10,"Sch", IF(K36>=Inputs!$G$10-Inputs!$G$13,"Uns-BP","Uns")),"Uns")))) -> past | F36: =IF(0 = B36, 0, _xlfn.GAMMA.INV(RAND(), Inputs!C$5, Inputs!E$5)) -> 903.0965659 | G36: =IF(0 = B36, 0, $J35 + MIN(Inputs!G$4, F36)) -> 3632.019983 | H36: =IF(0 = B36, 0, IF(OR(B36=1,D35="OH"), _xlfn.GAMMA.INV(RAND(), Inputs!C$11, Inputs!E$11),H35)) -> 3086.608339 | I36: =IF(0 = B36, 0, IF(OR(B36=1,D35="OH"), $J35 + MIN(Inputs!G$10, H36), I35)) -> 3086.608339 | J36: 3086.608339 | K36: 3086.608339 | L36: 357.6849219 | M36: =IF(L36="","",(L36/(C36-C35))*Inputs!E$19) -> 18.48813203
A37: 7 | B37: =IF(OR(C36 >= Inputs!C$21, A36 > Inputs!C$23), 0, B36+1) -> 0 | C37: =IF(0 = B37, Inputs!C$18 + (A37-1)*(Inputs!E$19*Inputs!C$24)/(Inputs!C$23), C36 + (_xlfn.GAMMA.INV( RAND()*0.982 + 0.0052, Inputs!C$16, ((J37-J36)/(Inputs!B$16-Inputs!D$16)) * Inputs!E$16) / (Inputs!B$16+Inputs!D$16))*Inputs!E$19) -> 2024-12-08T14:15:31.765 | D37: =IF(0 = B37, "", IF(AND(G37<I37, K37<(Inputs!G$10-Inputs!G$13)), "MR", "OH")) ->  | E37: =IF(0=B37,"start",IF(C37>Inputs!$C$21,"past",IF(AND(D37="MR",F37>=Inputs!$G$4),"Sch",IF(D37="OH",IF(H37>=Inputs!$G$10,"Sch", IF(K37>=Inputs!$G$10-Inputs!$G$13,"Uns-BP","Uns")),"Uns")))) -> start | F37: =IF(0 = B37, 0, _xlfn.GAMMA.INV(RAND(), Inputs!C$5, Inputs!E$5)) -> 0 | G37: =IF(0 = B37, 0, $J36 + MIN(Inputs!G$4, F37)) -> 0 | H37: =IF(0 = B37, 0, IF(OR(B37=1,D36="OH"), _xlfn.GAMMA.INV(RAND(), Inputs!C$11, Inputs!E$11),H36)) -> 0 | I37: =IF(0 = B37, 0, IF(OR(B37=1,D36="OH"), $J36 + MIN(Inputs!G$10, H37), I36)) -> 0 | J37: 0 | K37: 0 | M37: =IF(L37="","",(L37/(C37-C36))*Inputs!E$19) -> 
A38: 7 | B38: =IF(OR(C37 >= Inputs!C$21, A37 > Inputs!C$23), 0, B37+1) -> 1 | C38: =IF(0 = B38, Inputs!C$18 + (A38-1)*(Inputs!E$19*Inputs!C$24)/(Inputs!C$23), C37 + (_xlfn.GAMMA.INV( RAND()*0.982 + 0.0052, Inputs!C$16, ((J38-J37)/(Inputs!B$16-Inputs!D$16)) * Inputs!E$16) / (Inputs!B$16+Inputs!D$16))*Inputs!E$19) -> 2028-06-13T08:17:29.600 | D38: =IF(0 = B38, "", IF(AND(G38<I38, K38<(Inputs!G$10-Inputs!G$13)), "MR", "OH")) -> MR | E38: =IF(0=B38,"start",IF(C38>Inputs!$C$21,"past",IF(AND(D38="MR",F38>=Inputs!$G$4),"Sch",IF(D38="OH",IF(H38>=Inputs!$G$10,"Sch", IF(K38>=Inputs!$G$10-Inputs!$G$13,"Uns-BP","Uns")),"Uns")))) -> Uns | F38: =IF(0 = B38, 0, _xlfn.GAMMA.INV(RAND(), Inputs!C$5, Inputs!E$5)) -> 887.5904727 | G38: =IF(0 = B38, 0, $J37 + MIN(Inputs!G$4, F38)) -> 887.5904727 | H38: =IF(0 = B38, 0, IF(OR(B38=1,D37="OH"), _xlfn.GAMMA.INV(RAND(), Inputs!C$11, Inputs!E$11),H37)) -> 3116.410521 | I38: =IF(0 = B38, 0, IF(OR(B38=1,D37="OH"), $J37 + MIN(Inputs!G$10, H38), I37)) -> 3116.410521 | J38: 887.5904727 | K38: 887.5904727 | L38: 887.5904727 | M38: =IF(L38="","",(L38/(C38-C37))*Inputs!E$19) -> 21.06100666
A39: 7 | B39: =IF(OR(C38 >= Inputs!C$21, A38 > Inputs!C$23), 0, B38+1) -> 2 | C39: =IF(0 = B39, Inputs!C$18 + (A39-1)*(Inputs!E$19*Inputs!C$24)/(Inputs!C$23), C38 + (_xlfn.GAMMA.INV( RAND()*0.982 + 0.0052, Inputs!C$16, ((J39-J38)/(Inputs!B$16-Inputs!D$16)) * Inputs!E$16) / (Inputs!B$16+Inputs!D$16))*Inputs!E$19) -> 2031-10-19T21:30:10.458 | D39: =IF(0 = B39, "", IF(AND(G39<I39, K39<(Inputs!G$10-Inputs!G$13)), "MR", "OH")) -> MR | E39: =IF(0=B39,"start",IF(C39>Inputs!$C$21,"past",IF(AND(D39="MR",F39>=Inputs!$G$4),"Sch",IF(D39="OH",IF(H39>=Inputs!$G$10,"Sch", IF(K39>=Inputs!$G$10-Inputs!$G$13,"Uns-BP","Uns")),"Uns")))) -> Sch | F39: =IF(0 = B39, 0, _xlfn.GAMMA.INV(RAND(), Inputs!C$5, Inputs!E$5)) -> 1118.405746 | G39: =IF(0 = B39, 0, $J38 + MIN(Inputs!G$4, F39)) -> 1937.590473 | H39: =IF(0 = B39, 0, IF(OR(B39=1,D38="OH"), _xlfn.GAMMA.INV(RAND(), Inputs!C$11, Inputs!E$11),H38)) -> 3116.410521 | I39: =IF(0 = B39, 0, IF(OR(B39=1,D38="OH"), $J38 + MIN(Inputs!G$10, H39), I38)) -> 3116.410521 | J39: 1937.590473 | K39: 1937.590473 | L39: 1050 | M39: =IF(L39="","",(L39/(C39-C38))*Inputs!E$19) -> 26.12019341
A40: 7 | B40: =IF(OR(C39 >= Inputs!C$21, A39 > Inputs!C$23), 0, B39+1) -> 3 | C40: =IF(0 = B40, Inputs!C$18 + (A40-1)*(Inputs!E$19*Inputs!C$24)/(Inputs!C$23), C39 + (_xlfn.GAMMA.INV( RAND()*0.982 + 0.0052, Inputs!C$16, ((J40-J39)/(Inputs!B$16-Inputs!D$16)) * Inputs!E$16) / (Inputs!B$16+Inputs!D$16))*Inputs!E$19) -> 2036-10-15T03:10:03.580 | D40: =IF(0 = B40, "", IF(AND(G40<I40, K40<(Inputs!G$10-Inputs!G$13)), "MR", "OH")) -> MR | E40: =IF(0=B40,"start",IF(C40>Inputs!$C$21,"past",IF(AND(D40="MR",F40>=Inputs!$G$4),"Sch",IF(D40="OH",IF(H40>=Inputs!$G$10,"Sch", IF(K40>=Inputs!$G$10-Inputs!$G$13,"Uns-BP","Uns")),"Uns")))) -> Uns | F40: =IF(0 = B40, 0, _xlfn.GAMMA.INV(RAND(), Inputs!C$5, Inputs!E$5)) -> 983.104816 | G40: =IF(0 = B40, 0, $J39 + MIN(Inputs!G$4, F40)) -> 2920.695289 | H40: =IF(0 = B40, 0, IF(OR(B40=1,D39="OH"), _xlfn.GAMMA.INV(RAND(), Inputs!C$11, Inputs!E$11),H39)) -> 3116.410521 | I40: =IF(0 = B40, 0, IF(OR(B40=1,D39="OH"), $J39 + MIN(Inputs!G$10, H40), I39)) -> 3116.410521 | J40: 2920.695289 | K40: 2920.695289 | L40: 983.104816 | M40: =IF(L40="","",(L40/(C40-C39))*Inputs!E$19) -> 16.42117285
A41: 7 | B41: =IF(OR(C40 >= Inputs!C$21, A40 > Inputs!C$23), 0, B40+1) -> 4 | C41: =IF(0 = B41, Inputs!C$18 + (A41-1)*(Inputs!E$19*Inputs!C$24)/(Inputs!C$23), C40 + (_xlfn.GAMMA.INV( RAND()*0.982 + 0.0052, Inputs!C$16, ((J41-J40)/(Inputs!B$16-Inputs!D$16)) * Inputs!E$16) / (Inputs!B$16+Inputs!D$16))*Inputs!E$19) -> 2037-04-25T00:17:29.705 | D41: =IF(0 = B41, "", IF(AND(G41<I41, K41<(Inputs!G$10-Inputs!G$13)), "MR", "OH")) -> OH | E41: =IF(0=B41,"start",IF(C41>Inputs!$C$21,"past",IF(AND(D41="MR",F41>=Inputs!$G$4),"Sch",IF(D41="OH",IF(H41>=Inputs!$G$10,"Sch", IF(K41>=Inputs!$G$10-Inputs!$G$13,"Uns-BP","Uns")),"Uns")))) -> Uns-BP | F41: =IF(0 = B41, 0, _xlfn.GAMMA.INV(RAND(), Inputs!C$5, Inputs!E$5)) -> 963.0375235 | G41: =IF(0 = B41, 0, $J40 + MIN(Inputs!G$4, F41)) -> 3883.732812 | H41: =IF(0 = B41, 0, IF(OR(B41=1,D40="OH"), _xlfn.GAMMA.INV(RAND(), Inputs!C$11, Inputs!E$11),H40)) -> 3116.410521 | I41: =IF(0 = B41, 0, IF(OR(B41=1,D40="OH"), $J40 + MIN(Inputs!G$10, H41), I40)) -> 3116.410521 | J41: 3116.410521 | K41: 3116.410521 | L41: 195.7152328 | M41: =IF(L41="","",(L41/(C41-C40))*Inputs!E$19) -> 31.04584804
A42: 7 | B42: =IF(OR(C41 >= Inputs!C$21, A41 > Inputs!C$23), 0, B41+1) -> 5 | C42: =IF(0 = B42, Inputs!C$18 + (A42-1)*(Inputs!E$19*Inputs!C$24)/(Inputs!C$23), C41 + (_xlfn.GAMMA.INV( RAND()*0.982 + 0.0052, Inputs!C$16, ((J42-J41)/(Inputs!B$16-Inputs!D$16)) * Inputs!E$16) / (Inputs!B$16+Inputs!D$16))*Inputs!E$19) -> 2042-04-02T01:00:28.877 | D42: =IF(0 = B42, "", IF(AND(G42<I42, K42<(Inputs!G$10-Inputs!G$13)), "MR", "OH")) -> MR | E42: =IF(0=B42,"start",IF(C42>Inputs!$C$21,"past",IF(AND(D42="MR",F42>=Inputs!$G$4),"Sch",IF(D42="OH",IF(H42>=Inputs!$G$10,"Sch", IF(K42>=Inputs!$G$10-Inputs!$G$13,"Uns-BP","Uns")),"Uns")))) -> past | F42: =IF(0 = B42, 0, _xlfn.GAMMA.INV(RAND(), Inputs!C$5, Inputs!E$5)) -> 1149.034169 | G42: =IF(0 = B42, 0, $J41 + MIN(Inputs!G$4, F42)) -> 4166.410521 | H42: =IF(0 = B42, 0, IF(OR(B42=1,D41="OH"), _xlfn.GAMMA.INV(RAND(), Inputs!C$11, Inputs!E$11),H41)) -> 2935.812706 | I42: =IF(0 = B42, 0, IF(OR(B42=1,D41="OH"), $J41 + MIN(Inputs!G$10, H42), I41)) -> 6052.223227 | J42: 4166.410521 | K42: 1050 | L42: 1050 | M42: =IF(L42="","",(L42/(C42-C41))*Inputs!E$19) -> 17.72537209
A43: 8 | B43: =IF(OR(C42 >= Inputs!C$21, A42 > Inputs!C$23), 0, B42+1) -> 0 | C43: =IF(0 = B43, Inputs!C$18 + (A43-1)*(Inputs!E$19*Inputs!C$24)/(Inputs!C$23), C42 + (_xlfn.GAMMA.INV( RAND()*0.982 + 0.0052, Inputs!C$16, ((J43-J42)/(Inputs!B$16-Inputs!D$16)) * Inputs!E$16) / (Inputs!B$16+Inputs!D$16))*Inputs!E$19) -> 2024-12-10T00:38:07.059 | D43: =IF(0 = B43, "", IF(AND(G43<I43, K43<(Inputs!G$10-Inputs!G$13)), "MR", "OH")) ->  | E43: =IF(0=B43,"start",IF(C43>Inputs!$C$21,"past",IF(AND(D43="MR",F43>=Inputs!$G$4),"Sch",IF(D43="OH",IF(H43>=Inputs!$G$10,"Sch", IF(K43>=Inputs!$G$10-Inputs!$G$13,"Uns-BP","Uns")),"Uns")))) -> start | F43: =IF(0 = B43, 0, _xlfn.GAMMA.INV(RAND(), Inputs!C$5, Inputs!E$5)) -> 0 | G43: =IF(0 = B43, 0, $J42 + MIN(Inputs!G$4, F43)) -> 0 | H43: =IF(0 = B43, 0, IF(OR(B43=1,D42="OH"), _xlfn.GAMMA.INV(RAND(), Inputs!C$11, Inputs!E$11),H42)) -> 0 | I43: =IF(0 = B43, 0, IF(OR(B43=1,D42="OH"), $J42 + MIN(Inputs!G$10, H43), I42)) -> 0 | J43: 0 | K43: 0 | M43: =IF(L43="","",(L43/(C43-C42))*Inputs!E$19) -> 
A44: 8 | B44: =IF(OR(C43 >= Inputs!C$21, A43 > Inputs!C$23), 0, B43+1) -> 1 | C44: =IF(0 = B44, Inputs!C$18 + (A44-1)*(Inputs!E$19*Inputs!C$24)/(Inputs!C$23), C43 + (_xlfn.GAMMA.INV( RAND()*0.982 + 0.0052, Inputs!C$16, ((J44-J43)/(Inputs!B$16-Inputs!D$16)) * Inputs!E$16) / (Inputs!B$16+Inputs!D$16))*Inputs!E$19) -> 2030-06-18T04:33:10.537 | D44: =IF(0 = B44, "", IF(AND(G44<I44, K44<(Inputs!G$10-Inputs!G$13)), "MR", "OH")) -> MR | E44: =IF(0=B44,"start",IF(C44>Inputs!$C$21,"past",IF(AND(D44="MR",F44>=Inputs!$G$4),"Sch",IF(D44="OH",IF(H44>=Inputs!$G$10,"Sch", IF(K44>=Inputs!$G$10-Inputs!$G$13,"Uns-BP","Uns")),"Uns")))) -> Sch | F44: =IF(0 = B44, 0, _xlfn.GAMMA.INV(RAND(), Inputs!C$5, Inputs!E$5)) -> 1110.916005 | G44: =IF(0 = B44, 0, $J43 + MIN(Inputs!G$4, F44)) -> 1050 | H44: =IF(0 = B44, 0, IF(OR(B44=1,D43="OH"), _xlfn.GAMMA.INV(RAND(), Inputs!C$11, Inputs!E$11),H43)) -> 2926.381049 | I44: =IF(0 = B44, 0, IF(OR(B44=1,D43="OH"), $J43 + MIN(Inputs!G$10, H44), I43)) -> 2926.381049 | J44: 1050 | K44: 1050 | L44: 1050 | M44: =IF(L44="","",(L44/(C44-C43))*Inputs!E$19) -> 15.85158109
A45: 8 | B45: =IF(OR(C44 >= Inputs!C$21, A44 > Inputs!C$23), 0, B44+1) -> 2 | C45: =IF(0 = B45, Inputs!C$18 + (A45-1)*(Inputs!E$19*Inputs!C$24)/(Inputs!C$23), C44 + (_xlfn.GAMMA.INV( RAND()*0.982 + 0.0052, Inputs!C$16, ((J45-J44)/(Inputs!B$16-Inputs!D$16)) * Inputs!E$16) / (Inputs!B$16+Inputs!D$16))*Inputs!E$19) -> 2034-02-06T21:10:37.282 | D45: =IF(0 = B45, "", IF(AND(G45<I45, K45<(Inputs!G$10-Inputs!G$13)), "MR", "OH")) -> MR | E45: =IF(0=B45,"start",IF(C45>Inputs!$C$21,"past",IF(AND(D45="MR",F45>=Inputs!$G$4),"Sch",IF(D45="OH",IF(H45>=Inputs!$G$10,"Sch", IF(K45>=Inputs!$G$10-Inputs!$G$13,"Uns-BP","Uns")),"Uns")))) -> Uns | F45: =IF(0 = B45, 0, _xlfn.GAMMA.INV(RAND(), Inputs!C$5, Inputs!E$5)) -> 941.5605798 | G45: =IF(0 = B45, 0, $J44 + MIN(Inputs!G$4, F45)) -> 1991.56058 | H45: =IF(0 = B45, 0, IF(OR(B45=1,D44="OH"), _xlfn.GAMMA.INV(RAND(), Inputs!C$11, Inputs!E$11),H44)) -> 2926.381049 | I45: =IF(0 = B45, 0, IF(OR(B45=1,D44="OH"), $J44 + MIN(Inputs!G$10, H45), I44)) -> 2926.381049 | J45: 1991.56058 | K45: 1991.56058 | L45: 941.5605798 | M45: =IF(L45="","",(L45/(C45-C44))*Inputs!E$19) -> 21.55291277
A46: 8 | B46: =IF(OR(C45 >= Inputs!C$21, A45 > Inputs!C$23), 0, B45+1) -> 3 | C46: =IF(0 = B46, Inputs!C$18 + (A46-1)*(Inputs!E$19*Inputs!C$24)/(Inputs!C$23), C45 + (_xlfn.GAMMA.INV( RAND()*0.982 + 0.0052, Inputs!C$16, ((J46-J45)/(Inputs!B$16-Inputs!D$16)) * Inputs!E$16) / (Inputs!B$16+Inputs!D$16))*Inputs!E$19) -> 2037-03-06T07:45:18.732 | D46: =IF(0 = B46, "", IF(AND(G46<I46, K46<(Inputs!G$10-Inputs!G$13)), "MR", "OH")) -> OH | E46: =IF(0=B46,"start",IF(C46>Inputs!$C$21,"past",IF(AND(D46="MR",F46>=Inputs!$G$4),"Sch",IF(D46="OH",IF(H46>=Inputs!$G$10,"Sch", IF(K46>=Inputs!$G$10-Inputs!$G$13,"Uns-BP","Uns")),"Uns")))) -> Uns | F46: =IF(0 = B46, 0, _xlfn.GAMMA.INV(RAND(), Inputs!C$5, Inputs!E$5)) -> 1019.480678 | G46: =IF(0 = B46, 0, $J45 + MIN(Inputs!G$4, F46)) -> 3011.041258 | H46: =IF(0 = B46, 0, IF(OR(B46=1,D45="OH"), _xlfn.GAMMA.INV(RAND(), Inputs!C$11, Inputs!E$11),H45)) -> 2926.381049 | I46: =IF(0 = B46, 0, IF(OR(B46=1,D45="OH"), $J45 + MIN(Inputs!G$10, H46), I45)) -> 2926.381049 | J46: 2926.381049 | K46: 2926.381049 | L46: 934.8204689 | M46: =IF(L46="","",(L46/(C46-C45))*Inputs!E$19) -> 25.32719045
A47: 8 | B47: =IF(OR(C46 >= Inputs!C$21, A46 > Inputs!C$23), 0, B46+1) -> 4 | C47: =IF(0 = B47, Inputs!C$18 + (A47-1)*(Inputs!E$19*Inputs!C$24)/(Inputs!C$23), C46 + (_xlfn.GAMMA.INV( RAND()*0.982 + 0.0052, Inputs!C$16, ((J47-J46)/(Inputs!B$16-Inputs!D$16)) * Inputs!E$16) / (Inputs!B$16+Inputs!D$16))*Inputs!E$19) -> 2039-12-24T21:05:19.909 | D47: =IF(0 = B47, "", IF(AND(G47<I47, K47<(Inputs!G$10-Inputs!G$13)), "MR", "OH")) -> MR | E47: =IF(0=B47,"start",IF(C47>Inputs!$C$21,"past",IF(AND(D47="MR",F47>=Inputs!$G$4),"Sch",IF(D47="OH",IF(H47>=Inputs!$G$10,"Sch", IF(K47>=Inputs!$G$10-Inputs!$G$13,"Uns-BP","Uns")),"Uns")))) -> past | F47: =IF(0 = B47, 0, _xlfn.GAMMA.INV(RAND(), Inputs!C$5, Inputs!E$5)) -> 972.435643 | G47: =IF(0 = B47, 0, $J46 + MIN(Inputs!G$4, F47)) -> 3898.816692 | H47: =IF(0 = B47, 0, IF(OR(B47=1,D46="OH"), _xlfn.GAMMA.INV(RAND(), Inputs!C$11, Inputs!E$11),H46)) -> 3172.594532 | I47: =IF(0 = B47, 0, IF(OR(B47=1,D46="OH"), $J46 + MIN(Inputs!G$10, H47), I46)) -> 6098.975581 | J47: 3898.816692 | K47: 972.435643 | L47: 972.435643 | M47: =IF(L47="","",(L47/(C47-C46))*Inputs!E$19) -> 28.91734535
A48: 9 | B48: =IF(OR(C47 >= Inputs!C$21, A47 > Inputs!C$23), 0, B47+1) -> 0 | C48: =IF(0 = B48, Inputs!C$18 + (A48-1)*(Inputs!E$19*Inputs!C$24)/(Inputs!C$23), C47 + (_xlfn.GAMMA.INV( RAND()*0.982 + 0.0052, Inputs!C$16, ((J48-J47)/(Inputs!B$16-Inputs!D$16)) * Inputs!E$16) / (Inputs!B$16+Inputs!D$16))*Inputs!E$19) -> 2024-12-11T11:00:42.353 | D48: =IF(0 = B48, "", IF(AND(G48<I48, K48<(Inputs!G$10-Inputs!G$13)), "MR", "OH")) ->  | E48: =IF(0=B48,"start",IF(C48>Inputs!$C$21,"past",IF(AND(D48="MR",F48>=Inputs!$G$4),"Sch",IF(D48="OH",IF(H48>=Inputs!$G$10,"Sch", IF(K48>=Inputs!$G$10-Inputs!$G$13,"Uns-BP","Uns")),"Uns")))) -> start | F48: =IF(0 = B48, 0, _xlfn.GAMMA.INV(RAND(), Inputs!C$5, Inputs!E$5)) -> 0 | G48: =IF(0 = B48, 0, $J47 + MIN(Inputs!G$4, F48)) -> 0 | H48: =IF(0 = B48, 0, IF(OR(B48=1,D47="OH"), _xlfn.GAMMA.INV(RAND(), Inputs!C$11, Inputs!E$11),H47)) -> 0 | I48: =IF(0 = B48, 0, IF(OR(B48=1,D47="OH"), $J47 + MIN(Inputs!G$10, H48), I47)) -> 0 | J48: 0 | K48: 0 | M48: =IF(L48="","",(L48/(C48-C47))*Inputs!E$19) -> 
A49: 9 | B49: =IF(OR(C48 >= Inputs!C$21, A48 > Inputs!C$23), 0, B48+1) -> 1 | C49: =IF(0 = B49, Inputs!C$18 + (A49-1)*(Inputs!E$19*Inputs!C$24)/(Inputs!C$23), C48 + (_xlfn.GAMMA.INV( RAND()*0.982 + 0.0052, Inputs!C$16, ((J49-J48)/(Inputs!B$16-Inputs!D$16)) * Inputs!E$16) / (Inputs!B$16+Inputs!D$16))*Inputs!E$19) -> 2029-06-23T13:33:27.165 | D49: =IF(0 = B49, "", IF(AND(G49<I49, K49<(Inputs!G$10-Inputs!G$13)), "MR", "OH")) -> MR | E49: =IF(0=B49,"start",IF(C49>Inputs!$C$21,"past",IF(AND(D49="MR",F49>=Inputs!$G$4),"Sch",IF(D49="OH",IF(H49>=Inputs!$G$10,"Sch", IF(K49>=Inputs!$G$10-Inputs!$G$13,"Uns-BP","Uns")),"Uns")))) -> Uns | F49: =IF(0 = B49, 0, _xlfn.GAMMA.INV(RAND(), Inputs!C$5, Inputs!E$5)) -> 937.9198642 | G49: =IF(0 = B49, 0, $J48 + MIN(Inputs!G$4, F49)) -> 937.9198642 | H49: =IF(0 = B49, 0, IF(OR(B49=1,D48="OH"), _xlfn.GAMMA.INV(RAND(), Inputs!C$11, Inputs!E$11),H48)) -> 3310.647922 | I49: =IF(0 = B49, 0, IF(OR(B49=1,D48="OH"), $J48 + MIN(Inputs!G$10, H49), I48)) -> 3310.647922 | J49: 937.9198642 | K49: 937.9198642 | L49: 937.9198642 | M49: =IF(L49="","",(L49/(C49-C48))*Inputs!E$19) -> 17.24840257
A50: 9 | B50: =IF(OR(C49 >= Inputs!C$21, A49 > Inputs!C$23), 0, B49+1) -> 2 | C50: =IF(0 = B50, Inputs!C$18 + (A50-1)*(Inputs!E$19*Inputs!C$24)/(Inputs!C$23), C49 + (_xlfn.GAMMA.INV( RAND()*0.982 + 0.0052, Inputs!C$16, ((J50-J49)/(Inputs!B$16-Inputs!D$16)) * Inputs!E$16) / (Inputs!B$16+Inputs!D$16))*Inputs!E$19) -> 2033-03-09T07:48:33.059 | D50: =IF(0 = B50, "", IF(AND(G50<I50, K50<(Inputs!G$10-Inputs!G$13)), "MR", "OH")) -> MR | E50: =IF(0=B50,"start",IF(C50>Inputs!$C$21,"past",IF(AND(D50="MR",F50>=Inputs!$G$4),"Sch",IF(D50="OH",IF(H50>=Inputs!$G$10,"Sch", IF(K50>=Inputs!$G$10-Inputs!$G$13,"Uns-BP","Uns")),"Uns")))) -> Uns | F50: =IF(0 = B50, 0, _xlfn.GAMMA.INV(RAND(), Inputs!C$5, Inputs!E$5)) -> 860.7718874 | G50: =IF(0 = B50, 0, $J49 + MIN(Inputs!G$4, F50)) -> 1798.691752 | H50: =IF(0 = B50, 0, IF(OR(B50=1,D49="OH"), _xlfn.GAMMA.INV(RAND(), Inputs!C$11, Inputs!E$11),H49)) -> 3310.647922 | I50: =IF(0 = B50, 0, IF(OR(B50=1,D49="OH"), $J49 + MIN(Inputs!G$10, H50), I49)) -> 3310.647922 | J50: 1798.691752 | K50: 1798.691752 | L50: 860.7718874 | M50: =IF(L50="","",(L50/(C50-C49))*Inputs!E$19) -> 19.33902311
A51: 9 | B51: =IF(OR(C50 >= Inputs!C$21, A50 > Inputs!C$23), 0, B50+1) -> 3 | C51: =IF(0 = B51, Inputs!C$18 + (A51-1)*(Inputs!E$19*Inputs!C$24)/(Inputs!C$23), C50 + (_xlfn.GAMMA.INV( RAND()*0.982 + 0.0052, Inputs!C$16, ((J51-J50)/(Inputs!B$16-Inputs!D$16)) * Inputs!E$16) / (Inputs!B$16+Inputs!D$16))*Inputs!E$19) -> 2035-08-23T15:05:10.234 | D51: =IF(0 = B51, "", IF(AND(G51<I51, K51<(Inputs!G$10-Inputs!G$13)), "MR", "OH")) -> MR | E51: =IF(0=B51,"start",IF(C51>Inputs!$C$21,"past",IF(AND(D51="MR",F51>=Inputs!$G$4),"Sch",IF(D51="OH",IF(H51>=Inputs!$G$10,"Sch", IF(K51>=Inputs!$G$10-Inputs!$G$13,"Uns-BP","Uns")),"Uns")))) -> Uns | F51: =IF(0 = B51, 0, _xlfn.GAMMA.INV(RAND(), Inputs!C$5, Inputs!E$5)) -> 830.9412954 | G51: =IF(0 = B51, 0, $J50 + MIN(Inputs!G$4, F51)) -> 2629.633047 | H51: =IF(0 = B51, 0, IF(OR(B51=1,D50="OH"), _xlfn.GAMMA.INV(RAND(), Inputs!C$11, Inputs!E$11),H50)) -> 3310.647922 | I51: =IF(0 = B51, 0, IF(OR(B51=1,D50="OH"), $J50 + MIN(Inputs!G$10, H51), I50)) -> 3310.647922 | J51: 2629.633047 | K51: 2629.633047 | L51: 830.9412954 | M51: =IF(L51="","",(L51/(C51-C50))*Inputs!E$19) -> 28.1864318
A52: 9 | B52: =IF(OR(C51 >= Inputs!C$21, A51 > Inputs!C$23), 0, B51+1) -> 4 | C52: =IF(0 = B52, Inputs!C$18 + (A52-1)*(Inputs!E$19*Inputs!C$24)/(Inputs!C$23), C51 + (_xlfn.GAMMA.INV( RAND()*0.982 + 0.0052, Inputs!C$16, ((J52-J51)/(Inputs!B$16-Inputs!D$16)) * Inputs!E$16) / (Inputs!B$16+Inputs!D$16))*Inputs!E$19) -> 2039-08-01T23:51:45.599 | D52: =IF(0 = B52, "", IF(AND(G52<I52, K52<(Inputs!G$10-Inputs!G$13)), "MR", "OH")) -> OH | E52: =IF(0=B52,"start",IF(C52>Inputs!$C$21,"past",IF(AND(D52="MR",F52>=Inputs!$G$4),"Sch",IF(D52="OH",IF(H52>=Inputs!$G$10,"Sch", IF(K52>=Inputs!$G$10-Inputs!$G$13,"Uns-BP","Uns")),"Uns")))) -> Uns-BP | F52: =IF(0 = B52, 0, _xlfn.GAMMA.INV(RAND(), Inputs!C$5, Inputs!E$5)) -> 800.4005279 | G52: =IF(0 = B52, 0, $J51 + MIN(Inputs!G$4, F52)) -> 3430.033575 | H52: =IF(0 = B52, 0, IF(OR(B52=1,D51="OH"), _xlfn.GAMMA.INV(RAND(), Inputs!C$11, Inputs!E$11),H51)) -> 3310.647922 | I52: =IF(0 = B52, 0, IF(OR(B52=1,D51="OH"), $J51 + MIN(Inputs!G$10, H52), I51)) -> 3310.647922 | J52: 3310.647922 | K52: 3310.647922 | L52: 681.0148749 | M52: =IF(L52="","",(L52/(C52-C51))*Inputs!E$19) -> 14.40105905
A53: 9 | B53: =IF(OR(C52 >= Inputs!C$21, A52 > Inputs!C$23), 0, B52+1) -> 5 | C53: =IF(0 = B53, Inputs!C$18 + (A53-1)*(Inputs!E$19*Inputs!C$24)/(Inputs!C$23), C52 + (_xlfn.GAMMA.INV( RAND()*0.982 + 0.0052, Inputs!C$16, ((J53-J52)/(Inputs!B$16-Inputs!D$16)) * Inputs!E$16) / (Inputs!B$16+Inputs!D$16))*Inputs!E$19) -> 2043-03-23T06:02:39.639 | D53: =IF(0 = B53, "", IF(AND(G53<I53, K53<(Inputs!G$10-Inputs!G$13)), "MR", "OH")) -> MR | E53: =IF(0=B53,"start",IF(C53>Inputs!$C$21,"past",IF(AND(D53="MR",F53>=Inputs!$G$4),"Sch",IF(D53="OH",IF(H53>=Inputs!$G$10,"Sch", IF(K53>=Inputs!$G$10-Inputs!$G$13,"Uns-BP","Uns")),"Uns")))) -> past | F53: =IF(0 = B53, 0, _xlfn.GAMMA.INV(RAND(), Inputs!C$5, Inputs!E$5)) -> 936.3875352 | G53: =IF(0 = B53, 0, $J52 + MIN(Inputs!G$4, F53)) -> 4247.035457 | H53: =IF(0 = B53, 0, IF(OR(B53=1,D52="OH"), _xlfn.GAMMA.INV(RAND(), Inputs!C$11, Inputs!E$11),H52)) -> 2874.763754 | I53: =IF(0 = B53, 0, IF(OR(B53=1,D52="OH"), $J52 + MIN(Inputs!G$10, H53), I52)) -> 6185.411676 | J53: 4247.035457 | K53: 936.3875352 | L53: 936.3875352 | M53: =IF(L53="","",(L53/(C53-C52))*Inputs!E$19) -> 21.44151461
A54: 10 | B54: =IF(OR(C53 >= Inputs!C$21, A53 > Inputs!C$23), 0, B53+1) -> 0 | C54: =IF(0 = B54, Inputs!C$18 + (A54-1)*(Inputs!E$19*Inputs!C$24)/(Inputs!C$23), C53 + (_xlfn.GAMMA.INV( RAND()*0.982 + 0.0052, Inputs!C$16, ((J54-J53)/(Inputs!B$16-Inputs!D$16)) * Inputs!E$16) / (Inputs!B$16+Inputs!D$16))*Inputs!E$19) -> 2024-12-12T21:23:17.647 | D54: =IF(0 = B54, "", IF(AND(G54<I54, K54<(Inputs!G$10-Inputs!G$13)), "MR", "OH")) ->  | E54: =IF(0=B54,"start",IF(C54>Inputs!$C$21,"past",IF(AND(D54="MR",F54>=Inputs!$G$4),"Sch",IF(D54="OH",IF(H54>=Inputs!$G$10,"Sch", IF(K54>=Inputs!$G$10-Inputs!$G$13,"Uns-BP","Uns")),"Uns")))) -> start | F54: =IF(0 = B54, 0, _xlfn.GAMMA.INV(RAND(), Inputs!C$5, Inputs!E$5)) -> 0 | G54: =IF(0 = B54, 0, $J53 + MIN(Inputs!G$4, F54)) -> 0 | H54: =IF(0 = B54, 0, IF(OR(B54=1,D53="OH"), _xlfn.GAMMA.INV(RAND(), Inputs!C$11, Inputs!E$11),H53)) -> 0 | I54: =IF(0 = B54, 0, IF(OR(B54=1,D53="OH"), $J53 + MIN(Inputs!G$10, H54), I53)) -> 0 | J54: 0 | K54: 0 | M54: =IF(L54="","",(L54/(C54-C53))*Inputs!E$19) -> 
A55: 10 | B55: =IF(OR(C54 >= Inputs!C$21, A54 > Inputs!C$23), 0, B54+1) -> 1 | C55: =IF(0 = B55, Inputs!C$18 + (A55-1)*(Inputs!E$19*Inputs!C$24)/(Inputs!C$23), C54 + (_xlfn.GAMMA.INV( RAND()*0.982 + 0.0052, Inputs!C$16, ((J55-J54)/(Inputs!B$16-Inputs!D$16)) * Inputs!E$16) / (Inputs!B$16+Inputs!D$16))*Inputs!E$19) -> 2028-12-04T14:26:56.518 | D55: =IF(0 = B55, "", IF(AND(G55<I55, K55<(Inputs!G$10-Inputs!G$13)), "MR", "OH")) -> MR | E55: =IF(0=B55,"start",IF(C55>Inputs!$C$21,"past",IF(AND(D55="MR",F55>=Inputs!$G$4),"Sch",IF(D55="OH",IF(H55>=Inputs!$G$10,"Sch", IF(K55>=Inputs!$G$10-Inputs!$G$13,"Uns-BP","Uns")),"Uns")))) -> Uns | F55: =IF(0 = B55, 0, _xlfn.GAMMA.INV(RAND(), Inputs!C$5, Inputs!E$5)) -> 906.6803011 | G55: =IF(0 = B55, 0, $J54 + MIN(Inputs!G$4, F55)) -> 906.6803011 | H55: =IF(0 = B55, 0, IF(OR(B55=1,D54="OH"), _xlfn.GAMMA.INV(RAND(), Inputs!C$11, Inputs!E$11),H54)) -> 2578.383275 | I55: =IF(0 = B55, 0, IF(OR(B55=1,D54="OH"), $J54 + MIN(Inputs!G$10, H55), I54)) -> 2578.383275 | J55: 906.6803011 | K55: 906.6803011 | L55: 906.6803011 | M55: =IF(L55="","",(L55/(C55-C54))*Inputs!E$19) -> 18.99695411
A56: 10 | B56: =IF(OR(C55 >= Inputs!C$21, A55 > Inputs!C$23), 0, B55+1) -> 2 | C56: =IF(0 = B56, Inputs!C$18 + (A56-1)*(Inputs!E$19*Inputs!C$24)/(Inputs!C$23), C55 + (_xlfn.GAMMA.INV( RAND()*0.982 + 0.0052, Inputs!C$16, ((J56-J55)/(Inputs!B$16-Inputs!D$16)) * Inputs!E$16) / (Inputs!B$16+Inputs!D$16))*Inputs!E$19) -> 2034-02-05T23:58:45.408 | D56: =IF(0 = B56, "", IF(AND(G56<I56, K56<(Inputs!G$10-Inputs!G$13)), "MR", "OH")) -> MR | E56: =IF(0=B56,"start",IF(C56>Inputs!$C$21,"past",IF(AND(D56="MR",F56>=Inputs!$G$4),"Sch",IF(D56="OH",IF(H56>=Inputs!$G$10,"Sch", IF(K56>=Inputs!$G$10-Inputs!$G$13,"Uns-BP","Uns")),"Uns")))) -> Uns | F56: =IF(0 = B56, 0, _xlfn.GAMMA.INV(RAND(), Inputs!C$5, Inputs!E$5)) -> 996.0494331 | G56: =IF(0 = B56, 0, $J55 + MIN(Inputs!G$4, F56)) -> 1902.729734 | H56: =IF(0 = B56, 0, IF(OR(B56=1,D55="OH"), _xlfn.GAMMA.INV(RAND(), Inputs!C$11, Inputs!E$11),H55)) -> 2578.383275 | I56: =IF(0 = B56, 0, IF(OR(B56=1,D55="OH"), $J55 + MIN(Inputs!G$10, H56), I55)) -> 2578.383275 | J56: 1902.729734 | K56: 1902.729734 | L56: 996.0494331 | M56: =IF(L56="","",(L56/(C56-C55))*Inputs!E$19) -> 16.0459941
A57: 10 | B57: =IF(OR(C56 >= Inputs!C$21, A56 > Inputs!C$23), 0, B56+1) -> 3 | C57: =IF(0 = B57, Inputs!C$18 + (A57-1)*(Inputs!E$19*Inputs!C$24)/(Inputs!C$23), C56 + (_xlfn.GAMMA.INV( RAND()*0.982 + 0.0052, Inputs!C$16, ((J57-J56)/(Inputs!B$16-Inputs!D$16)) * Inputs!E$16) / (Inputs!B$16+Inputs!D$16))*Inputs!E$19) -> 2035-12-06T06:46:02.183 | D57: =IF(0 = B57, "", IF(AND(G57<I57, K57<(Inputs!G$10-Inputs!G$13)), "MR", "OH")) -> OH | E57: =IF(0=B57,"start",IF(C57>Inputs!$C$21,"past",IF(AND(D57="MR",F57>=Inputs!$G$4),"Sch",IF(D57="OH",IF(H57>=Inputs!$G$10,"Sch", IF(K57>=Inputs!$G$10-Inputs!$G$13,"Uns-BP","Uns")),"Uns")))) -> Uns | F57: =IF(0 = B57, 0, _xlfn.GAMMA.INV(RAND(), Inputs!C$5, Inputs!E$5)) -> 1145.80971 | G57: =IF(0 = B57, 0, $J56 + MIN(Inputs!G$4, F57)) -> 2952.729734 | H57: =IF(0 = B57, 0, IF(OR(B57=1,D56="OH"), _xlfn.GAMMA.INV(RAND(), Inputs!C$11, Inputs!E$11),H56)) -> 2578.383275 | I57: =IF(0 = B57, 0, IF(OR(B57=1,D56="OH"), $J56 + MIN(Inputs!G$10, H57), I56)) -> 2578.383275 | J57: 2578.383275 | K57: 2578.383275 | L57: 675.6535407 | M57: =IF(L57="","",(L57/(C57-C56))*Inputs!E$19) -> 30.77320504
A58: 10 | B58: =IF(OR(C57 >= Inputs!C$21, A57 > Inputs!C$23), 0, B57+1) -> 4 | C58: =IF(0 = B58, Inputs!C$18 + (A58-1)*(Inputs!E$19*Inputs!C$24)/(Inputs!C$23), C57 + (_xlfn.GAMMA.INV( RAND()*0.982 + 0.0052, Inputs!C$16, ((J58-J57)/(Inputs!B$16-Inputs!D$16)) * Inputs!E$16) / (Inputs!B$16+Inputs!D$16))*Inputs!E$19) -> 2038-06-17T23:31:21.535 | D58: =IF(0 = B58, "", IF(AND(G58<I58, K58<(Inputs!G$10-Inputs!G$13)), "MR", "OH")) -> MR | E58: =IF(0=B58,"start",IF(C58>Inputs!$C$21,"past",IF(AND(D58="MR",F58>=Inputs!$G$4),"Sch",IF(D58="OH",IF(H58>=Inputs!$G$10,"Sch", IF(K58>=Inputs!$G$10-Inputs!$G$13,"Uns-BP","Uns")),"Uns")))) -> Uns | F58: =IF(0 = B58, 0, _xlfn.GAMMA.INV(RAND(), Inputs!C$5, Inputs!E$5)) -> 1020.537071 | G58: =IF(0 = B58, 0, $J57 + MIN(Inputs!G$4, F58)) -> 3598.920346 | H58: =IF(0 = B58, 0, IF(OR(B58=1,D57="OH"), _xlfn.GAMMA.INV(RAND(), Inputs!C$11, Inputs!E$11),H57)) -> 2401.307063 | I58: =IF(0 = B58, 0, IF(OR(B58=1,D57="OH"), $J57 + MIN(Inputs!G$10, H58), I57)) -> 4979.690338 | J58: 3598.920346 | K58: 1020.537071 | L58: 1020.537071 | M58: =IF(L58="","",(L58/(C58-C57))*Inputs!E$19) -> 33.59214832
A59: 10 | B59: =IF(OR(C58 >= Inputs!C$21, A58 > Inputs!C$23), 0, B58+1) -> 5 | C59: =IF(0 = B59, Inputs!C$18 + (A59-1)*(Inputs!E$19*Inputs!C$24)/(Inputs!C$23), C58 + (_xlfn.GAMMA.INV( RAND()*0.982 + 0.0052, Inputs!C$16, ((J59-J58)/(Inputs!B$16-Inputs!D$16)) * Inputs!E$16) / (Inputs!B$16+Inputs!D$16))*Inputs!E$19) -> 2042-08-11T18:35:49.517 | D59: =IF(0 = B59, "", IF(AND(G59<I59, K59<(Inputs!G$10-Inputs!G$13)), "MR", "OH")) -> MR | E59: =IF(0=B59,"start",IF(C59>Inputs!$C$21,"past",IF(AND(D59="MR",F59>=Inputs!$G$4),"Sch",IF(D59="OH",IF(H59>=Inputs!$G$10,"Sch", IF(K59>=Inputs!$G$10-Inputs!$G$13,"Uns-BP","Uns")),"Uns")))) -> past | F59: =IF(0 = B59, 0, _xlfn.GAMMA.INV(RAND(), Inputs!C$5, Inputs!E$5)) -> 966.4140336 | G59: =IF(0 = B59, 0, $J58 + MIN(Inputs!G$4, F59)) -> 4565.334379 | H59: =IF(0 = B59, 0, IF(OR(B59=1,D58="OH"), _xlfn.GAMMA.INV(RAND(), Inputs!C$11, Inputs!E$11),H58)) -> 2401.307063 | I59: =IF(0 = B59, 0, IF(OR(B59=1,D58="OH"), $J58 + MIN(Inputs!G$10, H59), I58)) -> 4979.690338 | J59: 4565.334379 | K59: 1986.951105 | L59: 966.4140336 | M59: =IF(L59="","",(L59/(C59-C58))*Inputs!E$19) -> 19.40581124
A60: 11 | B60: =IF(OR(C59 >= Inputs!C$21, A59 > Inputs!C$23), 0, B59+1) -> 0 | C60: =IF(0 = B60, Inputs!C$18 + (A60-1)*(Inputs!E$19*Inputs!C$24)/(Inputs!C$23), C59 + (_xlfn.GAMMA.INV( RAND()*0.982 + 0.0052, Inputs!C$16, ((J60-J59)/(Inputs!B$16-Inputs!D$16)) * Inputs!E$16) / (Inputs!B$16+Inputs!D$16))*Inputs!E$19) -> 2024-12-14T07:45:52.941 | D60: =IF(0 = B60, "", IF(AND(G60<I60, K60<(Inputs!G$10-Inputs!G$13)), "MR", "OH")) ->  | E60: =IF(0=B60,"start",IF(C60>Inputs!$C$21,"past",IF(AND(D60="MR",F60>=Inputs!$G$4),"Sch",IF(D60="OH",IF(H60>=Inputs!$G$10,"Sch", IF(K60>=Inputs!$G$10-Inputs!$G$13,"Uns-BP","Uns")),"Uns")))) -> start | F60: =IF(0 = B60, 0, _xlfn.GAMMA.INV(RAND(), Inputs!C$5, Inputs!E$5)) -> 0 | G60: =IF(0 = B60, 0, $J59 + MIN(Inputs!G$4, F60)) -> 0 | H60: =IF(0 = B60, 0, IF(OR(B60=1,D59="OH"), _xlfn.GAMMA.INV(RAND(), Inputs!C$11, Inputs!E$11),H59)) -> 0 | I60: =IF(0 = B60, 0, IF(OR(B60=1,D59="OH"), $J59 + MIN(Inputs!G$10, H60), I59)) -> 0 | J60: 0 | K60: 0 | M60: =IF(L60="","",(L60/(C60-C59))*Inputs!E$19) -> 
A61: 11 | B61: =IF(OR(C60 >= Inputs!C$21, A60 > Inputs!C$23), 0, B60+1) -> 1 | C61: =IF(0 = B61, Inputs!C$18 + (A61-1)*(Inputs!E$19*Inputs!C$24)/(Inputs!C$23), C60 + (_xlfn.GAMMA.INV( RAND()*0.982 + 0.0052, Inputs!C$16, ((J61-J60)/(Inputs!B$16-Inputs!D$16)) * Inputs!E$16) / (Inputs!B$16+Inputs!D$16))*Inputs!E$19) -> 2029-05-22T21:36:34.396 | D61: =IF(0 = B61, "", IF(AND(G61<I61, K61<(Inputs!G$10-Inputs!G$13)), "MR", "OH")) -> MR | E61: =IF(0=B61,"start",IF(C61>Inputs!$C$21,"past",IF(AND(D61="MR",F61>=Inputs!$G$4),"Sch",IF(D61="OH",IF(H61>=Inputs!$G$10,"Sch", IF(K61>=Inputs!$G$10-Inputs!$G$13,"Uns-BP","Uns")),"Uns")))) -> Uns | F61: =IF(0 = B61, 0, _xlfn.GAMMA.INV(RAND(), Inputs!C$5, Inputs!E$5)) -> 799.5511147 | G61: =IF(0 = B61, 0, $J60 + MIN(Inputs!G$4, F61)) -> 799.5511147 | H61: =IF(0 = B61, 0, IF(OR(B61=1,D60="OH"), _xlfn.GAMMA.INV(RAND(), Inputs!C$11, Inputs!E$11),H60)) -> 2727.091073 | I61: =IF(0 = B61, 0, IF(OR(B61=1,D60="OH"), $J60 + MIN(Inputs!G$10, H61), I60)) -> 2727.091073 | J61: 799.5511147 | K61: 799.5511147 | L61: 799.5511147 | M61: =IF(L61="","",(L61/(C61-C60))*Inputs!E$19) -> 15.01708282
A62: 11 | B62: =IF(OR(C61 >= Inputs!C$21, A61 > Inputs!C$23), 0, B61+1) -> 2 | C62: =IF(0 = B62, Inputs!C$18 + (A62-1)*(Inputs!E$19*Inputs!C$24)/(Inputs!C$23), C61 + (_xlfn.GAMMA.INV( RAND()*0.982 + 0.0052, Inputs!C$16, ((J62-J61)/(Inputs!B$16-Inputs!D$16)) * Inputs!E$16) / (Inputs!B$16+Inputs!D$16))*Inputs!E$19) -> 2032-08-18T16:30:56.550 | D62: =IF(0 = B62, "", IF(AND(G62<I62, K62<(Inputs!G$10-Inputs!G$13)), "MR", "OH")) -> MR | E62: =IF(0=B62,"start",IF(C62>Inputs!$C$21,"past",IF(AND(D62="MR",F62>=Inputs!$G$4),"Sch",IF(D62="OH",IF(H62>=Inputs!$G$10,"Sch", IF(K62>=Inputs!$G$10-Inputs!$G$13,"Uns-BP","Uns")),"Uns")))) -> Uns | F62: =IF(0 = B62, 0, _xlfn.GAMMA.INV(RAND(), Inputs!C$5, Inputs!E$5)) -> 1006.165304 | G62: =IF(0 = B62, 0, $J61 + MIN(Inputs!G$4, F62)) -> 1805.716419 | H62: =IF(0 = B62, 0, IF(OR(B62=1,D61="OH"), _xlfn.GAMMA.INV(RAND(), Inputs!C$11, Inputs!E$11),H61)) -> 2727.091073 | I62: =IF(0 = B62, 0, IF(OR(B62=1,D61="OH"), $J61 + MIN(Inputs!G$10, H62), I61)) -> 2727.091073 | J62: 1805.716419 | K62: 1805.716419 | L62: 1006.165304 | M62: =IF(L62="","",(L62/(C62-C61))*Inputs!E$19) -> 25.87047912
A63: 11 | B63: =IF(OR(C62 >= Inputs!C$21, A62 > Inputs!C$23), 0, B62+1) -> 3 | C63: =IF(0 = B63, Inputs!C$18 + (A63-1)*(Inputs!E$19*Inputs!C$24)/(Inputs!C$23), C62 + (_xlfn.GAMMA.INV( RAND()*0.982 + 0.0052, Inputs!C$16, ((J63-J62)/(Inputs!B$16-Inputs!D$16)) * Inputs!E$16) / (Inputs!B$16+Inputs!D$16))*Inputs!E$19) -> 2037-09-01T10:50:38.863 | D63: =IF(0 = B63, "", IF(AND(G63<I63, K63<(Inputs!G$10-Inputs!G$13)), "MR", "OH")) -> OH | E63: =IF(0=B63,"start",IF(C63>Inputs!$C$21,"past",IF(AND(D63="MR",F63>=Inputs!$G$4),"Sch",IF(D63="OH",IF(H63>=Inputs!$G$10,"Sch", IF(K63>=Inputs!$G$10-Inputs!$G$13,"Uns-BP","Uns")),"Uns")))) -> Uns | F63: =IF(0 = B63, 0, _xlfn.GAMMA.INV(RAND(), Inputs!C$5, Inputs!E$5)) -> 964.9824292 | G63: =IF(0 = B63, 0, $J62 + MIN(Inputs!G$4, F63)) -> 2770.698848 | H63: =IF(0 = B63, 0, IF(OR(B63=1,D62="OH"), _xlfn.GAMMA.INV(RAND(), Inputs!C$11, Inputs!E$11),H62)) -> 2727.091073 | I63: =IF(0 = B63, 0, IF(OR(B63=1,D62="OH"), $J62 + MIN(Inputs!G$10, H63), I62)) -> 2727.091073 | J63: 2727.091073 | K63: 2727.091073 | L63: 921.3746548 | M63: =IF(L63="","",(L63/(C63-C62))*Inputs!E$19) -> 15.24344746
A64: 11 | B64: =IF(OR(C63 >= Inputs!C$21, A63 > Inputs!C$23), 0, B63+1) -> 4 | C64: =IF(0 = B64, Inputs!C$18 + (A64-1)*(Inputs!E$19*Inputs!C$24)/(Inputs!C$23), C63 + (_xlfn.GAMMA.INV( RAND()*0.982 + 0.0052, Inputs!C$16, ((J64-J63)/(Inputs!B$16-Inputs!D$16)) * Inputs!E$16) / (Inputs!B$16+Inputs!D$16))*Inputs!E$19) -> 2040-03-19T10:24:36.613 | D64: =IF(0 = B64, "", IF(AND(G64<I64, K64<(Inputs!G$10-Inputs!G$13)), "MR", "OH")) -> MR | E64: =IF(0=B64,"start",IF(C64>Inputs!$C$21,"past",IF(AND(D64="MR",F64>=Inputs!$G$4),"Sch",IF(D64="OH",IF(H64>=Inputs!$G$10,"Sch", IF(K64>=Inputs!$G$10-Inputs!$G$13,"Uns-BP","Uns")),"Uns")))) -> past | F64: =IF(0 = B64, 0, _xlfn.GAMMA.INV(RAND(), Inputs!C$5, Inputs!E$5)) -> 876.0534949 | G64: =IF(0 = B64, 0, $J63 + MIN(Inputs!G$4, F64)) -> 3603.144568 | H64: =IF(0 = B64, 0, IF(OR(B64=1,D63="OH"), _xlfn.GAMMA.INV(RAND(), Inputs!C$11, Inputs!E$11),H63)) -> 2915.304455 | I64: =IF(0 = B64, 0, IF(OR(B64=1,D63="OH"), $J63 + MIN(Inputs!G$10, H64), I63)) -> 5642.395529 | J64: 3603.144568 | K64: 876.0534949 | L64: 876.0534949 | M64: =IF(L64="","",(L64/(C64-C63))*Inputs!E$19) -> 28.67246956
A65: 12 | B65: =IF(OR(C64 >= Inputs!C$21, A64 > Inputs!C$23), 0, B64+1) -> 0 | C65: =IF(0 = B65, Inputs!C$18 + (A65-1)*(Inputs!E$19*Inputs!C$24)/(Inputs!C$23), C64 + (_xlfn.GAMMA.INV( RAND()*0.982 + 0.0052, Inputs!C$16, ((J65-J64)/(Inputs!B$16-Inputs!D$16)) * Inputs!E$16) / (Inputs!B$16+Inputs!D$16))*Inputs!E$19) -> 2024-12-15T18:08:28.235 | D65: =IF(0 = B65, "", IF(AND(G65<I65, K65<(Inputs!G$10-Inputs!G$13)), "MR", "OH")) ->  | E65: =IF(0=B65,"start",IF(C65>Inputs!$C$21,"past",IF(AND(D65="MR",F65>=Inputs!$G$4),"Sch",IF(D65="OH",IF(H65>=Inputs!$G$10,"Sch", IF(K65>=Inputs!$G$10-Inputs!$G$13,"Uns-BP","Uns")),"Uns")))) -> start | F65: =IF(0 = B65, 0, _xlfn.GAMMA.INV(RAND(), Inputs!C$5, Inputs!E$5)) -> 0 | G65: =IF(0 = B65, 0, $J64 + MIN(Inputs!G$4, F65)) -> 0 | H65: =IF(0 = B65, 0, IF(OR(B65=1,D64="OH"), _xlfn.GAMMA.INV(RAND(), Inputs!C$11, Inputs!E$11),H64)) -> 0 | I65: =IF(0 = B65, 0, IF(OR(B65=1,D64="OH"), $J64 + MIN(Inputs!G$10, H65), I64)) -> 0 | J65: 0 | K65: 0 | M65: =IF(L65="","",(L65/(C65-C64))*Inputs!E$19) -> 
A66: 12 | B66: =IF(OR(C65 >= Inputs!C$21, A65 > Inputs!C$23), 0, B65+1) -> 1 | C66: =IF(0 = B66, Inputs!C$18 + (A66-1)*(Inputs!E$19*Inputs!C$24)/(Inputs!C$23), C65 + (_xlfn.GAMMA.INV( RAND()*0.982 + 0.0052, Inputs!C$16, ((J66-J65)/(Inputs!B$16-Inputs!D$16)) * Inputs!E$16) / (Inputs!B$16+Inputs!D$16))*Inputs!E$19) -> 2030-03-10T13:59:39.087 | D66: =IF(0 = B66, "", IF(AND(G66<I66, K66<(Inputs!G$10-Inputs!G$13)), "MR", "OH")) -> MR | E66: =IF(0=B66,"start",IF(C66>Inputs!$C$21,"past",IF(AND(D66="MR",F66>=Inputs!$G$4),"Sch",IF(D66="OH",IF(H66>=Inputs!$G$10,"Sch", IF(K66>=Inputs!$G$10-Inputs!$G$13,"Uns-BP","Uns")),"Uns")))) -> Uns | F66: =IF(0 = B66, 0, _xlfn.GAMMA.INV(RAND(), Inputs!C$5, Inputs!E$5)) -> 998.2667294 | G66: =IF(0 = B66, 0, $J65 + MIN(Inputs!G$4, F66)) -> 998.2667294 | H66: =IF(0 = B66, 0, IF(OR(B66=1,D65="OH"), _xlfn.GAMMA.INV(RAND(), Inputs!C$11, Inputs!E$11),H65)) -> 2418.960867 | I66: =IF(0 = B66, 0, IF(OR(B66=1,D65="OH"), $J65 + MIN(Inputs!G$10, H66), I65)) -> 2418.960867 | J66: 998.2667294 | K66: 998.2667294 | L66: 998.2667294 | M66: =IF(L66="","",(L66/(C66-C65))*Inputs!E$19) -> 15.90135593
A67: 12 | B67: =IF(OR(C66 >= Inputs!C$21, A66 > Inputs!C$23), 0, B66+1) -> 2 | C67: =IF(0 = B67, Inputs!C$18 + (A67-1)*(Inputs!E$19*Inputs!C$24)/(Inputs!C$23), C66 + (_xlfn.GAMMA.INV( RAND()*0.982 + 0.0052, Inputs!C$16, ((J67-J66)/(Inputs!B$16-Inputs!D$16)) * Inputs!E$16) / (Inputs!B$16+Inputs!D$16))*Inputs!E$19) -> 2034-11-15T21:22:13.580 | D67: =IF(0 = B67, "", IF(AND(G67<I67, K67<(Inputs!G$10-Inputs!G$13)), "MR", "OH")) -> MR | E67: =IF(0=B67,"start",IF(C67>Inputs!$C$21,"past",IF(AND(D67="MR",F67>=Inputs!$G$4),"Sch",IF(D67="OH",IF(H67>=Inputs!$G$10,"Sch", IF(K67>=Inputs!$G$10-Inputs!$G$13,"Uns-BP","Uns")),"Uns")))) -> Uns | F67: =IF(0 = B67, 0, _xlfn.GAMMA.INV(RAND(), Inputs!C$5, Inputs!E$5)) -> 839.6422823 | G67: =IF(0 = B67, 0, $J66 + MIN(Inputs!G$4, F67)) -> 1837.909012 | H67: =IF(0 = B67, 0, IF(OR(B67=1,D66="OH"), _xlfn.GAMMA.INV(RAND(), Inputs!C$11, Inputs!E$11),H66)) -> 2418.960867 | I67: =IF(0 = B67, 0, IF(OR(B67=1,D66="OH"), $J66 + MIN(Inputs!G$10, H67), I66)) -> 2418.960867 | J67: =IF(0 = B67, 0, MIN(G67,I67)) -> 1837.909012 | K67: =IF( B67 = 0, 0, J67 - J66 + IF(D66="OH", 0, K66)) -> 1837.909012 | L67: =IF(0 = J67, "", J67-J66) -> 839.6422823 | M67: =IF(L67="","",(L67/(C67-C66))*Inputs!E$19) -> 14.93396967
A68: =IF(B68=0, A67+1, A67 ) -> 12 | B68: =IF(OR(C67 >= Inputs!C$21, A67 > Inputs!C$23), 0, B67+1) -> 3 | C68: =IF(0 = B68, Inputs!C$18 + (A68-1)*(Inputs!E$19*Inputs!C$24)/(Inputs!C$23), C67 + (_xlfn.GAMMA.INV( RAND()*0.982 + 0.0052, Inputs!C$16, ((J68-J67)/(Inputs!B$16-Inputs!D$16)) * Inputs!E$16) / (Inputs!B$16+Inputs!D$16))*Inputs!E$19) -> 2036-06-11T19:00:08.827 | D68: =IF(0 = B68, "", IF(AND(G68<I68, K68<(Inputs!G$10-Inputs!G$13)), "MR", "OH")) -> OH | E68: =IF(0=B68,"start",IF(C68>Inputs!$C$21,"past",IF(AND(D68="MR",F68>=Inputs!$G$4),"Sch",IF(D68="OH",IF(H68>=Inputs!$G$10,"Sch", IF(K68>=Inputs!$G$10-Inputs!$G$13,"Uns-BP","Uns")),"Uns")))) -> Uns | F68: =IF(0 = B68, 0, _xlfn.GAMMA.INV(RAND(), Inputs!C$5, Inputs!E$5)) -> 864.9481106 | G68: =IF(0 = B68, 0, $J67 + MIN(Inputs!G$4, F68)) -> 2702.857122 | H68: =IF(0 = B68, 0, IF(OR(B68=1,D67="OH"), _xlfn.GAMMA.INV(RAND(), Inputs!C$11, Inputs!E$11),H67)) -> 2418.960867 | I68: =IF(0 = B68, 0, IF(OR(B68=1,D67="OH"), $J67 + MIN(Inputs!G$10, H68), I67)) -> 2418.960867 | J68: 2418.960867 | K68: 2418.960867 | L68: 581.0518552 | M68: =IF(L68="","",(L68/(C68-C67))*Inputs!E$19) -> 30.8167359
A69: 12 | B69: =IF(OR(C68 >= Inputs!C$21, A68 > Inputs!C$23), 0, B68+1) -> 4 | C69: =IF(0 = B69, Inputs!C$18 + (A69-1)*(Inputs!E$19*Inputs!C$24)/(Inputs!C$23), C68 + (_xlfn.GAMMA.INV( RAND()*0.982 + 0.0052, Inputs!C$16, ((J69-J68)/(Inputs!B$16-Inputs!D$16)) * Inputs!E$16) / (Inputs!B$16+Inputs!D$16))*Inputs!E$19) -> 2041-05-18T13:30:57.646 | D69: =IF(0 = B69, "", IF(AND(G69<I69, K69<(Inputs!G$10-Inputs!G$13)), "MR", "OH")) -> MR | E69: =IF(0=B69,"start",IF(C69>Inputs!$C$21,"past",IF(AND(D69="MR",F69>=Inputs!$G$4),"Sch",IF(D69="OH",IF(H69>=Inputs!$G$10,"Sch", IF(K69>=Inputs!$G$10-Inputs!$G$13,"Uns-BP","Uns")),"Uns")))) -> past | F69: =IF(0 = B69, 0, _xlfn.GAMMA.INV(RAND(), Inputs!C$5, Inputs!E$5)) -> 1085.941624 | G69: =IF(0 = B69, 0, $J68 + MIN(Inputs!G$4, F69)) -> 3468.960867 | H69: =IF(0 = B69, 0, IF(OR(B69=1,D68="OH"), _xlfn.GAMMA.INV(RAND(), Inputs!C$11, Inputs!E$11),H68)) -> 2881.624741 | I69: =IF(0 = B69, 0, IF(OR(B69=1,D68="OH"), $J68 + MIN(Inputs!G$10, H69), I68)) -> 5300.585608 | J69: 3468.960867 | K69: 1050 | L69: 1050 | M69: =IF(L69="","",(L69/(C69-C68))*Inputs!E$19) -> 17.73775243
A70: 13 | B70: =IF(OR(C69 >= Inputs!C$21, A69 > Inputs!C$23), 0, B69+1) -> 0 | C70: =IF(0 = B70, Inputs!C$18 + (A70-1)*(Inputs!E$19*Inputs!C$24)/(Inputs!C$23), C69 + (_xlfn.GAMMA.INV( RAND()*0.982 + 0.0052, Inputs!C$16, ((J70-J69)/(Inputs!B$16-Inputs!D$16)) * Inputs!E$16) / (Inputs!B$16+Inputs!D$16))*Inputs!E$19) -> 2024-12-17T04:31:03.529 | D70: =IF(0 = B70, "", IF(AND(G70<I70, K70<(Inputs!G$10-Inputs!G$13)), "MR", "OH")) ->  | E70: =IF(0=B70,"start",IF(C70>Inputs!$C$21,"past",IF(AND(D70="MR",F70>=Inputs!$G$4),"Sch",IF(D70="OH",IF(H70>=Inputs!$G$10,"Sch", IF(K70>=Inputs!$G$10-Inputs!$G$13,"Uns-BP","Uns")),"Uns")))) -> start | F70: =IF(0 = B70, 0, _xlfn.GAMMA.INV(RAND(), Inputs!C$5, Inputs!E$5)) -> 0 | G70: =IF(0 = B70, 0, $J69 + MIN(Inputs!G$4, F70)) -> 0 | H70: =IF(0 = B70, 0, IF(OR(B70=1,D69="OH"), _xlfn.GAMMA.INV(RAND(), Inputs!C$11, Inputs!E$11),H69)) -> 0 | I70: =IF(0 = B70, 0, IF(OR(B70=1,D69="OH"), $J69 + MIN(Inputs!G$10, H70), I69)) -> 0 | J70: 0 | K70: 0 | M70: =IF(L70="","",(L70/(C70-C69))*Inputs!E$19) -> 
A71: 13 | B71: =IF(OR(C70 >= Inputs!C$21, A70 > Inputs!C$23), 0, B70+1) -> 1 | C71: =IF(0 = B71, Inputs!C$18 + (A71-1)*(Inputs!E$19*Inputs!C$24)/(Inputs!C$23), C70 + (_xlfn.GAMMA.INV( RAND()*0.982 + 0.0052, Inputs!C$16, ((J71-J70)/(Inputs!B$16-Inputs!D$16)) * Inputs!E$16) / (Inputs!B$16+Inputs!D$16))*Inputs!E$19) -> 2028-04-22T17:56:32.836 | D71: =IF(0 = B71, "", IF(AND(G71<I71, K71<(Inputs!G$10-Inputs!G$13)), "MR", "OH")) -> MR | E71: =IF(0=B71,"start",IF(C71>Inputs!$C$21,"past",IF(AND(D71="MR",F71>=Inputs!$G$4),"Sch",IF(D71="OH",IF(H71>=Inputs!$G$10,"Sch", IF(K71>=Inputs!$G$10-Inputs!$G$13,"Uns-BP","Uns")),"Uns")))) -> Uns | F71: =IF(0 = B71, 0, _xlfn.GAMMA.INV(RAND(), Inputs!C$5, Inputs!E$5)) -> 909.873532 | G71: =IF(0 = B71, 0, $J70 + MIN(Inputs!G$4, F71)) -> 909.873532 | H71: =IF(0 = B71, 0, IF(OR(B71=1,D70="OH"), _xlfn.GAMMA.INV(RAND(), Inputs!C$11, Inputs!E$11),H70)) -> 3194.17381 | I71: =IF(0 = B71, 0, IF(OR(B71=1,D70="OH"), $J70 + MIN(Inputs!G$10, H71), I70)) -> 3194.17381 | J71: 909.873532 | K71: 909.873532 | L71: 909.873532 | M71: =IF(L71="","",(L71/(C71-C70))*Inputs!E$19) -> 22.65270414
A72: 13 | B72: =IF(OR(C71 >= Inputs!C$21, A71 > Inputs!C$23), 0, B71+1) -> 2 | C72: =IF(0 = B72, Inputs!C$18 + (A72-1)*(Inputs!E$19*Inputs!C$24)/(Inputs!C$23), C71 + (_xlfn.GAMMA.INV( RAND()*0.982 + 0.0052, Inputs!C$16, ((J72-J71)/(Inputs!B$16-Inputs!D$16)) * Inputs!E$16) / (Inputs!B$16+Inputs!D$16))*Inputs!E$19) -> 2031-07-25T22:32:39.652 | D72: =IF(0 = B72, "", IF(AND(G72<I72, K72<(Inputs!G$10-Inputs!G$13)), "MR", "OH")) -> MR | E72: =IF(0=B72,"start",IF(C72>Inputs!$C$21,"past",IF(AND(D72="MR",F72>=Inputs!$G$4),"Sch",IF(D72="OH",IF(H72>=Inputs!$G$10,"Sch", IF(K72>=Inputs!$G$10-Inputs!$G$13,"Uns-BP","Uns")),"Uns")))) -> Uns | F72: =IF(0 = B72, 0, _xlfn.GAMMA.INV(RAND(), Inputs!C$5, Inputs!E$5)) -> 849.2407909 | G72: =IF(0 = B72, 0, $J71 + MIN(Inputs!G$4, F72)) -> 1759.114323 | H72: =IF(0 = B72, 0, IF(OR(B72=1,D71="OH"), _xlfn.GAMMA.INV(RAND(), Inputs!C$11, Inputs!E$11),H71)) -> 3194.17381 | I72: =IF(0 = B72, 0, IF(OR(B72=1,D71="OH"), $J71 + MIN(Inputs!G$10, H72), I71)) -> 3194.17381 | J72: 1759.114323 | K72: 1759.114323 | L72: 849.2407909 | M72: =IF(L72="","",(L72/(C72-C71))*Inputs!E$19) -> 21.73641607
A73: 13 | B73: =IF(OR(C72 >= Inputs!C$21, A72 > Inputs!C$23), 0, B72+1) -> 3 | C73: =IF(0 = B73, Inputs!C$18 + (A73-1)*(Inputs!E$19*Inputs!C$24)/(Inputs!C$23), C72 + (_xlfn.GAMMA.INV( RAND()*0.982 + 0.0052, Inputs!C$16, ((J73-J72)/(Inputs!B$16-Inputs!D$16)) * Inputs!E$16) / (Inputs!B$16+Inputs!D$16))*Inputs!E$19) -> 2034-06-28T00:06:57.791 | D73: =IF(0 = B73, "", IF(AND(G73<I73, K73<(Inputs!G$10-Inputs!G$13)), "MR", "OH")) -> MR | E73: =IF(0=B73,"start",IF(C73>Inputs!$C$21,"past",IF(AND(D73="MR",F73>=Inputs!$G$4),"Sch",IF(D73="OH",IF(H73>=Inputs!$G$10,"Sch", IF(K73>=Inputs!$G$10-Inputs!$G$13,"Uns-BP","Uns")),"Uns")))) -> Uns | F73: =IF(0 = B73, 0, _xlfn.GAMMA.INV(RAND(), Inputs!C$5, Inputs!E$5)) -> 979.577421 | G73: =IF(0 = B73, 0, $J72 + MIN(Inputs!G$4, F73)) -> 2738.691744 | H73: =IF(0 = B73, 0, IF(OR(B73=1,D72="OH"), _xlfn.GAMMA.INV(RAND(), Inputs!C$11, Inputs!E$11),H72)) -> 3194.17381 | I73: =IF(0 = B73, 0, IF(OR(B73=1,D72="OH"), $J72 + MIN(Inputs!G$10, H73), I72)) -> 3194.17381 | J73: 2738.691744 | K73: 2738.691744 | L73: 979.577421 | M73: =IF(L73="","",(L73/(C73-C72))*Inputs!E$19) -> 27.91578615
A74: 13 | B74: =IF(OR(C73 >= Inputs!C$21, A73 > Inputs!C$23), 0, B73+1) -> 4 | C74: =IF(0 = B74, Inputs!C$18 + (A74-1)*(Inputs!E$19*Inputs!C$24)/(Inputs!C$23), C73 + (_xlfn.GAMMA.INV( RAND()*0.982 + 0.0052, Inputs!C$16, ((J74-J73)/(Inputs!B$16-Inputs!D$16)) * Inputs!E$16) / (Inputs!B$16+Inputs!D$16))*Inputs!E$19) -> 2036-08-17T19:17:39.588 | D74: =IF(0 = B74, "", IF(AND(G74<I74, K74<(Inputs!G$10-Inputs!G$13)), "MR", "OH")) -> OH | E74: =IF(0=B74,"start",IF(C74>Inputs!$C$21,"past",IF(AND(D74="MR",F74>=Inputs!$G$4),"Sch",IF(D74="OH",IF(H74>=Inputs!$G$10,"Sch", IF(K74>=Inputs!$G$10-Inputs!$G$13,"Uns-BP","Uns")),"Uns")))) -> Uns-BP | F74: =IF(0 = B74, 0, _xlfn.GAMMA.INV(RAND(), Inputs!C$5, Inputs!E$5)) -> 958.8118034 | G74: =IF(0 = B74, 0, $J73 + MIN(Inputs!G$4, F74)) -> 3697.503547 | H74: =IF(0 = B74, 0, IF(OR(B74=1,D73="OH"), _xlfn.GAMMA.INV(RAND(), Inputs!C$11, Inputs!E$11),H73)) -> 3194.17381 | I74: =IF(0 = B74, 0, IF(OR(B74=1,D73="OH"), $J73 + MIN(Inputs!G$10, H74), I73)) -> 3194.17381 | J74: 3194.17381 | K74: 3194.17381 | L74: 455.4820662 | M74: =IF(L74="","",(L74/(C74-C73))*Inputs!E$19) -> 17.73311773
A75: 13 | B75: =IF(OR(C74 >= Inputs!C$21, A74 > Inputs!C$23), 0, B74+1) -> 5 | C75: =IF(0 = B75, Inputs!C$18 + (A75-1)*(Inputs!E$19*Inputs!C$24)/(Inputs!C$23), C74 + (_xlfn.GAMMA.INV( RAND()*0.982 + 0.0052, Inputs!C$16, ((J75-J74)/(Inputs!B$16-Inputs!D$16)) * Inputs!E$16) / (Inputs!B$16+Inputs!D$16))*Inputs!E$19) -> 2040-12-07T20:16:33.637 | D75: =IF(0 = B75, "", IF(AND(G75<I75, K75<(Inputs!G$10-Inputs!G$13)), "MR", "OH")) -> MR | E75: =IF(0=B75,"start",IF(C75>Inputs!$C$21,"past",IF(AND(D75="MR",F75>=Inputs!$G$4),"Sch",IF(D75="OH",IF(H75>=Inputs!$G$10,"Sch", IF(K75>=Inputs!$G$10-Inputs!$G$13,"Uns-BP","Uns")),"Uns")))) -> past | F75: =IF(0 = B75, 0, _xlfn.GAMMA.INV(RAND(), Inputs!C$5, Inputs!E$5)) -> 1308.270889 | G75: =IF(0 = B75, 0, $J74 + MIN(Inputs!G$4, F75)) -> 4244.17381 | H75: =IF(0 = B75, 0, IF(OR(B75=1,D74="OH"), _xlfn.GAMMA.INV(RAND(), Inputs!C$11, Inputs!E$11),H74)) -> 2699.754762 | I75: =IF(0 = B75, 0, IF(OR(B75=1,D74="OH"), $J74 + MIN(Inputs!G$10, H75), I74)) -> 5893.928572 | J75: 4244.17381 | K75: 1050 | L75: 1050 | M75: =IF(L75="","",(L75/(C75-C74))*Inputs!E$19) -> 20.31693831
A76: 14 | B76: =IF(OR(C75 >= Inputs!C$21, A75 > Inputs!C$23), 0, B75+1) -> 0 | C76: =IF(0 = B76, Inputs!C$18 + (A76-1)*(Inputs!E$19*Inputs!C$24)/(Inputs!C$23), C75 + (_xlfn.GAMMA.INV( RAND()*0.982 + 0.0052, Inputs!C$16, ((J76-J75)/(Inputs!B$16-Inputs!D$16)) * Inputs!E$16) / (Inputs!B$16+Inputs!D$16))*Inputs!E$19) -> 2024-12-18T14:53:38.824 | D76: =IF(0 = B76, "", IF(AND(G76<I76, K76<(Inputs!G$10-Inputs!G$13)), "MR", "OH")) ->  | E76: =IF(0=B76,"start",IF(C76>Inputs!$C$21,"past",IF(AND(D76="MR",F76>=Inputs!$G$4),"Sch",IF(D76="OH",IF(H76>=Inputs!$G$10,"Sch", IF(K76>=Inputs!$G$10-Inputs!$G$13,"Uns-BP","Uns")),"Uns")))) -> start | F76: =IF(0 = B76, 0, _xlfn.GAMMA.INV(RAND(), Inputs!C$5, Inputs!E$5)) -> 0 | G76: =IF(0 = B76, 0, $J75 + MIN(Inputs!G$4, F76)) -> 0 | H76: =IF(0 = B76, 0, IF(OR(B76=1,D75="OH"), _xlfn.GAMMA.INV(RAND(), Inputs!C$11, Inputs!E$11),H75)) -> 0 | I76: =IF(0 = B76, 0, IF(OR(B76=1,D75="OH"), $J75 + MIN(Inputs!G$10, H76), I75)) -> 0 | J76: 0 | K76: 0 | M76: =IF(L76="","",(L76/(C76-C75))*Inputs!E$19) -> 
A77: 14 | B77: =IF(OR(C76 >= Inputs!C$21, A76 > Inputs!C$23), 0, B76+1) -> 1 | C77: =IF(0 = B77, Inputs!C$18 + (A77-1)*(Inputs!E$19*Inputs!C$24)/(Inputs!C$23), C76 + (_xlfn.GAMMA.INV( RAND()*0.982 + 0.0052, Inputs!C$16, ((J77-J76)/(Inputs!B$16-Inputs!D$16)) * Inputs!E$16) / (Inputs!B$16+Inputs!D$16))*Inputs!E$19) -> 2028-08-15T00:31:28.579 | D77: =IF(0 = B77, "", IF(AND(G77<I77, K77<(Inputs!G$10-Inputs!G$13)), "MR", "OH")) -> MR | E77: =IF(0=B77,"start",IF(C77>Inputs!$C$21,"past",IF(AND(D77="MR",F77>=Inputs!$G$4),"Sch",IF(D77="OH",IF(H77>=Inputs!$G$10,"Sch", IF(K77>=Inputs!$G$10-Inputs!$G$13,"Uns-BP","Uns")),"Uns")))) -> Uns | F77: =IF(0 = B77, 0, _xlfn.GAMMA.INV(RAND(), Inputs!C$5, Inputs!E$5)) -> 948.4752282 | G77: =IF(0 = B77, 0, $J76 + MIN(Inputs!G$4, F77)) -> 948.4752282 | H77: =IF(0 = B77, 0, IF(OR(B77=1,D76="OH"), _xlfn.GAMMA.INV(RAND(), Inputs!C$11, Inputs!E$11),H76)) -> 3155.737039 | I77: =IF(0 = B77, 0, IF(OR(B77=1,D76="OH"), $J76 + MIN(Inputs!G$10, H77), I76)) -> 3155.737039 | J77: 948.4752282 | K77: 948.4752282 | L77: 948.4752282 | M77: =IF(L77="","",(L77/(C77-C76))*Inputs!E$19) -> 21.61838198
A78: 14 | B78: =IF(OR(C77 >= Inputs!C$21, A77 > Inputs!C$23), 0, B77+1) -> 2 | C78: =IF(0 = B78, Inputs!C$18 + (A78-1)*(Inputs!E$19*Inputs!C$24)/(Inputs!C$23), C77 + (_xlfn.GAMMA.INV( RAND()*0.982 + 0.0052, Inputs!C$16, ((J78-J77)/(Inputs!B$16-Inputs!D$16)) * Inputs!E$16) / (Inputs!B$16+Inputs!D$16))*Inputs!E$19) -> 2031-12-22T19:52:01.036 | D78: =IF(0 = B78, "", IF(AND(G78<I78, K78<(Inputs!G$10-Inputs!G$13)), "MR", "OH")) -> MR | E78: =IF(0=B78,"start",IF(C78>Inputs!$C$21,"past",IF(AND(D78="MR",F78>=Inputs!$G$4),"Sch",IF(D78="OH",IF(H78>=Inputs!$G$10,"Sch", IF(K78>=Inputs!$G$10-Inputs!$G$13,"Uns-BP","Uns")),"Uns")))) -> Uns | F78: =IF(0 = B78, 0, _xlfn.GAMMA.INV(RAND(), Inputs!C$5, Inputs!E$5)) -> 870.8624683 | G78: =IF(0 = B78, 0, $J77 + MIN(Inputs!G$4, F78)) -> 1819.337697 | H78: =IF(0 = B78, 0, IF(OR(B78=1,D77="OH"), _xlfn.GAMMA.INV(RAND(), Inputs!C$11, Inputs!E$11),H77)) -> 3155.737039 | I78: =IF(0 = B78, 0, IF(OR(B78=1,D77="OH"), $J77 + MIN(Inputs!G$10, H78), I77)) -> 3155.737039 | J78: 1819.337697 | K78: 1819.337697 | L78: 870.8624683 | M78: =IF(L78="","",(L78/(C78-C77))*Inputs!E$19) -> 21.64169499
A79: 14 | B79: =IF(OR(C78 >= Inputs!C$21, A78 > Inputs!C$23), 0, B78+1) -> 3 | C79: =IF(0 = B79, Inputs!C$18 + (A79-1)*(Inputs!E$19*Inputs!C$24)/(Inputs!C$23), C78 + (_xlfn.GAMMA.INV( RAND()*0.982 + 0.0052, Inputs!C$16, ((J79-J78)/(Inputs!B$16-Inputs!D$16)) * Inputs!E$16) / (Inputs!B$16+Inputs!D$16))*Inputs!E$19) -> 2035-06-07T12:22:44.162 | D79: =IF(0 = B79, "", IF(AND(G79<I79, K79<(Inputs!G$10-Inputs!G$13)), "MR", "OH")) -> MR | E79: =IF(0=B79,"start",IF(C79>Inputs!$C$21,"past",IF(AND(D79="MR",F79>=Inputs!$G$4),"Sch",IF(D79="OH",IF(H79>=Inputs!$G$10,"Sch", IF(K79>=Inputs!$G$10-Inputs!$G$13,"Uns-BP","Uns")),"Uns")))) -> Uns | F79: =IF(0 = B79, 0, _xlfn.GAMMA.INV(RAND(), Inputs!C$5, Inputs!E$5)) -> 926.0318019 | G79: =IF(0 = B79, 0, $J78 + MIN(Inputs!G$4, F79)) -> 2745.369498 | H79: =IF(0 = B79, 0, IF(OR(B79=1,D78="OH"), _xlfn.GAMMA.INV(RAND(), Inputs!C$11, Inputs!E$11),H78)) -> 3155.737039 | I79: =IF(0 = B79, 0, IF(OR(B79=1,D78="OH"), $J78 + MIN(Inputs!G$10, H79), I78)) -> 3155.737039 | J79: 2745.369498 | K79: 2745.369498 | L79: 926.0318019 | M79: =IF(L79="","",(L79/(C79-C78))*Inputs!E$19) -> 22.32229418
A80: 14 | B80: =IF(OR(C79 >= Inputs!C$21, A79 > Inputs!C$23), 0, B79+1) -> 4 | C80: =IF(0 = B80, Inputs!C$18 + (A80-1)*(Inputs!E$19*Inputs!C$24)/(Inputs!C$23), C79 + (_xlfn.GAMMA.INV( RAND()*0.982 + 0.0052, Inputs!C$16, ((J80-J79)/(Inputs!B$16-Inputs!D$16)) * Inputs!E$16) / (Inputs!B$16+Inputs!D$16))*Inputs!E$19) -> 2037-11-21T01:26:06.188 | D80: =IF(0 = B80, "", IF(AND(G80<I80, K80<(Inputs!G$10-Inputs!G$13)), "MR", "OH")) -> OH | E80: =IF(0=B80,"start",IF(C80>Inputs!$C$21,"past",IF(AND(D80="MR",F80>=Inputs!$G$4),"Sch",IF(D80="OH",IF(H80>=Inputs!$G$10,"Sch", IF(K80>=Inputs!$G$10-Inputs!$G$13,"Uns-BP","Uns")),"Uns")))) -> Uns-BP | F80: =IF(0 = B80, 0, _xlfn.GAMMA.INV(RAND(), Inputs!C$5, Inputs!E$5)) -> 850.1274586 | G80: =IF(0 = B80, 0, $J79 + MIN(Inputs!G$4, F80)) -> 3595.496957 | H80: =IF(0 = B80, 0, IF(OR(B80=1,D79="OH"), _xlfn.GAMMA.INV(RAND(), Inputs!C$11, Inputs!E$11),H79)) -> 3155.737039 | I80: =IF(0 = B80, 0, IF(OR(B80=1,D79="OH"), $J79 + MIN(Inputs!G$10, H80), I79)) -> 3155.737039 | J80: 3155.737039 | K80: 3155.737039 | L80: 410.3675406 | M80: =IF(L80="","",(L80/(C80-C79))*Inputs!E$19) -> 13.91637841
A81: 14 | B81: =IF(OR(C80 >= Inputs!C$21, A80 > Inputs!C$23), 0, B80+1) -> 5 | C81: =IF(0 = B81, Inputs!C$18 + (A81-1)*(Inputs!E$19*Inputs!C$24)/(Inputs!C$23), C80 + (_xlfn.GAMMA.INV( RAND()*0.982 + 0.0052, Inputs!C$16, ((J81-J80)/(Inputs!B$16-Inputs!D$16)) * Inputs!E$16) / (Inputs!B$16+Inputs!D$16))*Inputs!E$19) -> 2041-09-06T06:40:31.905 | D81: =IF(0 = B81, "", IF(AND(G81<I81, K81<(Inputs!G$10-Inputs!G$13)), "MR", "OH")) -> MR | E81: =IF(0=B81,"start",IF(C81>Inputs!$C$21,"past",IF(AND(D81="MR",F81>=Inputs!$G$4),"Sch",IF(D81="OH",IF(H81>=Inputs!$G$10,"Sch", IF(K81>=Inputs!$G$10-Inputs!$G$13,"Uns-BP","Uns")),"Uns")))) -> past | F81: =IF(0 = B81, 0, _xlfn.GAMMA.INV(RAND(), Inputs!C$5, Inputs!E$5)) -> 907.9498925 | G81: =IF(0 = B81, 0, $J80 + MIN(Inputs!G$4, F81)) -> 4063.686931 | H81: =IF(0 = B81, 0, IF(OR(B81=1,D80="OH"), _xlfn.GAMMA.INV(RAND(), Inputs!C$11, Inputs!E$11),H80)) -> 3208.789605 | I81: =IF(0 = B81, 0, IF(OR(B81=1,D80="OH"), $J80 + MIN(Inputs!G$10, H81), I80)) -> 6364.526644 | J81: 4063.686931 | K81: 907.9498925 | L81: 907.9498925 | M81: =IF(L81="","",(L81/(C81-C80))*Inputs!E$19) -> 19.95044665
A82: 15 | B82: =IF(OR(C81 >= Inputs!C$21, A81 > Inputs!C$23), 0, B81+1) -> 0 | C82: =IF(0 = B82, Inputs!C$18 + (A82-1)*(Inputs!E$19*Inputs!C$24)/(Inputs!C$23), C81 + (_xlfn.GAMMA.INV( RAND()*0.982 + 0.0052, Inputs!C$16, ((J82-J81)/(Inputs!B$16-Inputs!D$16)) * Inputs!E$16) / (Inputs!B$16+Inputs!D$16))*Inputs!E$19) -> 2024-12-20T01:16:14.118 | D82: =IF(0 = B82, "", IF(AND(G82<I82, K82<(Inputs!G$10-Inputs!G$13)), "MR", "OH")) ->  | E82: =IF(0=B82,"start",IF(C82>Inputs!$C$21,"past",IF(AND(D82="MR",F82>=Inputs!$G$4),"Sch",IF(D82="OH",IF(H82>=Inputs!$G$10,"Sch", IF(K82>=Inputs!$G$10-Inputs!$G$13,"Uns-BP","Uns")),"Uns")))) -> start | F82: =IF(0 = B82, 0, _xlfn.GAMMA.INV(RAND(), Inputs!C$5, Inputs!E$5)) -> 0 | G82: =IF(0 = B82, 0, $J81 + MIN(Inputs!G$4, F82)) -> 0 | H82: =IF(0 = B82, 0, IF(OR(B82=1,D81="OH"), _xlfn.GAMMA.INV(RAND(), Inputs!C$11, Inputs!E$11),H81)) -> 0 | I82: =IF(0 = B82, 0, IF(OR(B82=1,D81="OH"), $J81 + MIN(Inputs!G$10, H82), I81)) -> 0 | J82: 0 | K82: 0 | M82: =IF(L82="","",(L82/(C82-C81))*Inputs!E$19) -> 
A83: 15 | B83: =IF(OR(C82 >= Inputs!C$21, A82 > Inputs!C$23), 0, B82+1) -> 1 | C83: =IF(0 = B83, Inputs!C$18 + (A83-1)*(Inputs!E$19*Inputs!C$24)/(Inputs!C$23), C82 + (_xlfn.GAMMA.INV( RAND()*0.982 + 0.0052, Inputs!C$16, ((J83-J82)/(Inputs!B$16-Inputs!D$16)) * Inputs!E$16) / (Inputs!B$16+Inputs!D$16))*Inputs!E$19) -> 2031-02-26T17:17:09.919 | D83: =IF(0 = B83, "", IF(AND(G83<I83, K83<(Inputs!G$10-Inputs!G$13)), "MR", "OH")) -> MR | E83: =IF(0=B83,"start",IF(C83>Inputs!$C$21,"past",IF(AND(D83="MR",F83>=Inputs!$G$4),"Sch",IF(D83="OH",IF(H83>=Inputs!$G$10,"Sch", IF(K83>=Inputs!$G$10-Inputs!$G$13,"Uns-BP","Uns")),"Uns")))) -> Uns | F83: =IF(0 = B83, 0, _xlfn.GAMMA.INV(RAND(), Inputs!C$5, Inputs!E$5)) -> 990.6083168 | G83: =IF(0 = B83, 0, $J82 + MIN(Inputs!G$4, F83)) -> 990.6083168 | H83: =IF(0 = B83, 0, IF(OR(B83=1,D82="OH"), _xlfn.GAMMA.INV(RAND(), Inputs!C$11, Inputs!E$11),H82)) -> 3100.064488 | I83: =IF(0 = B83, 0, IF(OR(B83=1,D82="OH"), $J82 + MIN(Inputs!G$10, H83), I82)) -> 3100.064488 | J83: 990.6083168 | K83: 990.6083168 | L83: 990.6083168 | M83: =IF(L83="","",(L83/(C83-C82))*Inputs!E$19) -> 13.34339815
A84: 15 | B84: =IF(OR(C83 >= Inputs!C$21, A83 > Inputs!C$23), 0, B83+1) -> 2 | C84: =IF(0 = B84, Inputs!C$18 + (A84-1)*(Inputs!E$19*Inputs!C$24)/(Inputs!C$23), C83 + (_xlfn.GAMMA.INV( RAND()*0.982 + 0.0052, Inputs!C$16, ((J84-J83)/(Inputs!B$16-Inputs!D$16)) * Inputs!E$16) / (Inputs!B$16+Inputs!D$16))*Inputs!E$19) -> 2036-10-14T16:21:10.572 | D84: =IF(0 = B84, "", IF(AND(G84<I84, K84<(Inputs!G$10-Inputs!G$13)), "MR", "OH")) -> MR | E84: =IF(0=B84,"start",IF(C84>Inputs!$C$21,"past",IF(AND(D84="MR",F84>=Inputs!$G$4),"Sch",IF(D84="OH",IF(H84>=Inputs!$G$10,"Sch", IF(K84>=Inputs!$G$10-Inputs!$G$13,"Uns-BP","Uns")),"Uns")))) -> Uns | F84: =IF(0 = B84, 0, _xlfn.GAMMA.INV(RAND(), Inputs!C$5, Inputs!E$5)) -> 924.7193154 | G84: =IF(0 = B84, 0, $J83 + MIN(Inputs!G$4, F84)) -> 1915.327632 | H84: =IF(0 = B84, 0, IF(OR(B84=1,D83="OH"), _xlfn.GAMMA.INV(RAND(), Inputs!C$11, Inputs!E$11),H83)) -> 3100.064488 | I84: =IF(0 = B84, 0, IF(OR(B84=1,D83="OH"), $J83 + MIN(Inputs!G$10, H84), I83)) -> 3100.064488 | J84: 1915.327632 | K84: 1915.327632 | L84: 924.7193154 | M84: =IF(L84="","",(L84/(C84-C83))*Inputs!E$19) -> 13.68336227
A85: 15 | B85: =IF(OR(C84 >= Inputs!C$21, A84 > Inputs!C$23), 0, B84+1) -> 3 | C85: =IF(0 = B85, Inputs!C$18 + (A85-1)*(Inputs!E$19*Inputs!C$24)/(Inputs!C$23), C84 + (_xlfn.GAMMA.INV( RAND()*0.982 + 0.0052, Inputs!C$16, ((J85-J84)/(Inputs!B$16-Inputs!D$16)) * Inputs!E$16) / (Inputs!B$16+Inputs!D$16))*Inputs!E$19) -> 2040-07-25T01:48:13.889 | D85: =IF(0 = B85, "", IF(AND(G85<I85, K85<(Inputs!G$10-Inputs!G$13)), "MR", "OH")) -> MR | E85: =IF(0=B85,"start",IF(C85>Inputs!$C$21,"past",IF(AND(D85="MR",F85>=Inputs!$G$4),"Sch",IF(D85="OH",IF(H85>=Inputs!$G$10,"Sch", IF(K85>=Inputs!$G$10-Inputs!$G$13,"Uns-BP","Uns")),"Uns")))) -> past | F85: =IF(0 = B85, 0, _xlfn.GAMMA.INV(RAND(), Inputs!C$5, Inputs!E$5)) -> 721.1541381 | G85: =IF(0 = B85, 0, $J84 + MIN(Inputs!G$4, F85)) -> 2636.48177 | H85: =IF(0 = B85, 0, IF(OR(B85=1,D84="OH"), _xlfn.GAMMA.INV(RAND(), Inputs!C$11, Inputs!E$11),H84)) -> 3100.064488 | I85: =IF(0 = B85, 0, IF(OR(B85=1,D84="OH"), $J84 + MIN(Inputs!G$10, H85), I84)) -> 3100.064488 | J85: 2636.48177 | K85: 2636.48177 | L85: 721.1541381 | M85: =IF(L85="","",(L85/(C85-C84))*Inputs!E$19) -> 15.91288091
A86: 16 | B86: =IF(OR(C85 >= Inputs!C$21, A85 > Inputs!C$23), 0, B85+1) -> 0 | C86: =IF(0 = B86, Inputs!C$18 + (A86-1)*(Inputs!E$19*Inputs!C$24)/(Inputs!C$23), C85 + (_xlfn.GAMMA.INV( RAND()*0.982 + 0.0052, Inputs!C$16, ((J86-J85)/(Inputs!B$16-Inputs!D$16)) * Inputs!E$16) / (Inputs!B$16+Inputs!D$16))*Inputs!E$19) -> 2024-12-21T11:38:49.412 | D86: =IF(0 = B86, "", IF(AND(G86<I86, K86<(Inputs!G$10-Inputs!G$13)), "MR", "OH")) ->  | E86: =IF(0=B86,"start",IF(C86>Inputs!$C$21,"past",IF(AND(D86="MR",F86>=Inputs!$G$4),"Sch",IF(D86="OH",IF(H86>=Inputs!$G$10,"Sch", IF(K86>=Inputs!$G$10-Inputs!$G$13,"Uns-BP","Uns")),"Uns")))) -> start | F86: =IF(0 = B86, 0, _xlfn.GAMMA.INV(RAND(), Inputs!C$5, Inputs!E$5)) -> 0 | G86: =IF(0 = B86, 0, $J85 + MIN(Inputs!G$4, F86)) -> 0 | H86: =IF(0 = B86, 0, IF(OR(B86=1,D85="OH"), _xlfn.GAMMA.INV(RAND(), Inputs!C$11, Inputs!E$11),H85)) -> 0 | I86: =IF(0 = B86, 0, IF(OR(B86=1,D85="OH"), $J85 + MIN(Inputs!G$10, H86), I85)) -> 0 | J86: 0 | K86: 0 | M86: =IF(L86="","",(L86/(C86-C85))*Inputs!E$19) -> 
A87: 16 | B87: =IF(OR(C86 >= Inputs!C$21, A86 > Inputs!C$23), 0, B86+1) -> 1 | C87: =IF(0 = B87, Inputs!C$18 + (A87-1)*(Inputs!E$19*Inputs!C$24)/(Inputs!C$23), C86 + (_xlfn.GAMMA.INV( RAND()*0.982 + 0.0052, Inputs!C$16, ((J87-J86)/(Inputs!B$16-Inputs!D$16)) * Inputs!E$16) / (Inputs!B$16+Inputs!D$16))*Inputs!E$19) -> 2030-08-17T13:17:12.612 | D87: =IF(0 = B87, "", IF(AND(G87<I87, K87<(Inputs!G$10-Inputs!G$13)), "MR", "OH")) -> MR | E87: =IF(0=B87,"start",IF(C87>Inputs!$C$21,"past",IF(AND(D87="MR",F87>=Inputs!$G$4),"Sch",IF(D87="OH",IF(H87>=Inputs!$G$10,"Sch", IF(K87>=Inputs!$G$10-Inputs!$G$13,"Uns-BP","Uns")),"Uns")))) -> Uns | F87: =IF(0 = B87, 0, _xlfn.GAMMA.INV(RAND(), Inputs!C$5, Inputs!E$5)) -> 994.598098 | G87: =IF(0 = B87, 0, $J86 + MIN(Inputs!G$4, F87)) -> 994.598098 | H87: =IF(0 = B87, 0, IF(OR(B87=1,D86="OH"), _xlfn.GAMMA.INV(RAND(), Inputs!C$11, Inputs!E$11),H86)) -> 2520.569002 | I87: =IF(0 = B87, 0, IF(OR(B87=1,D86="OH"), $J86 + MIN(Inputs!G$10, H87), I86)) -> 2520.569002 | J87: 994.598098 | K87: 994.598098 | L87: 994.598098 | M87: =IF(L87="","",(L87/(C87-C86))*Inputs!E$19) -> 14.65960194
A88: 16 | B88: =IF(OR(C87 >= Inputs!C$21, A87 > Inputs!C$23), 0, B87+1) -> 2 | C88: =IF(0 = B88, Inputs!C$18 + (A88-1)*(Inputs!E$19*Inputs!C$24)/(Inputs!C$23), C87 + (_xlfn.GAMMA.INV( RAND()*0.982 + 0.0052, Inputs!C$16, ((J88-J87)/(Inputs!B$16-Inputs!D$16)) * Inputs!E$16) / (Inputs!B$16+Inputs!D$16))*Inputs!E$19) -> 2033-04-24T14:11:09.965 | D88: =IF(0 = B88, "", IF(AND(G88<I88, K88<(Inputs!G$10-Inputs!G$13)), "MR", "OH")) -> MR | E88: =IF(0=B88,"start",IF(C88>Inputs!$C$21,"past",IF(AND(D88="MR",F88>=Inputs!$G$4),"Sch",IF(D88="OH",IF(H88>=Inputs!$G$10,"Sch", IF(K88>=Inputs!$G$10-Inputs!$G$13,"Uns-BP","Uns")),"Uns")))) -> Uns | F88: =IF(0 = B88, 0, _xlfn.GAMMA.INV(RAND(), Inputs!C$5, Inputs!E$5)) -> 863.6642177 | G88: =IF(0 = B88, 0, $J87 + MIN(Inputs!G$4, F88)) -> 1858.262316 | H88: =IF(0 = B88, 0, IF(OR(B88=1,D87="OH"), _xlfn.GAMMA.INV(RAND(), Inputs!C$11, Inputs!E$11),H87)) -> 2520.569002 | I88: =IF(0 = B88, 0, IF(OR(B88=1,D87="OH"), $J87 + MIN(Inputs!G$10, H88), I87)) -> 2520.569002 | J88: 1858.262316 | K88: 1858.262316 | L88: 863.6642177 | M88: =IF(L88="","",(L88/(C88-C87))*Inputs!E$19) -> 26.79589766
A89: 16 | B89: =IF(OR(C88 >= Inputs!C$21, A88 > Inputs!C$23), 0, B88+1) -> 3 | C89: =IF(0 = B89, Inputs!C$18 + (A89-1)*(Inputs!E$19*Inputs!C$24)/(Inputs!C$23), C88 + (_xlfn.GAMMA.INV( RAND()*0.982 + 0.0052, Inputs!C$16, ((J89-J88)/(Inputs!B$16-Inputs!D$16)) * Inputs!E$16) / (Inputs!B$16+Inputs!D$16))*Inputs!E$19) -> 2035-03-30T05:44:09.033 | D89: =IF(0 = B89, "", IF(AND(G89<I89, K89<(Inputs!G$10-Inputs!G$13)), "MR", "OH")) -> OH | E89: =IF(0=B89,"start",IF(C89>Inputs!$C$21,"past",IF(AND(D89="MR",F89>=Inputs!$G$4),"Sch",IF(D89="OH",IF(H89>=Inputs!$G$10,"Sch", IF(K89>=Inputs!$G$10-Inputs!$G$13,"Uns-BP","Uns")),"Uns")))) -> Uns | F89: =IF(0 = B89, 0, _xlfn.GAMMA.INV(RAND(), Inputs!C$5, Inputs!E$5)) -> 929.9050982 | G89: =IF(0 = B89, 0, $J88 + MIN(Inputs!G$4, F89)) -> 2788.167414 | H89: =IF(0 = B89, 0, IF(OR(B89=1,D88="OH"), _xlfn.GAMMA.INV(RAND(), Inputs!C$11, Inputs!E$11),H88)) -> 2520.569002 | I89: =IF(0 = B89, 0, IF(OR(B89=1,D88="OH"), $J88 + MIN(Inputs!G$10, H89), I88)) -> 2520.569002 | J89: 2520.569002 | K89: 2520.569002 | L89: 662.3066867 | M89: =IF(L89="","",(L89/(C89-C88))*Inputs!E$19) -> 28.608557
A90: 16 | B90: =IF(OR(C89 >= Inputs!C$21, A89 > Inputs!C$23), 0, B89+1) -> 4 | C90: =IF(0 = B90, Inputs!C$18 + (A90-1)*(Inputs!E$19*Inputs!C$24)/(Inputs!C$23), C89 + (_xlfn.GAMMA.INV( RAND()*0.982 + 0.0052, Inputs!C$16, ((J90-J89)/(Inputs!B$16-Inputs!D$16)) * Inputs!E$16) / (Inputs!B$16+Inputs!D$16))*Inputs!E$19) -> 2038-01-08T08:33:16.164 | D90: =IF(0 = B90, "", IF(AND(G90<I90, K90<(Inputs!G$10-Inputs!G$13)), "MR", "OH")) -> MR | E90: =IF(0=B90,"start",IF(C90>Inputs!$C$21,"past",IF(AND(D90="MR",F90>=Inputs!$G$4),"Sch",IF(D90="OH",IF(H90>=Inputs!$G$10,"Sch", IF(K90>=Inputs!$G$10-Inputs!$G$13,"Uns-BP","Uns")),"Uns")))) -> Uns | F90: =IF(0 = B90, 0, _xlfn.GAMMA.INV(RAND(), Inputs!C$5, Inputs!E$5)) -> 848.1956264 | G90: =IF(0 = B90, 0, $J89 + MIN(Inputs!G$4, F90)) -> 3368.764629 | H90: =IF(0 = B90, 0, IF(OR(B90=1,D89="OH"), _xlfn.GAMMA.INV(RAND(), Inputs!C$11, Inputs!E$11),H89)) -> 2556.17792 | I90: =IF(0 = B90, 0, IF(OR(B90=1,D89="OH"), $J89 + MIN(Inputs!G$10, H90), I89)) -> 5076.746922 | J90: 3368.764629 | K90: 848.1956264 | L90: 848.1956264 | M90: =IF(L90="","",(L90/(C90-C89))*Inputs!E$19) -> 25.43248029
A91: 16 | B91: =IF(OR(C90 >= Inputs!C$21, A90 > Inputs!C$23), 0, B90+1) -> 5 | C91: =IF(0 = B91, Inputs!C$18 + (A91-1)*(Inputs!E$19*Inputs!C$24)/(Inputs!C$23), C90 + (_xlfn.GAMMA.INV( RAND()*0.982 + 0.0052, Inputs!C$16, ((J91-J90)/(Inputs!B$16-Inputs!D$16)) * Inputs!E$16) / (Inputs!B$16+Inputs!D$16))*Inputs!E$19) -> 2041-06-01T19:08:33.012 | D91: =IF(0 = B91, "", IF(AND(G91<I91, K91<(Inputs!G$10-Inputs!G$13)), "MR", "OH")) -> MR | E91: =IF(0=B91,"start",IF(C91>Inputs!$C$21,"past",IF(AND(D91="MR",F91>=Inputs!$G$4),"Sch",IF(D91="OH",IF(H91>=Inputs!$G$10,"Sch", IF(K91>=Inputs!$G$10-Inputs!$G$13,"Uns-BP","Uns")),"Uns")))) -> past | F91: =IF(0 = B91, 0, _xlfn.GAMMA.INV(RAND(), Inputs!C$5, Inputs!E$5)) -> 1102.250157 | G91: =IF(0 = B91, 0, $J90 + MIN(Inputs!G$4, F91)) -> 4418.764629 | H91: =IF(0 = B91, 0, IF(OR(B91=1,D90="OH"), _xlfn.GAMMA.INV(RAND(), Inputs!C$11, Inputs!E$11),H90)) -> 2556.17792 | I91: =IF(0 = B91, 0, IF(OR(B91=1,D90="OH"), $J90 + MIN(Inputs!G$10, H91), I90)) -> 5076.746922 | J91: 4418.764629 | K91: 1898.195626 | L91: 1050 | M91: =IF(L91="","",(L91/(C91-C90))*Inputs!E$19) -> 25.76452301
A92: 17 | B92: =IF(OR(C91 >= Inputs!C$21, A91 > Inputs!C$23), 0, B91+1) -> 0 | C92: =IF(0 = B92, Inputs!C$18 + (A92-1)*(Inputs!E$19*Inputs!C$24)/(Inputs!C$23), C91 + (_xlfn.GAMMA.INV( RAND()*0.982 + 0.0052, Inputs!C$16, ((J92-J91)/(Inputs!B$16-Inputs!D$16)) * Inputs!E$16) / (Inputs!B$16+Inputs!D$16))*Inputs!E$19) -> 2024-12-22T22:01:24.706 | D92: =IF(0 = B92, "", IF(AND(G92<I92, K92<(Inputs!G$10-Inputs!G$13)), "MR", "OH")) ->  | E92: =IF(0=B92,"start",IF(C92>Inputs!$C$21,"past",IF(AND(D92="MR",F92>=Inputs!$G$4),"Sch",IF(D92="OH",IF(H92>=Inputs!$G$10,"Sch", IF(K92>=Inputs!$G$10-Inputs!$G$13,"Uns-BP","Uns")),"Uns")))) -> start | F92: =IF(0 = B92, 0, _xlfn.GAMMA.INV(RAND(), Inputs!C$5, Inputs!E$5)) -> 0 | G92: =IF(0 = B92, 0, $J91 + MIN(Inputs!G$4, F92)) -> 0 | H92: =IF(0 = B92, 0, IF(OR(B92=1,D91="OH"), _xlfn.GAMMA.INV(RAND(), Inputs!C$11, Inputs!E$11),H91)) -> 0 | I92: =IF(0 = B92, 0, IF(OR(B92=1,D91="OH"), $J91 + MIN(Inputs!G$10, H92), I91)) -> 0 | J92: 0 | K92: 0 | M92: =IF(L92="","",(L92/(C92-C91))*Inputs!E$19) -> 
A93: 17 | B93: =IF(OR(C92 >= Inputs!C$21, A92 > Inputs!C$23), 0, B92+1) -> 1 | C93: =IF(0 = B93, Inputs!C$18 + (A93-1)*(Inputs!E$19*Inputs!C$24)/(Inputs!C$23), C92 + (_xlfn.GAMMA.INV( RAND()*0.982 + 0.0052, Inputs!C$16, ((J93-J92)/(Inputs!B$16-Inputs!D$16)) * Inputs!E$16) / (Inputs!B$16+Inputs!D$16))*Inputs!E$19) -> 2029-01-09T10:46:08.995 | D93: =IF(0 = B93, "", IF(AND(G93<I93, K93<(Inputs!G$10-Inputs!G$13)), "MR", "OH")) -> MR | E93: =IF(0=B93,"start",IF(C93>Inputs!$C$21,"past",IF(AND(D93="MR",F93>=Inputs!$G$4),"Sch",IF(D93="OH",IF(H93>=Inputs!$G$10,"Sch", IF(K93>=Inputs!$G$10-Inputs!$G$13,"Uns-BP","Uns")),"Uns")))) -> Uns | F93: =IF(0 = B93, 0, _xlfn.GAMMA.INV(RAND(), Inputs!C$5, Inputs!E$5)) -> 856.7463725 | G93: =IF(0 = B93, 0, $J92 + MIN(Inputs!G$4, F93)) -> 856.7463725 | H93: =IF(0 = B93, 0, IF(OR(B93=1,D92="OH"), _xlfn.GAMMA.INV(RAND(), Inputs!C$11, Inputs!E$11),H92)) -> 2758.258784 | I93: =IF(0 = B93, 0, IF(OR(B93=1,D92="OH"), $J92 + MIN(Inputs!G$10, H93), I92)) -> 2758.258784 | J93: 856.7463725 | K93: 856.7463725 | L93: 856.7463725 | M93: =IF(L93="","",(L93/(C93-C92))*Inputs!E$19) -> 17.63724705
A94: 17 | B94: =IF(OR(C93 >= Inputs!C$21, A93 > Inputs!C$23), 0, B93+1) -> 2 | C94: =IF(0 = B94, Inputs!C$18 + (A94-1)*(Inputs!E$19*Inputs!C$24)/(Inputs!C$23), C93 + (_xlfn.GAMMA.INV( RAND()*0.982 + 0.0052, Inputs!C$16, ((J94-J93)/(Inputs!B$16-Inputs!D$16)) * Inputs!E$16) / (Inputs!B$16+Inputs!D$16))*Inputs!E$19) -> 2033-09-18T23:31:10.886 | D94: =IF(0 = B94, "", IF(AND(G94<I94, K94<(Inputs!G$10-Inputs!G$13)), "MR", "OH")) -> MR | E94: =IF(0=B94,"start",IF(C94>Inputs!$C$21,"past",IF(AND(D94="MR",F94>=Inputs!$G$4),"Sch",IF(D94="OH",IF(H94>=Inputs!$G$10,"Sch", IF(K94>=Inputs!$G$10-Inputs!$G$13,"Uns-BP","Uns")),"Uns")))) -> Uns | F94: =IF(0 = B94, 0, _xlfn.GAMMA.INV(RAND(), Inputs!C$5, Inputs!E$5)) -> 998.1774162 | G94: =IF(0 = B94, 0, $J93 + MIN(Inputs!G$4, F94)) -> 1854.923789 | H94: =IF(0 = B94, 0, IF(OR(B94=1,D93="OH"), _xlfn.GAMMA.INV(RAND(), Inputs!C$11, Inputs!E$11),H93)) -> 2758.258784 | I94: =IF(0 = B94, 0, IF(OR(B94=1,D93="OH"), $J93 + MIN(Inputs!G$10, H94), I93)) -> 2758.258784 | J94: 1854.923789 | K94: 1854.923789 | L94: 998.1774162 | M94: =IF(L94="","",(L94/(C94-C93))*Inputs!E$19) -> 17.73065109
A95: 17 | B95: =IF(OR(C94 >= Inputs!C$21, A94 > Inputs!C$23), 0, B94+1) -> 3 | C95: =IF(0 = B95, Inputs!C$18 + (A95-1)*(Inputs!E$19*Inputs!C$24)/(Inputs!C$23), C94 + (_xlfn.GAMMA.INV( RAND()*0.982 + 0.0052, Inputs!C$16, ((J95-J94)/(Inputs!B$16-Inputs!D$16)) * Inputs!E$16) / (Inputs!B$16+Inputs!D$16))*Inputs!E$19) -> 2038-05-07T06:26:19.074 | D95: =IF(0 = B95, "", IF(AND(G95<I95, K95<(Inputs!G$10-Inputs!G$13)), "MR", "OH")) -> MR | E95: =IF(0=B95,"start",IF(C95>Inputs!$C$21,"past",IF(AND(D95="MR",F95>=Inputs!$G$4),"Sch",IF(D95="OH",IF(H95>=Inputs!$G$10,"Sch", IF(K95>=Inputs!$G$10-Inputs!$G$13,"Uns-BP","Uns")),"Uns")))) -> Uns | F95: =IF(0 = B95, 0, _xlfn.GAMMA.INV(RAND(), Inputs!C$5, Inputs!E$5)) -> 886.8371573 | G95: =IF(0 = B95, 0, $J94 + MIN(Inputs!G$4, F95)) -> 2741.760946 | H95: =IF(0 = B95, 0, IF(OR(B95=1,D94="OH"), _xlfn.GAMMA.INV(RAND(), Inputs!C$11, Inputs!E$11),H94)) -> 2758.258784 | I95: =IF(0 = B95, 0, IF(OR(B95=1,D94="OH"), $J94 + MIN(Inputs!G$10, H95), I94)) -> 2758.258784 | J95: 2741.760946 | K95: 2741.760946 | L95: 886.8371573 | M95: =IF(L95="","",(L95/(C95-C94))*Inputs!E$19) -> 15.96008566
A96: 17 | B96: =IF(OR(C95 >= Inputs!C$21, A95 > Inputs!C$23), 0, B95+1) -> 4 | C96: =IF(0 = B96, Inputs!C$18 + (A96-1)*(Inputs!E$19*Inputs!C$24)/(Inputs!C$23), C95 + (_xlfn.GAMMA.INV( RAND()*0.982 + 0.0052, Inputs!C$16, ((J96-J95)/(Inputs!B$16-Inputs!D$16)) * Inputs!E$16) / (Inputs!B$16+Inputs!D$16))*Inputs!E$19) -> 2038-05-29T14:52:33.462 | D96: =IF(0 = B96, "", IF(AND(G96<I96, K96<(Inputs!G$10-Inputs!G$13)), "MR", "OH")) -> OH | E96: =IF(0=B96,"start",IF(C96>Inputs!$C$21,"past",IF(AND(D96="MR",F96>=Inputs!$G$4),"Sch",IF(D96="OH",IF(H96>=Inputs!$G$10,"Sch", IF(K96>=Inputs!$G$10-Inputs!$G$13,"Uns-BP","Uns")),"Uns")))) -> Uns | F96: =IF(0 = B96, 0, _xlfn.GAMMA.INV(RAND(), Inputs!C$5, Inputs!E$5)) -> 899.8677401 | G96: =IF(0 = B96, 0, $J95 + MIN(Inputs!G$4, F96)) -> 3641.628686 | H96: =IF(0 = B96, 0, IF(OR(B96=1,D95="OH"), _xlfn.GAMMA.INV(RAND(), Inputs!C$11, Inputs!E$11),H95)) -> 2758.258784 | I96: =IF(0 = B96, 0, IF(OR(B96=1,D95="OH"), $J95 + MIN(Inputs!G$10, H96), I95)) -> 2758.258784 | J96: 2758.258784 | K96: 2758.258784 | L96: 16.49783745 | M96: =IF(L96="","",(L96/(C96-C95))*Inputs!E$19) -> 22.466129
A97: 17 | B97: =IF(OR(C96 >= Inputs!C$21, A96 > Inputs!C$23), 0, B96+1) -> 5 | C97: =IF(0 = B97, Inputs!C$18 + (A97-1)*(Inputs!E$19*Inputs!C$24)/(Inputs!C$23), C96 + (_xlfn.GAMMA.INV( RAND()*0.982 + 0.0052, Inputs!C$16, ((J97-J96)/(Inputs!B$16-Inputs!D$16)) * Inputs!E$16) / (Inputs!B$16+Inputs!D$16))*Inputs!E$19) -> 2043-08-13T03:46:26.024 | D97: =IF(0 = B97, "", IF(AND(G97<I97, K97<(Inputs!G$10-Inputs!G$13)), "MR", "OH")) -> MR | E97: =IF(0=B97,"start",IF(C97>Inputs!$C$21,"past",IF(AND(D97="MR",F97>=Inputs!$G$4),"Sch",IF(D97="OH",IF(H97>=Inputs!$G$10,"Sch", IF(K97>=Inputs!$G$10-Inputs!$G$13,"Uns-BP","Uns")),"Uns")))) -> past | F97: =IF(0 = B97, 0, _xlfn.GAMMA.INV(RAND(), Inputs!C$5, Inputs!E$5)) -> 866.2774128 | G97: =IF(0 = B97, 0, $J96 + MIN(Inputs!G$4, F97)) -> 3624.536196 | H97: =IF(0 = B97, 0, IF(OR(B97=1,D96="OH"), _xlfn.GAMMA.INV(RAND(), Inputs!C$11, Inputs!E$11),H96)) -> 2947.599472 | I97: =IF(0 = B97, 0, IF(OR(B97=1,D96="OH"), $J96 + MIN(Inputs!G$10, H97), I96)) -> 5705.858255 | J97: 3624.536196 | K97: 866.2774128 | L97: 866.2774128 | M97: =IF(L97="","",(L97/(C97-C96))*Inputs!E$19) -> 13.86631604
A98: 18 | B98: =IF(OR(C97 >= Inputs!C$21, A97 > Inputs!C$23), 0, B97+1) -> 0 | C98: =IF(0 = B98, Inputs!C$18 + (A98-1)*(Inputs!E$19*Inputs!C$24)/(Inputs!C$23), C97 + (_xlfn.GAMMA.INV( RAND()*0.982 + 0.0052, Inputs!C$16, ((J98-J97)/(Inputs!B$16-Inputs!D$16)) * Inputs!E$16) / (Inputs!B$16+Inputs!D$16))*Inputs!E$19) -> 2024-12-24T08:24:00 | D98: =IF(0 = B98, "", IF(AND(G98<I98, K98<(Inputs!G$10-Inputs!G$13)), "MR", "OH")) ->  | E98: =IF(0=B98,"start",IF(C98>Inputs!$C$21,"past",IF(AND(D98="MR",F98>=Inputs!$G$4),"Sch",IF(D98="OH",IF(H98>=Inputs!$G$10,"Sch", IF(K98>=Inputs!$G$10-Inputs!$G$13,"Uns-BP","Uns")),"Uns")))) -> start | F98: =IF(0 = B98, 0, _xlfn.GAMMA.INV(RAND(), Inputs!C$5, Inputs!E$5)) -> 0 | G98: =IF(0 = B98, 0, $J97 + MIN(Inputs!G$4, F98)) -> 0 | H98: =IF(0 = B98, 0, IF(OR(B98=1,D97="OH"), _xlfn.GAMMA.INV(RAND(), Inputs!C$11, Inputs!E$11),H97)) -> 0 | I98: =IF(0 = B98, 0, IF(OR(B98=1,D97="OH"), $J97 + MIN(Inputs!G$10, H98), I97)) -> 0 | J98: 0 | K98: 0 | M98: =IF(L98="","",(L98/(C98-C97))*Inputs!E$19) -> 
A99: 18 | B99: =IF(OR(C98 >= Inputs!C$21, A98 > Inputs!C$23), 0, B98+1) -> 1 | C99: =IF(0 = B99, Inputs!C$18 + (A99-1)*(Inputs!E$19*Inputs!C$24)/(Inputs!C$23), C98 + (_xlfn.GAMMA.INV( RAND()*0.982 + 0.0052, Inputs!C$16, ((J99-J98)/(Inputs!B$16-Inputs!D$16)) * Inputs!E$16) / (Inputs!B$16+Inputs!D$16))*Inputs!E$19) -> 2029-05-16T03:20:36.373 | D99: =IF(0 = B99, "", IF(AND(G99<I99, K99<(Inputs!G$10-Inputs!G$13)), "MR", "OH")) -> MR | E99: =IF(0=B99,"start",IF(C99>Inputs!$C$21,"past",IF(AND(D99="MR",F99>=Inputs!$G$4),"Sch",IF(D99="OH",IF(H99>=Inputs!$G$10,"Sch", IF(K99>=Inputs!$G$10-Inputs!$G$13,"Uns-BP","Uns")),"Uns")))) -> Uns | F99: =IF(0 = B99, 0, _xlfn.GAMMA.INV(RAND(), Inputs!C$5, Inputs!E$5)) -> 892.9187178 | G99: =IF(0 = B99, 0, $J98 + MIN(Inputs!G$4, F99)) -> 892.9187178 | H99: =IF(0 = B99, 0, IF(OR(B99=1,D98="OH"), _xlfn.GAMMA.INV(RAND(), Inputs!C$11, Inputs!E$11),H98)) -> 2537.193084 | I99: =IF(0 = B99, 0, IF(OR(B99=1,D98="OH"), $J98 + MIN(Inputs!G$10, H99), I98)) -> 2537.193084 | J99: 892.9187178 | K99: 892.9187178 | L99: 892.9187178 | M99: =IF(L99="","",(L99/(C99-C98))*Inputs!E$19) -> 16.9462493
A100: 18 | B100: =IF(OR(C99 >= Inputs!C$21, A99 > Inputs!C$23), 0, B99+1) -> 2 | C100: =IF(0 = B100, Inputs!C$18 + (A100-1)*(Inputs!E$19*Inputs!C$24)/(Inputs!C$23), C99 + (_xlfn.GAMMA.INV( RAND()*0.982 + 0.0052, Inputs!C$16, ((J100-J99)/(Inputs!B$16-Inputs!D$16)) * Inputs!E$16) / (Inputs!B$16+Inputs!D$16))*Inputs!E$19) -> 2032-11-06T01:13:15.011 | D100: =IF(0 = B100, "", IF(AND(G100<I100, K100<(Inputs!G$10-Inputs!G$13)), "MR", "OH")) -> MR | E100: =IF(0=B100,"start",IF(C100>Inputs!$C$21,"past",IF(AND(D100="MR",F100>=Inputs!$G$4),"Sch",IF(D100="OH",IF(H100>=Inputs!$G$10,"Sch", IF(K100>=Inputs!$G$10-Inputs!$G$13,"Uns-BP","Uns")),"Uns")))) -> Uns | F100: =IF(0 = B100, 0, _xlfn.GAMMA.INV(RAND(), Inputs!C$5, Inputs!E$5)) -> 846.8146493 | G100: =IF(0 = B100, 0, $J99 + MIN(Inputs!G$4, F100)) -> 1739.733367 | H100: =IF(0 = B100, 0, IF(OR(B100=1,D99="OH"), _xlfn.GAMMA.INV(RAND(), Inputs!C$11, Inputs!E$11),H99)) -> 2537.193084 | I100: =IF(0 = B100, 0, IF(OR(B100=1,D99="OH"), $J99 + MIN(Inputs!G$10, H100), I99)) -> 2537.193084 | J100: 1739.733367 | K100: 1739.733367 | L100: 846.8146493 | M100: =IF(L100="","",(L100/(C100-C99))*Inputs!E$19) -> 20.29662674
A101: 18 | B101: =IF(OR(C100 >= Inputs!C$21, A100 > Inputs!C$23), 0, B100+1) -> 3 | C101: =IF(0 = B101, Inputs!C$18 + (A101-1)*(Inputs!E$19*Inputs!C$24)/(Inputs!C$23), C100 + (_xlfn.GAMMA.INV( RAND()*0.982 + 0.0052, Inputs!C$16, ((J101-J100)/(Inputs!B$16-Inputs!D$16)) * Inputs!E$16) / (Inputs!B$16+Inputs!D$16))*Inputs!E$19) -> 2036-08-11T19:42:12.297 | D101: =IF(0 = B101, "", IF(AND(G101<I101, K101<(Inputs!G$10-Inputs!G$13)), "MR", "OH")) -> OH | E101: =IF(0=B101,"start",IF(C101>Inputs!$C$21,"past",IF(AND(D101="MR",F101>=Inputs!$G$4),"Sch",IF(D101="OH",IF(H101>=Inputs!$G$10,"Sch", IF(K101>=Inputs!$G$10-Inputs!$G$13,"Uns-BP","Uns")),"Uns")))) -> Uns | F101: =IF(0 = B101, 0, _xlfn.GAMMA.INV(RAND(), Inputs!C$5, Inputs!E$5)) -> 1000.271835 | G101: =IF(0 = B101, 0, $J100 + MIN(Inputs!G$4, F101)) -> 2740.005202 | H101: =IF(0 = B101, 0, IF(OR(B101=1,D100="OH"), _xlfn.GAMMA.INV(RAND(), Inputs!C$11, Inputs!E$11),H100)) -> 2537.193084 | I101: =IF(0 = B101, 0, IF(OR(B101=1,D100="OH"), $J100 + MIN(Inputs!G$10, H101), I100)) -> 2537.193084 | J101: 2537.193084 | K101: 2537.193084 | L101: 797.4597168 | M101: =IF(L101="","",(L101/(C101-C100))*Inputs!E$19) -> 17.65581023
A102: 18 | B102: =IF(OR(C101 >= Inputs!C$21, A101 > Inputs!C$23), 0, B101+1) -> 4 | C102: =IF(0 = B102, Inputs!C$18 + (A102-1)*(Inputs!E$19*Inputs!C$24)/(Inputs!C$23), C101 + (_xlfn.GAMMA.INV( RAND()*0.982 + 0.0052, Inputs!C$16, ((J102-J101)/(Inputs!B$16-Inputs!D$16)) * Inputs!E$16) / (Inputs!B$16+Inputs!D$16))*Inputs!E$19) -> 2039-08-16T06:12:11.516 | D102: =IF(0 = B102, "", IF(AND(G102<I102, K102<(Inputs!G$10-Inputs!G$13)), "MR", "OH")) -> MR | E102: =IF(0=B102,"start",IF(C102>Inputs!$C$21,"past",IF(AND(D102="MR",F102>=Inputs!$G$4),"Sch",IF(D102="OH",IF(H102>=Inputs!$G$10,"Sch", IF(K102>=Inputs!$G$10-Inputs!$G$13,"Uns-BP","Uns")),"Uns")))) -> Uns | F102: =IF(0 = B102, 0, _xlfn.GAMMA.INV(RAND(), Inputs!C$5, Inputs!E$5)) -> 816.179587 | G102: =IF(0 = B102, 0, $J101 + MIN(Inputs!G$4, F102)) -> 3353.372671 | H102: =IF(0 = B102, 0, IF(OR(B102=1,D101="OH"), _xlfn.GAMMA.INV(RAND(), Inputs!C$11, Inputs!E$11),H101)) -> 2725.270702 | I102: =IF(0 = B102, 0, IF(OR(B102=1,D101="OH"), $J101 + MIN(Inputs!G$10, H102), I101)) -> 5262.463786 | J102: 3353.372671 | K102: 816.179587 | L102: 816.179587 | M102: =IF(L102="","",(L102/(C102-C101))*Inputs!E$19) -> 22.59561493
A103: 18 | B103: =IF(OR(C102 >= Inputs!C$21, A102 > Inputs!C$23), 0, B102+1) -> 5 | C103: =IF(0 = B103, Inputs!C$18 + (A103-1)*(Inputs!E$19*Inputs!C$24)/(Inputs!C$23), C102 + (_xlfn.GAMMA.INV( RAND()*0.982 + 0.0052, Inputs!C$16, ((J103-J102)/(Inputs!B$16-Inputs!D$16)) * Inputs!E$16) / (Inputs!B$16+Inputs!D$16))*Inputs!E$19) -> 2044-09-15T09:42:35.142 | D103: =IF(0 = B103, "", IF(AND(G103<I103, K103<(Inputs!G$10-Inputs!G$13)), "MR", "OH")) -> MR | E103: =IF(0=B103,"start",IF(C103>Inputs!$C$21,"past",IF(AND(D103="MR",F103>=Inputs!$G$4),"Sch",IF(D103="OH",IF(H103>=Inputs!$G$10,"Sch", IF(K103>=Inputs!$G$10-Inputs!$G$13,"Uns-BP","Uns")),"Uns")))) -> past | F103: =IF(0 = B103, 0, _xlfn.GAMMA.INV(RAND(), Inputs!C$5, Inputs!E$5)) -> 992.3298307 | G103: =IF(0 = B103, 0, $J102 + MIN(Inputs!G$4, F103)) -> 4345.702501 | H103: =IF(0 = B103, 0, IF(OR(B103=1,D102="OH"), _xlfn.GAMMA.INV(RAND(), Inputs!C$11, Inputs!E$11),H102)) -> 2725.270702 | I103: =IF(0 = B103, 0, IF(OR(B103=1,D102="OH"), $J102 + MIN(Inputs!G$10, H103), I102)) -> 5262.463786 | J103: 4345.702501 | K103: 1808.509418 | L103: 992.3298307 | M103: =IF(L103="","",(L103/(C103-C102))*Inputs!E$19) -> 16.26368497
A104: 19 | B104: =IF(OR(C103 >= Inputs!C$21, A103 > Inputs!C$23), 0, B103+1) -> 0 | C104: =IF(0 = B104, Inputs!C$18 + (A104-1)*(Inputs!E$19*Inputs!C$24)/(Inputs!C$23), C103 + (_xlfn.GAMMA.INV( RAND()*0.982 + 0.0052, Inputs!C$16, ((J104-J103)/(Inputs!B$16-Inputs!D$16)) * Inputs!E$16) / (Inputs!B$16+Inputs!D$16))*Inputs!E$19) -> 2024-12-25T18:46:35.294 | D104: =IF(0 = B104, "", IF(AND(G104<I104, K104<(Inputs!G$10-Inputs!G$13)), "MR", "OH")) ->  | E104: =IF(0=B104,"start",IF(C104>Inputs!$C$21,"past",IF(AND(D104="MR",F104>=Inputs!$G$4),"Sch",IF(D104="OH",IF(H104>=Inputs!$G$10,"Sch", IF(K104>=Inputs!$G$10-Inputs!$G$13,"Uns-BP","Uns")),"Uns")))) -> start | F104: =IF(0 = B104, 0, _xlfn.GAMMA.INV(RAND(), Inputs!C$5, Inputs!E$5)) -> 0 | G104: =IF(0 = B104, 0, $J103 + MIN(Inputs!G$4, F104)) -> 0 | H104: =IF(0 = B104, 0, IF(OR(B104=1,D103="OH"), _xlfn.GAMMA.INV(RAND(), Inputs!C$11, Inputs!E$11),H103)) -> 0 | I104: =IF(0 = B104, 0, IF(OR(B104=1,D103="OH"), $J103 + MIN(Inputs!G$10, H104), I103)) -> 0 | J104: 0 | K104: 0 | M104: =IF(L104="","",(L104/(C104-C103))*Inputs!E$19) -> 
A105: 19 | B105: =IF(OR(C104 >= Inputs!C$21, A104 > Inputs!C$23), 0, B104+1) -> 1 | C105: =IF(0 = B105, Inputs!C$18 + (A105-1)*(Inputs!E$19*Inputs!C$24)/(Inputs!C$23), C104 + (_xlfn.GAMMA.INV( RAND()*0.982 + 0.0052, Inputs!C$16, ((J105-J104)/(Inputs!B$16-Inputs!D$16)) * Inputs!E$16) / (Inputs!B$16+Inputs!D$16))*Inputs!E$19) -> 2028-05-03T09:31:39.471 | D105: =IF(0 = B105, "", IF(AND(G105<I105, K105<(Inputs!G$10-Inputs!G$13)), "MR", "OH")) -> MR | E105: =IF(0=B105,"start",IF(C105>Inputs!$C$21,"past",IF(AND(D105="MR",F105>=Inputs!$G$4),"Sch",IF(D105="OH",IF(H105>=Inputs!$G$10,"Sch", IF(K105>=Inputs!$G$10-Inputs!$G$13,"Uns-BP","Uns")),"Uns")))) -> Uns | F105: =IF(0 = B105, 0, _xlfn.GAMMA.INV(RAND(), Inputs!C$5, Inputs!E$5)) -> 903.8906321 | G105: =IF(0 = B105, 0, $J104 + MIN(Inputs!G$4, F105)) -> 903.8906321 | H105: =IF(0 = B105, 0, IF(OR(B105=1,D104="OH"), _xlfn.GAMMA.INV(RAND(), Inputs!C$11, Inputs!E$11),H104)) -> 3063.570073 | I105: =IF(0 = B105, 0, IF(OR(B105=1,D104="OH"), $J104 + MIN(Inputs!G$10, H105), I104)) -> 3063.570073 | J105: 903.8906321 | K105: 903.8906321 | L105: 903.8906321 | M105: =IF(L105="","",(L105/(C105-C104))*Inputs!E$19) -> 22.46598269
A106: 19 | B106: =IF(OR(C105 >= Inputs!C$21, A105 > Inputs!C$23), 0, B105+1) -> 2 | C106: =IF(0 = B106, Inputs!C$18 + (A106-1)*(Inputs!E$19*Inputs!C$24)/(Inputs!C$23), C105 + (_xlfn.GAMMA.INV( RAND()*0.982 + 0.0052, Inputs!C$16, ((J106-J105)/(Inputs!B$16-Inputs!D$16)) * Inputs!E$16) / (Inputs!B$16+Inputs!D$16))*Inputs!E$19) -> 2031-12-17T07:48:59.937 | D106: =IF(0 = B106, "", IF(AND(G106<I106, K106<(Inputs!G$10-Inputs!G$13)), "MR", "OH")) -> MR | E106: =IF(0=B106,"start",IF(C106>Inputs!$C$21,"past",IF(AND(D106="MR",F106>=Inputs!$G$4),"Sch",IF(D106="OH",IF(H106>=Inputs!$G$10,"Sch", IF(K106>=Inputs!$G$10-Inputs!$G$13,"Uns-BP","Uns")),"Uns")))) -> Uns | F106: =IF(0 = B106, 0, _xlfn.GAMMA.INV(RAND(), Inputs!C$5, Inputs!E$5)) -> 758.5554229 | G106: =IF(0 = B106, 0, $J105 + MIN(Inputs!G$4, F106)) -> 1662.446055 | H106: =IF(0 = B106, 0, IF(OR(B106=1,D105="OH"), _xlfn.GAMMA.INV(RAND(), Inputs!C$11, Inputs!E$11),H105)) -> 3063.570073 | I106: =IF(0 = B106, 0, IF(OR(B106=1,D105="OH"), $J105 + MIN(Inputs!G$10, H106), I105)) -> 3063.570073 | J106: 1662.446055 | K106: 1662.446055 | L106: 758.5554229 | M106: =IF(L106="","",(L106/(C106-C105))*Inputs!E$19) -> 17.45258873
A107: 19 | B107: =IF(OR(C106 >= Inputs!C$21, A106 > Inputs!C$23), 0, B106+1) -> 3 | C107: =IF(0 = B107, Inputs!C$18 + (A107-1)*(Inputs!E$19*Inputs!C$24)/(Inputs!C$23), C106 + (_xlfn.GAMMA.INV( RAND()*0.982 + 0.0052, Inputs!C$16, ((J107-J106)/(Inputs!B$16-Inputs!D$16)) * Inputs!E$16) / (Inputs!B$16+Inputs!D$16))*Inputs!E$19) -> 2035-02-27T13:11:35.383 | D107: =IF(0 = B107, "", IF(AND(G107<I107, K107<(Inputs!G$10-Inputs!G$13)), "MR", "OH")) -> MR | E107: =IF(0=B107,"start",IF(C107>Inputs!$C$21,"past",IF(AND(D107="MR",F107>=Inputs!$G$4),"Sch",IF(D107="OH",IF(H107>=Inputs!$G$10,"Sch", IF(K107>=Inputs!$G$10-Inputs!$G$13,"Uns-BP","Uns")),"Uns")))) -> Uns | F107: =IF(0 = B107, 0, _xlfn.GAMMA.INV(RAND(), Inputs!C$5, Inputs!E$5)) -> 941.3636338 | G107: =IF(0 = B107, 0, $J106 + MIN(Inputs!G$4, F107)) -> 2603.809689 | H107: =IF(0 = B107, 0, IF(OR(B107=1,D106="OH"), _xlfn.GAMMA.INV(RAND(), Inputs!C$11, Inputs!E$11),H106)) -> 3063.570073 | I107: =IF(0 = B107, 0, IF(OR(B107=1,D106="OH"), $J106 + MIN(Inputs!G$10, H107), I106)) -> 3063.570073 | J107: 2603.809689 | K107: 2603.809689 | L107: 941.3636338 | M107: =IF(L107="","",(L107/(C107-C106))*Inputs!E$19) -> 24.52676463
A108: 19 | B108: =IF(OR(C107 >= Inputs!C$21, A107 > Inputs!C$23), 0, B107+1) -> 4 | C108: =IF(0 = B108, Inputs!C$18 + (A108-1)*(Inputs!E$19*Inputs!C$24)/(Inputs!C$23), C107 + (_xlfn.GAMMA.INV( RAND()*0.982 + 0.0052, Inputs!C$16, ((J108-J107)/(Inputs!B$16-Inputs!D$16)) * Inputs!E$16) / (Inputs!B$16+Inputs!D$16))*Inputs!E$19) -> 2036-08-01T03:46:41.106 | D108: =IF(0 = B108, "", IF(AND(G108<I108, K108<(Inputs!G$10-Inputs!G$13)), "MR", "OH")) -> OH | E108: =IF(0=B108,"start",IF(C108>Inputs!$C$21,"past",IF(AND(D108="MR",F108>=Inputs!$G$4),"Sch",IF(D108="OH",IF(H108>=Inputs!$G$10,"Sch", IF(K108>=Inputs!$G$10-Inputs!$G$13,"Uns-BP","Uns")),"Uns")))) -> Uns-BP | F108: =IF(0 = B108, 0, _xlfn.GAMMA.INV(RAND(), Inputs!C$5, Inputs!E$5)) -> 927.8383178 | G108: =IF(0 = B108, 0, $J107 + MIN(Inputs!G$4, F108)) -> 3531.648007 | H108: =IF(0 = B108, 0, IF(OR(B108=1,D107="OH"), _xlfn.GAMMA.INV(RAND(), Inputs!C$11, Inputs!E$11),H107)) -> 3063.570073 | I108: =IF(0 = B108, 0, IF(OR(B108=1,D107="OH"), $J107 + MIN(Inputs!G$10, H108), I107)) -> 3063.570073 | J108: 3063.570073 | K108: 3063.570073 | L108: 459.760384 | M108: =IF(L108="","",(L108/(C108-C107))*Inputs!E$19) -> 26.88004144
A109: 19 | B109: =IF(OR(C108 >= Inputs!C$21, A108 > Inputs!C$23), 0, B108+1) -> 5 | C109: =IF(0 = B109, Inputs!C$18 + (A109-1)*(Inputs!E$19*Inputs!C$24)/(Inputs!C$23), C108 + (_xlfn.GAMMA.INV( RAND()*0.982 + 0.0052, Inputs!C$16, ((J109-J108)/(Inputs!B$16-Inputs!D$16)) * Inputs!E$16) / (Inputs!B$16+Inputs!D$16))*Inputs!E$19) -> 2040-09-30T01:09:55.695 | D109: =IF(0 = B109, "", IF(AND(G109<I109, K109<(Inputs!G$10-Inputs!G$13)), "MR", "OH")) -> MR | E109: =IF(0=B109,"start",IF(C109>Inputs!$C$21,"past",IF(AND(D109="MR",F109>=Inputs!$G$4),"Sch",IF(D109="OH",IF(H109>=Inputs!$G$10,"Sch", IF(K109>=Inputs!$G$10-Inputs!$G$13,"Uns-BP","Uns")),"Uns")))) -> past | F109: =IF(0 = B109, 0, _xlfn.GAMMA.INV(RAND(), Inputs!C$5, Inputs!E$5)) -> 1007.914525 | G109: =IF(0 = B109, 0, $J108 + MIN(Inputs!G$4, F109)) -> 4071.484598 | H109: =IF(0 = B109, 0, IF(OR(B109=1,D108="OH"), _xlfn.GAMMA.INV(RAND(), Inputs!C$11, Inputs!E$11),H108)) -> 2844.250109 | I109: =IF(0 = B109, 0, IF(OR(B109=1,D108="OH"), $J108 + MIN(Inputs!G$10, H109), I108)) -> 5907.820182 | J109: 4071.484598 | K109: 1007.914525 | L109: 1007.914525 | M109: =IF(L109="","",(L109/(C109-C108))*Inputs!E$19) -> 20.17133083
A110: 20 | B110: =IF(OR(C109 >= Inputs!C$21, A109 > Inputs!C$23), 0, B109+1) -> 0 | C110: =IF(0 = B110, Inputs!C$18 + (A110-1)*(Inputs!E$19*Inputs!C$24)/(Inputs!C$23), C109 + (_xlfn.GAMMA.INV( RAND()*0.982 + 0.0052, Inputs!C$16, ((J110-J109)/(Inputs!B$16-Inputs!D$16)) * Inputs!E$16) / (Inputs!B$16+Inputs!D$16))*Inputs!E$19) -> 2024-12-27T05:09:10.588 | D110: =IF(0 = B110, "", IF(AND(G110<I110, K110<(Inputs!G$10-Inputs!G$13)), "MR", "OH")) ->  | E110: =IF(0=B110,"start",IF(C110>Inputs!$C$21,"past",IF(AND(D110="MR",F110>=Inputs!$G$4),"Sch",IF(D110="OH",IF(H110>=Inputs!$G$10,"Sch", IF(K110>=Inputs!$G$10-Inputs!$G$13,"Uns-BP","Uns")),"Uns")))) -> start | F110: =IF(0 = B110, 0, _xlfn.GAMMA.INV(RAND(), Inputs!C$5, Inputs!E$5)) -> 0 | G110: =IF(0 = B110, 0, $J109 + MIN(Inputs!G$4, F110)) -> 0 | H110: =IF(0 = B110, 0, IF(OR(B110=1,D109="OH"), _xlfn.GAMMA.INV(RAND(), Inputs!C$11, Inputs!E$11),H109)) -> 0 | I110: =IF(0 = B110, 0, IF(OR(B110=1,D109="OH"), $J109 + MIN(Inputs!G$10, H110), I109)) -> 0 | J110: 0 | K110: 0 | M110: =IF(L110="","",(L110/(C110-C109))*Inputs!E$19) -> 
A111: 20 | B111: =IF(OR(C110 >= Inputs!C$21, A110 > Inputs!C$23), 0, B110+1) -> 1 | C111: =IF(0 = B111, Inputs!C$18 + (A111-1)*(Inputs!E$19*Inputs!C$24)/(Inputs!C$23), C110 + (_xlfn.GAMMA.INV( RAND()*0.982 + 0.0052, Inputs!C$16, ((J111-J110)/(Inputs!B$16-Inputs!D$16)) * Inputs!E$16) / (Inputs!B$16+Inputs!D$16))*Inputs!E$19) -> 2029-09-24T00:01:27.684 | D111: =IF(0 = B111, "", IF(AND(G111<I111, K111<(Inputs!G$10-Inputs!G$13)), "MR", "OH")) -> MR | E111: =IF(0=B111,"start",IF(C111>Inputs!$C$21,"past",IF(AND(D111="MR",F111>=Inputs!$G$4),"Sch",IF(D111="OH",IF(H111>=Inputs!$G$10,"Sch", IF(K111>=Inputs!$G$10-Inputs!$G$13,"Uns-BP","Uns")),"Uns")))) -> Uns | F111: =IF(0 = B111, 0, _xlfn.GAMMA.INV(RAND(), Inputs!C$5, Inputs!E$5)) -> 908.3616329 | G111: =IF(0 = B111, 0, $J110 + MIN(Inputs!G$4, F111)) -> 908.3616329 | H111: =IF(0 = B111, 0, IF(OR(B111=1,D110="OH"), _xlfn.GAMMA.INV(RAND(), Inputs!C$11, Inputs!E$11),H110)) -> 2856.218638 | I111: =IF(0 = B111, 0, IF(OR(B111=1,D110="OH"), $J110 + MIN(Inputs!G$10, H111), I110)) -> 2856.218638 | J111: 908.3616329 | K111: 908.3616329 | L111: 908.3616329 | M111: =IF(L111="","",(L111/(C111-C110))*Inputs!E$19) -> 15.96516675
A112: 20 | B112: =IF(OR(C111 >= Inputs!C$21, A111 > Inputs!C$23), 0, B111+1) -> 2 | C112: =IF(0 = B112, Inputs!C$18 + (A112-1)*(Inputs!E$19*Inputs!C$24)/(Inputs!C$23), C111 + (_xlfn.GAMMA.INV( RAND()*0.982 + 0.0052, Inputs!C$16, ((J112-J111)/(Inputs!B$16-Inputs!D$16)) * Inputs!E$16) / (Inputs!B$16+Inputs!D$16))*Inputs!E$19) -> 2033-03-10T05:02:51.951 | D112: =IF(0 = B112, "", IF(AND(G112<I112, K112<(Inputs!G$10-Inputs!G$13)), "MR", "OH")) -> MR | E112: =IF(0=B112,"start",IF(C112>Inputs!$C$21,"past",IF(AND(D112="MR",F112>=Inputs!$G$4),"Sch",IF(D112="OH",IF(H112>=Inputs!$G$10,"Sch", IF(K112>=Inputs!$G$10-Inputs!$G$13,"Uns-BP","Uns")),"Uns")))) -> Uns | F112: =IF(0 = B112, 0, _xlfn.GAMMA.INV(RAND(), Inputs!C$5, Inputs!E$5)) -> 851.4660178 | G112: =IF(0 = B112, 0, $J111 + MIN(Inputs!G$4, F112)) -> 1759.827651 | H112: =IF(0 = B112, 0, IF(OR(B112=1,D111="OH"), _xlfn.GAMMA.INV(RAND(), Inputs!C$11, Inputs!E$11),H111)) -> 2856.218638 | I112: =IF(0 = B112, 0, IF(OR(B112=1,D111="OH"), $J111 + MIN(Inputs!G$10, H112), I111)) -> 2856.218638 | J112: 1759.827651 | K112: 1759.827651 | L112: 851.4660178 | M112: =IF(L112="","",(L112/(C112-C111))*Inputs!E$19) -> 20.51639165
A113: 20 | B113: =IF(OR(C112 >= Inputs!C$21, A112 > Inputs!C$23), 0, B112+1) -> 3 | C113: =IF(0 = B113, Inputs!C$18 + (A113-1)*(Inputs!E$19*Inputs!C$24)/(Inputs!C$23), C112 + (_xlfn.GAMMA.INV( RAND()*0.982 + 0.0052, Inputs!C$16, ((J113-J112)/(Inputs!B$16-Inputs!D$16)) * Inputs!E$16) / (Inputs!B$16+Inputs!D$16))*Inputs!E$19) -> 2036-10-02T03:38:26.646 | D113: =IF(0 = B113, "", IF(AND(G113<I113, K113<(Inputs!G$10-Inputs!G$13)), "MR", "OH")) -> MR | E113: =IF(0=B113,"start",IF(C113>Inputs!$C$21,"past",IF(AND(D113="MR",F113>=Inputs!$G$4),"Sch",IF(D113="OH",IF(H113>=Inputs!$G$10,"Sch", IF(K113>=Inputs!$G$10-Inputs!$G$13,"Uns-BP","Uns")),"Uns")))) -> Uns | F113: =IF(0 = B113, 0, _xlfn.GAMMA.INV(RAND(), Inputs!C$5, Inputs!E$5)) -> 818.7107486 | G113: =IF(0 = B113, 0, $J112 + MIN(Inputs!G$4, F113)) -> 2578.538399 | H113: =IF(0 = B113, 0, IF(OR(B113=1,D112="OH"), _xlfn.GAMMA.INV(RAND(), Inputs!C$11, Inputs!E$11),H112)) -> 2856.218638 | I113: =IF(0 = B113, 0, IF(OR(B113=1,D112="OH"), $J112 + MIN(Inputs!G$10, H113), I112)) -> 2856.218638 | J113: 2578.538399 | K113: 2578.538399 | L113: 818.7107486 | M113: =IF(L113="","",(L113/(C113-C112))*Inputs!E$19) -> 19.14026923
A114: 20 | B114: =IF(OR(C113 >= Inputs!C$21, A113 > Inputs!C$23), 0, B113+1) -> 4 | C114: =IF(0 = B114, Inputs!C$18 + (A114-1)*(Inputs!E$19*Inputs!C$24)/(Inputs!C$23), C113 + (_xlfn.GAMMA.INV( RAND()*0.982 + 0.0052, Inputs!C$16, ((J114-J113)/(Inputs!B$16-Inputs!D$16)) * Inputs!E$16) / (Inputs!B$16+Inputs!D$16))*Inputs!E$19) -> 2037-11-06T08:00:07.507 | D114: =IF(0 = B114, "", IF(AND(G114<I114, K114<(Inputs!G$10-Inputs!G$13)), "MR", "OH")) -> OH | E114: =IF(0=B114,"start",IF(C114>Inputs!$C$21,"past",IF(AND(D114="MR",F114>=Inputs!$G$4),"Sch",IF(D114="OH",IF(H114>=Inputs!$G$10,"Sch", IF(K114>=Inputs!$G$10-Inputs!$G$13,"Uns-BP","Uns")),"Uns")))) -> Uns | F114: =IF(0 = B114, 0, _xlfn.GAMMA.INV(RAND(), Inputs!C$5, Inputs!E$5)) -> 1062.897269 | G114: =IF(0 = B114, 0, $J113 + MIN(Inputs!G$4, F114)) -> 3628.538399 | H114: =IF(0 = B114, 0, IF(OR(B114=1,D113="OH"), _xlfn.GAMMA.INV(RAND(), Inputs!C$11, Inputs!E$11),H113)) -> 2856.218638 | I114: =IF(0 = B114, 0, IF(OR(B114=1,D113="OH"), $J113 + MIN(Inputs!G$10, H114), I113)) -> 2856.218638 | J114: 2856.218638 | K114: 2856.218638 | L114: 277.6802391 | M114: =IF(L114="","",(L114/(C114-C113))*Inputs!E$19) -> 21.12013566
A115: 20 | B115: =IF(OR(C114 >= Inputs!C$21, A114 > Inputs!C$23), 0, B114+1) -> 5 | C115: =IF(0 = B115, Inputs!C$18 + (A115-1)*(Inputs!E$19*Inputs!C$24)/(Inputs!C$23), C114 + (_xlfn.GAMMA.INV( RAND()*0.982 + 0.0052, Inputs!C$16, ((J115-J114)/(Inputs!B$16-Inputs!D$16)) * Inputs!E$16) / (Inputs!B$16+Inputs!D$16))*Inputs!E$19) -> 2041-11-25T22:26:15.478 | D115: =IF(0 = B115, "", IF(AND(G115<I115, K115<(Inputs!G$10-Inputs!G$13)), "MR", "OH")) -> MR | E115: =IF(0=B115,"start",IF(C115>Inputs!$C$21,"past",IF(AND(D115="MR",F115>=Inputs!$G$4),"Sch",IF(D115="OH",IF(H115>=Inputs!$G$10,"Sch", IF(K115>=Inputs!$G$10-Inputs!$G$13,"Uns-BP","Uns")),"Uns")))) -> past | F115: =IF(0 = B115, 0, _xlfn.GAMMA.INV(RAND(), Inputs!C$5, Inputs!E$5)) -> 909.3650607 | G115: =IF(0 = B115, 0, $J114 + MIN(Inputs!G$4, F115)) -> 3765.583699 | H115: =IF(0 = B115, 0, IF(OR(B115=1,D114="OH"), _xlfn.GAMMA.INV(RAND(), Inputs!C$11, Inputs!E$11),H114)) -> 2826.233086 | I115: =IF(0 = B115, 0, IF(OR(B115=1,D114="OH"), $J114 + MIN(Inputs!G$10, H115), I114)) -> 5682.451725 | J115: 3765.583699 | K115: 909.3650607 | L115: 909.3650607 | M115: =IF(L115="","",(L115/(C115-C114))*Inputs!E$19) -> 18.69429376
A116: 21 | B116: =IF(OR(C115 >= Inputs!C$21, A115 > Inputs!C$23), 0, B115+1) -> 0 | C116: =IF(0 = B116, Inputs!C$18 + (A116-1)*(Inputs!E$19*Inputs!C$24)/(Inputs!C$23), C115 + (_xlfn.GAMMA.INV( RAND()*0.982 + 0.0052, Inputs!C$16, ((J116-J115)/(Inputs!B$16-Inputs!D$16)) * Inputs!E$16) / (Inputs!B$16+Inputs!D$16))*Inputs!E$19) -> 2024-12-28T15:31:45.882 | D116: =IF(0 = B116, "", IF(AND(G116<I116, K116<(Inputs!G$10-Inputs!G$13)), "MR", "OH")) ->  | E116: =IF(0=B116,"start",IF(C116>Inputs!$C$21,"past",IF(AND(D116="MR",F116>=Inputs!$G$4),"Sch",IF(D116="OH",IF(H116>=Inputs!$G$10,"Sch", IF(K116>=Inputs!$G$10-Inputs!$G$13,"Uns-BP","Uns")),"Uns")))) -> start | F116: =IF(0 = B116, 0, _xlfn.GAMMA.INV(RAND(), Inputs!C$5, Inputs!E$5)) -> 0 | G116: =IF(0 = B116, 0, $J115 + MIN(Inputs!G$4, F116)) -> 0 | H116: =IF(0 = B116, 0, IF(OR(B116=1,D115="OH"), _xlfn.GAMMA.INV(RAND(), Inputs!C$11, Inputs!E$11),H115)) -> 0 | I116: =IF(0 = B116, 0, IF(OR(B116=1,D115="OH"), $J115 + MIN(Inputs!G$10, H116), I115)) -> 0 | J116: 0 | K116: 0 | M116: =IF(L116="","",(L116/(C116-C115))*Inputs!E$19) -> 
A117: 21 | B117: =IF(OR(C116 >= Inputs!C$21, A116 > Inputs!C$23), 0, B116+1) -> 1 | C117: =IF(0 = B117, Inputs!C$18 + (A117-1)*(Inputs!E$19*Inputs!C$24)/(Inputs!C$23), C116 + (_xlfn.GAMMA.INV( RAND()*0.982 + 0.0052, Inputs!C$16, ((J117-J116)/(Inputs!B$16-Inputs!D$16)) * Inputs!E$16) / (Inputs!B$16+Inputs!D$16))*Inputs!E$19) -> 2028-11-16T17:59:56.125 | D117: =IF(0 = B117, "", IF(AND(G117<I117, K117<(Inputs!G$10-Inputs!G$13)), "MR", "OH")) -> MR | E117: =IF(0=B117,"start",IF(C117>Inputs!$C$21,"past",IF(AND(D117="MR",F117>=Inputs!$G$4),"Sch",IF(D117="OH",IF(H117>=Inputs!$G$10,"Sch", IF(K117>=Inputs!$G$10-Inputs!$G$13,"Uns-BP","Uns")),"Uns")))) -> Uns | F117: =IF(0 = B117, 0, _xlfn.GAMMA.INV(RAND(), Inputs!C$5, Inputs!E$5)) -> 1034.668055 | G117: =IF(0 = B117, 0, $J116 + MIN(Inputs!G$4, F117)) -> 1034.668055 | H117: =IF(0 = B117, 0, IF(OR(B117=1,D116="OH"), _xlfn.GAMMA.INV(RAND(), Inputs!C$11, Inputs!E$11),H116)) -> 2817.936799 | I117: =IF(0 = B117, 0, IF(OR(B117=1,D116="OH"), $J116 + MIN(Inputs!G$10, H117), I116)) -> 2817.936799 | J117: 1034.668055 | K117: 1034.668055 | L117: 1034.668055 | M117: =IF(L117="","",(L117/(C117-C116))*Inputs!E$19) -> 22.1919841
A118: 21 | B118: =IF(OR(C117 >= Inputs!C$21, A117 > Inputs!C$23), 0, B117+1) -> 2 | C118: =IF(0 = B118, Inputs!C$18 + (A118-1)*(Inputs!E$19*Inputs!C$24)/(Inputs!C$23), C117 + (_xlfn.GAMMA.INV( RAND()*0.982 + 0.0052, Inputs!C$16, ((J118-J117)/(Inputs!B$16-Inputs!D$16)) * Inputs!E$16) / (Inputs!B$16+Inputs!D$16))*Inputs!E$19) -> 2033-03-21T07:04:23.342 | D118: =IF(0 = B118, "", IF(AND(G118<I118, K118<(Inputs!G$10-Inputs!G$13)), "MR", "OH")) -> MR | E118: =IF(0=B118,"start",IF(C118>Inputs!$C$21,"past",IF(AND(D118="MR",F118>=Inputs!$G$4),"Sch",IF(D118="OH",IF(H118>=Inputs!$G$10,"Sch", IF(K118>=Inputs!$G$10-Inputs!$G$13,"Uns-BP","Uns")),"Uns")))) -> Uns | F118: =IF(0 = B118, 0, _xlfn.GAMMA.INV(RAND(), Inputs!C$5, Inputs!E$5)) -> 858.9492957 | G118: =IF(0 = B118, 0, $J117 + MIN(Inputs!G$4, F118)) -> 1893.61735 | H118: =IF(0 = B118, 0, IF(OR(B118=1,D117="OH"), _xlfn.GAMMA.INV(RAND(), Inputs!C$11, Inputs!E$11),H117)) -> 2817.936799 | I118: =IF(0 = B118, 0, IF(OR(B118=1,D117="OH"), $J117 + MIN(Inputs!G$10, H118), I117)) -> 2817.936799 | J118: 1893.61735 | K118: 1893.61735 | L118: 858.9492957 | M118: =IF(L118="","",(L118/(C118-C117))*Inputs!E$19) -> 16.48913979
A119: 21 | B119: =IF(OR(C118 >= Inputs!C$21, A118 > Inputs!C$23), 0, B118+1) -> 3 | C119: =IF(0 = B119, Inputs!C$18 + (A119-1)*(Inputs!E$19*Inputs!C$24)/(Inputs!C$23), C118 + (_xlfn.GAMMA.INV( RAND()*0.982 + 0.0052, Inputs!C$16, ((J119-J118)/(Inputs!B$16-Inputs!D$16)) * Inputs!E$16) / (Inputs!B$16+Inputs!D$16))*Inputs!E$19) -> 2037-02-10T11:13:59.009 | D119: =IF(0 = B119, "", IF(AND(G119<I119, K119<(Inputs!G$10-Inputs!G$13)), "MR", "OH")) -> OH | E119: =IF(0=B119,"start",IF(C119>Inputs!$C$21,"past",IF(AND(D119="MR",F119>=Inputs!$G$4),"Sch",IF(D119="OH",IF(H119>=Inputs!$G$10,"Sch", IF(K119>=Inputs!$G$10-Inputs!$G$13,"Uns-BP","Uns")),"Uns")))) -> Uns | F119: =IF(0 = B119, 0, _xlfn.GAMMA.INV(RAND(), Inputs!C$5, Inputs!E$5)) -> 960.0662108 | G119: =IF(0 = B119, 0, $J118 + MIN(Inputs!G$4, F119)) -> 2853.683561 | H119: =IF(0 = B119, 0, IF(OR(B119=1,D118="OH"), _xlfn.GAMMA.INV(RAND(), Inputs!C$11, Inputs!E$11),H118)) -> 2817.936799 | I119: =IF(0 = B119, 0, IF(OR(B119=1,D118="OH"), $J118 + MIN(Inputs!G$10, H119), I118)) -> 2817.936799 | J119: 2817.936799 | K119: 2817.936799 | L119: 924.3194489 | M119: =IF(L119="","",(L119/(C119-C118))*Inputs!E$19) -> 19.78238
A120: 21 | B120: =IF(OR(C119 >= Inputs!C$21, A119 > Inputs!C$23), 0, B119+1) -> 4 | C120: =IF(0 = B120, Inputs!C$18 + (A120-1)*(Inputs!E$19*Inputs!C$24)/(Inputs!C$23), C119 + (_xlfn.GAMMA.INV( RAND()*0.982 + 0.0052, Inputs!C$16, ((J120-J119)/(Inputs!B$16-Inputs!D$16)) * Inputs!E$16) / (Inputs!B$16+Inputs!D$16))*Inputs!E$19) -> 2039-10-06T05:39:17.550 | D120: =IF(0 = B120, "", IF(AND(G120<I120, K120<(Inputs!G$10-Inputs!G$13)), "MR", "OH")) -> MR | E120: =IF(0=B120,"start",IF(C120>Inputs!$C$21,"past",IF(AND(D120="MR",F120>=Inputs!$G$4),"Sch",IF(D120="OH",IF(H120>=Inputs!$G$10,"Sch", IF(K120>=Inputs!$G$10-Inputs!$G$13,"Uns-BP","Uns")),"Uns")))) -> Uns | F120: =IF(0 = B120, 0, _xlfn.GAMMA.INV(RAND(), Inputs!C$5, Inputs!E$5)) -> 859.1556369 | G120: =IF(0 = B120, 0, $J119 + MIN(Inputs!G$4, F120)) -> 3677.092436 | H120: =IF(0 = B120, 0, IF(OR(B120=1,D119="OH"), _xlfn.GAMMA.INV(RAND(), Inputs!C$11, Inputs!E$11),H119)) -> 2676.223266 | I120: =IF(0 = B120, 0, IF(OR(B120=1,D119="OH"), $J119 + MIN(Inputs!G$10, H120), I119)) -> 5494.160065 | J120: 3677.092436 | K120: 859.1556369 | L120: 859.1556369 | M120: =IF(L120="","",(L120/(C120-C119))*Inputs!E$19) -> 27.02151875
A121: 21 | B121: =IF(OR(C120 >= Inputs!C$21, A120 > Inputs!C$23), 0, B120+1) -> 5 | C121: =IF(0 = B121, Inputs!C$18 + (A121-1)*(Inputs!E$19*Inputs!C$24)/(Inputs!C$23), C120 + (_xlfn.GAMMA.INV( RAND()*0.982 + 0.0052, Inputs!C$16, ((J121-J120)/(Inputs!B$16-Inputs!D$16)) * Inputs!E$16) / (Inputs!B$16+Inputs!D$16))*Inputs!E$19) -> 2044-08-13T21:17:23.447 | D121: =IF(0 = B121, "", IF(AND(G121<I121, K121<(Inputs!G$10-Inputs!G$13)), "MR", "OH")) -> MR | E121: =IF(0=B121,"start",IF(C121>Inputs!$C$21,"past",IF(AND(D121="MR",F121>=Inputs!$G$4),"Sch",IF(D121="OH",IF(H121>=Inputs!$G$10,"Sch", IF(K121>=Inputs!$G$10-Inputs!$G$13,"Uns-BP","Uns")),"Uns")))) -> past | F121: =IF(0 = B121, 0, _xlfn.GAMMA.INV(RAND(), Inputs!C$5, Inputs!E$5)) -> 1035.242649 | G121: =IF(0 = B121, 0, $J120 + MIN(Inputs!G$4, F121)) -> 4712.335085 | H121: =IF(0 = B121, 0, IF(OR(B121=1,D120="OH"), _xlfn.GAMMA.INV(RAND(), Inputs!C$11, Inputs!E$11),H120)) -> 2676.223266 | I121: =IF(0 = B121, 0, IF(OR(B121=1,D120="OH"), $J120 + MIN(Inputs!G$10, H121), I120)) -> 5494.160065 | J121: 4712.335085 | K121: 1894.398286 | L121: 1035.242649 | M121: =IF(L121="","",(L121/(C121-C120))*Inputs!E$19) -> 17.76572167
A122: 22 | B122: =IF(OR(C121 >= Inputs!C$21, A121 > Inputs!C$23), 0, B121+1) -> 0 | C122: =IF(0 = B122, Inputs!C$18 + (A122-1)*(Inputs!E$19*Inputs!C$24)/(Inputs!C$23), C121 + (_xlfn.GAMMA.INV( RAND()*0.982 + 0.0052, Inputs!C$16, ((J122-J121)/(Inputs!B$16-Inputs!D$16)) * Inputs!E$16) / (Inputs!B$16+Inputs!D$16))*Inputs!E$19) -> 2024-12-30T01:54:21.176 | D122: =IF(0 = B122, "", IF(AND(G122<I122, K122<(Inputs!G$10-Inputs!G$13)), "MR", "OH")) ->  | E122: =IF(0=B122,"start",IF(C122>Inputs!$C$21,"past",IF(AND(D122="MR",F122>=Inputs!$G$4),"Sch",IF(D122="OH",IF(H122>=Inputs!$G$10,"Sch", IF(K122>=Inputs!$G$10-Inputs!$G$13,"Uns-BP","Uns")),"Uns")))) -> start | F122: =IF(0 = B122, 0, _xlfn.GAMMA.INV(RAND(), Inputs!C$5, Inputs!E$5)) -> 0 | G122: =IF(0 = B122, 0, $J121 + MIN(Inputs!G$4, F122)) -> 0 | H122: =IF(0 = B122, 0, IF(OR(B122=1,D121="OH"), _xlfn.GAMMA.INV(RAND(), Inputs!C$11, Inputs!E$11),H121)) -> 0 | I122: =IF(0 = B122, 0, IF(OR(B122=1,D121="OH"), $J121 + MIN(Inputs!G$10, H122), I121)) -> 0 | J122: 0 | K122: 0 | M122: =IF(L122="","",(L122/(C122-C121))*Inputs!E$19) -> 
A123: 22 | B123: =IF(OR(C122 >= Inputs!C$21, A122 > Inputs!C$23), 0, B122+1) -> 1 | C123: =IF(0 = B123, Inputs!C$18 + (A123-1)*(Inputs!E$19*Inputs!C$24)/(Inputs!C$23), C122 + (_xlfn.GAMMA.INV( RAND()*0.982 + 0.0052, Inputs!C$16, ((J123-J122)/(Inputs!B$16-Inputs!D$16)) * Inputs!E$16) / (Inputs!B$16+Inputs!D$16))*Inputs!E$19) -> 2027-10-25T18:14:31.622 | D123: =IF(0 = B123, "", IF(AND(G123<I123, K123<(Inputs!G$10-Inputs!G$13)), "MR", "OH")) -> MR | E123: =IF(0=B123,"start",IF(C123>Inputs!$C$21,"past",IF(AND(D123="MR",F123>=Inputs!$G$4),"Sch",IF(D123="OH",IF(H123>=Inputs!$G$10,"Sch", IF(K123>=Inputs!$G$10-Inputs!$G$13,"Uns-BP","Uns")),"Uns")))) -> Uns | F123: =IF(0 = B123, 0, _xlfn.GAMMA.INV(RAND(), Inputs!C$5, Inputs!E$5)) -> 688.9937551 | G123: =IF(0 = B123, 0, $J122 + MIN(Inputs!G$4, F123)) -> 688.9937551 | H123: =IF(0 = B123, 0, IF(OR(B123=1,D122="OH"), _xlfn.GAMMA.INV(RAND(), Inputs!C$11, Inputs!E$11),H122)) -> 2790.869377 | I123: =IF(0 = B123, 0, IF(OR(B123=1,D122="OH"), $J122 + MIN(Inputs!G$10, H123), I122)) -> 2790.869377 | J123: 688.9937551 | K123: 688.9937551 | L123: 688.9937551 | M123: =IF(L123="","",(L123/(C123-C122))*Inputs!E$19) -> 20.36674855
A124: 22 | B124: =IF(OR(C123 >= Inputs!C$21, A123 > Inputs!C$23), 0, B123+1) -> 2 | C124: =IF(0 = B124, Inputs!C$18 + (A124-1)*(Inputs!E$19*Inputs!C$24)/(Inputs!C$23), C123 + (_xlfn.GAMMA.INV( RAND()*0.982 + 0.0052, Inputs!C$16, ((J124-J123)/(Inputs!B$16-Inputs!D$16)) * Inputs!E$16) / (Inputs!B$16+Inputs!D$16))*Inputs!E$19) -> 2031-09-08T12:22:06.275 | D124: =IF(0 = B124, "", IF(AND(G124<I124, K124<(Inputs!G$10-Inputs!G$13)), "MR", "OH")) -> MR | E124: =IF(0=B124,"start",IF(C124>Inputs!$C$21,"past",IF(AND(D124="MR",F124>=Inputs!$G$4),"Sch",IF(D124="OH",IF(H124>=Inputs!$G$10,"Sch", IF(K124>=Inputs!$G$10-Inputs!$G$13,"Uns-BP","Uns")),"Uns")))) -> Uns | F124: =IF(0 = B124, 0, _xlfn.GAMMA.INV(RAND(), Inputs!C$5, Inputs!E$5)) -> 943.515695 | G124: =IF(0 = B124, 0, $J123 + MIN(Inputs!G$4, F124)) -> 1632.50945 | H124: =IF(0 = B124, 0, IF(OR(B124=1,D123="OH"), _xlfn.GAMMA.INV(RAND(), Inputs!C$11, Inputs!E$11),H123)) -> 2790.869377 | I124: =IF(0 = B124, 0, IF(OR(B124=1,D123="OH"), $J123 + MIN(Inputs!G$10, H124), I123)) -> 2790.869377 | J124: 1632.50945 | K124: 1632.50945 | L124: 943.515695 | M124: =IF(L124="","",(L124/(C124-C123))*Inputs!E$19) -> 20.31345858
A125: 22 | B125: =IF(OR(C124 >= Inputs!C$21, A124 > Inputs!C$23), 0, B124+1) -> 3 | C125: =IF(0 = B125, Inputs!C$18 + (A125-1)*(Inputs!E$19*Inputs!C$24)/(Inputs!C$23), C124 + (_xlfn.GAMMA.INV( RAND()*0.982 + 0.0052, Inputs!C$16, ((J125-J124)/(Inputs!B$16-Inputs!D$16)) * Inputs!E$16) / (Inputs!B$16+Inputs!D$16))*Inputs!E$19) -> 2035-01-17T02:09:17.286 | D125: =IF(0 = B125, "", IF(AND(G125<I125, K125<(Inputs!G$10-Inputs!G$13)), "MR", "OH")) -> MR | E125: =IF(0=B125,"start",IF(C125>Inputs!$C$21,"past",IF(AND(D125="MR",F125>=Inputs!$G$4),"Sch",IF(D125="OH",IF(H125>=Inputs!$G$10,"Sch", IF(K125>=Inputs!$G$10-Inputs!$G$13,"Uns-BP","Uns")),"Uns")))) -> Uns | F125: =IF(0 = B125, 0, _xlfn.GAMMA.INV(RAND(), Inputs!C$5, Inputs!E$5)) -> 923.8206672 | G125: =IF(0 = B125, 0, $J124 + MIN(Inputs!G$4, F125)) -> 2556.330117 | H125: =IF(0 = B125, 0, IF(OR(B125=1,D124="OH"), _xlfn.GAMMA.INV(RAND(), Inputs!C$11, Inputs!E$11),H124)) -> 2790.869377 | I125: =IF(0 = B125, 0, IF(OR(B125=1,D124="OH"), $J124 + MIN(Inputs!G$10, H125), I124)) -> 2790.869377 | J125: 2556.330117 | K125: 2556.330117 | L125: 923.8206672 | M125: =IF(L125="","",(L125/(C125-C124))*Inputs!E$19) -> 22.92465162
A126: 22 | B126: =IF(OR(C125 >= Inputs!C$21, A125 > Inputs!C$23), 0, B125+1) -> 4 | C126: =IF(0 = B126, Inputs!C$18 + (A126-1)*(Inputs!E$19*Inputs!C$24)/(Inputs!C$23), C125 + (_xlfn.GAMMA.INV( RAND()*0.982 + 0.0052, Inputs!C$16, ((J126-J125)/(Inputs!B$16-Inputs!D$16)) * Inputs!E$16) / (Inputs!B$16+Inputs!D$16))*Inputs!E$19) -> 2036-01-09T18:07:20.459 | D126: =IF(0 = B126, "", IF(AND(G126<I126, K126<(Inputs!G$10-Inputs!G$13)), "MR", "OH")) -> OH | E126: =IF(0=B126,"start",IF(C126>Inputs!$C$21,"past",IF(AND(D126="MR",F126>=Inputs!$G$4),"Sch",IF(D126="OH",IF(H126>=Inputs!$G$10,"Sch", IF(K126>=Inputs!$G$10-Inputs!$G$13,"Uns-BP","Uns")),"Uns")))) -> Uns | F126: =IF(0 = B126, 0, _xlfn.GAMMA.INV(RAND(), Inputs!C$5, Inputs!E$5)) -> 1093.510919 | G126: =IF(0 = B126, 0, $J125 + MIN(Inputs!G$4, F126)) -> 3606.330117 | H126: =IF(0 = B126, 0, IF(OR(B126=1,D125="OH"), _xlfn.GAMMA.INV(RAND(), Inputs!C$11, Inputs!E$11),H125)) -> 2790.869377 | I126: =IF(0 = B126, 0, IF(OR(B126=1,D125="OH"), $J125 + MIN(Inputs!G$10, H126), I125)) -> 2790.869377 | J126: 2790.869377 | K126: 2790.869377 | L126: 234.5392599 | M126: =IF(L126="","",(L126/(C126-C125))*Inputs!E$19) -> 19.95941019
A127: 22 | B127: =IF(OR(C126 >= Inputs!C$21, A126 > Inputs!C$23), 0, B126+1) -> 5 | C127: =IF(0 = B127, Inputs!C$18 + (A127-1)*(Inputs!E$19*Inputs!C$24)/(Inputs!C$23), C126 + (_xlfn.GAMMA.INV( RAND()*0.982 + 0.0052, Inputs!C$16, ((J127-J126)/(Inputs!B$16-Inputs!D$16)) * Inputs!E$16) / (Inputs!B$16+Inputs!D$16))*Inputs!E$19) -> 2040-10-29T03:15:17.489 | D127: =IF(0 = B127, "", IF(AND(G127<I127, K127<(Inputs!G$10-Inputs!G$13)), "MR", "OH")) -> MR | E127: =IF(0=B127,"start",IF(C127>Inputs!$C$21,"past",IF(AND(D127="MR",F127>=Inputs!$G$4),"Sch",IF(D127="OH",IF(H127>=Inputs!$G$10,"Sch", IF(K127>=Inputs!$G$10-Inputs!$G$13,"Uns-BP","Uns")),"Uns")))) -> past | F127: =IF(0 = B127, 0, _xlfn.GAMMA.INV(RAND(), Inputs!C$5, Inputs!E$5)) -> 904.2948908 | G127: =IF(0 = B127, 0, $J126 + MIN(Inputs!G$4, F127)) -> 3695.164268 | H127: =IF(0 = B127, 0, IF(OR(B127=1,D126="OH"), _xlfn.GAMMA.INV(RAND(), Inputs!C$11, Inputs!E$11),H126)) -> 3151.506632 | I127: =IF(0 = B127, 0, IF(OR(B127=1,D126="OH"), $J126 + MIN(Inputs!G$10, H127), I126)) -> 5942.376009 | J127: 3695.164268 | K127: 904.2948908 | L127: 904.2948908 | M127: =IF(L127="","",(L127/(C127-C126))*Inputs!E$19) -> 15.68899985
A128: 23 | B128: =IF(OR(C127 >= Inputs!C$21, A127 > Inputs!C$23), 0, B127+1) -> 0 | C128: =IF(0 = B128, Inputs!C$18 + (A128-1)*(Inputs!E$19*Inputs!C$24)/(Inputs!C$23), C127 + (_xlfn.GAMMA.INV( RAND()*0.982 + 0.0052, Inputs!C$16, ((J128-J127)/(Inputs!B$16-Inputs!D$16)) * Inputs!E$16) / (Inputs!B$16+Inputs!D$16))*Inputs!E$19) -> 2024-12-31T12:16:56.471 | D128: =IF(0 = B128, "", IF(AND(G128<I128, K128<(Inputs!G$10-Inputs!G$13)), "MR", "OH")) ->  | E128: =IF(0=B128,"start",IF(C128>Inputs!$C$21,"past",IF(AND(D128="MR",F128>=Inputs!$G$4),"Sch",IF(D128="OH",IF(H128>=Inputs!$G$10,"Sch", IF(K128>=Inputs!$G$10-Inputs!$G$13,"Uns-BP","Uns")),"Uns")))) -> start | F128: =IF(0 = B128, 0, _xlfn.GAMMA.INV(RAND(), Inputs!C$5, Inputs!E$5)) -> 0 | G128: =IF(0 = B128, 0, $J127 + MIN(Inputs!G$4, F128)) -> 0 | H128: =IF(0 = B128, 0, IF(OR(B128=1,D127="OH"), _xlfn.GAMMA.INV(RAND(), Inputs!C$11, Inputs!E$11),H127)) -> 0 | I128: =IF(0 = B128, 0, IF(OR(B128=1,D127="OH"), $J127 + MIN(Inputs!G$10, H128), I127)) -> 0 | J128: 0 | K128: 0 | M128: =IF(L128="","",(L128/(C128-C127))*Inputs!E$19) -> 
A129: 23 | B129: =IF(OR(C128 >= Inputs!C$21, A128 > Inputs!C$23), 0, B128+1) -> 1 | C129: =IF(0 = B129, Inputs!C$18 + (A129-1)*(Inputs!E$19*Inputs!C$24)/(Inputs!C$23), C128 + (_xlfn.GAMMA.INV( RAND()*0.982 + 0.0052, Inputs!C$16, ((J129-J128)/(Inputs!B$16-Inputs!D$16)) * Inputs!E$16) / (Inputs!B$16+Inputs!D$16))*Inputs!E$19) -> 2027-10-05T08:21:36.506 | D129: =IF(0 = B129, "", IF(AND(G129<I129, K129<(Inputs!G$10-Inputs!G$13)), "MR", "OH")) -> MR | E129: =IF(0=B129,"start",IF(C129>Inputs!$C$21,"past",IF(AND(D129="MR",F129>=Inputs!$G$4),"Sch",IF(D129="OH",IF(H129>=Inputs!$G$10,"Sch", IF(K129>=Inputs!$G$10-Inputs!$G$13,"Uns-BP","Uns")),"Uns")))) -> Uns | F129: =IF(0 = B129, 0, _xlfn.GAMMA.INV(RAND(), Inputs!C$5, Inputs!E$5)) -> 938.0099584 | G129: =IF(0 = B129, 0, $J128 + MIN(Inputs!G$4, F129)) -> 938.0099584 | H129: =IF(0 = B129, 0, IF(OR(B129=1,D128="OH"), _xlfn.GAMMA.INV(RAND(), Inputs!C$11, Inputs!E$11),H128)) -> 2692.410196 | I129: =IF(0 = B129, 0, IF(OR(B129=1,D128="OH"), $J128 + MIN(Inputs!G$10, H129), I128)) -> 2692.410196 | J129: 938.0099584 | K129: 938.0099584 | L129: 938.0099584 | M129: =IF(L129="","",(L129/(C129-C128))*Inputs!E$19) -> 28.32867831
A130: 23 | B130: =IF(OR(C129 >= Inputs!C$21, A129 > Inputs!C$23), 0, B129+1) -> 2 | C130: =IF(0 = B130, Inputs!C$18 + (A130-1)*(Inputs!E$19*Inputs!C$24)/(Inputs!C$23), C129 + (_xlfn.GAMMA.INV( RAND()*0.982 + 0.0052, Inputs!C$16, ((J130-J129)/(Inputs!B$16-Inputs!D$16)) * Inputs!E$16) / (Inputs!B$16+Inputs!D$16))*Inputs!E$19) -> 2030-07-20T11:46:36.879 | D130: =IF(0 = B130, "", IF(AND(G130<I130, K130<(Inputs!G$10-Inputs!G$13)), "MR", "OH")) -> MR | E130: =IF(0=B130,"start",IF(C130>Inputs!$C$21,"past",IF(AND(D130="MR",F130>=Inputs!$G$4),"Sch",IF(D130="OH",IF(H130>=Inputs!$G$10,"Sch", IF(K130>=Inputs!$G$10-Inputs!$G$13,"Uns-BP","Uns")),"Uns")))) -> Uns | F130: =IF(0 = B130, 0, _xlfn.GAMMA.INV(RAND(), Inputs!C$5, Inputs!E$5)) -> 832.7265329 | G130: =IF(0 = B130, 0, $J129 + MIN(Inputs!G$4, F130)) -> 1770.736491 | H130: =IF(0 = B130, 0, IF(OR(B130=1,D129="OH"), _xlfn.GAMMA.INV(RAND(), Inputs!C$11, Inputs!E$11),H129)) -> 2692.410196 | I130: =IF(0 = B130, 0, IF(OR(B130=1,D129="OH"), $J129 + MIN(Inputs!G$10, H130), I129)) -> 2692.410196 | J130: 1770.736491 | K130: 1770.736491 | L130: 832.7265329 | M130: =IF(L130="","",(L130/(C130-C129))*Inputs!E$19) -> 24.8700424
A131: 23 | B131: =IF(OR(C130 >= Inputs!C$21, A130 > Inputs!C$23), 0, B130+1) -> 3 | C131: =IF(0 = B131, Inputs!C$18 + (A131-1)*(Inputs!E$19*Inputs!C$24)/(Inputs!C$23), C130 + (_xlfn.GAMMA.INV( RAND()*0.982 + 0.0052, Inputs!C$16, ((J131-J130)/(Inputs!B$16-Inputs!D$16)) * Inputs!E$16) / (Inputs!B$16+Inputs!D$16))*Inputs!E$19) -> 2034-07-17T02:27:40.545 | D131: =IF(0 = B131, "", IF(AND(G131<I131, K131<(Inputs!G$10-Inputs!G$13)), "MR", "OH")) -> OH | E131: =IF(0=B131,"start",IF(C131>Inputs!$C$21,"past",IF(AND(D131="MR",F131>=Inputs!$G$4),"Sch",IF(D131="OH",IF(H131>=Inputs!$G$10,"Sch", IF(K131>=Inputs!$G$10-Inputs!$G$13,"Uns-BP","Uns")),"Uns")))) -> Uns | F131: =IF(0 = B131, 0, _xlfn.GAMMA.INV(RAND(), Inputs!C$5, Inputs!E$5)) -> 999.0134783 | G131: =IF(0 = B131, 0, $J130 + MIN(Inputs!G$4, F131)) -> 2769.74997 | H131: =IF(0 = B131, 0, IF(OR(B131=1,D130="OH"), _xlfn.GAMMA.INV(RAND(), Inputs!C$11, Inputs!E$11),H130)) -> 2692.410196 | I131: =IF(0 = B131, 0, IF(OR(B131=1,D130="OH"), $J130 + MIN(Inputs!G$10, H131), I130)) -> 2692.410196 | J131: =IF(0 = B131, 0, MIN(G131,I131)) -> 2692.410196 | K131: =IF( B131 = 0, 0, J131 - J130 + IF(D130="OH", 0, K130)) -> 2692.410196 | L131: =IF(0 = J131, "", J131-J130) -> 921.6737049 | M131: =IF(L131="","",(L131/(C131-C130))*Inputs!E$19) -> 19.24616861
A132: =IF(B132=0, A131+1, A131 ) -> 23 | B132: =IF(OR(C131 >= Inputs!C$21, A131 > Inputs!C$23), 0, B131+1) -> 4 | C132: =IF(0 = B132, Inputs!C$18 + (A132-1)*(Inputs!E$19*Inputs!C$24)/(Inputs!C$23), C131 + (_xlfn.GAMMA.INV( RAND()*0.982 + 0.0052, Inputs!C$16, ((J132-J131)/(Inputs!B$16-Inputs!D$16)) * Inputs!E$16) / (Inputs!B$16+Inputs!D$16))*Inputs!E$19) -> 2037-01-02T12:39:23.963 | D132: =IF(0 = B132, "", IF(AND(G132<I132, K132<(Inputs!G$10-Inputs!G$13)), "MR", "OH")) -> MR | E132: =IF(0=B132,"start",IF(C132>Inputs!$C$21,"past",IF(AND(D132="MR",F132>=Inputs!$G$4),"Sch",IF(D132="OH",IF(H132>=Inputs!$G$10,"Sch", IF(K132>=Inputs!$G$10-Inputs!$G$13,"Uns-BP","Uns")),"Uns")))) -> Uns | F132: =IF(0 = B132, 0, _xlfn.GAMMA.INV(RAND(), Inputs!C$5, Inputs!E$5)) -> 794.377119 | G132: =IF(0 = B132, 0, $J131 + MIN(Inputs!G$4, F132)) -> 3486.787315 | H132: =IF(0 = B132, 0, IF(OR(B132=1,D131="OH"), _xlfn.GAMMA.INV(RAND(), Inputs!C$11, Inputs!E$11),H131)) -> 2849.519337 | I132: =IF(0 = B132, 0, IF(OR(B132=1,D131="OH"), $J131 + MIN(Inputs!G$10, H132), I131)) -> 5541.929533 | J132: 3486.787315 | K132: 794.377119 | L132: 794.377119 | M132: =IF(L132="","",(L132/(C132-C131))*Inputs!E$19) -> 26.85271812
A133: 23 | B133: =IF(OR(C132 >= Inputs!C$21, A132 > Inputs!C$23), 0, B132+1) -> 5 | C133: =IF(0 = B133, Inputs!C$18 + (A133-1)*(Inputs!E$19*Inputs!C$24)/(Inputs!C$23), C132 + (_xlfn.GAMMA.INV( RAND()*0.982 + 0.0052, Inputs!C$16, ((J133-J132)/(Inputs!B$16-Inputs!D$16)) * Inputs!E$16) / (Inputs!B$16+Inputs!D$16))*Inputs!E$19) -> 2040-09-15T23:52:02.661 | D133: =IF(0 = B133, "", IF(AND(G133<I133, K133<(Inputs!G$10-Inputs!G$13)), "MR", "OH")) -> MR | E133: =IF(0=B133,"start",IF(C133>Inputs!$C$21,"past",IF(AND(D133="MR",F133>=Inputs!$G$4),"Sch",IF(D133="OH",IF(H133>=Inputs!$G$10,"Sch", IF(K133>=Inputs!$G$10-Inputs!$G$13,"Uns-BP","Uns")),"Uns")))) -> past | F133: =IF(0 = B133, 0, _xlfn.GAMMA.INV(RAND(), Inputs!C$5, Inputs!E$5)) -> 799.0068032 | G133: =IF(0 = B133, 0, $J132 + MIN(Inputs!G$4, F133)) -> 4285.794118 | H133: =IF(0 = B133, 0, IF(OR(B133=1,D132="OH"), _xlfn.GAMMA.INV(RAND(), Inputs!C$11, Inputs!E$11),H132)) -> 2849.519337 | I133: =IF(0 = B133, 0, IF(OR(B133=1,D132="OH"), $J132 + MIN(Inputs!G$10, H133), I132)) -> 5541.929533 | J133: 4285.794118 | K133: 1593.383922 | L133: 799.0068032 | M133: =IF(L133="","",(L133/(C133-C132))*Inputs!E$19) -> 17.98178256
A134: 24 | B134: =IF(OR(C133 >= Inputs!C$21, A133 > Inputs!C$23), 0, B133+1) -> 0 | C134: =IF(0 = B134, Inputs!C$18 + (A134-1)*(Inputs!E$19*Inputs!C$24)/(Inputs!C$23), C133 + (_xlfn.GAMMA.INV( RAND()*0.982 + 0.0052, Inputs!C$16, ((J134-J133)/(Inputs!B$16-Inputs!D$16)) * Inputs!E$16) / (Inputs!B$16+Inputs!D$16))*Inputs!E$19) -> 2025-01-01T22:39:31.765 | D134: =IF(0 = B134, "", IF(AND(G134<I134, K134<(Inputs!G$10-Inputs!G$13)), "MR", "OH")) ->  | E134: =IF(0=B134,"start",IF(C134>Inputs!$C$21,"past",IF(AND(D134="MR",F134>=Inputs!$G$4),"Sch",IF(D134="OH",IF(H134>=Inputs!$G$10,"Sch", IF(K134>=Inputs!$G$10-Inputs!$G$13,"Uns-BP","Uns")),"Uns")))) -> start | F134: =IF(0 = B134, 0, _xlfn.GAMMA.INV(RAND(), Inputs!C$5, Inputs!E$5)) -> 0 | G134: =IF(0 = B134, 0, $J133 + MIN(Inputs!G$4, F134)) -> 0 | H134: =IF(0 = B134, 0, IF(OR(B134=1,D133="OH"), _xlfn.GAMMA.INV(RAND(), Inputs!C$11, Inputs!E$11),H133)) -> 0 | I134: =IF(0 = B134, 0, IF(OR(B134=1,D133="OH"), $J133 + MIN(Inputs!G$10, H134), I133)) -> 0 | J134: 0 | K134: 0 | M134: =IF(L134="","",(L134/(C134-C133))*Inputs!E$19) -> 
A135: 24 | B135: =IF(OR(C134 >= Inputs!C$21, A134 > Inputs!C$23), 0, B134+1) -> 1 | C135: =IF(0 = B135, Inputs!C$18 + (A135-1)*(Inputs!E$19*Inputs!C$24)/(Inputs!C$23), C134 + (_xlfn.GAMMA.INV( RAND()*0.982 + 0.0052, Inputs!C$16, ((J135-J134)/(Inputs!B$16-Inputs!D$16)) * Inputs!E$16) / (Inputs!B$16+Inputs!D$16))*Inputs!E$19) -> 2027-11-30T11:18:45.321 | D135: =IF(0 = B135, "", IF(AND(G135<I135, K135<(Inputs!G$10-Inputs!G$13)), "MR", "OH")) -> MR | E135: =IF(0=B135,"start",IF(C135>Inputs!$C$21,"past",IF(AND(D135="MR",F135>=Inputs!$G$4),"Sch",IF(D135="OH",IF(H135>=Inputs!$G$10,"Sch", IF(K135>=Inputs!$G$10-Inputs!$G$13,"Uns-BP","Uns")),"Uns")))) -> Uns | F135: =IF(0 = B135, 0, _xlfn.GAMMA.INV(RAND(), Inputs!C$5, Inputs!E$5)) -> 752.7344256 | G135: =IF(0 = B135, 0, $J134 + MIN(Inputs!G$4, F135)) -> 752.7344256 | H135: =IF(0 = B135, 0, IF(OR(B135=1,D134="OH"), _xlfn.GAMMA.INV(RAND(), Inputs!C$11, Inputs!E$11),H134)) -> 2828.314989 | I135: =IF(0 = B135, 0, IF(OR(B135=1,D134="OH"), $J134 + MIN(Inputs!G$10, H135), I134)) -> 2828.314989 | J135: 752.7344256 | K135: 752.7344256 | L135: 752.7344256 | M135: =IF(L135="","",(L135/(C135-C134))*Inputs!E$19) -> 21.56307454
A136: 24 | B136: =IF(OR(C135 >= Inputs!C$21, A135 > Inputs!C$23), 0, B135+1) -> 2 | C136: =IF(0 = B136, Inputs!C$18 + (A136-1)*(Inputs!E$19*Inputs!C$24)/(Inputs!C$23), C135 + (_xlfn.GAMMA.INV( RAND()*0.982 + 0.0052, Inputs!C$16, ((J136-J135)/(Inputs!B$16-Inputs!D$16)) * Inputs!E$16) / (Inputs!B$16+Inputs!D$16))*Inputs!E$19) -> 2032-06-08T09:10:26.427 | D136: =IF(0 = B136, "", IF(AND(G136<I136, K136<(Inputs!G$10-Inputs!G$13)), "MR", "OH")) -> MR | E136: =IF(0=B136,"start",IF(C136>Inputs!$C$21,"past",IF(AND(D136="MR",F136>=Inputs!$G$4),"Sch",IF(D136="OH",IF(H136>=Inputs!$G$10,"Sch", IF(K136>=Inputs!$G$10-Inputs!$G$13,"Uns-BP","Uns")),"Uns")))) -> Uns | F136: =IF(0 = B136, 0, _xlfn.GAMMA.INV(RAND(), Inputs!C$5, Inputs!E$5)) -> 933.1589818 | G136: =IF(0 = B136, 0, $J135 + MIN(Inputs!G$4, F136)) -> 1685.893407 | H136: =IF(0 = B136, 0, IF(OR(B136=1,D135="OH"), _xlfn.GAMMA.INV(RAND(), Inputs!C$11, Inputs!E$11),H135)) -> 2828.314989 | I136: =IF(0 = B136, 0, IF(OR(B136=1,D135="OH"), $J135 + MIN(Inputs!G$10, H136), I135)) -> 2828.314989 | J136: 1685.893407 | K136: 1685.893407 | L136: 933.1589818 | M136: =IF(L136="","",(L136/(C136-C135))*Inputs!E$19) -> 17.19404275
A137: 24 | B137: =IF(OR(C136 >= Inputs!C$21, A136 > Inputs!C$23), 0, B136+1) -> 3 | C137: =IF(0 = B137, Inputs!C$18 + (A137-1)*(Inputs!E$19*Inputs!C$24)/(Inputs!C$23), C136 + (_xlfn.GAMMA.INV( RAND()*0.982 + 0.0052, Inputs!C$16, ((J137-J136)/(Inputs!B$16-Inputs!D$16)) * Inputs!E$16) / (Inputs!B$16+Inputs!D$16))*Inputs!E$19) -> 2038-03-19T08:34:29.878 | D137: =IF(0 = B137, "", IF(AND(G137<I137, K137<(Inputs!G$10-Inputs!G$13)), "MR", "OH")) -> MR | E137: =IF(0=B137,"start",IF(C137>Inputs!$C$21,"past",IF(AND(D137="MR",F137>=Inputs!$G$4),"Sch",IF(D137="OH",IF(H137>=Inputs!$G$10,"Sch", IF(K137>=Inputs!$G$10-Inputs!$G$13,"Uns-BP","Uns")),"Uns")))) -> Uns | F137: =IF(0 = B137, 0, _xlfn.GAMMA.INV(RAND(), Inputs!C$5, Inputs!E$5)) -> 1029.175291 | G137: =IF(0 = B137, 0, $J136 + MIN(Inputs!G$4, F137)) -> 2715.068699 | H137: =IF(0 = B137, 0, IF(OR(B137=1,D136="OH"), _xlfn.GAMMA.INV(RAND(), Inputs!C$11, Inputs!E$11),H136)) -> 2828.314989 | I137: =IF(0 = B137, 0, IF(OR(B137=1,D136="OH"), $J136 + MIN(Inputs!G$10, H137), I136)) -> 2828.314989 | J137: 2715.068699 | K137: 2715.068699 | L137: 1029.175291 | M137: =IF(L137="","",(L137/(C137-C136))*Inputs!E$19) -> 14.84639502
A138: 24 | B138: =IF(OR(C137 >= Inputs!C$21, A137 > Inputs!C$23), 0, B137+1) -> 4 | C138: =IF(0 = B138, Inputs!C$18 + (A138-1)*(Inputs!E$19*Inputs!C$24)/(Inputs!C$23), C137 + (_xlfn.GAMMA.INV( RAND()*0.982 + 0.0052, Inputs!C$16, ((J138-J137)/(Inputs!B$16-Inputs!D$16)) * Inputs!E$16) / (Inputs!B$16+Inputs!D$16))*Inputs!E$19) -> 2038-08-23T23:18:06.158 | D138: =IF(0 = B138, "", IF(AND(G138<I138, K138<(Inputs!G$10-Inputs!G$13)), "MR", "OH")) -> OH | E138: =IF(0=B138,"start",IF(C138>Inputs!$C$21,"past",IF(AND(D138="MR",F138>=Inputs!$G$4),"Sch",IF(D138="OH",IF(H138>=Inputs!$G$10,"Sch", IF(K138>=Inputs!$G$10-Inputs!$G$13,"Uns-BP","Uns")),"Uns")))) -> Uns | F138: =IF(0 = B138, 0, _xlfn.GAMMA.INV(RAND(), Inputs!C$5, Inputs!E$5)) -> 1048.799282 | G138: =IF(0 = B138, 0, $J137 + MIN(Inputs!G$4, F138)) -> 3763.867981 | H138: =IF(0 = B138, 0, IF(OR(B138=1,D137="OH"), _xlfn.GAMMA.INV(RAND(), Inputs!C$11, Inputs!E$11),H137)) -> 2828.314989 | I138: =IF(0 = B138, 0, IF(OR(B138=1,D137="OH"), $J137 + MIN(Inputs!G$10, H138), I137)) -> 2828.314989 | J138: 2828.314989 | K138: 2828.314989 | L138: 113.2462906 | M138: =IF(L138="","",(L138/(C138-C137))*Inputs!E$19) -> 21.86951923
A139: 24 | B139: =IF(OR(C138 >= Inputs!C$21, A138 > Inputs!C$23), 0, B138+1) -> 5 | C139: =IF(0 = B139, Inputs!C$18 + (A139-1)*(Inputs!E$19*Inputs!C$24)/(Inputs!C$23), C138 + (_xlfn.GAMMA.INV( RAND()*0.982 + 0.0052, Inputs!C$16, ((J139-J138)/(Inputs!B$16-Inputs!D$16)) * Inputs!E$16) / (Inputs!B$16+Inputs!D$16))*Inputs!E$19) -> 2042-09-16T23:51:20.908 | D139: =IF(0 = B139, "", IF(AND(G139<I139, K139<(Inputs!G$10-Inputs!G$13)), "MR", "OH")) -> MR | E139: =IF(0=B139,"start",IF(C139>Inputs!$C$21,"past",IF(AND(D139="MR",F139>=Inputs!$G$4),"Sch",IF(D139="OH",IF(H139>=Inputs!$G$10,"Sch", IF(K139>=Inputs!$G$10-Inputs!$G$13,"Uns-BP","Uns")),"Uns")))) -> past | F139: =IF(0 = B139, 0, _xlfn.GAMMA.INV(RAND(), Inputs!C$5, Inputs!E$5)) -> 853.9337583 | G139: =IF(0 = B139, 0, $J138 + MIN(Inputs!G$4, F139)) -> 3682.248748 | H139: =IF(0 = B139, 0, IF(OR(B139=1,D138="OH"), _xlfn.GAMMA.INV(RAND(), Inputs!C$11, Inputs!E$11),H138)) -> 2648.286176 | I139: =IF(0 = B139, 0, IF(OR(B139=1,D138="OH"), $J138 + MIN(Inputs!G$10, H139), I138)) -> 5476.601165 | J139: 3682.248748 | K139: 853.9337583 | L139: 853.9337583 | M139: =IF(L139="","",(L139/(C139-C138))*Inputs!E$19) -> 17.50249474
A140: 25 | B140: =IF(OR(C139 >= Inputs!C$21, A139 > Inputs!C$23), 0, B139+1) -> 0 | C140: =IF(0 = B140, Inputs!C$18 + (A140-1)*(Inputs!E$19*Inputs!C$24)/(Inputs!C$23), C139 + (_xlfn.GAMMA.INV( RAND()*0.982 + 0.0052, Inputs!C$16, ((J140-J139)/(Inputs!B$16-Inputs!D$16)) * Inputs!E$16) / (Inputs!B$16+Inputs!D$16))*Inputs!E$19) -> 2025-01-03T09:02:07.059 | D140: =IF(0 = B140, "", IF(AND(G140<I140, K140<(Inputs!G$10-Inputs!G$13)), "MR", "OH")) ->  | E140: =IF(0=B140,"start",IF(C140>Inputs!$C$21,"past",IF(AND(D140="MR",F140>=Inputs!$G$4),"Sch",IF(D140="OH",IF(H140>=Inputs!$G$10,"Sch", IF(K140>=Inputs!$G$10-Inputs!$G$13,"Uns-BP","Uns")),"Uns")))) -> start | F140: =IF(0 = B140, 0, _xlfn.GAMMA.INV(RAND(), Inputs!C$5, Inputs!E$5)) -> 0 | G140: =IF(0 = B140, 0, $J139 + MIN(Inputs!G$4, F140)) -> 0 | H140: =IF(0 = B140, 0, IF(OR(B140=1,D139="OH"), _xlfn.GAMMA.INV(RAND(), Inputs!C$11, Inputs!E$11),H139)) -> 0 | I140: =IF(0 = B140, 0, IF(OR(B140=1,D139="OH"), $J139 + MIN(Inputs!G$10, H140), I139)) -> 0 | J140: 0 | K140: 0 | M140: =IF(L140="","",(L140/(C140-C139))*Inputs!E$19) -> 
A141: 25 | B141: =IF(OR(C140 >= Inputs!C$21, A140 > Inputs!C$23), 0, B140+1) -> 1 | C141: =IF(0 = B141, Inputs!C$18 + (A141-1)*(Inputs!E$19*Inputs!C$24)/(Inputs!C$23), C140 + (_xlfn.GAMMA.INV( RAND()*0.982 + 0.0052, Inputs!C$16, ((J141-J140)/(Inputs!B$16-Inputs!D$16)) * Inputs!E$16) / (Inputs!B$16+Inputs!D$16))*Inputs!E$19) -> 2030-08-10T19:47:48.288 | D141: =IF(0 = B141, "", IF(AND(G141<I141, K141<(Inputs!G$10-Inputs!G$13)), "MR", "OH")) -> MR | E141: =IF(0=B141,"start",IF(C141>Inputs!$C$21,"past",IF(AND(D141="MR",F141>=Inputs!$G$4),"Sch",IF(D141="OH",IF(H141>=Inputs!$G$10,"Sch", IF(K141>=Inputs!$G$10-Inputs!$G$13,"Uns-BP","Uns")),"Uns")))) -> Uns | F141: =IF(0 = B141, 0, _xlfn.GAMMA.INV(RAND(), Inputs!C$5, Inputs!E$5)) -> 1011.897371 | G141: =IF(0 = B141, 0, $J140 + MIN(Inputs!G$4, F141)) -> 1011.897371 | H141: =IF(0 = B141, 0, IF(OR(B141=1,D140="OH"), _xlfn.GAMMA.INV(RAND(), Inputs!C$11, Inputs!E$11),H140)) -> 2621.73197 | I141: =IF(0 = B141, 0, IF(OR(B141=1,D140="OH"), $J140 + MIN(Inputs!G$10, H141), I140)) -> 2621.73197 | J141: 1011.897371 | K141: 1011.897371 | L141: 1011.897371 | M141: =IF(L141="","",(L141/(C141-C140))*Inputs!E$19) -> 15.05764033
A142: 25 | B142: =IF(OR(C141 >= Inputs!C$21, A141 > Inputs!C$23), 0, B141+1) -> 2 | C142: =IF(0 = B142, Inputs!C$18 + (A142-1)*(Inputs!E$19*Inputs!C$24)/(Inputs!C$23), C141 + (_xlfn.GAMMA.INV( RAND()*0.982 + 0.0052, Inputs!C$16, ((J142-J141)/(Inputs!B$16-Inputs!D$16)) * Inputs!E$16) / (Inputs!B$16+Inputs!D$16))*Inputs!E$19) -> 2034-11-16T08:10:50.162 | D142: =IF(0 = B142, "", IF(AND(G142<I142, K142<(Inputs!G$10-Inputs!G$13)), "MR", "OH")) -> MR | E142: =IF(0=B142,"start",IF(C142>Inputs!$C$21,"past",IF(AND(D142="MR",F142>=Inputs!$G$4),"Sch",IF(D142="OH",IF(H142>=Inputs!$G$10,"Sch", IF(K142>=Inputs!$G$10-Inputs!$G$13,"Uns-BP","Uns")),"Uns")))) -> Uns | F142: =IF(0 = B142, 0, _xlfn.GAMMA.INV(RAND(), Inputs!C$5, Inputs!E$5)) -> 954.3672261 | G142: =IF(0 = B142, 0, $J141 + MIN(Inputs!G$4, F142)) -> 1966.264597 | H142: =IF(0 = B142, 0, IF(OR(B142=1,D141="OH"), _xlfn.GAMMA.INV(RAND(), Inputs!C$11, Inputs!E$11),H141)) -> 2621.73197 | I142: =IF(0 = B142, 0, IF(OR(B142=1,D141="OH"), $J141 + MIN(Inputs!G$10, H142), I141)) -> 2621.73197 | J142: 1966.264597 | K142: 1966.264597 | L142: 954.3672261 | M142: =IF(L142="","",(L142/(C142-C141))*Inputs!E$19) -> 18.63859759
A143: 25 | B143: =IF(OR(C142 >= Inputs!C$21, A142 > Inputs!C$23), 0, B142+1) -> 3 | C143: =IF(0 = B143, Inputs!C$18 + (A143-1)*(Inputs!E$19*Inputs!C$24)/(Inputs!C$23), C142 + (_xlfn.GAMMA.INV( RAND()*0.982 + 0.0052, Inputs!C$16, ((J143-J142)/(Inputs!B$16-Inputs!D$16)) * Inputs!E$16) / (Inputs!B$16+Inputs!D$16))*Inputs!E$19) -> 2037-02-24T01:10:36.802 | D143: =IF(0 = B143, "", IF(AND(G143<I143, K143<(Inputs!G$10-Inputs!G$13)), "MR", "OH")) -> OH | E143: =IF(0=B143,"start",IF(C143>Inputs!$C$21,"past",IF(AND(D143="MR",F143>=Inputs!$G$4),"Sch",IF(D143="OH",IF(H143>=Inputs!$G$10,"Sch", IF(K143>=Inputs!$G$10-Inputs!$G$13,"Uns-BP","Uns")),"Uns")))) -> Uns | F143: =IF(0 = B143, 0, _xlfn.GAMMA.INV(RAND(), Inputs!C$5, Inputs!E$5)) -> 815.847548 | G143: =IF(0 = B143, 0, $J142 + MIN(Inputs!G$4, F143)) -> 2782.112145 | H143: =IF(0 = B143, 0, IF(OR(B143=1,D142="OH"), _xlfn.GAMMA.INV(RAND(), Inputs!C$11, Inputs!E$11),H142)) -> 2621.73197 | I143: =IF(0 = B143, 0, IF(OR(B143=1,D142="OH"), $J142 + MIN(Inputs!G$10, H143), I142)) -> 2621.73197 | J143: 2621.73197 | K143: 2621.73197 | L143: 655.4673725 | M143: =IF(L143="","",(L143/(C143-C142))*Inputs!E$19) -> 24.01660254
A144: 25 | B144: =IF(OR(C143 >= Inputs!C$21, A143 > Inputs!C$23), 0, B143+1) -> 4 | C144: =IF(0 = B144, Inputs!C$18 + (A144-1)*(Inputs!E$19*Inputs!C$24)/(Inputs!C$23), C143 + (_xlfn.GAMMA.INV( RAND()*0.982 + 0.0052, Inputs!C$16, ((J144-J143)/(Inputs!B$16-Inputs!D$16)) * Inputs!E$16) / (Inputs!B$16+Inputs!D$16))*Inputs!E$19) -> 2039-04-27T12:52:06.775 | D144: =IF(0 = B144, "", IF(AND(G144<I144, K144<(Inputs!G$10-Inputs!G$13)), "MR", "OH")) -> MR | E144: =IF(0=B144,"start",IF(C144>Inputs!$C$21,"past",IF(AND(D144="MR",F144>=Inputs!$G$4),"Sch",IF(D144="OH",IF(H144>=Inputs!$G$10,"Sch", IF(K144>=Inputs!$G$10-Inputs!$G$13,"Uns-BP","Uns")),"Uns")))) -> Uns | F144: =IF(0 = B144, 0, _xlfn.GAMMA.INV(RAND(), Inputs!C$5, Inputs!E$5)) -> 830.1599102 | G144: =IF(0 = B144, 0, $J143 + MIN(Inputs!G$4, F144)) -> 3451.89188 | H144: =IF(0 = B144, 0, IF(OR(B144=1,D143="OH"), _xlfn.GAMMA.INV(RAND(), Inputs!C$11, Inputs!E$11),H143)) -> 3191.696124 | I144: =IF(0 = B144, 0, IF(OR(B144=1,D143="OH"), $J143 + MIN(Inputs!G$10, H144), I143)) -> 5813.428093 | J144: 3451.89188 | K144: 830.1599102 | L144: 830.1599102 | M144: =IF(L144="","",(L144/(C144-C143))*Inputs!E$19) -> 31.88441881
A145: 25 | B145: =IF(OR(C144 >= Inputs!C$21, A144 > Inputs!C$23), 0, B144+1) -> 5 | C145: =IF(0 = B145, Inputs!C$18 + (A145-1)*(Inputs!E$19*Inputs!C$24)/(Inputs!C$23), C144 + (_xlfn.GAMMA.INV( RAND()*0.982 + 0.0052, Inputs!C$16, ((J145-J144)/(Inputs!B$16-Inputs!D$16)) * Inputs!E$16) / (Inputs!B$16+Inputs!D$16))*Inputs!E$19) -> 2042-12-19T00:28:32.658 | D145: =IF(0 = B145, "", IF(AND(G145<I145, K145<(Inputs!G$10-Inputs!G$13)), "MR", "OH")) -> MR | E145: =IF(0=B145,"start",IF(C145>Inputs!$C$21,"past",IF(AND(D145="MR",F145>=Inputs!$G$4),"Sch",IF(D145="OH",IF(H145>=Inputs!$G$10,"Sch", IF(K145>=Inputs!$G$10-Inputs!$G$13,"Uns-BP","Uns")),"Uns")))) -> past | F145: =IF(0 = B145, 0, _xlfn.GAMMA.INV(RAND(), Inputs!C$5, Inputs!E$5)) -> 809.2178703 | G145: =IF(0 = B145, 0, $J144 + MIN(Inputs!G$4, F145)) -> 4261.10975 | H145: =IF(0 = B145, 0, IF(OR(B145=1,D144="OH"), _xlfn.GAMMA.INV(RAND(), Inputs!C$11, Inputs!E$11),H144)) -> 3191.696124 | I145: =IF(0 = B145, 0, IF(OR(B145=1,D144="OH"), $J144 + MIN(Inputs!G$10, H145), I144)) -> 5813.428093 | J145: 4261.10975 | K145: 1639.377781 | L145: 809.2178703 | M145: =IF(L145="","",(L145/(C145-C144))*Inputs!E$19) -> 18.49858933
A146: 26 | B146: =IF(OR(C145 >= Inputs!C$21, A145 > Inputs!C$23), 0, B145+1) -> 0 | C146: =IF(0 = B146, Inputs!C$18 + (A146-1)*(Inputs!E$19*Inputs!C$24)/(Inputs!C$23), C145 + (_xlfn.GAMMA.INV( RAND()*0.982 + 0.0052, Inputs!C$16, ((J146-J145)/(Inputs!B$16-Inputs!D$16)) * Inputs!E$16) / (Inputs!B$16+Inputs!D$16))*Inputs!E$19) -> 2025-01-04T19:24:42.353 | D146: =IF(0 = B146, "", IF(AND(G146<I146, K146<(Inputs!G$10-Inputs!G$13)), "MR", "OH")) ->  | E146: =IF(0=B146,"start",IF(C146>Inputs!$C$21,"past",IF(AND(D146="MR",F146>=Inputs!$G$4),"Sch",IF(D146="OH",IF(H146>=Inputs!$G$10,"Sch", IF(K146>=Inputs!$G$10-Inputs!$G$13,"Uns-BP","Uns")),"Uns")))) -> start | F146: =IF(0 = B146, 0, _xlfn.GAMMA.INV(RAND(), Inputs!C$5, Inputs!E$5)) -> 0 | G146: =IF(0 = B146, 0, $J145 + MIN(Inputs!G$4, F146)) -> 0 | H146: =IF(0 = B146, 0, IF(OR(B146=1,D145="OH"), _xlfn.GAMMA.INV(RAND(), Inputs!C$11, Inputs!E$11),H145)) -> 0 | I146: =IF(0 = B146, 0, IF(OR(B146=1,D145="OH"), $J145 + MIN(Inputs!G$10, H146), I145)) -> 0 | J146: 0 | K146: 0 | M146: =IF(L146="","",(L146/(C146-C145))*Inputs!E$19) -> 
A147: 26 | B147: =IF(OR(C146 >= Inputs!C$21, A146 > Inputs!C$23), 0, B146+1) -> 1 | C147: =IF(0 = B147, Inputs!C$18 + (A147-1)*(Inputs!E$19*Inputs!C$24)/(Inputs!C$23), C146 + (_xlfn.GAMMA.INV( RAND()*0.982 + 0.0052, Inputs!C$16, ((J147-J146)/(Inputs!B$16-Inputs!D$16)) * Inputs!E$16) / (Inputs!B$16+Inputs!D$16))*Inputs!E$19) -> 2027-03-28T18:01:01.422 | D147: =IF(0 = B147, "", IF(AND(G147<I147, K147<(Inputs!G$10-Inputs!G$13)), "MR", "OH")) -> MR | E147: =IF(0=B147,"start",IF(C147>Inputs!$C$21,"past",IF(AND(D147="MR",F147>=Inputs!$G$4),"Sch",IF(D147="OH",IF(H147>=Inputs!$G$10,"Sch", IF(K147>=Inputs!$G$10-Inputs!$G$13,"Uns-BP","Uns")),"Uns")))) -> Uns | F147: =IF(0 = B147, 0, _xlfn.GAMMA.INV(RAND(), Inputs!C$5, Inputs!E$5)) -> 847.2920599 | G147: =IF(0 = B147, 0, $J146 + MIN(Inputs!G$4, F147)) -> 847.2920599 | H147: =IF(0 = B147, 0, IF(OR(B147=1,D146="OH"), _xlfn.GAMMA.INV(RAND(), Inputs!C$11, Inputs!E$11),H146)) -> 3155.504149 | I147: =IF(0 = B147, 0, IF(OR(B147=1,D146="OH"), $J146 + MIN(Inputs!G$10, H147), I146)) -> 3155.504149 | J147: 847.2920599 | K147: 847.2920599 | L147: 847.2920599 | M147: =IF(L147="","",(L147/(C147-C146))*Inputs!E$19) -> 31.72361084
A148: 26 | B148: =IF(OR(C147 >= Inputs!C$21, A147 > Inputs!C$23), 0, B147+1) -> 2 | C148: =IF(0 = B148, Inputs!C$18 + (A148-1)*(Inputs!E$19*Inputs!C$24)/(Inputs!C$23), C147 + (_xlfn.GAMMA.INV( RAND()*0.982 + 0.0052, Inputs!C$16, ((J148-J147)/(Inputs!B$16-Inputs!D$16)) * Inputs!E$16) / (Inputs!B$16+Inputs!D$16))*Inputs!E$19) -> 2031-02-18T10:47:50.254 | D148: =IF(0 = B148, "", IF(AND(G148<I148, K148<(Inputs!G$10-Inputs!G$13)), "MR", "OH")) -> MR | E148: =IF(0=B148,"start",IF(C148>Inputs!$C$21,"past",IF(AND(D148="MR",F148>=Inputs!$G$4),"Sch",IF(D148="OH",IF(H148>=Inputs!$G$10,"Sch", IF(K148>=Inputs!$G$10-Inputs!$G$13,"Uns-BP","Uns")),"Uns")))) -> Uns | F148: =IF(0 = B148, 0, _xlfn.GAMMA.INV(RAND(), Inputs!C$5, Inputs!E$5)) -> 741.7368297 | G148: =IF(0 = B148, 0, $J147 + MIN(Inputs!G$4, F148)) -> 1589.02889 | H148: =IF(0 = B148, 0, IF(OR(B148=1,D147="OH"), _xlfn.GAMMA.INV(RAND(), Inputs!C$11, Inputs!E$11),H147)) -> 3155.504149 | I148: =IF(0 = B148, 0, IF(OR(B148=1,D147="OH"), $J147 + MIN(Inputs!G$10, H148), I147)) -> 3155.504149 | J148: 1589.02889 | K148: 1589.02889 | L148: 741.7368297 | M148: =IF(L148="","",(L148/(C148-C147))*Inputs!E$19) -> 15.86886049
A149: 26 | B149: =IF(OR(C148 >= Inputs!C$21, A148 > Inputs!C$23), 0, B148+1) -> 3 | C149: =IF(0 = B149, Inputs!C$18 + (A149-1)*(Inputs!E$19*Inputs!C$24)/(Inputs!C$23), C148 + (_xlfn.GAMMA.INV( RAND()*0.982 + 0.0052, Inputs!C$16, ((J149-J148)/(Inputs!B$16-Inputs!D$16)) * Inputs!E$16) / (Inputs!B$16+Inputs!D$16))*Inputs!E$19) -> 2034-04-30T11:14:42.029 | D149: =IF(0 = B149, "", IF(AND(G149<I149, K149<(Inputs!G$10-Inputs!G$13)), "MR", "OH")) -> MR | E149: =IF(0=B149,"start",IF(C149>Inputs!$C$21,"past",IF(AND(D149="MR",F149>=Inputs!$G$4),"Sch",IF(D149="OH",IF(H149>=Inputs!$G$10,"Sch", IF(K149>=Inputs!$G$10-Inputs!$G$13,"Uns-BP","Uns")),"Uns")))) -> Uns | F149: =IF(0 = B149, 0, _xlfn.GAMMA.INV(RAND(), Inputs!C$5, Inputs!E$5)) -> 820.964542 | G149: =IF(0 = B149, 0, $J148 + MIN(Inputs!G$4, F149)) -> 2409.993432 | H149: =IF(0 = B149, 0, IF(OR(B149=1,D148="OH"), _xlfn.GAMMA.INV(RAND(), Inputs!C$11, Inputs!E$11),H148)) -> 3155.504149 | I149: =IF(0 = B149, 0, IF(OR(B149=1,D148="OH"), $J148 + MIN(Inputs!G$10, H149), I148)) -> 3155.504149 | J149: 2409.993432 | K149: 2409.993432 | L149: 820.964542 | M149: =IF(L149="","",(L149/(C149-C148))*Inputs!E$19) -> 21.41191843
A150: 26 | B150: =IF(OR(C149 >= Inputs!C$21, A149 > Inputs!C$23), 0, B149+1) -> 4 | C150: =IF(0 = B150, Inputs!C$18 + (A150-1)*(Inputs!E$19*Inputs!C$24)/(Inputs!C$23), C149 + (_xlfn.GAMMA.INV( RAND()*0.982 + 0.0052, Inputs!C$16, ((J150-J149)/(Inputs!B$16-Inputs!D$16)) * Inputs!E$16) / (Inputs!B$16+Inputs!D$16))*Inputs!E$19) -> 2037-05-14T14:58:01.921 | D150: =IF(0 = B150, "", IF(AND(G150<I150, K150<(Inputs!G$10-Inputs!G$13)), "MR", "OH")) -> OH | E150: =IF(0=B150,"start",IF(C150>Inputs!$C$21,"past",IF(AND(D150="MR",F150>=Inputs!$G$4),"Sch",IF(D150="OH",IF(H150>=Inputs!$G$10,"Sch", IF(K150>=Inputs!$G$10-Inputs!$G$13,"Uns-BP","Uns")),"Uns")))) -> Uns-BP | F150: =IF(0 = B150, 0, _xlfn.GAMMA.INV(RAND(), Inputs!C$5, Inputs!E$5)) -> 799.1907974 | G150: =IF(0 = B150, 0, $J149 + MIN(Inputs!G$4, F150)) -> 3209.184229 | H150: =IF(0 = B150, 0, IF(OR(B150=1,D149="OH"), _xlfn.GAMMA.INV(RAND(), Inputs!C$11, Inputs!E$11),H149)) -> 3155.504149 | I150: =IF(0 = B150, 0, IF(OR(B150=1,D149="OH"), $J149 + MIN(Inputs!G$10, H150), I149)) -> 3155.504149 | J150: 3155.504149 | K150: 3155.504149 | L150: 745.5107175 | M150: =IF(L150="","",(L150/(C150-C149))*Inputs!E$19) -> 20.43992109
A151: 26 | B151: =IF(OR(C150 >= Inputs!C$21, A150 > Inputs!C$23), 0, B150+1) -> 5 | C151: =IF(0 = B151, Inputs!C$18 + (A151-1)*(Inputs!E$19*Inputs!C$24)/(Inputs!C$23), C150 + (_xlfn.GAMMA.INV( RAND()*0.982 + 0.0052, Inputs!C$16, ((J151-J150)/(Inputs!B$16-Inputs!D$16)) * Inputs!E$16) / (Inputs!B$16+Inputs!D$16))*Inputs!E$19) -> 2042-04-09T19:09:37.200 | D151: =IF(0 = B151, "", IF(AND(G151<I151, K151<(Inputs!G$10-Inputs!G$13)), "MR", "OH")) -> MR | E151: =IF(0=B151,"start",IF(C151>Inputs!$C$21,"past",IF(AND(D151="MR",F151>=Inputs!$G$4),"Sch",IF(D151="OH",IF(H151>=Inputs!$G$10,"Sch", IF(K151>=Inputs!$G$10-Inputs!$G$13,"Uns-BP","Uns")),"Uns")))) -> past | F151: =IF(0 = B151, 0, _xlfn.GAMMA.INV(RAND(), Inputs!C$5, Inputs!E$5)) -> 914.8030311 | G151: =IF(0 = B151, 0, $J150 + MIN(Inputs!G$4, F151)) -> 4070.30718 | H151: =IF(0 = B151, 0, IF(OR(B151=1,D150="OH"), _xlfn.GAMMA.INV(RAND(), Inputs!C$11, Inputs!E$11),H150)) -> 2982.623988 | I151: =IF(0 = B151, 0, IF(OR(B151=1,D150="OH"), $J150 + MIN(Inputs!G$10, H151), I150)) -> 6138.128137 | J151: 4070.30718 | K151: 914.8030311 | L151: 914.8030311 | M151: =IF(L151="","",(L151/(C151-C150))*Inputs!E$19) -> 15.54528268
A152: 27 | B152: =IF(OR(C151 >= Inputs!C$21, A151 > Inputs!C$23), 0, B151+1) -> 0 | C152: =IF(0 = B152, Inputs!C$18 + (A152-1)*(Inputs!E$19*Inputs!C$24)/(Inputs!C$23), C151 + (_xlfn.GAMMA.INV( RAND()*0.982 + 0.0052, Inputs!C$16, ((J152-J151)/(Inputs!B$16-Inputs!D$16)) * Inputs!E$16) / (Inputs!B$16+Inputs!D$16))*Inputs!E$19) -> 2025-01-06T05:47:17.647 | D152: =IF(0 = B152, "", IF(AND(G152<I152, K152<(Inputs!G$10-Inputs!G$13)), "MR", "OH")) ->  | E152: =IF(0=B152,"start",IF(C152>Inputs!$C$21,"past",IF(AND(D152="MR",F152>=Inputs!$G$4),"Sch",IF(D152="OH",IF(H152>=Inputs!$G$10,"Sch", IF(K152>=Inputs!$G$10-Inputs!$G$13,"Uns-BP","Uns")),"Uns")))) -> start | F152: =IF(0 = B152, 0, _xlfn.GAMMA.INV(RAND(), Inputs!C$5, Inputs!E$5)) -> 0 | G152: =IF(0 = B152, 0, $J151 + MIN(Inputs!G$4, F152)) -> 0 | H152: =IF(0 = B152, 0, IF(OR(B152=1,D151="OH"), _xlfn.GAMMA.INV(RAND(), Inputs!C$11, Inputs!E$11),H151)) -> 0 | I152: =IF(0 = B152, 0, IF(OR(B152=1,D151="OH"), $J151 + MIN(Inputs!G$10, H152), I151)) -> 0 | J152: 0 | K152: 0 | M152: =IF(L152="","",(L152/(C152-C151))*Inputs!E$19) -> 
A153: 27 | B153: =IF(OR(C152 >= Inputs!C$21, A152 > Inputs!C$23), 0, B152+1) -> 1 | C153: =IF(0 = B153, Inputs!C$18 + (A153-1)*(Inputs!E$19*Inputs!C$24)/(Inputs!C$23), C152 + (_xlfn.GAMMA.INV( RAND()*0.982 + 0.0052, Inputs!C$16, ((J153-J152)/(Inputs!B$16-Inputs!D$16)) * Inputs!E$16) / (Inputs!B$16+Inputs!D$16))*Inputs!E$19) -> 2029-05-30T01:59:53.805 | D153: =IF(0 = B153, "", IF(AND(G153<I153, K153<(Inputs!G$10-Inputs!G$13)), "MR", "OH")) -> MR | E153: =IF(0=B153,"start",IF(C153>Inputs!$C$21,"past",IF(AND(D153="MR",F153>=Inputs!$G$4),"Sch",IF(D153="OH",IF(H153>=Inputs!$G$10,"Sch", IF(K153>=Inputs!$G$10-Inputs!$G$13,"Uns-BP","Uns")),"Uns")))) -> Uns | F153: =IF(0 = B153, 0, _xlfn.GAMMA.INV(RAND(), Inputs!C$5, Inputs!E$5)) -> 967.4314737 | G153: =IF(0 = B153, 0, $J152 + MIN(Inputs!G$4, F153)) -> 967.4314737 | H153: =IF(0 = B153, 0, IF(OR(B153=1,D152="OH"), _xlfn.GAMMA.INV(RAND(), Inputs!C$11, Inputs!E$11),H152)) -> 2847.782845 | I153: =IF(0 = B153, 0, IF(OR(B153=1,D152="OH"), $J152 + MIN(Inputs!G$10, H153), I152)) -> 2847.782845 | J153: 967.4314737 | K153: 967.4314737 | L153: 967.4314737 | M153: =IF(L153="","",(L153/(C153-C152))*Inputs!E$19) -> 18.34834452
A154: 27 | B154: =IF(OR(C153 >= Inputs!C$21, A153 > Inputs!C$23), 0, B153+1) -> 2 | C154: =IF(0 = B154, Inputs!C$18 + (A154-1)*(Inputs!E$19*Inputs!C$24)/(Inputs!C$23), C153 + (_xlfn.GAMMA.INV( RAND()*0.982 + 0.0052, Inputs!C$16, ((J154-J153)/(Inputs!B$16-Inputs!D$16)) * Inputs!E$16) / (Inputs!B$16+Inputs!D$16))*Inputs!E$19) -> 2033-04-13T19:54:29.556 | D154: =IF(0 = B154, "", IF(AND(G154<I154, K154<(Inputs!G$10-Inputs!G$13)), "MR", "OH")) -> MR | E154: =IF(0=B154,"start",IF(C154>Inputs!$C$21,"past",IF(AND(D154="MR",F154>=Inputs!$G$4),"Sch",IF(D154="OH",IF(H154>=Inputs!$G$10,"Sch", IF(K154>=Inputs!$G$10-Inputs!$G$13,"Uns-BP","Uns")),"Uns")))) -> Uns | F154: =IF(0 = B154, 0, _xlfn.GAMMA.INV(RAND(), Inputs!C$5, Inputs!E$5)) -> 886.4185258 | G154: =IF(0 = B154, 0, $J153 + MIN(Inputs!G$4, F154)) -> 1853.849999 | H154: =IF(0 = B154, 0, IF(OR(B154=1,D153="OH"), _xlfn.GAMMA.INV(RAND(), Inputs!C$11, Inputs!E$11),H153)) -> 2847.782845 | I154: =IF(0 = B154, 0, IF(OR(B154=1,D153="OH"), $J153 + MIN(Inputs!G$10, H154), I153)) -> 2847.782845 | J154: 1853.849999 | K154: 1853.849999 | L154: 886.4185258 | M154: =IF(L154="","",(L154/(C154-C153))*Inputs!E$19) -> 19.07081495
A155: 27 | B155: =IF(OR(C154 >= Inputs!C$21, A154 > Inputs!C$23), 0, B154+1) -> 3 | C155: =IF(0 = B155, Inputs!C$18 + (A155-1)*(Inputs!E$19*Inputs!C$24)/(Inputs!C$23), C154 + (_xlfn.GAMMA.INV( RAND()*0.982 + 0.0052, Inputs!C$16, ((J155-J154)/(Inputs!B$16-Inputs!D$16)) * Inputs!E$16) / (Inputs!B$16+Inputs!D$16))*Inputs!E$19) -> 2036-08-27T14:31:39.586 | D155: =IF(0 = B155, "", IF(AND(G155<I155, K155<(Inputs!G$10-Inputs!G$13)), "MR", "OH")) -> OH | E155: =IF(0=B155,"start",IF(C155>Inputs!$C$21,"past",IF(AND(D155="MR",F155>=Inputs!$G$4),"Sch",IF(D155="OH",IF(H155>=Inputs!$G$10,"Sch", IF(K155>=Inputs!$G$10-Inputs!$G$13,"Uns-BP","Uns")),"Uns")))) -> Uns | F155: =IF(0 = B155, 0, _xlfn.GAMMA.INV(RAND(), Inputs!C$5, Inputs!E$5)) -> 1103.612928 | G155: =IF(0 = B155, 0, $J154 + MIN(Inputs!G$4, F155)) -> 2903.849999 | H155: =IF(0 = B155, 0, IF(OR(B155=1,D154="OH"), _xlfn.GAMMA.INV(RAND(), Inputs!C$11, Inputs!E$11),H154)) -> 2847.782845 | I155: =IF(0 = B155, 0, IF(OR(B155=1,D154="OH"), $J154 + MIN(Inputs!G$10, H155), I154)) -> 2847.782845 | J155: 2847.782845 | K155: 2847.782845 | L155: 993.9328456 | M155: =IF(L155="","",(L155/(C155-C154))*Inputs!E$19) -> 24.5603386
A156: 27 | B156: =IF(OR(C155 >= Inputs!C$21, A155 > Inputs!C$23), 0, B155+1) -> 4 | C156: =IF(0 = B156, Inputs!C$18 + (A156-1)*(Inputs!E$19*Inputs!C$24)/(Inputs!C$23), C155 + (_xlfn.GAMMA.INV( RAND()*0.982 + 0.0052, Inputs!C$16, ((J156-J155)/(Inputs!B$16-Inputs!D$16)) * Inputs!E$16) / (Inputs!B$16+Inputs!D$16))*Inputs!E$19) -> 2039-12-05T00:42:52.014 | D156: =IF(0 = B156, "", IF(AND(G156<I156, K156<(Inputs!G$10-Inputs!G$13)), "MR", "OH")) -> MR | E156: =IF(0=B156,"start",IF(C156>Inputs!$C$21,"past",IF(AND(D156="MR",F156>=Inputs!$G$4),"Sch",IF(D156="OH",IF(H156>=Inputs!$G$10,"Sch", IF(K156>=Inputs!$G$10-Inputs!$G$13,"Uns-BP","Uns")),"Uns")))) -> past | F156: =IF(0 = B156, 0, _xlfn.GAMMA.INV(RAND(), Inputs!C$5, Inputs!E$5)) -> 863.9065909 | G156: =IF(0 = B156, 0, $J155 + MIN(Inputs!G$4, F156)) -> 3711.689436 | H156: =IF(0 = B156, 0, IF(OR(B156=1,D155="OH"), _xlfn.GAMMA.INV(RAND(), Inputs!C$11, Inputs!E$11),H155)) -> 2820.364076 | I156: =IF(0 = B156, 0, IF(OR(B156=1,D155="OH"), $J155 + MIN(Inputs!G$10, H156), I155)) -> 5668.146921 | J156: 3711.689436 | K156: 863.9065909 | L156: 863.9065909 | M156: =IF(L156="","",(L156/(C156-C155))*Inputs!E$19) -> 22.01491846
A157: 28 | B157: =IF(OR(C156 >= Inputs!C$21, A156 > Inputs!C$23), 0, B156+1) -> 0 | C157: =IF(0 = B157, Inputs!C$18 + (A157-1)*(Inputs!E$19*Inputs!C$24)/(Inputs!C$23), C156 + (_xlfn.GAMMA.INV( RAND()*0.982 + 0.0052, Inputs!C$16, ((J157-J156)/(Inputs!B$16-Inputs!D$16)) * Inputs!E$16) / (Inputs!B$16+Inputs!D$16))*Inputs!E$19) -> 2025-01-07T16:09:52.941 | D157: =IF(0 = B157, "", IF(AND(G157<I157, K157<(Inputs!G$10-Inputs!G$13)), "MR", "OH")) ->  | E157: =IF(0=B157,"start",IF(C157>Inputs!$C$21,"past",IF(AND(D157="MR",F157>=Inputs!$G$4),"Sch",IF(D157="OH",IF(H157>=Inputs!$G$10,"Sch", IF(K157>=Inputs!$G$10-Inputs!$G$13,"Uns-BP","Uns")),"Uns")))) -> start | F157: =IF(0 = B157, 0, _xlfn.GAMMA.INV(RAND(), Inputs!C$5, Inputs!E$5)) -> 0 | G157: =IF(0 = B157, 0, $J156 + MIN(Inputs!G$4, F157)) -> 0 | H157: =IF(0 = B157, 0, IF(OR(B157=1,D156="OH"), _xlfn.GAMMA.INV(RAND(), Inputs!C$11, Inputs!E$11),H156)) -> 0 | I157: =IF(0 = B157, 0, IF(OR(B157=1,D156="OH"), $J156 + MIN(Inputs!G$10, H157), I156)) -> 0 | J157: 0 | K157: 0 | M157: =IF(L157="","",(L157/(C157-C156))*Inputs!E$19) -> 
A158: 28 | B158: =IF(OR(C157 >= Inputs!C$21, A157 > Inputs!C$23), 0, B157+1) -> 1 | C158: =IF(0 = B158, Inputs!C$18 + (A158-1)*(Inputs!E$19*Inputs!C$24)/(Inputs!C$23), C157 + (_xlfn.GAMMA.INV( RAND()*0.982 + 0.0052, Inputs!C$16, ((J158-J157)/(Inputs!B$16-Inputs!D$16)) * Inputs!E$16) / (Inputs!B$16+Inputs!D$16))*Inputs!E$19) -> 2028-04-23T19:27:37.329 | D158: =IF(0 = B158, "", IF(AND(G158<I158, K158<(Inputs!G$10-Inputs!G$13)), "MR", "OH")) -> MR | E158: =IF(0=B158,"start",IF(C158>Inputs!$C$21,"past",IF(AND(D158="MR",F158>=Inputs!$G$4),"Sch",IF(D158="OH",IF(H158>=Inputs!$G$10,"Sch", IF(K158>=Inputs!$G$10-Inputs!$G$13,"Uns-BP","Uns")),"Uns")))) -> Uns | F158: =IF(0 = B158, 0, _xlfn.GAMMA.INV(RAND(), Inputs!C$5, Inputs!E$5)) -> 697.1328867 | G158: =IF(0 = B158, 0, $J157 + MIN(Inputs!G$4, F158)) -> 697.1328867 | H158: =IF(0 = B158, 0, IF(OR(B158=1,D157="OH"), _xlfn.GAMMA.INV(RAND(), Inputs!C$11, Inputs!E$11),H157)) -> 2768.869533 | I158: =IF(0 = B158, 0, IF(OR(B158=1,D157="OH"), $J157 + MIN(Inputs!G$10, H158), I157)) -> 2768.869533 | J158: 697.1328867 | K158: 697.1328867 | L158: 697.1328867 | M158: =IF(L158="","",(L158/(C158-C157))*Inputs!E$19) -> 17.65104693
A159: 28 | B159: =IF(OR(C158 >= Inputs!C$21, A158 > Inputs!C$23), 0, B158+1) -> 2 | C159: =IF(0 = B159, Inputs!C$18 + (A159-1)*(Inputs!E$19*Inputs!C$24)/(Inputs!C$23), C158 + (_xlfn.GAMMA.INV( RAND()*0.982 + 0.0052, Inputs!C$16, ((J159-J158)/(Inputs!B$16-Inputs!D$16)) * Inputs!E$16) / (Inputs!B$16+Inputs!D$16))*Inputs!E$19) -> 2031-12-06T23:28:39.351 | D159: =IF(0 = B159, "", IF(AND(G159<I159, K159<(Inputs!G$10-Inputs!G$13)), "MR", "OH")) -> MR | E159: =IF(0=B159,"start",IF(C159>Inputs!$C$21,"past",IF(AND(D159="MR",F159>=Inputs!$G$4),"Sch",IF(D159="OH",IF(H159>=Inputs!$G$10,"Sch", IF(K159>=Inputs!$G$10-Inputs!$G$13,"Uns-BP","Uns")),"Uns")))) -> Uns | F159: =IF(0 = B159, 0, _xlfn.GAMMA.INV(RAND(), Inputs!C$5, Inputs!E$5)) -> 950.3925364 | G159: =IF(0 = B159, 0, $J158 + MIN(Inputs!G$4, F159)) -> 1647.525423 | H159: =IF(0 = B159, 0, IF(OR(B159=1,D158="OH"), _xlfn.GAMMA.INV(RAND(), Inputs!C$11, Inputs!E$11),H158)) -> 2768.869533 | I159: =IF(0 = B159, 0, IF(OR(B159=1,D158="OH"), $J158 + MIN(Inputs!G$10, H159), I158)) -> 2768.869533 | J159: 1647.525423 | K159: 1647.525423 | L159: 950.3925364 | M159: =IF(L159="","",(L159/(C159-C158))*Inputs!E$19) -> 21.87890366
A160: 28 | B160: =IF(OR(C159 >= Inputs!C$21, A159 > Inputs!C$23), 0, B159+1) -> 3 | C160: =IF(0 = B160, Inputs!C$18 + (A160-1)*(Inputs!E$19*Inputs!C$24)/(Inputs!C$23), C159 + (_xlfn.GAMMA.INV( RAND()*0.982 + 0.0052, Inputs!C$16, ((J160-J159)/(Inputs!B$16-Inputs!D$16)) * Inputs!E$16) / (Inputs!B$16+Inputs!D$16))*Inputs!E$19) -> 2037-01-02T10:18:46.998 | D160: =IF(0 = B160, "", IF(AND(G160<I160, K160<(Inputs!G$10-Inputs!G$13)), "MR", "OH")) -> MR | E160: =IF(0=B160,"start",IF(C160>Inputs!$C$21,"past",IF(AND(D160="MR",F160>=Inputs!$G$4),"Sch",IF(D160="OH",IF(H160>=Inputs!$G$10,"Sch", IF(K160>=Inputs!$G$10-Inputs!$G$13,"Uns-BP","Uns")),"Uns")))) -> Uns | F160: =IF(0 = B160, 0, _xlfn.GAMMA.INV(RAND(), Inputs!C$5, Inputs!E$5)) -> 917.6012612 | G160: =IF(0 = B160, 0, $J159 + MIN(Inputs!G$4, F160)) -> 2565.126684 | H160: =IF(0 = B160, 0, IF(OR(B160=1,D159="OH"), _xlfn.GAMMA.INV(RAND(), Inputs!C$11, Inputs!E$11),H159)) -> 2768.869533 | I160: =IF(0 = B160, 0, IF(OR(B160=1,D159="OH"), $J159 + MIN(Inputs!G$10, H160), I159)) -> 2768.869533 | J160: 2565.126684 | K160: 2565.126684 | L160: 917.6012612 | M160: =IF(L160="","",(L160/(C160-C159))*Inputs!E$19) -> 15.06890724
A161: 28 | B161: =IF(OR(C160 >= Inputs!C$21, A160 > Inputs!C$23), 0, B160+1) -> 4 | C161: =IF(0 = B161, Inputs!C$18 + (A161-1)*(Inputs!E$19*Inputs!C$24)/(Inputs!C$23), C160 + (_xlfn.GAMMA.INV( RAND()*0.982 + 0.0052, Inputs!C$16, ((J161-J160)/(Inputs!B$16-Inputs!D$16)) * Inputs!E$16) / (Inputs!B$16+Inputs!D$16))*Inputs!E$19) -> 2037-08-20T19:33:18.288 | D161: =IF(0 = B161, "", IF(AND(G161<I161, K161<(Inputs!G$10-Inputs!G$13)), "MR", "OH")) -> OH | E161: =IF(0=B161,"start",IF(C161>Inputs!$C$21,"past",IF(AND(D161="MR",F161>=Inputs!$G$4),"Sch",IF(D161="OH",IF(H161>=Inputs!$G$10,"Sch", IF(K161>=Inputs!$G$10-Inputs!$G$13,"Uns-BP","Uns")),"Uns")))) -> Uns | F161: =IF(0 = B161, 0, _xlfn.GAMMA.INV(RAND(), Inputs!C$5, Inputs!E$5)) -> 743.5542124 | G161: =IF(0 = B161, 0, $J160 + MIN(Inputs!G$4, F161)) -> 3308.680897 | H161: =IF(0 = B161, 0, IF(OR(B161=1,D160="OH"), _xlfn.GAMMA.INV(RAND(), Inputs!C$11, Inputs!E$11),H160)) -> 2768.869533 | I161: =IF(0 = B161, 0, IF(OR(B161=1,D160="OH"), $J160 + MIN(Inputs!G$10, H161), I160)) -> 2768.869533 | J161: 2768.869533 | K161: 2768.869533 | L161: 203.7428491 | M161: =IF(L161="","",(L161/(C161-C160))*Inputs!E$19) -> 26.91764089
A162: 28 | B162: =IF(OR(C161 >= Inputs!C$21, A161 > Inputs!C$23), 0, B161+1) -> 5 | C162: =IF(0 = B162, Inputs!C$18 + (A162-1)*(Inputs!E$19*Inputs!C$24)/(Inputs!C$23), C161 + (_xlfn.GAMMA.INV( RAND()*0.982 + 0.0052, Inputs!C$16, ((J162-J161)/(Inputs!B$16-Inputs!D$16)) * Inputs!E$16) / (Inputs!B$16+Inputs!D$16))*Inputs!E$19) -> 2041-08-15T00:41:01.723 | D162: =IF(0 = B162, "", IF(AND(G162<I162, K162<(Inputs!G$10-Inputs!G$13)), "MR", "OH")) -> MR | E162: =IF(0=B162,"start",IF(C162>Inputs!$C$21,"past",IF(AND(D162="MR",F162>=Inputs!$G$4),"Sch",IF(D162="OH",IF(H162>=Inputs!$G$10,"Sch", IF(K162>=Inputs!$G$10-Inputs!$G$13,"Uns-BP","Uns")),"Uns")))) -> past | F162: =IF(0 = B162, 0, _xlfn.GAMMA.INV(RAND(), Inputs!C$5, Inputs!E$5)) -> 850.1223668 | G162: =IF(0 = B162, 0, $J161 + MIN(Inputs!G$4, F162)) -> 3618.9919 | H162: =IF(0 = B162, 0, IF(OR(B162=1,D161="OH"), _xlfn.GAMMA.INV(RAND(), Inputs!C$11, Inputs!E$11),H161)) -> 2717.852532 | I162: =IF(0 = B162, 0, IF(OR(B162=1,D161="OH"), $J161 + MIN(Inputs!G$10, H162), I161)) -> 5486.722066 | J162: 3618.9919 | K162: 850.1223668 | L162: 850.1223668 | M162: =IF(L162="","",(L162/(C162-C161))*Inputs!E$19) -> 17.78130565
A163: 29 | B163: =IF(OR(C162 >= Inputs!C$21, A162 > Inputs!C$23), 0, B162+1) -> 0 | C163: =IF(0 = B163, Inputs!C$18 + (A163-1)*(Inputs!E$19*Inputs!C$24)/(Inputs!C$23), C162 + (_xlfn.GAMMA.INV( RAND()*0.982 + 0.0052, Inputs!C$16, ((J163-J162)/(Inputs!B$16-Inputs!D$16)) * Inputs!E$16) / (Inputs!B$16+Inputs!D$16))*Inputs!E$19) -> 2025-01-09T02:32:28.235 | D163: =IF(0 = B163, "", IF(AND(G163<I163, K163<(Inputs!G$10-Inputs!G$13)), "MR", "OH")) ->  | E163: =IF(0=B163,"start",IF(C163>Inputs!$C$21,"past",IF(AND(D163="MR",F163>=Inputs!$G$4),"Sch",IF(D163="OH",IF(H163>=Inputs!$G$10,"Sch", IF(K163>=Inputs!$G$10-Inputs!$G$13,"Uns-BP","Uns")),"Uns")))) -> start | F163: =IF(0 = B163, 0, _xlfn.GAMMA.INV(RAND(), Inputs!C$5, Inputs!E$5)) -> 0 | G163: =IF(0 = B163, 0, $J162 + MIN(Inputs!G$4, F163)) -> 0 | H163: =IF(0 = B163, 0, IF(OR(B163=1,D162="OH"), _xlfn.GAMMA.INV(RAND(), Inputs!C$11, Inputs!E$11),H162)) -> 0 | I163: =IF(0 = B163, 0, IF(OR(B163=1,D162="OH"), $J162 + MIN(Inputs!G$10, H163), I162)) -> 0 | J163: 0 | K163: 0 | M163: =IF(L163="","",(L163/(C163-C162))*Inputs!E$19) -> 
A164: 29 | B164: =IF(OR(C163 >= Inputs!C$21, A163 > Inputs!C$23), 0, B163+1) -> 1 | C164: =IF(0 = B164, Inputs!C$18 + (A164-1)*(Inputs!E$19*Inputs!C$24)/(Inputs!C$23), C163 + (_xlfn.GAMMA.INV( RAND()*0.982 + 0.0052, Inputs!C$16, ((J164-J163)/(Inputs!B$16-Inputs!D$16)) * Inputs!E$16) / (Inputs!B$16+Inputs!D$16))*Inputs!E$19) -> 2028-01-28T21:57:17.068 | D164: =IF(0 = B164, "", IF(AND(G164<I164, K164<(Inputs!G$10-Inputs!G$13)), "MR", "OH")) -> MR | E164: =IF(0=B164,"start",IF(C164>Inputs!$C$21,"past",IF(AND(D164="MR",F164>=Inputs!$G$4),"Sch",IF(D164="OH",IF(H164>=Inputs!$G$10,"Sch", IF(K164>=Inputs!$G$10-Inputs!$G$13,"Uns-BP","Uns")),"Uns")))) -> Uns | F164: =IF(0 = B164, 0, _xlfn.GAMMA.INV(RAND(), Inputs!C$5, Inputs!E$5)) -> 957.0463798 | G164: =IF(0 = B164, 0, $J163 + MIN(Inputs!G$4, F164)) -> 957.0463798 | H164: =IF(0 = B164, 0, IF(OR(B164=1,D163="OH"), _xlfn.GAMMA.INV(RAND(), Inputs!C$11, Inputs!E$11),H163)) -> 3048.520126 | I164: =IF(0 = B164, 0, IF(OR(B164=1,D163="OH"), $J163 + MIN(Inputs!G$10, H164), I163)) -> 3048.520126 | J164: 957.0463798 | K164: 957.0463798 | L164: 957.0463798 | M164: =IF(L164="","",(L164/(C164-C163))*Inputs!E$19) -> 26.13012797
A165: 29 | B165: =IF(OR(C164 >= Inputs!C$21, A164 > Inputs!C$23), 0, B164+1) -> 2 | C165: =IF(0 = B165, Inputs!C$18 + (A165-1)*(Inputs!E$19*Inputs!C$24)/(Inputs!C$23), C164 + (_xlfn.GAMMA.INV( RAND()*0.982 + 0.0052, Inputs!C$16, ((J165-J164)/(Inputs!B$16-Inputs!D$16)) * Inputs!E$16) / (Inputs!B$16+Inputs!D$16))*Inputs!E$19) -> 2034-12-04T15:37:42.368 | D165: =IF(0 = B165, "", IF(AND(G165<I165, K165<(Inputs!G$10-Inputs!G$13)), "MR", "OH")) -> MR | E165: =IF(0=B165,"start",IF(C165>Inputs!$C$21,"past",IF(AND(D165="MR",F165>=Inputs!$G$4),"Sch",IF(D165="OH",IF(H165>=Inputs!$G$10,"Sch", IF(K165>=Inputs!$G$10-Inputs!$G$13,"Uns-BP","Uns")),"Uns")))) -> Sch | F165: =IF(0 = B165, 0, _xlfn.GAMMA.INV(RAND(), Inputs!C$5, Inputs!E$5)) -> 1092.826005 | G165: =IF(0 = B165, 0, $J164 + MIN(Inputs!G$4, F165)) -> 2007.04638 | H165: =IF(0 = B165, 0, IF(OR(B165=1,D164="OH"), _xlfn.GAMMA.INV(RAND(), Inputs!C$11, Inputs!E$11),H164)) -> 3048.520126 | I165: =IF(0 = B165, 0, IF(OR(B165=1,D164="OH"), $J164 + MIN(Inputs!G$10, H165), I164)) -> 3048.520126 | J165: 2007.04638 | K165: 2007.04638 | L165: 1050 | M165: =IF(L165="","",(L165/(C165-C164))*Inputs!E$19) -> 12.77487706
A166: 29 | B166: =IF(OR(C165 >= Inputs!C$21, A165 > Inputs!C$23), 0, B165+1) -> 3 | C166: =IF(0 = B166, Inputs!C$18 + (A166-1)*(Inputs!E$19*Inputs!C$24)/(Inputs!C$23), C165 + (_xlfn.GAMMA.INV( RAND()*0.982 + 0.0052, Inputs!C$16, ((J166-J165)/(Inputs!B$16-Inputs!D$16)) * Inputs!E$16) / (Inputs!B$16+Inputs!D$16))*Inputs!E$19) -> 2038-11-21T23:00:27.159 | D166: =IF(0 = B166, "", IF(AND(G166<I166, K166<(Inputs!G$10-Inputs!G$13)), "MR", "OH")) -> MR | E166: =IF(0=B166,"start",IF(C166>Inputs!$C$21,"past",IF(AND(D166="MR",F166>=Inputs!$G$4),"Sch",IF(D166="OH",IF(H166>=Inputs!$G$10,"Sch", IF(K166>=Inputs!$G$10-Inputs!$G$13,"Uns-BP","Uns")),"Uns")))) -> Uns | F166: =IF(0 = B166, 0, _xlfn.GAMMA.INV(RAND(), Inputs!C$5, Inputs!E$5)) -> 967.6701768 | G166: =IF(0 = B166, 0, $J165 + MIN(Inputs!G$4, F166)) -> 2974.716557 | H166: =IF(0 = B166, 0, IF(OR(B166=1,D165="OH"), _xlfn.GAMMA.INV(RAND(), Inputs!C$11, Inputs!E$11),H165)) -> 3048.520126 | I166: =IF(0 = B166, 0, IF(OR(B166=1,D165="OH"), $J165 + MIN(Inputs!G$10, H166), I165)) -> 3048.520126 | J166: 2974.716557 | K166: 2974.716557 | L166: 967.6701768 | M166: =IF(L166="","",(L166/(C166-C165))*Inputs!E$19) -> 20.33646982
A167: 29 | B167: =IF(OR(C166 >= Inputs!C$21, A166 > Inputs!C$23), 0, B166+1) -> 4 | C167: =IF(0 = B167, Inputs!C$18 + (A167-1)*(Inputs!E$19*Inputs!C$24)/(Inputs!C$23), C166 + (_xlfn.GAMMA.INV( RAND()*0.982 + 0.0052, Inputs!C$16, ((J167-J166)/(Inputs!B$16-Inputs!D$16)) * Inputs!E$16) / (Inputs!B$16+Inputs!D$16))*Inputs!E$19) -> 2039-04-02T01:18:49.009 | D167: =IF(0 = B167, "", IF(AND(G167<I167, K167<(Inputs!G$10-Inputs!G$13)), "MR", "OH")) -> OH | E167: =IF(0=B167,"start",IF(C167>Inputs!$C$21,"past",IF(AND(D167="MR",F167>=Inputs!$G$4),"Sch",IF(D167="OH",IF(H167>=Inputs!$G$10,"Sch", IF(K167>=Inputs!$G$10-Inputs!$G$13,"Uns-BP","Uns")),"Uns")))) -> Uns-BP | F167: =IF(0 = B167, 0, _xlfn.GAMMA.INV(RAND(), Inputs!C$5, Inputs!E$5)) -> 1151.269314 | G167: =IF(0 = B167, 0, $J166 + MIN(Inputs!G$4, F167)) -> 4024.716557 | H167: =IF(0 = B167, 0, IF(OR(B167=1,D166="OH"), _xlfn.GAMMA.INV(RAND(), Inputs!C$11, Inputs!E$11),H166)) -> 3048.520126 | I167: =IF(0 = B167, 0, IF(OR(B167=1,D166="OH"), $J166 + MIN(Inputs!G$10, H167), I166)) -> 3048.520126 | J167: 3048.520126 | K167: 3048.520126 | L167: 73.80356931 | M167: =IF(L167="","",(L167/(C167-C166))*Inputs!E$19) -> 17.13549356
A168: 29 | B168: =IF(OR(C167 >= Inputs!C$21, A167 > Inputs!C$23), 0, B167+1) -> 5 | C168: =IF(0 = B168, Inputs!C$18 + (A168-1)*(Inputs!E$19*Inputs!C$24)/(Inputs!C$23), C167 + (_xlfn.GAMMA.INV( RAND()*0.982 + 0.0052, Inputs!C$16, ((J168-J167)/(Inputs!B$16-Inputs!D$16)) * Inputs!E$16) / (Inputs!B$16+Inputs!D$16))*Inputs!E$19) -> 2042-03-24T00:49:27.658 | D168: =IF(0 = B168, "", IF(AND(G168<I168, K168<(Inputs!G$10-Inputs!G$13)), "MR", "OH")) -> MR | E168: =IF(0=B168,"start",IF(C168>Inputs!$C$21,"past",IF(AND(D168="MR",F168>=Inputs!$G$4),"Sch",IF(D168="OH",IF(H168>=Inputs!$G$10,"Sch", IF(K168>=Inputs!$G$10-Inputs!$G$13,"Uns-BP","Uns")),"Uns")))) -> past | F168: =IF(0 = B168, 0, _xlfn.GAMMA.INV(RAND(), Inputs!C$5, Inputs!E$5)) -> 824.6063272 | G168: =IF(0 = B168, 0, $J167 + MIN(Inputs!G$4, F168)) -> 3873.126453 | H168: =IF(0 = B168, 0, IF(OR(B168=1,D167="OH"), _xlfn.GAMMA.INV(RAND(), Inputs!C$11, Inputs!E$11),H167)) -> 3094.411337 | I168: =IF(0 = B168, 0, IF(OR(B168=1,D167="OH"), $J167 + MIN(Inputs!G$10, H168), I167)) -> 6142.931462 | J168: 3873.126453 | K168: 824.6063272 | L168: 824.6063272 | M168: =IF(L168="","",(L168/(C168-C167))*Inputs!E$19) -> 23.09054812
A169: 30 | B169: =IF(OR(C168 >= Inputs!C$21, A168 > Inputs!C$23), 0, B168+1) -> 0 | C169: =IF(0 = B169, Inputs!C$18 + (A169-1)*(Inputs!E$19*Inputs!C$24)/(Inputs!C$23), C168 + (_xlfn.GAMMA.INV( RAND()*0.982 + 0.0052, Inputs!C$16, ((J169-J168)/(Inputs!B$16-Inputs!D$16)) * Inputs!E$16) / (Inputs!B$16+Inputs!D$16))*Inputs!E$19) -> 2025-01-10T12:55:03.529 | D169: =IF(0 = B169, "", IF(AND(G169<I169, K169<(Inputs!G$10-Inputs!G$13)), "MR", "OH")) ->  | E169: =IF(0=B169,"start",IF(C169>Inputs!$C$21,"past",IF(AND(D169="MR",F169>=Inputs!$G$4),"Sch",IF(D169="OH",IF(H169>=Inputs!$G$10,"Sch", IF(K169>=Inputs!$G$10-Inputs!$G$13,"Uns-BP","Uns")),"Uns")))) -> start | F169: =IF(0 = B169, 0, _xlfn.GAMMA.INV(RAND(), Inputs!C$5, Inputs!E$5)) -> 0 | G169: =IF(0 = B169, 0, $J168 + MIN(Inputs!G$4, F169)) -> 0 | H169: =IF(0 = B169, 0, IF(OR(B169=1,D168="OH"), _xlfn.GAMMA.INV(RAND(), Inputs!C$11, Inputs!E$11),H168)) -> 0 | I169: =IF(0 = B169, 0, IF(OR(B169=1,D168="OH"), $J168 + MIN(Inputs!G$10, H169), I168)) -> 0 | J169: 0 | K169: 0 | M169: =IF(L169="","",(L169/(C169-C168))*Inputs!E$19) -> 
A170: 30 | B170: =IF(OR(C169 >= Inputs!C$21, A169 > Inputs!C$23), 0, B169+1) -> 1 | C170: =IF(0 = B170, Inputs!C$18 + (A170-1)*(Inputs!E$19*Inputs!C$24)/(Inputs!C$23), C169 + (_xlfn.GAMMA.INV( RAND()*0.982 + 0.0052, Inputs!C$16, ((J170-J169)/(Inputs!B$16-Inputs!D$16)) * Inputs!E$16) / (Inputs!B$16+Inputs!D$16))*Inputs!E$19) -> 2028-07-03T20:10:38.289 | D170: =IF(0 = B170, "", IF(AND(G170<I170, K170<(Inputs!G$10-Inputs!G$13)), "MR", "OH")) -> MR | E170: =IF(0=B170,"start",IF(C170>Inputs!$C$21,"past",IF(AND(D170="MR",F170>=Inputs!$G$4),"Sch",IF(D170="OH",IF(H170>=Inputs!$G$10,"Sch", IF(K170>=Inputs!$G$10-Inputs!$G$13,"Uns-BP","Uns")),"Uns")))) -> Uns | F170: =IF(0 = B170, 0, _xlfn.GAMMA.INV(RAND(), Inputs!C$5, Inputs!E$5)) -> 863.5738404 | G170: =IF(0 = B170, 0, $J169 + MIN(Inputs!G$4, F170)) -> 863.5738404 | H170: =IF(0 = B170, 0, IF(OR(B170=1,D169="OH"), _xlfn.GAMMA.INV(RAND(), Inputs!C$11, Inputs!E$11),H169)) -> 2666.722557 | I170: =IF(0 = B170, 0, IF(OR(B170=1,D169="OH"), $J169 + MIN(Inputs!G$10, H170), I169)) -> 2666.722557 | J170: 863.5738404 | K170: 863.5738404 | L170: 863.5738404 | M170: =IF(L170="","",(L170/(C170-C169))*Inputs!E$19) -> 20.69194469
A171: 30 | B171: =IF(OR(C170 >= Inputs!C$21, A170 > Inputs!C$23), 0, B170+1) -> 2 | C171: =IF(0 = B171, Inputs!C$18 + (A171-1)*(Inputs!E$19*Inputs!C$24)/(Inputs!C$23), C170 + (_xlfn.GAMMA.INV( RAND()*0.982 + 0.0052, Inputs!C$16, ((J171-J170)/(Inputs!B$16-Inputs!D$16)) * Inputs!E$16) / (Inputs!B$16+Inputs!D$16))*Inputs!E$19) -> 2030-11-05T15:21:02.358 | D171: =IF(0 = B171, "", IF(AND(G171<I171, K171<(Inputs!G$10-Inputs!G$13)), "MR", "OH")) -> MR | E171: =IF(0=B171,"start",IF(C171>Inputs!$C$21,"past",IF(AND(D171="MR",F171>=Inputs!$G$4),"Sch",IF(D171="OH",IF(H171>=Inputs!$G$10,"Sch", IF(K171>=Inputs!$G$10-Inputs!$G$13,"Uns-BP","Uns")),"Uns")))) -> Uns | F171: =IF(0 = B171, 0, _xlfn.GAMMA.INV(RAND(), Inputs!C$5, Inputs!E$5)) -> 879.8345331 | G171: =IF(0 = B171, 0, $J170 + MIN(Inputs!G$4, F171)) -> 1743.408373 | H171: =IF(0 = B171, 0, IF(OR(B171=1,D170="OH"), _xlfn.GAMMA.INV(RAND(), Inputs!C$11, Inputs!E$11),H170)) -> 2666.722557 | I171: =IF(0 = B171, 0, IF(OR(B171=1,D170="OH"), $J170 + MIN(Inputs!G$10, H171), I170)) -> 2666.722557 | J171: 1743.408373 | K171: 1743.408373 | L171: 879.8345331 | M171: =IF(L171="","",(L171/(C171-C170))*Inputs!E$19) -> 31.32896395
A172: 30 | B172: =IF(OR(C171 >= Inputs!C$21, A171 > Inputs!C$23), 0, B171+1) -> 3 | C172: =IF(0 = B172, Inputs!C$18 + (A172-1)*(Inputs!E$19*Inputs!C$24)/(Inputs!C$23), C171 + (_xlfn.GAMMA.INV( RAND()*0.982 + 0.0052, Inputs!C$16, ((J172-J171)/(Inputs!B$16-Inputs!D$16)) * Inputs!E$16) / (Inputs!B$16+Inputs!D$16))*Inputs!E$19) -> 2033-08-12T04:56:41.157 | D172: =IF(0 = B172, "", IF(AND(G172<I172, K172<(Inputs!G$10-Inputs!G$13)), "MR", "OH")) -> MR | E172: =IF(0=B172,"start",IF(C172>Inputs!$C$21,"past",IF(AND(D172="MR",F172>=Inputs!$G$4),"Sch",IF(D172="OH",IF(H172>=Inputs!$G$10,"Sch", IF(K172>=Inputs!$G$10-Inputs!$G$13,"Uns-BP","Uns")),"Uns")))) -> Uns | F172: =IF(0 = B172, 0, _xlfn.GAMMA.INV(RAND(), Inputs!C$5, Inputs!E$5)) -> 757.1166574 | G172: =IF(0 = B172, 0, $J171 + MIN(Inputs!G$4, F172)) -> 2500.525031 | H172: =IF(0 = B172, 0, IF(OR(B172=1,D171="OH"), _xlfn.GAMMA.INV(RAND(), Inputs!C$11, Inputs!E$11),H171)) -> 2666.722557 | I172: =IF(0 = B172, 0, IF(OR(B172=1,D171="OH"), $J171 + MIN(Inputs!G$10, H172), I171)) -> 2666.722557 | J172: 2500.525031 | K172: 2500.525031 | L172: 757.1166574 | M172: =IF(L172="","",(L172/(C172-C171))*Inputs!E$19) -> 22.80378387
A173: 30 | B173: =IF(OR(C172 >= Inputs!C$21, A172 > Inputs!C$23), 0, B172+1) -> 4 | C173: =IF(0 = B173, Inputs!C$18 + (A173-1)*(Inputs!E$19*Inputs!C$24)/(Inputs!C$23), C172 + (_xlfn.GAMMA.INV( RAND()*0.982 + 0.0052, Inputs!C$16, ((J173-J172)/(Inputs!B$16-Inputs!D$16)) * Inputs!E$16) / (Inputs!B$16+Inputs!D$16))*Inputs!E$19) -> 2034-02-22T22:38:43.551 | D173: =IF(0 = B173, "", IF(AND(G173<I173, K173<(Inputs!G$10-Inputs!G$13)), "MR", "OH")) -> OH | E173: =IF(0=B173,"start",IF(C173>Inputs!$C$21,"past",IF(AND(D173="MR",F173>=Inputs!$G$4),"Sch",IF(D173="OH",IF(H173>=Inputs!$G$10,"Sch", IF(K173>=Inputs!$G$10-Inputs!$G$13,"Uns-BP","Uns")),"Uns")))) -> Uns | F173: =IF(0 = B173, 0, _xlfn.GAMMA.INV(RAND(), Inputs!C$5, Inputs!E$5)) -> 1160.219324 | G173: =IF(0 = B173, 0, $J172 + MIN(Inputs!G$4, F173)) -> 3550.525031 | H173: =IF(0 = B173, 0, IF(OR(B173=1,D172="OH"), _xlfn.GAMMA.INV(RAND(), Inputs!C$11, Inputs!E$11),H172)) -> 2666.722557 | I173: =IF(0 = B173, 0, IF(OR(B173=1,D172="OH"), $J172 + MIN(Inputs!G$10, H173), I172)) -> 2666.722557 | J173: 2666.722557 | K173: 2666.722557 | L173: 166.1975257 | M173: =IF(L173="","",(L173/(C173-C172))*Inputs!E$19) -> 25.97669411
A174: 30 | B174: =IF(OR(C173 >= Inputs!C$21, A173 > Inputs!C$23), 0, B173+1) -> 5 | C174: =IF(0 = B174, Inputs!C$18 + (A174-1)*(Inputs!E$19*Inputs!C$24)/(Inputs!C$23), C173 + (_xlfn.GAMMA.INV( RAND()*0.982 + 0.0052, Inputs!C$16, ((J174-J173)/(Inputs!B$16-Inputs!D$16)) * Inputs!E$16) / (Inputs!B$16+Inputs!D$16))*Inputs!E$19) -> 2036-09-15T06:02:38.660 | D174: =IF(0 = B174, "", IF(AND(G174<I174, K174<(Inputs!G$10-Inputs!G$13)), "MR", "OH")) -> MR | E174: =IF(0=B174,"start",IF(C174>Inputs!$C$21,"past",IF(AND(D174="MR",F174>=Inputs!$G$4),"Sch",IF(D174="OH",IF(H174>=Inputs!$G$10,"Sch", IF(K174>=Inputs!$G$10-Inputs!$G$13,"Uns-BP","Uns")),"Uns")))) -> Uns | F174: =IF(0 = B174, 0, _xlfn.GAMMA.INV(RAND(), Inputs!C$5, Inputs!E$5)) -> 897.2525169 | G174: =IF(0 = B174, 0, $J173 + MIN(Inputs!G$4, F174)) -> 3563.975073 | H174: =IF(0 = B174, 0, IF(OR(B174=1,D173="OH"), _xlfn.GAMMA.INV(RAND(), Inputs!C$11, Inputs!E$11),H173)) -> 3062.803885 | I174: =IF(0 = B174, 0, IF(OR(B174=1,D173="OH"), $J173 + MIN(Inputs!G$10, H174), I173)) -> 5729.526442 | J174: 3563.975073 | K174: 897.2525169 | L174: 897.2525169 | M174: =IF(L174="","",(L174/(C174-C173))*Inputs!E$19) -> 29.19906106
A175: 30 | B175: =IF(OR(C174 >= Inputs!C$21, A174 > Inputs!C$23), 0, B174+1) -> 6 | C175: =IF(0 = B175, Inputs!C$18 + (A175-1)*(Inputs!E$19*Inputs!C$24)/(Inputs!C$23), C174 + (_xlfn.GAMMA.INV( RAND()*0.982 + 0.0052, Inputs!C$16, ((J175-J174)/(Inputs!B$16-Inputs!D$16)) * Inputs!E$16) / (Inputs!B$16+Inputs!D$16))*Inputs!E$19) -> 2039-11-24T04:21:44.854 | D175: =IF(0 = B175, "", IF(AND(G175<I175, K175<(Inputs!G$10-Inputs!G$13)), "MR", "OH")) -> MR | E175: =IF(0=B175,"start",IF(C175>Inputs!$C$21,"past",IF(AND(D175="MR",F175>=Inputs!$G$4),"Sch",IF(D175="OH",IF(H175>=Inputs!$G$10,"Sch", IF(K175>=Inputs!$G$10-Inputs!$G$13,"Uns-BP","Uns")),"Uns")))) -> Uns | F175: =IF(0 = B175, 0, _xlfn.GAMMA.INV(RAND(), Inputs!C$5, Inputs!E$5)) -> 874.9033038 | G175: =IF(0 = B175, 0, $J174 + MIN(Inputs!G$4, F175)) -> 4438.878377 | H175: =IF(0 = B175, 0, IF(OR(B175=1,D174="OH"), _xlfn.GAMMA.INV(RAND(), Inputs!C$11, Inputs!E$11),H174)) -> 3062.803885 | I175: =IF(0 = B175, 0, IF(OR(B175=1,D174="OH"), $J174 + MIN(Inputs!G$10, H175), I174)) -> 5729.526442 | J175: 4438.878377 | K175: 1772.155821 | L175: 874.9033038 | M175: =IF(L175="","",(L175/(C175-C174))*Inputs!E$19) -> 22.85963178
A176: 30 | B176: =IF(OR(C175 >= Inputs!C$21, A175 > Inputs!C$23), 0, B175+1) -> 7 | C176: =IF(0 = B176, Inputs!C$18 + (A176-1)*(Inputs!E$19*Inputs!C$24)/(Inputs!C$23), C175 + (_xlfn.GAMMA.INV( RAND()*0.982 + 0.0052, Inputs!C$16, ((J176-J175)/(Inputs!B$16-Inputs!D$16)) * Inputs!E$16) / (Inputs!B$16+Inputs!D$16))*Inputs!E$19) -> 2044-03-22T12:28:59.475 | D176: =IF(0 = B176, "", IF(AND(G176<I176, K176<(Inputs!G$10-Inputs!G$13)), "MR", "OH")) -> MR | E176: =IF(0=B176,"start",IF(C176>Inputs!$C$21,"past",IF(AND(D176="MR",F176>=Inputs!$G$4),"Sch",IF(D176="OH",IF(H176>=Inputs!$G$10,"Sch", IF(K176>=Inputs!$G$10-Inputs!$G$13,"Uns-BP","Uns")),"Uns")))) -> past | F176: =IF(0 = B176, 0, _xlfn.GAMMA.INV(RAND(), Inputs!C$5, Inputs!E$5)) -> 817.6565742 | G176: =IF(0 = B176, 0, $J175 + MIN(Inputs!G$4, F176)) -> 5256.534952 | H176: =IF(0 = B176, 0, IF(OR(B176=1,D175="OH"), _xlfn.GAMMA.INV(RAND(), Inputs!C$11, Inputs!E$11),H175)) -> 3062.803885 | I176: =IF(0 = B176, 0, IF(OR(B176=1,D175="OH"), $J175 + MIN(Inputs!G$10, H176), I175)) -> 5729.526442 | J176: 5256.534952 | K176: 2589.812395 | L176: 817.6565742 | M176: =IF(L176="","",(L176/(C176-C175))*Inputs!E$19) -> 15.74816036
A177: 31 | B177: =IF(OR(C176 >= Inputs!C$21, A176 > Inputs!C$23), 0, B176+1) -> 0 | C177: =IF(0 = B177, Inputs!C$18 + (A177-1)*(Inputs!E$19*Inputs!C$24)/(Inputs!C$23), C176 + (_xlfn.GAMMA.INV( RAND()*0.982 + 0.0052, Inputs!C$16, ((J177-J176)/(Inputs!B$16-Inputs!D$16)) * Inputs!E$16) / (Inputs!B$16+Inputs!D$16))*Inputs!E$19) -> 2025-01-11T23:17:38.824 | D177: =IF(0 = B177, "", IF(AND(G177<I177, K177<(Inputs!G$10-Inputs!G$13)), "MR", "OH")) ->  | E177: =IF(0=B177,"start",IF(C177>Inputs!$C$21,"past",IF(AND(D177="MR",F177>=Inputs!$G$4),"Sch",IF(D177="OH",IF(H177>=Inputs!$G$10,"Sch", IF(K177>=Inputs!$G$10-Inputs!$G$13,"Uns-BP","Uns")),"Uns")))) -> start | F177: =IF(0 = B177, 0, _xlfn.GAMMA.INV(RAND(), Inputs!C$5, Inputs!E$5)) -> 0 | G177: =IF(0 = B177, 0, $J176 + MIN(Inputs!G$4, F177)) -> 0 | H177: =IF(0 = B177, 0, IF(OR(B177=1,D176="OH"), _xlfn.GAMMA.INV(RAND(), Inputs!C$11, Inputs!E$11),H176)) -> 0 | I177: =IF(0 = B177, 0, IF(OR(B177=1,D176="OH"), $J176 + MIN(Inputs!G$10, H177), I176)) -> 0 | J177: 0 | K177: 0 | M177: =IF(L177="","",(L177/(C177-C176))*Inputs!E$19) -> 
A178: 31 | B178: =IF(OR(C177 >= Inputs!C$21, A177 > Inputs!C$23), 0, B177+1) -> 1 | C178: =IF(0 = B178, Inputs!C$18 + (A178-1)*(Inputs!E$19*Inputs!C$24)/(Inputs!C$23), C177 + (_xlfn.GAMMA.INV( RAND()*0.982 + 0.0052, Inputs!C$16, ((J178-J177)/(Inputs!B$16-Inputs!D$16)) * Inputs!E$16) / (Inputs!B$16+Inputs!D$16))*Inputs!E$19) -> 2029-01-11T01:44:08.770 | D178: =IF(0 = B178, "", IF(AND(G178<I178, K178<(Inputs!G$10-Inputs!G$13)), "MR", "OH")) -> MR | E178: =IF(0=B178,"start",IF(C178>Inputs!$C$21,"past",IF(AND(D178="MR",F178>=Inputs!$G$4),"Sch",IF(D178="OH",IF(H178>=Inputs!$G$10,"Sch", IF(K178>=Inputs!$G$10-Inputs!$G$13,"Uns-BP","Uns")),"Uns")))) -> Uns | F178: =IF(0 = B178, 0, _xlfn.GAMMA.INV(RAND(), Inputs!C$5, Inputs!E$5)) -> 822.893872 | G178: =IF(0 = B178, 0, $J177 + MIN(Inputs!G$4, F178)) -> 822.893872 | H178: =IF(0 = B178, 0, IF(OR(B178=1,D177="OH"), _xlfn.GAMMA.INV(RAND(), Inputs!C$11, Inputs!E$11),H177)) -> 3059.31174 | I178: =IF(0 = B178, 0, IF(OR(B178=1,D177="OH"), $J177 + MIN(Inputs!G$10, H178), I177)) -> 3059.31174 | J178: 822.893872 | K178: 822.893872 | L178: 822.893872 | M178: =IF(L178="","",(L178/(C178-C177))*Inputs!E$19) -> 17.15416921
A179: 31 | B179: =IF(OR(C178 >= Inputs!C$21, A178 > Inputs!C$23), 0, B178+1) -> 2 | C179: =IF(0 = B179, Inputs!C$18 + (A179-1)*(Inputs!E$19*Inputs!C$24)/(Inputs!C$23), C178 + (_xlfn.GAMMA.INV( RAND()*0.982 + 0.0052, Inputs!C$16, ((J179-J178)/(Inputs!B$16-Inputs!D$16)) * Inputs!E$16) / (Inputs!B$16+Inputs!D$16))*Inputs!E$19) -> 2033-03-09T01:27:58.190 | D179: =IF(0 = B179, "", IF(AND(G179<I179, K179<(Inputs!G$10-Inputs!G$13)), "MR", "OH")) -> MR | E179: =IF(0=B179,"start",IF(C179>Inputs!$C$21,"past",IF(AND(D179="MR",F179>=Inputs!$G$4),"Sch",IF(D179="OH",IF(H179>=Inputs!$G$10,"Sch", IF(K179>=Inputs!$G$10-Inputs!$G$13,"Uns-BP","Uns")),"Uns")))) -> Uns | F179: =IF(0 = B179, 0, _xlfn.GAMMA.INV(RAND(), Inputs!C$5, Inputs!E$5)) -> 855.1284517 | G179: =IF(0 = B179, 0, $J178 + MIN(Inputs!G$4, F179)) -> 1678.022324 | H179: =IF(0 = B179, 0, IF(OR(B179=1,D178="OH"), _xlfn.GAMMA.INV(RAND(), Inputs!C$11, Inputs!E$11),H178)) -> 3059.31174 | I179: =IF(0 = B179, 0, IF(OR(B179=1,D178="OH"), $J178 + MIN(Inputs!G$10, H179), I178)) -> 3059.31174 | J179: 1678.022324 | K179: 1678.022324 | L179: 855.1284517 | M179: =IF(L179="","",(L179/(C179-C178))*Inputs!E$19) -> 17.14635366
A180: 31 | B180: =IF(OR(C179 >= Inputs!C$21, A179 > Inputs!C$23), 0, B179+1) -> 3 | C180: =IF(0 = B180, Inputs!C$18 + (A180-1)*(Inputs!E$19*Inputs!C$24)/(Inputs!C$23), C179 + (_xlfn.GAMMA.INV( RAND()*0.982 + 0.0052, Inputs!C$16, ((J180-J179)/(Inputs!B$16-Inputs!D$16)) * Inputs!E$16) / (Inputs!B$16+Inputs!D$16))*Inputs!E$19) -> 2036-01-06T04:07:08.792 | D180: =IF(0 = B180, "", IF(AND(G180<I180, K180<(Inputs!G$10-Inputs!G$13)), "MR", "OH")) -> MR | E180: =IF(0=B180,"start",IF(C180>Inputs!$C$21,"past",IF(AND(D180="MR",F180>=Inputs!$G$4),"Sch",IF(D180="OH",IF(H180>=Inputs!$G$10,"Sch", IF(K180>=Inputs!$G$10-Inputs!$G$13,"Uns-BP","Uns")),"Uns")))) -> Uns | F180: =IF(0 = B180, 0, _xlfn.GAMMA.INV(RAND(), Inputs!C$5, Inputs!E$5)) -> 657.2296853 | G180: =IF(0 = B180, 0, $J179 + MIN(Inputs!G$4, F180)) -> 2335.252009 | H180: =IF(0 = B180, 0, IF(OR(B180=1,D179="OH"), _xlfn.GAMMA.INV(RAND(), Inputs!C$11, Inputs!E$11),H179)) -> 3059.31174 | I180: =IF(0 = B180, 0, IF(OR(B180=1,D179="OH"), $J179 + MIN(Inputs!G$10, H180), I179)) -> 3059.31174 | J180: 2335.252009 | K180: 2335.252009 | L180: 657.2296853 | M180: =IF(L180="","",(L180/(C180-C179))*Inputs!E$19) -> 19.36329926
A181: 31 | B181: =IF(OR(C180 >= Inputs!C$21, A180 > Inputs!C$23), 0, B180+1) -> 4 | C181: =IF(0 = B181, Inputs!C$18 + (A181-1)*(Inputs!E$19*Inputs!C$24)/(Inputs!C$23), C180 + (_xlfn.GAMMA.INV( RAND()*0.982 + 0.0052, Inputs!C$16, ((J181-J180)/(Inputs!B$16-Inputs!D$16)) * Inputs!E$16) / (Inputs!B$16+Inputs!D$16))*Inputs!E$19) -> 2039-09-27T21:22:32.588 | D181: =IF(0 = B181, "", IF(AND(G181<I181, K181<(Inputs!G$10-Inputs!G$13)), "MR", "OH")) -> OH | E181: =IF(0=B181,"start",IF(C181>Inputs!$C$21,"past",IF(AND(D181="MR",F181>=Inputs!$G$4),"Sch",IF(D181="OH",IF(H181>=Inputs!$G$10,"Sch", IF(K181>=Inputs!$G$10-Inputs!$G$13,"Uns-BP","Uns")),"Uns")))) -> Uns-BP | F181: =IF(0 = B181, 0, _xlfn.GAMMA.INV(RAND(), Inputs!C$5, Inputs!E$5)) -> 930.1909614 | G181: =IF(0 = B181, 0, $J180 + MIN(Inputs!G$4, F181)) -> 3265.44297 | H181: =IF(0 = B181, 0, IF(OR(B181=1,D180="OH"), _xlfn.GAMMA.INV(RAND(), Inputs!C$11, Inputs!E$11),H180)) -> 3059.31174 | I181: =IF(0 = B181, 0, IF(OR(B181=1,D180="OH"), $J180 + MIN(Inputs!G$10, H181), I180)) -> 3059.31174 | J181: 3059.31174 | K181: 3059.31174 | L181: 724.0597313 | M181: =IF(L181="","",(L181/(C181-C180))*Inputs!E$19) -> 16.19626658
A182: 31 | B182: =IF(OR(C181 >= Inputs!C$21, A181 > Inputs!C$23), 0, B181+1) -> 5 | C182: =IF(0 = B182, Inputs!C$18 + (A182-1)*(Inputs!E$19*Inputs!C$24)/(Inputs!C$23), C181 + (_xlfn.GAMMA.INV( RAND()*0.982 + 0.0052, Inputs!C$16, ((J182-J181)/(Inputs!B$16-Inputs!D$16)) * Inputs!E$16) / (Inputs!B$16+Inputs!D$16))*Inputs!E$19) -> 2045-06-06T11:59:50.260 | D182: =IF(0 = B182, "", IF(AND(G182<I182, K182<(Inputs!G$10-Inputs!G$13)), "MR", "OH")) -> MR | E182: =IF(0=B182,"start",IF(C182>Inputs!$C$21,"past",IF(AND(D182="MR",F182>=Inputs!$G$4),"Sch",IF(D182="OH",IF(H182>=Inputs!$G$10,"Sch", IF(K182>=Inputs!$G$10-Inputs!$G$13,"Uns-BP","Uns")),"Uns")))) -> past | F182: =IF(0 = B182, 0, _xlfn.GAMMA.INV(RAND(), Inputs!C$5, Inputs!E$5)) -> 961.7274227 | G182: =IF(0 = B182, 0, $J181 + MIN(Inputs!G$4, F182)) -> 4021.039163 | H182: =IF(0 = B182, 0, IF(OR(B182=1,D181="OH"), _xlfn.GAMMA.INV(RAND(), Inputs!C$11, Inputs!E$11),H181)) -> 2887.543109 | I182: =IF(0 = B182, 0, IF(OR(B182=1,D181="OH"), $J181 + MIN(Inputs!G$10, H182), I181)) -> 5946.854849 | J182: 4021.039163 | K182: 961.7274227 | L182: 961.7274227 | M182: =IF(L182="","",(L182/(C182-C181))*Inputs!E$19) -> 14.08277129
A183: 32 | B183: =IF(OR(C182 >= Inputs!C$21, A182 > Inputs!C$23), 0, B182+1) -> 0 | C183: =IF(0 = B183, Inputs!C$18 + (A183-1)*(Inputs!E$19*Inputs!C$24)/(Inputs!C$23), C182 + (_xlfn.GAMMA.INV( RAND()*0.982 + 0.0052, Inputs!C$16, ((J183-J182)/(Inputs!B$16-Inputs!D$16)) * Inputs!E$16) / (Inputs!B$16+Inputs!D$16))*Inputs!E$19) -> 2025-01-13T09:40:14.118 | D183: =IF(0 = B183, "", IF(AND(G183<I183, K183<(Inputs!G$10-Inputs!G$13)), "MR", "OH")) ->  | E183: =IF(0=B183,"start",IF(C183>Inputs!$C$21,"past",IF(AND(D183="MR",F183>=Inputs!$G$4),"Sch",IF(D183="OH",IF(H183>=Inputs!$G$10,"Sch", IF(K183>=Inputs!$G$10-Inputs!$G$13,"Uns-BP","Uns")),"Uns")))) -> start | F183: =IF(0 = B183, 0, _xlfn.GAMMA.INV(RAND(), Inputs!C$5, Inputs!E$5)) -> 0 | G183: =IF(0 = B183, 0, $J182 + MIN(Inputs!G$4, F183)) -> 0 | H183: =IF(0 = B183, 0, IF(OR(B183=1,D182="OH"), _xlfn.GAMMA.INV(RAND(), Inputs!C$11, Inputs!E$11),H182)) -> 0 | I183: =IF(0 = B183, 0, IF(OR(B183=1,D182="OH"), $J182 + MIN(Inputs!G$10, H183), I182)) -> 0 | J183: 0 | K183: 0 | M183: =IF(L183="","",(L183/(C183-C182))*Inputs!E$19) -> 
A184: 32 | B184: =IF(OR(C183 >= Inputs!C$21, A183 > Inputs!C$23), 0, B183+1) -> 1 | C184: =IF(0 = B184, Inputs!C$18 + (A184-1)*(Inputs!E$19*Inputs!C$24)/(Inputs!C$23), C183 + (_xlfn.GAMMA.INV( RAND()*0.982 + 0.0052, Inputs!C$16, ((J184-J183)/(Inputs!B$16-Inputs!D$16)) * Inputs!E$16) / (Inputs!B$16+Inputs!D$16))*Inputs!E$19) -> 2029-10-16T04:52:05.251 | D184: =IF(0 = B184, "", IF(AND(G184<I184, K184<(Inputs!G$10-Inputs!G$13)), "MR", "OH")) -> MR | E184: =IF(0=B184,"start",IF(C184>Inputs!$C$21,"past",IF(AND(D184="MR",F184>=Inputs!$G$4),"Sch",IF(D184="OH",IF(H184>=Inputs!$G$10,"Sch", IF(K184>=Inputs!$G$10-Inputs!$G$13,"Uns-BP","Uns")),"Uns")))) -> Uns | F184: =IF(0 = B184, 0, _xlfn.GAMMA.INV(RAND(), Inputs!C$5, Inputs!E$5)) -> 824.9564691 | G184: =IF(0 = B184, 0, $J183 + MIN(Inputs!G$4, F184)) -> 824.9564691 | H184: =IF(0 = B184, 0, IF(OR(B184=1,D183="OH"), _xlfn.GAMMA.INV(RAND(), Inputs!C$11, Inputs!E$11),H183)) -> 2775.409777 | I184: =IF(0 = B184, 0, IF(OR(B184=1,D183="OH"), $J183 + MIN(Inputs!G$10, H184), I183)) -> 2775.409777 | J184: 824.9564691 | K184: 824.9564691 | L184: 824.9564691 | M184: =IF(L184="","",(L184/(C184-C183))*Inputs!E$19) -> 14.45740097
A185: 32 | B185: =IF(OR(C184 >= Inputs!C$21, A184 > Inputs!C$23), 0, B184+1) -> 2 | C185: =IF(0 = B185, Inputs!C$18 + (A185-1)*(Inputs!E$19*Inputs!C$24)/(Inputs!C$23), C184 + (_xlfn.GAMMA.INV( RAND()*0.982 + 0.0052, Inputs!C$16, ((J185-J184)/(Inputs!B$16-Inputs!D$16)) * Inputs!E$16) / (Inputs!B$16+Inputs!D$16))*Inputs!E$19) -> 2034-07-12T20:42:52.207 | D185: =IF(0 = B185, "", IF(AND(G185<I185, K185<(Inputs!G$10-Inputs!G$13)), "MR", "OH")) -> MR | E185: =IF(0=B185,"start",IF(C185>Inputs!$C$21,"past",IF(AND(D185="MR",F185>=Inputs!$G$4),"Sch",IF(D185="OH",IF(H185>=Inputs!$G$10,"Sch", IF(K185>=Inputs!$G$10-Inputs!$G$13,"Uns-BP","Uns")),"Uns")))) -> Uns | F185: =IF(0 = B185, 0, _xlfn.GAMMA.INV(RAND(), Inputs!C$5, Inputs!E$5)) -> 959.2226558 | G185: =IF(0 = B185, 0, $J184 + MIN(Inputs!G$4, F185)) -> 1784.179125 | H185: =IF(0 = B185, 0, IF(OR(B185=1,D184="OH"), _xlfn.GAMMA.INV(RAND(), Inputs!C$11, Inputs!E$11),H184)) -> 2775.409777 | I185: =IF(0 = B185, 0, IF(OR(B185=1,D184="OH"), $J184 + MIN(Inputs!G$10, H185), I184)) -> 2775.409777 | J185: 1784.179125 | K185: 1784.179125 | L185: 959.2226558 | M185: =IF(L185="","",(L185/(C185-C184))*Inputs!E$19) -> 16.8700583
A186: 32 | B186: =IF(OR(C185 >= Inputs!C$21, A185 > Inputs!C$23), 0, B185+1) -> 3 | C186: =IF(0 = B186, Inputs!C$18 + (A186-1)*(Inputs!E$19*Inputs!C$24)/(Inputs!C$23), C185 + (_xlfn.GAMMA.INV( RAND()*0.982 + 0.0052, Inputs!C$16, ((J186-J185)/(Inputs!B$16-Inputs!D$16)) * Inputs!E$16) / (Inputs!B$16+Inputs!D$16))*Inputs!E$19) -> 2040-05-11T20:28:43.831 | D186: =IF(0 = B186, "", IF(AND(G186<I186, K186<(Inputs!G$10-Inputs!G$13)), "MR", "OH")) -> MR | E186: =IF(0=B186,"start",IF(C186>Inputs!$C$21,"past",IF(AND(D186="MR",F186>=Inputs!$G$4),"Sch",IF(D186="OH",IF(H186>=Inputs!$G$10,"Sch", IF(K186>=Inputs!$G$10-Inputs!$G$13,"Uns-BP","Uns")),"Uns")))) -> past | F186: =IF(0 = B186, 0, _xlfn.GAMMA.INV(RAND(), Inputs!C$5, Inputs!E$5)) -> 948.6055264 | G186: =IF(0 = B186, 0, $J185 + MIN(Inputs!G$4, F186)) -> 2732.784651 | H186: =IF(0 = B186, 0, IF(OR(B186=1,D185="OH"), _xlfn.GAMMA.INV(RAND(), Inputs!C$11, Inputs!E$11),H185)) -> 2775.409777 | I186: =IF(0 = B186, 0, IF(OR(B186=1,D185="OH"), $J185 + MIN(Inputs!G$10, H186), I185)) -> 2775.409777 | J186: 2732.784651 | K186: 2732.784651 | L186: 948.6055264 | M186: =IF(L186="","",(L186/(C186-C185))*Inputs!E$19) -> 13.55554639
A187: 33 | B187: =IF(OR(C186 >= Inputs!C$21, A186 > Inputs!C$23), 0, B186+1) -> 0 | C187: =IF(0 = B187, Inputs!C$18 + (A187-1)*(Inputs!E$19*Inputs!C$24)/(Inputs!C$23), C186 + (_xlfn.GAMMA.INV( RAND()*0.982 + 0.0052, Inputs!C$16, ((J187-J186)/(Inputs!B$16-Inputs!D$16)) * Inputs!E$16) / (Inputs!B$16+Inputs!D$16))*Inputs!E$19) -> 2025-01-14T20:02:49.412 | D187: =IF(0 = B187, "", IF(AND(G187<I187, K187<(Inputs!G$10-Inputs!G$13)), "MR", "OH")) ->  | E187: =IF(0=B187,"start",IF(C187>Inputs!$C$21,"past",IF(AND(D187="MR",F187>=Inputs!$G$4),"Sch",IF(D187="OH",IF(H187>=Inputs!$G$10,"Sch", IF(K187>=Inputs!$G$10-Inputs!$G$13,"Uns-BP","Uns")),"Uns")))) -> start | F187: =IF(0 = B187, 0, _xlfn.GAMMA.INV(RAND(), Inputs!C$5, Inputs!E$5)) -> 0 | G187: =IF(0 = B187, 0, $J186 + MIN(Inputs!G$4, F187)) -> 0 | H187: =IF(0 = B187, 0, IF(OR(B187=1,D186="OH"), _xlfn.GAMMA.INV(RAND(), Inputs!C$11, Inputs!E$11),H186)) -> 0 | I187: =IF(0 = B187, 0, IF(OR(B187=1,D186="OH"), $J186 + MIN(Inputs!G$10, H187), I186)) -> 0 | J187: 0 | K187: 0 | M187: =IF(L187="","",(L187/(C187-C186))*Inputs!E$19) -> 
A188: 33 | B188: =IF(OR(C187 >= Inputs!C$21, A187 > Inputs!C$23), 0, B187+1) -> 1 | C188: =IF(0 = B188, Inputs!C$18 + (A188-1)*(Inputs!E$19*Inputs!C$24)/(Inputs!C$23), C187 + (_xlfn.GAMMA.INV( RAND()*0.982 + 0.0052, Inputs!C$16, ((J188-J187)/(Inputs!B$16-Inputs!D$16)) * Inputs!E$16) / (Inputs!B$16+Inputs!D$16))*Inputs!E$19) -> 2028-01-05T04:46:39.929 | D188: =IF(0 = B188, "", IF(AND(G188<I188, K188<(Inputs!G$10-Inputs!G$13)), "MR", "OH")) -> MR | E188: =IF(0=B188,"start",IF(C188>Inputs!$C$21,"past",IF(AND(D188="MR",F188>=Inputs!$G$4),"Sch",IF(D188="OH",IF(H188>=Inputs!$G$10,"Sch", IF(K188>=Inputs!$G$10-Inputs!$G$13,"Uns-BP","Uns")),"Uns")))) -> Uns | F188: =IF(0 = B188, 0, _xlfn.GAMMA.INV(RAND(), Inputs!C$5, Inputs!E$5)) -> 801.5813902 | G188: =IF(0 = B188, 0, $J187 + MIN(Inputs!G$4, F188)) -> 801.5813902 | H188: =IF(0 = B188, 0, IF(OR(B188=1,D187="OH"), _xlfn.GAMMA.INV(RAND(), Inputs!C$11, Inputs!E$11),H187)) -> 2589.130978 | I188: =IF(0 = B188, 0, IF(OR(B188=1,D187="OH"), $J187 + MIN(Inputs!G$10, H188), I187)) -> 2589.130978 | J188: 801.5813902 | K188: 801.5813902 | L188: 801.5813902 | M188: =IF(L188="","",(L188/(C188-C187))*Inputs!E$19) -> 22.47922221
A189: 33 | B189: =IF(OR(C188 >= Inputs!C$21, A188 > Inputs!C$23), 0, B188+1) -> 2 | C189: =IF(0 = B189, Inputs!C$18 + (A189-1)*(Inputs!E$19*Inputs!C$24)/(Inputs!C$23), C188 + (_xlfn.GAMMA.INV( RAND()*0.982 + 0.0052, Inputs!C$16, ((J189-J188)/(Inputs!B$16-Inputs!D$16)) * Inputs!E$16) / (Inputs!B$16+Inputs!D$16))*Inputs!E$19) -> 2031-07-19T02:06:47.863 | D189: =IF(0 = B189, "", IF(AND(G189<I189, K189<(Inputs!G$10-Inputs!G$13)), "MR", "OH")) -> MR | E189: =IF(0=B189,"start",IF(C189>Inputs!$C$21,"past",IF(AND(D189="MR",F189>=Inputs!$G$4),"Sch",IF(D189="OH",IF(H189>=Inputs!$G$10,"Sch", IF(K189>=Inputs!$G$10-Inputs!$G$13,"Uns-BP","Uns")),"Uns")))) -> Uns | F189: =IF(0 = B189, 0, _xlfn.GAMMA.INV(RAND(), Inputs!C$5, Inputs!E$5)) -> 700.2123197 | G189: =IF(0 = B189, 0, $J188 + MIN(Inputs!G$4, F189)) -> 1501.79371 | H189: =IF(0 = B189, 0, IF(OR(B189=1,D188="OH"), _xlfn.GAMMA.INV(RAND(), Inputs!C$11, Inputs!E$11),H188)) -> 2589.130978 | I189: =IF(0 = B189, 0, IF(OR(B189=1,D188="OH"), $J188 + MIN(Inputs!G$10, H189), I188)) -> 2589.130978 | J189: 1501.79371 | K189: 1501.79371 | L189: 700.2123197 | M189: =IF(L189="","",(L189/(C189-C188))*Inputs!E$19) -> 16.5101049
A190: 33 | B190: =IF(OR(C189 >= Inputs!C$21, A189 > Inputs!C$23), 0, B189+1) -> 3 | C190: =IF(0 = B190, Inputs!C$18 + (A190-1)*(Inputs!E$19*Inputs!C$24)/(Inputs!C$23), C189 + (_xlfn.GAMMA.INV( RAND()*0.982 + 0.0052, Inputs!C$16, ((J190-J189)/(Inputs!B$16-Inputs!D$16)) * Inputs!E$16) / (Inputs!B$16+Inputs!D$16))*Inputs!E$19) -> 2035-05-10T13:59:07.482 | D190: =IF(0 = B190, "", IF(AND(G190<I190, K190<(Inputs!G$10-Inputs!G$13)), "MR", "OH")) -> MR | E190: =IF(0=B190,"start",IF(C190>Inputs!$C$21,"past",IF(AND(D190="MR",F190>=Inputs!$G$4),"Sch",IF(D190="OH",IF(H190>=Inputs!$G$10,"Sch", IF(K190>=Inputs!$G$10-Inputs!$G$13,"Uns-BP","Uns")),"Uns")))) -> Uns | F190: =IF(0 = B190, 0, _xlfn.GAMMA.INV(RAND(), Inputs!C$5, Inputs!E$5)) -> 854.3544555 | G190: =IF(0 = B190, 0, $J189 + MIN(Inputs!G$4, F190)) -> 2356.148165 | H190: =IF(0 = B190, 0, IF(OR(B190=1,D189="OH"), _xlfn.GAMMA.INV(RAND(), Inputs!C$11, Inputs!E$11),H189)) -> 2589.130978 | I190: =IF(0 = B190, 0, IF(OR(B190=1,D189="OH"), $J189 + MIN(Inputs!G$10, H190), I189)) -> 2589.130978 | J190: 2356.148165 | K190: 2356.148165 | L190: 854.3544555 | M190: =IF(L190="","",(L190/(C190-C189))*Inputs!E$19) -> 18.68811593
A191: 33 | B191: =IF(OR(C190 >= Inputs!C$21, A190 > Inputs!C$23), 0, B190+1) -> 4 | C191: =IF(0 = B191, Inputs!C$18 + (A191-1)*(Inputs!E$19*Inputs!C$24)/(Inputs!C$23), C190 + (_xlfn.GAMMA.INV( RAND()*0.982 + 0.0052, Inputs!C$16, ((J191-J190)/(Inputs!B$16-Inputs!D$16)) * Inputs!E$16) / (Inputs!B$16+Inputs!D$16))*Inputs!E$19) -> 2036-06-18T19:09:38.270 | D191: =IF(0 = B191, "", IF(AND(G191<I191, K191<(Inputs!G$10-Inputs!G$13)), "MR", "OH")) -> OH | E191: =IF(0=B191,"start",IF(C191>Inputs!$C$21,"past",IF(AND(D191="MR",F191>=Inputs!$G$4),"Sch",IF(D191="OH",IF(H191>=Inputs!$G$10,"Sch", IF(K191>=Inputs!$G$10-Inputs!$G$13,"Uns-BP","Uns")),"Uns")))) -> Uns | F191: =IF(0 = B191, 0, _xlfn.GAMMA.INV(RAND(), Inputs!C$5, Inputs!E$5)) -> 993.5228279 | G191: =IF(0 = B191, 0, $J190 + MIN(Inputs!G$4, F191)) -> 3349.670993 | H191: =IF(0 = B191, 0, IF(OR(B191=1,D190="OH"), _xlfn.GAMMA.INV(RAND(), Inputs!C$11, Inputs!E$11),H190)) -> 2589.130978 | I191: =IF(0 = B191, 0, IF(OR(B191=1,D190="OH"), $J190 + MIN(Inputs!G$10, H191), I190)) -> 2589.130978 | J191: 2589.130978 | K191: 2589.130978 | L191: 232.9828129 | M191: =IF(L191="","",(L191/(C191-C190))*Inputs!E$19) -> 17.5003474
A192: 33 | B192: =IF(OR(C191 >= Inputs!C$21, A191 > Inputs!C$23), 0, B191+1) -> 5 | C192: =IF(0 = B192, Inputs!C$18 + (A192-1)*(Inputs!E$19*Inputs!C$24)/(Inputs!C$23), C191 + (_xlfn.GAMMA.INV( RAND()*0.982 + 0.0052, Inputs!C$16, ((J192-J191)/(Inputs!B$16-Inputs!D$16)) * Inputs!E$16) / (Inputs!B$16+Inputs!D$16))*Inputs!E$19) -> 2039-10-06T13:24:06.926 | D192: =IF(0 = B192, "", IF(AND(G192<I192, K192<(Inputs!G$10-Inputs!G$13)), "MR", "OH")) -> MR | E192: =IF(0=B192,"start",IF(C192>Inputs!$C$21,"past",IF(AND(D192="MR",F192>=Inputs!$G$4),"Sch",IF(D192="OH",IF(H192>=Inputs!$G$10,"Sch", IF(K192>=Inputs!$G$10-Inputs!$G$13,"Uns-BP","Uns")),"Uns")))) -> Uns | F192: =IF(0 = B192, 0, _xlfn.GAMMA.INV(RAND(), Inputs!C$5, Inputs!E$5)) -> 697.5802269 | G192: =IF(0 = B192, 0, $J191 + MIN(Inputs!G$4, F192)) -> 3286.711205 | H192: =IF(0 = B192, 0, IF(OR(B192=1,D191="OH"), _xlfn.GAMMA.INV(RAND(), Inputs!C$11, Inputs!E$11),H191)) -> 2749.113361 | I192: =IF(0 = B192, 0, IF(OR(B192=1,D191="OH"), $J191 + MIN(Inputs!G$10, H192), I191)) -> 5338.244339 | J192: 3286.711205 | K192: 697.5802269 | L192: 697.5802269 | M192: =IF(L192="","",(L192/(C192-C191))*Inputs!E$19) -> 17.62392278
A193: 33 | B193: =IF(OR(C192 >= Inputs!C$21, A192 > Inputs!C$23), 0, B192+1) -> 6 | C193: =IF(0 = B193, Inputs!C$18 + (A193-1)*(Inputs!E$19*Inputs!C$24)/(Inputs!C$23), C192 + (_xlfn.GAMMA.INV( RAND()*0.982 + 0.0052, Inputs!C$16, ((J193-J192)/(Inputs!B$16-Inputs!D$16)) * Inputs!E$16) / (Inputs!B$16+Inputs!D$16))*Inputs!E$19) -> 2042-03-11T07:45:04.623 | D193: =IF(0 = B193, "", IF(AND(G193<I193, K193<(Inputs!G$10-Inputs!G$13)), "MR", "OH")) -> MR | E193: =IF(0=B193,"start",IF(C193>Inputs!$C$21,"past",IF(AND(D193="MR",F193>=Inputs!$G$4),"Sch",IF(D193="OH",IF(H193>=Inputs!$G$10,"Sch", IF(K193>=Inputs!$G$10-Inputs!$G$13,"Uns-BP","Uns")),"Uns")))) -> past | F193: =IF(0 = B193, 0, _xlfn.GAMMA.INV(RAND(), Inputs!C$5, Inputs!E$5)) -> 995.931263 | G193: =IF(0 = B193, 0, $J192 + MIN(Inputs!G$4, F193)) -> 4282.642468 | H193: =IF(0 = B193, 0, IF(OR(B193=1,D192="OH"), _xlfn.GAMMA.INV(RAND(), Inputs!C$11, Inputs!E$11),H192)) -> 2749.113361 | I193: =IF(0 = B193, 0, IF(OR(B193=1,D192="OH"), $J192 + MIN(Inputs!G$10, H193), I192)) -> 5338.244339 | J193: 4282.642468 | K193: 1693.51149 | L193: 995.931263 | M193: =IF(L193="","",(L193/(C193-C192))*Inputs!E$19) -> 34.18456183
A194: 34 | B194: =IF(OR(C193 >= Inputs!C$21, A193 > Inputs!C$23), 0, B193+1) -> 0 | C194: =IF(0 = B194, Inputs!C$18 + (A194-1)*(Inputs!E$19*Inputs!C$24)/(Inputs!C$23), C193 + (_xlfn.GAMMA.INV( RAND()*0.982 + 0.0052, Inputs!C$16, ((J194-J193)/(Inputs!B$16-Inputs!D$16)) * Inputs!E$16) / (Inputs!B$16+Inputs!D$16))*Inputs!E$19) -> 2025-01-16T06:25:24.706 | D194: =IF(0 = B194, "", IF(AND(G194<I194, K194<(Inputs!G$10-Inputs!G$13)), "MR", "OH")) ->  | E194: =IF(0=B194,"start",IF(C194>Inputs!$C$21,"past",IF(AND(D194="MR",F194>=Inputs!$G$4),"Sch",IF(D194="OH",IF(H194>=Inputs!$G$10,"Sch", IF(K194>=Inputs!$G$10-Inputs!$G$13,"Uns-BP","Uns")),"Uns")))) -> start | F194: =IF(0 = B194, 0, _xlfn.GAMMA.INV(RAND(), Inputs!C$5, Inputs!E$5)) -> 0 | G194: =IF(0 = B194, 0, $J193 + MIN(Inputs!G$4, F194)) -> 0 | H194: =IF(0 = B194, 0, IF(OR(B194=1,D193="OH"), _xlfn.GAMMA.INV(RAND(), Inputs!C$11, Inputs!E$11),H193)) -> 0 | I194: =IF(0 = B194, 0, IF(OR(B194=1,D193="OH"), $J193 + MIN(Inputs!G$10, H194), I193)) -> 0 | J194: 0 | K194: 0 | M194: =IF(L194="","",(L194/(C194-C193))*Inputs!E$19) -> 
A195: 34 | B195: =IF(OR(C194 >= Inputs!C$21, A194 > Inputs!C$23), 0, B194+1) -> 1 | C195: =IF(0 = B195, Inputs!C$18 + (A195-1)*(Inputs!E$19*Inputs!C$24)/(Inputs!C$23), C194 + (_xlfn.GAMMA.INV( RAND()*0.982 + 0.0052, Inputs!C$16, ((J195-J194)/(Inputs!B$16-Inputs!D$16)) * Inputs!E$16) / (Inputs!B$16+Inputs!D$16))*Inputs!E$19) -> 2028-12-26T02:00:40.699 | D195: =IF(0 = B195, "", IF(AND(G195<I195, K195<(Inputs!G$10-Inputs!G$13)), "MR", "OH")) -> MR | E195: =IF(0=B195,"start",IF(C195>Inputs!$C$21,"past",IF(AND(D195="MR",F195>=Inputs!$G$4),"Sch",IF(D195="OH",IF(H195>=Inputs!$G$10,"Sch", IF(K195>=Inputs!$G$10-Inputs!$G$13,"Uns-BP","Uns")),"Uns")))) -> Sch | F195: =IF(0 = B195, 0, _xlfn.GAMMA.INV(RAND(), Inputs!C$5, Inputs!E$5)) -> 1054.720895 | G195: =IF(0 = B195, 0, $J194 + MIN(Inputs!G$4, F195)) -> 1050 | H195: =IF(0 = B195, 0, IF(OR(B195=1,D194="OH"), _xlfn.GAMMA.INV(RAND(), Inputs!C$11, Inputs!E$11),H194)) -> 2845.720216 | I195: =IF(0 = B195, 0, IF(OR(B195=1,D194="OH"), $J194 + MIN(Inputs!G$10, H195), I194)) -> 2845.720216 | J195: =IF(0 = B195, 0, MIN(G195,I195)) -> 1050 | K195: =IF( B195 = 0, 0, J195 - J194 + IF(D194="OH", 0, K194)) -> 1050 | L195: =IF(0 = J195, "", J195-J194) -> 1050 | M195: =IF(L195="","",(L195/(C195-C194))*Inputs!E$19) -> 22.19684426
A196: =IF(B196=0, A195+1, A195 ) -> 34 | B196: =IF(OR(C195 >= Inputs!C$21, A195 > Inputs!C$23), 0, B195+1) -> 2 | C196: =IF(0 = B196, Inputs!C$18 + (A196-1)*(Inputs!E$19*Inputs!C$24)/(Inputs!C$23), C195 + (_xlfn.GAMMA.INV( RAND()*0.982 + 0.0052, Inputs!C$16, ((J196-J195)/(Inputs!B$16-Inputs!D$16)) * Inputs!E$16) / (Inputs!B$16+Inputs!D$16))*Inputs!E$19) -> 2033-04-13T20:42:20.339 | D196: =IF(0 = B196, "", IF(AND(G196<I196, K196<(Inputs!G$10-Inputs!G$13)), "MR", "OH")) -> MR | E196: =IF(0=B196,"start",IF(C196>Inputs!$C$21,"past",IF(AND(D196="MR",F196>=Inputs!$G$4),"Sch",IF(D196="OH",IF(H196>=Inputs!$G$10,"Sch", IF(K196>=Inputs!$G$10-Inputs!$G$13,"Uns-BP","Uns")),"Uns")))) -> Uns | F196: =IF(0 = B196, 0, _xlfn.GAMMA.INV(RAND(), Inputs!C$5, Inputs!E$5)) -> 814.6590589 | G196: =IF(0 = B196, 0, $J195 + MIN(Inputs!G$4, F196)) -> 1864.659059 | H196: =IF(0 = B196, 0, IF(OR(B196=1,D195="OH"), _xlfn.GAMMA.INV(RAND(), Inputs!C$11, Inputs!E$11),H195)) -> 2845.720216 | I196: =IF(0 = B196, 0, IF(OR(B196=1,D195="OH"), $J195 + MIN(Inputs!G$10, H196), I195)) -> 2845.720216 | J196: 1864.659059 | K196: 1864.659059 | L196: 814.6590589 | M196: =IF(L196="","",(L196/(C196-C195))*Inputs!E$19) -> 15.79597268
A197: 34 | B197: =IF(OR(C196 >= Inputs!C$21, A196 > Inputs!C$23), 0, B196+1) -> 3 | C197: =IF(0 = B197, Inputs!C$18 + (A197-1)*(Inputs!E$19*Inputs!C$24)/(Inputs!C$23), C196 + (_xlfn.GAMMA.INV( RAND()*0.982 + 0.0052, Inputs!C$16, ((J197-J196)/(Inputs!B$16-Inputs!D$16)) * Inputs!E$16) / (Inputs!B$16+Inputs!D$16))*Inputs!E$19) -> 2037-05-27T06:27:04.479 | D197: =IF(0 = B197, "", IF(AND(G197<I197, K197<(Inputs!G$10-Inputs!G$13)), "MR", "OH")) -> MR | E197: =IF(0=B197,"start",IF(C197>Inputs!$C$21,"past",IF(AND(D197="MR",F197>=Inputs!$G$4),"Sch",IF(D197="OH",IF(H197>=Inputs!$G$10,"Sch", IF(K197>=Inputs!$G$10-Inputs!$G$13,"Uns-BP","Uns")),"Uns")))) -> Uns | F197: =IF(0 = B197, 0, _xlfn.GAMMA.INV(RAND(), Inputs!C$5, Inputs!E$5)) -> 974.9964449 | G197: =IF(0 = B197, 0, $J196 + MIN(Inputs!G$4, F197)) -> 2839.655504 | H197: =IF(0 = B197, 0, IF(OR(B197=1,D196="OH"), _xlfn.GAMMA.INV(RAND(), Inputs!C$11, Inputs!E$11),H196)) -> 2845.720216 | I197: =IF(0 = B197, 0, IF(OR(B197=1,D196="OH"), $J196 + MIN(Inputs!G$10, H197), I196)) -> 2845.720216 | J197: 2839.655504 | K197: 2839.655504 | L197: 974.9964449 | M197: =IF(L197="","",(L197/(C197-C196))*Inputs!E$19) -> 19.72635909
A198: 34 | B198: =IF(OR(C197 >= Inputs!C$21, A197 > Inputs!C$23), 0, B197+1) -> 4 | C198: =IF(0 = B198, Inputs!C$18 + (A198-1)*(Inputs!E$19*Inputs!C$24)/(Inputs!C$23), C197 + (_xlfn.GAMMA.INV( RAND()*0.982 + 0.0052, Inputs!C$16, ((J198-J197)/(Inputs!B$16-Inputs!D$16)) * Inputs!E$16) / (Inputs!B$16+Inputs!D$16))*Inputs!E$19) -> 2037-06-03T04:25:32.431 | D198: =IF(0 = B198, "", IF(AND(G198<I198, K198<(Inputs!G$10-Inputs!G$13)), "MR", "OH")) -> OH | E198: =IF(0=B198,"start",IF(C198>Inputs!$C$21,"past",IF(AND(D198="MR",F198>=Inputs!$G$4),"Sch",IF(D198="OH",IF(H198>=Inputs!$G$10,"Sch", IF(K198>=Inputs!$G$10-Inputs!$G$13,"Uns-BP","Uns")),"Uns")))) -> Uns | F198: =IF(0 = B198, 0, _xlfn.GAMMA.INV(RAND(), Inputs!C$5, Inputs!E$5)) -> 906.1224628 | G198: =IF(0 = B198, 0, $J197 + MIN(Inputs!G$4, F198)) -> 3745.777967 | H198: =IF(0 = B198, 0, IF(OR(B198=1,D197="OH"), _xlfn.GAMMA.INV(RAND(), Inputs!C$11, Inputs!E$11),H197)) -> 2845.720216 | I198: =IF(0 = B198, 0, IF(OR(B198=1,D197="OH"), $J197 + MIN(Inputs!G$10, H198), I197)) -> 2845.720216 | J198: 2845.720216 | K198: 2845.720216 | L198: 6.064711923 | M198: =IF(L198="","",(L198/(C198-C197))*Inputs!E$19) -> 26.69249734
A199: 34 | B199: =IF(OR(C198 >= Inputs!C$21, A198 > Inputs!C$23), 0, B198+1) -> 5 | C199: =IF(0 = B199, Inputs!C$18 + (A199-1)*(Inputs!E$19*Inputs!C$24)/(Inputs!C$23), C198 + (_xlfn.GAMMA.INV( RAND()*0.982 + 0.0052, Inputs!C$16, ((J199-J198)/(Inputs!B$16-Inputs!D$16)) * Inputs!E$16) / (Inputs!B$16+Inputs!D$16))*Inputs!E$19) -> 2043-08-17T07:16:34.208 | D199: =IF(0 = B199, "", IF(AND(G199<I199, K199<(Inputs!G$10-Inputs!G$13)), "MR", "OH")) -> MR | E199: =IF(0=B199,"start",IF(C199>Inputs!$C$21,"past",IF(AND(D199="MR",F199>=Inputs!$G$4),"Sch",IF(D199="OH",IF(H199>=Inputs!$G$10,"Sch", IF(K199>=Inputs!$G$10-Inputs!$G$13,"Uns-BP","Uns")),"Uns")))) -> past | F199: =IF(0 = B199, 0, _xlfn.GAMMA.INV(RAND(), Inputs!C$5, Inputs!E$5)) -> 1094.469867 | G199: =IF(0 = B199, 0, $J198 + MIN(Inputs!G$4, F199)) -> 3895.720216 | H199: =IF(0 = B199, 0, IF(OR(B199=1,D198="OH"), _xlfn.GAMMA.INV(RAND(), Inputs!C$11, Inputs!E$11),H198)) -> 2787.985391 | I199: =IF(0 = B199, 0, IF(OR(B199=1,D198="OH"), $J198 + MIN(Inputs!G$10, H199), I198)) -> 5633.705607 | J199: 3895.720216 | K199: 1050 | L199: 1050 | M199: =IF(L199="","",(L199/(C199-C198))*Inputs!E$19) -> 14.10313326
A200: 35 | B200: =IF(OR(C199 >= Inputs!C$21, A199 > Inputs!C$23), 0, B199+1) -> 0 | C200: =IF(0 = B200, Inputs!C$18 + (A200-1)*(Inputs!E$19*Inputs!C$24)/(Inputs!C$23), C199 + (_xlfn.GAMMA.INV( RAND()*0.982 + 0.0052, Inputs!C$16, ((J200-J199)/(Inputs!B$16-Inputs!D$16)) * Inputs!E$16) / (Inputs!B$16+Inputs!D$16))*Inputs!E$19) -> 2025-01-17T16:48:00 | D200: =IF(0 = B200, "", IF(AND(G200<I200, K200<(Inputs!G$10-Inputs!G$13)), "MR", "OH")) ->  | E200: =IF(0=B200,"start",IF(C200>Inputs!$C$21,"past",IF(AND(D200="MR",F200>=Inputs!$G$4),"Sch",IF(D200="OH",IF(H200>=Inputs!$G$10,"Sch", IF(K200>=Inputs!$G$10-Inputs!$G$13,"Uns-BP","Uns")),"Uns")))) -> start | F200: =IF(0 = B200, 0, _xlfn.GAMMA.INV(RAND(), Inputs!C$5, Inputs!E$5)) -> 0 | G200: =IF(0 = B200, 0, $J199 + MIN(Inputs!G$4, F200)) -> 0 | H200: =IF(0 = B200, 0, IF(OR(B200=1,D199="OH"), _xlfn.GAMMA.INV(RAND(), Inputs!C$11, Inputs!E$11),H199)) -> 0 | I200: =IF(0 = B200, 0, IF(OR(B200=1,D199="OH"), $J199 + MIN(Inputs!G$10, H200), I199)) -> 0 | J200: 0 | K200: 0 | M200: =IF(L200="","",(L200/(C200-C199))*Inputs!E$19) -> 
... 4300 more rows

Sheet Metrics
A1: Maint Type | B1: (Multiple Items)
A3: Years (Event Date) | B3: Quarters (Event Date) | C3: Months (Event Date) | D3: Average of TBM | E3: Sum of TBM
A4: 2026 | B4: Qtr4 | D4: 591.0210774 | E4: 591.0210774
A5: 2026 Total | D5: 591.0210774 | E5: 591.0210774
A6: 2027 | B6: Qtr1 | D6: 847.2920599 | E6: 847.2920599
B7: Qtr2 | D7: 834.9876382 | E7: 1669.975276
B8: Qtr3 | D8: 843.8824778 | E8: 3375.529911
B9: Qtr4 | D9: 846.6971495 | E9: 9313.668645
A10: 2027 Total | D10: 844.8036607 | E10: 15206.46589
A11: 2028 | B11: Qtr1 | D11: 813.6094044 | E11: 9763.312853
B12: Qtr2 | D12: 850.1223459 | E12: 25503.67038
B13: Qtr3 | D13: 910.5504744 | E13: 26405.96376
B14: Qtr4 | D14: 888.8512483 | E14: 37331.75243
A15: 2028 Total | D15: 876.1477824 | E15: 99004.69942
A16: 2029 | B16: Qtr1 | D16: 898.4574951 | E16: 39532.12979
B17: Qtr2 | D17: 894.7390372 | E17: 45631.6909
B18: Qtr3 | D18: 919.0655397 | E18: 32167.29389
B19: Qtr4 | D19: 893.3243475 | E19: 35732.9739
A20: 2029 Total | D20: 900.376991 | E20: 153064.0885
A21: 2030 | B21: Qtr1 | D21: 915.1316469 | E21: 36605.26588
B22: Qtr2 | D22: 951.726165 | E22: 39020.77277
B23: Qtr3 | D23: 918.3852531 | E23: 31225.09861
B24: Qtr4 | D24: 948.7624811 | E24: 30360.39939
A25: 2030 Total | D25: 933.4118139 | E25: 137211.5366
A26: 2031 | B26: Qtr1 | D26: 947.2729159 | E26: 33154.55206
B27: Qtr2 | D27: 925.458412 | E27: 9254.58412
B28: Qtr3 | D28: 910.5695031 | E28: 30959.36311
B29: Qtr4 | D29: 939.8890391 | E29: 31016.33829
A30: 2031 Total | D30: 932.0074783 | E30: 104384.8376
A31: 2032 | B31: Qtr1 | D31: 914.4959172 | E31: 30178.36527
B32: Qtr2 | D32: 902.5689099 | E32: 34297.61858
B33: Qtr3 | D33: 877.4814662 | E33: 29834.36985
B34: Qtr4 | D34: 924.7355563 | E34: 31441.00891
A35: 2032 Total | D35: 904.686062 | E35: 125751.3626
A36: 2033 | B36: Qtr1 | D36: 906.5258333 | E36: 39887.13666
B37: Qtr2 | D37: 898.2953052 | E37: 28745.44977
B38: Qtr3 | D38: 860.5712772 | E38: 28398.85215
B39: Qtr4 | D39: 896.090825 | E39: 30467.08805
A40: 2033 Total | D40: 891.5980883 | E40: 127498.5266
A41: 2034 | B41: Qtr1 | D41: 889.2615998 | E41: 32902.67919
B42: Qtr2 | D42: 887.0280198 | E42: 33707.06475
B43: Qtr3 | D43: 845.6985853 | E43: 29599.45049
B44: Qtr4 | D44: 879.3787248 | E44: 36054.52772
A45: 2034 Total | D45: 875.9186897 | E45: 132263.7221
A46: 2035 | B46: Qtr1 | D46: 823.4901941 | E46: 33763.09796
B47: Qtr2 | D47: 788.2211051 | E47: 21281.96984
B48: Qtr3 | D48: 776.5213931 | E48: 36496.50548
B49: Qtr4 | D49: 748.1941708 | E49: 22445.82512
A50: 2035 Total | D50: 786.1199889 | E50: 113987.3984
A51: 2036 | B51: Qtr1 | D51: 726.3435242 | E51: 38496.20678
B52: Qtr2 | D52: 715.9612532 | E52: 33650.1789
B53: Qtr3 | D53: 759.7070787 | E53: 37985.35393
B54: Qtr4 | D54: 731.9546366 | E54: 37329.68647
A55: 2036 Total | D55: 733.6389357 | E55: 147461.4261
A56: 2037 | B56: Qtr1 | D56: 683.2357954 | E56: 36211.49715
B57: Qtr2 | D57: 657.1874348 | E57: 33516.55918
B58: Qtr3 | D58: 628.6428428 | E58: 27660.28508
B59: Qtr4 | D59: 647.7187168 | E59: 31738.21713
A60: 2037 Total | D60: 655.4647642 | E60: 129126.5585
A61: 2038 | B61: Qtr1 | D61: 613.6662285 | E61: 28228.64651
B62: Qtr2 | D62: 624.3448985 | E62: 23100.76124
B63: Qtr3 | D63: 622.5819064 | E63: 30506.51341
B64: Qtr4 | D64: 671.5408143 | E64: 34248.58153
A65: 2038 Total | D65: 634.3415448 | E65: 116084.5027
A66: 2039 | B66: Qtr1 | D66: 643.2465315 | E66: 21870.38207
B67: Qtr2 | D67: 767.6961558 | E67: 33778.63086
B68: Qtr3 | D68: 754.2399248 | E68: 28661.11714
B69: Qtr4 | D69: 691.53393 | E69: 29044.42506
A70: 2039 Total | D70: 717.4338932 | E70: 113354.5551
A71: 2040 | B71: Qtr1 | D71: 791.3851631 | E71: 30072.6362
B72: Qtr2 | D72: 837.8548982 | E72: 17594.95286
B73: Qtr3 | D73: 883.8322145 | E73: 28282.63086
B74: Qtr4 | D74: 820.3160942 | E74: 30351.69548
A75: 2040 Total | D75: 830.4837141 | E75: 106301.9154
A76: 2041 | B76: Qtr1 | D76: 870.6477061 | E76: 26119.43118
B77: Qtr2 | D77: 922.6371759 | E77: 28601.75245
B78: Qtr3 | D78: 873.236246 | E78: 35802.68608
B79: Qtr4 | D79: 908.6572992 | E79: 26351.06168
A80: 2041 Total | D80: 892.1750488 | E80: 116874.9314
A81: 2042 | B81: Qtr1 | D81: 879.6213726 | E81: 30786.74804
B82: Qtr2 | D82: 903.4818756 | E82: 24394.01064
B83: Qtr3 | D83: 906.9999777 | E83: 32651.9992
B84: Qtr4 | D84: 941.1246306 | E84: 22586.99113
A85: 2042 Total | D85: 905.0799099 | E85: 110419.749
A86: 2043 | B86: Qtr1 | D86: 930.4243126 | E86: 19538.91056
B87: Qtr2 | D87: 917.9906395 | E87: 18359.81279
B88: Qtr3 | D88: 932.5225564 | E88: 13987.83835
B89: Qtr4 | D89: 964.1669547 | E89: 12534.17041
A90: 2043 Total | D90: 933.6337987 | E90: 64420.73211
A91: 2044 | B91: Qtr1 | D91: 937.3458375 | E91: 12185.49589
B92: Qtr2 | D92: 920.4913072 | E92: 4602.456536
B93: Qtr3 | D93: 971.4890615 | E93: 8743.401553
B94: Qtr4 | D94: 973.9948421 | E94: 3895.979368
A95: 2044 Total | D95: 949.2688176 | E95: 29427.33334
A96: 2045 | B96: Qtr1 | D96: 1040.189885 | E96: 3120.569654
B97: Qtr2 | D97: 1005.863711 | E97: 2011.727423
B98: Qtr3 | D98: 1050 | E98: 2100
B99: Qtr4 | D99: 969.8917935 | E99: 969.8917935
A100: 2045 Total | D100: 1025.273609 | E100: 8202.18887
A101: Grand Total | D101: 824.0969799 | E101: 1950637.551

Sheet Maint_Formulas
A1: Item SN | B1: Event Num | C1: Event Date | D1: Maint Type | E1: Sch/Uns | F1: Unscheduled MR interval | G1: Minor Repair Hours | H1: Unscheduled OH interval | I1: Overhaul Hours | J1: TSN | K1: TSO | L1: TBM | M1: Avg Period Aging Rate
A2: 1 | B2: 0 | C2: =IF(0 = B2, Start_Date + (A2-1)*(DaysPerPeriod*IntroductionPeriods)/(NumItems), C1 + (_xlfn.GAMMA.INV( RAND()*0.982 + 0.0052,AgingRate_shape, ((J2-J1)/(AgingRate_mean-AgingRate_SD)) * AgingRate_scale) / (AgingRate_mean+AgingRate_SD))*DaysPerPeriod) -> 2024-11-30 | D2: =IF(0 = B2, "", IF(AND(G2<I2, K2<(OH_MaxTime-Build_Policy)), "MR", "OH")) ->  | E2: =IF(0=B2,"start",IF(C2>EndDate,"past",IF(AND(D2="MR",F2>=MR_MaxTime),"Sch",IF(D2="OH",IF(H2>=OH_MaxTime,"Sch", IF(K2>=OH_MaxTime-Build_Policy,"Uns-BP","Uns")),"Uns")))) -> start | F2: =IF(0 = B2, 0, _xlfn.GAMMA.INV(RAND(), MR_shape, MR_scale)) -> 0 | G2: =IF(0 = B2, 0, $J1 + MIN(MR_MaxTime, F2)) -> 0 | H2: =IF(0 = B2, 0, IF(OR(B2=1,D1="OH"), _xlfn.GAMMA.INV(RAND(), OH_shape, OH_scale),H1)) -> 0 | I2: =IF(0 = B2, 0, IF(OR(B2=1,D1="OH"), $J1 + MIN(OH_MaxTime, H2), I1)) -> 0 | J2: =IF(0 = B2, 0, MIN(G2,I2)) -> 0 | K2: =IF( B2 = 0, 0, J2 - J1 + IF(D1="OH", 0, K1)) -> 0 | L2: =IF(0 = J2, "", J2-J1) ->  | M2: =IF(L2="","",(L2/(C2-C1))*DaysPerPeriod) -> 
A3: =IF(B3=0, A2+1, A2 ) -> 1 | B3: =IF(OR(C2 >= EndDate, A2 > NumItems), 0, B2+1) -> 1 | C3: =IF(0 = B3, Start_Date + (A3-1)*(DaysPerPeriod*IntroductionPeriods)/(NumItems), C2 + (_xlfn.GAMMA.INV( RAND()*0.982 + 0.0052,AgingRate_shape, ((J3-J2)/(AgingRate_mean-AgingRate_SD)) * AgingRate_scale) / (AgingRate_mean+AgingRate_SD))*DaysPerPeriod) -> 2028-02-22T10:54:04.108 | D3: =IF(0 = B3, "", IF(AND(G3<I3, K3<(OH_MaxTime-Build_Policy)), "MR", "OH")) -> MR | E3: =IF(0=B3,"start",IF(C3>EndDate,"past",IF(AND(D3="MR",F3>=MR_MaxTime),"Sch",IF(D3="OH",IF(H3>=OH_MaxTime,"Sch", IF(K3>=OH_MaxTime-Build_Policy,"Uns-BP","Uns")),"Uns")))) -> Uns | F3: =IF(0 = B3, 0, _xlfn.GAMMA.INV(RAND(), MR_shape, MR_scale)) -> 1035.337779 | G3: =IF(0 = B3, 0, $J2 + MIN(MR_MaxTime, F3)) -> 1035.337779 | H3: =IF(0 = B3, 0, IF(OR(B3=1,D2="OH"), _xlfn.GAMMA.INV(RAND(), OH_shape, OH_scale),H2)) -> 3134.982573 | I3: =IF(0 = B3, 0, IF(OR(B3=1,D2="OH"), $J2 + MIN(OH_MaxTime, H3), I2)) -> 3134.982573 | J3: 1035.337779 | K3: 1035.337779 | L3: 1035.337779 | M3: =IF(L3="","",(L3/(C3-C2))*DaysPerPeriod) -> 26.71836962
